Workbook

Sheet INDICE
F1: ESTADOS UNIDOS DA AMÉRICA
F2: Trocas comerciais com Portugal (PT) 2018-2022 Setores agrícola e agroalimentar, do mar e das florestas
C3: Fonte
D4: Estatísticas do Comércio Internacional | F4: EUA - Síntese
D5: dados: 2021 provisórios; 2022 preliminares | F5: 1. Evolução da balança comercial
F6: 2. Ranking dos parceiros comerciais de Portugal por país
C7: Data | D7: 2023-05-22T12:29:35.360 | F7: 2A Parceiros comerciais de Portugal - UE vs. Países Terceiros
F8: 3. Principais produtos transacionados (NC a 2 e 4 dígitos)
F9: 3A Principais produtos transacionados (sem mar nem florestas)
F10: 4A Evolução da balança comercial por produto
F11: 5.2. Trocas comerciais por produto (NC 2 dígitos)

Sheet Sintese
A1: EUA - Síntese (2018-2022)
A3: • As trocas comerciais de bens transacionáveis (excluindo serviços) entre Portugal e EUA representam um total de 3,4 mil milhões de € (M€) em exportações e 1,9 mil M€ em importações, na média do período 2018-2022, correspondendo a um saldo positivo da balança comercial de cerca de 1,5 mil M€.
A4: • No que respeita aos produtos dos setores agrícola e agroalimentar, mar e florestas, Portugal exportou para EUA 554,1 M€ em média anual, no mesmo período (este país ocupa assim a 6ª posição em relação ao total dos países), enquanto as importações totalizaram 281,5 M€ (9ª posição), com um saldo positivo de 272,6 M€. Estes setores representam perto de 16,1% do total de exportações de bens transacionáveis e 14,8% das correspondentes importações.
A5: • Se nos referirmos apenas ao setor agrícola e agroalimentar, as exportações representam, em média, 183,6 M€ (9ª posição) e as importações 216,8 milhões (8ª posição), ou seja, Portugal tem um saldo negativo de -33,2 M€. Estes valores representam, respetivamente, cerca de 33,1% das exportações do setor agroflorestal e mar e 77% das importações.
A6: • As principais exportações agrícolas e agroalimentares (NC 4 dígitos) neste período são Vinhos de uvas frescas (52%), Produtos de padaria, pastelaria, etc. (8%) e Produtos hortícolas preparados, não congelados (7%). As importações agrícolas e agroalimentares mais relevantes referem-se a Soja, mesmo triturada (67%), Milho (4%) e Preparações p/ alimentação animal (4%). Se considerarmos também os produtos do mar e da floresta, merecem particular destaque, em termos de exportações, Obras de cortiça natural (21%), Papel e cartão p/ escrita, etc. (20%) e Vinhos de uvas frescas (17%). Nas importações destes setores, destacam-se Soja, mesmo triturada (51%), Peixes congelados (5%) e Madeira serrada, etc. (5%).
A9: Saldo da Balança Comercial | B9: 2018 | C9: 2019 | D9: 2020 | E9: 2021 | F9: 2022 | G9: média 2018-2022 | J9: Posição entre os parceiros comerciais de Portugal (milhares de euros)
A10: Total de Bens Transacionáveis* | B10: 1557994.141 | C10: 6170-01-27T10:01:55.200 | D10: 1433773.769 | E10: 1544856.727 | F10: 6201-06-08T13:49:26.400 | G10: 1533461.526 | J10: AA + M + F | K10: Posição | L10: média 2018-2022 | M10: % do total | N10: TVMA* 2018-2022 | O10: TVT* 2018-2022
A11: Agrícola e Agroalimentar (AA) | B11: -154135.973 | C11: -57349.634 | D11: -1515.974 | E11: 37755.082 | F11: 1925-10-24T00:41:45.600 | G11: -33163.494 | J11: Exportações | K11: 6ª | L11: 554106.8534 | M11: 0.04275346575 | N11: 0.08776846577 | O11: 0.400057454
A12: Mar (M) | B12: 6968.871 | C12: -5846.272 | D12: 5934.632 | E12: 29351.382 | F12: 32745.894 | G12: 13830.9014 | J12: Importações | K12: 9ª | L12: 281471.7806 | M12: 0.01881760051 | N12: -0.05784217745 | O12: -0.2120573054
A13: Florestas (F) | B13: 271356.488 | C13: 2624-01-12T16:17:45.600 | D13: 263135.123 | E13: 306941.205 | F13: 2869-02-03T19:58:04.800 | G13: 291967.6654 | J13: AA
A14: AA + M + F | B14: 124189.386 | C14: 2451-01-02T18:33:07.200 | D14: 267553.781 | E14: 374047.669 | F14: 2984-07-25T18:07:12 | G14: 272635.0728 | J14: Exportações | K14: 9ª | L14: 183616.9722 | M14: 0.02598377852 | N14: 0.1260965966 | O14: 0.6080612383
J15: Importações | K15: 8ª | L15: 216780.4662 | M15: 0.02125166022 | N15: -0.05919153042 | O15: -0.2629344851
A16: milhares de euros *exclui serviços | K16: *TVMA - Taxa de variação média anual; TVT - Taxa de variação total
A18: Evolução das trocas comerciais Portugal-EUA em milhares de euros (2018-2022)
E27: Exportações | G27: Importações | I27: Saldo
A28: Principais produtos agrícolas e agroalimentares, do mar e da floresta transacionados (NC 4 dígitos)
A47: Principais produtos agrícolas e agroalimentares transacionados (NC 4 dígitos)
A81: Fonte: GPP a partir de dados INE/Comércio Internacional (2021 provisórios; 2022 preliminares) | N81: 2023-05-22T12:29:35.360

Sheet 1
A1: Evolução da balança comercial Portugal-EUA 2018-2022 em milhões de euros
A3: Total de Bens Transacionáveis (BT)(1) | B3: 2018 | C3: 2019 | D3: 2020 | E3: 2021 | F3: 2022 | G3: média quinquénio | H3: var. 18/19 | I3: var. 19/20 | J3: var. 20/21 | K3: var. 21/22 | L3: TVMA* 2018-2022 | M3: TVT* 2018-2022
A4: Exportações | B4: 2872.841607 | C4: 3036.16441 | D4: 2670.414349 | E4: 3547.061897 | F4: 5075.6067 | G4: 3440.417793 | H4: 0.05685061181 | I4: -0.120464511 | J4: 0.32828147 | K4: 0.4309326556 | L4: 0.152906453 | M4: 0.7667548004
A5: Importações | B5: 1314.847466 | C5: 1476.549992 | D5: 1236.64058 | E5: 2002.20517 | F5: 3504.538124 | G5: 1906.956266 | H5: 0.1229819657 | I5: -0.1624797083 | J5: 0.6190679834 | K5: 0.7503391643 | L5: 0.2777292998 | M5: 1.665357172
A6: Saldo (exp-imp) | B6: 1557.994141 | C6: 1559.614418 | D6: 1433.773769 | E6: 1544.856727 | F6: 1571.068576 | G6: 1533.461526
A7: Cobertura (exp/imp) | B7: 2.184923865 | C7: 2.056255749 | D7: 2.159410254 | E7: 1.771577634 | F7: 1.448295473 | G7: 1.804140899
A8: Exp BT EUA / Exp BT Mundo | B8: 0.04966019055 | C8: 0.05068484121 | D8: 0.04967529528 | E8: 0.05575517321 | F8: 0.06490441206 | G8: 0.05490087186 | L8: Exportações
A9: Imp BT EUA / Imp BT Mundo | B9: 0.01742922326 | C9: 0.01846215315 | D9: 0.01814704341 | E9: 0.02408067781 | F9: 0.03206621623 | G9: 0.02292023981 | L9: Importações
A10: Exp BT EUA / Exp TE Mundo | B10: 0.0322270786 | C10: 0.03255206821 | D10: 0.03594785899 | E10: 0.03967421735 | F10: 0.04238439639 | G10: 0.03692568638
A11: Imp BT EUA / Imp TE Mundo | B11: 0.01490851793 | C11: 0.01599698459 | D11: 0.01573638929 | E11: 0.02095876449 | F11: 0.02788063558 | G11: 0.01985132632
A12: (1) Todos os produtos transacionados entre PT e EUA (exclui serviços) | D12: TE - Total da Economia (bens e serviços) Fonte: INE/Contas Nacionais | H12: *TVMA - Taxa de variação média anual; TVT - Taxa de variação total
A24: Agro(1) + Mar + Florestas (AMF) | B24: 2018 | C24: 2019 | D24: 2020 | E24: 2021 | F24: 2022 | G24: média quinquénio | H24: var. 18/19 | I24: var. 19/20 | J24: var. 20/21 | K24: var. 21/22 | L24: TVMA* 2018-2022 | M24: TVT* 2018-2022
A25: Exportações | B25: 487.290383 | C25: 504.943297 | D25: 504.332846 | E25: 591.733208 | F25: 682.234533 | G25: 554.1068534 | H25: 0.03622668252 | I25: -0.001208949606 | J25: 0.1732989685 | K25: 0.1529427853 | L25: 0.08776846577 | M25: 0.400057454
A26: Importações | B26: 363.100997 | C26: 303.690524 | D26: 236.779065 | E26: 217.685539 | F26: 286.102778 | G26: 281.4717806 | H26: -0.1636196912 | I26: -0.2203277801 | J26: -0.08063857335 | K26: 0.3142939091 | L26: -0.05784217745 | M26: -0.2120573054
A27: Saldo (exp-imp) | B27: 124.189386 | C27: 201.252773 | D27: 267.553781 | E27: 374.047669 | F27: 396.131755 | G27: 272.6350728
A28: Cobertura (exp/imp) | B28: 1.34202436 | C28: 1.662690328 | D28: 2.129972285 | E28: 2.718293602 | F28: 2.384578499 | G28: 1.968605351
A29: Exp AMF / Exp BT | B29: 0.1696196483 | C29: 0.1663096028 | D29: 0.1888593979 | E29: 0.1668234796 | F29: 0.134414381 | G29: 0.161058013 | L29: Exportações
A30: Imp AMF / Imp BT | B30: 0.2761544638 | C30: 0.205675748 | D30: 0.1914695901 | E30: 0.1087228933 | F30: 0.08163779873 | G30: 0.1476026407 | L30: Importações
A31: Exp AMF EUA / Exp AMF Mundo | B31: 0.04182495316 | C31: 0.04269113553 | D31: 0.04372029915 | E31: 0.04417050243 | F31: 0.04161991331 | G31: 0.04275346575
A32: Imp AMF EUA / Imp AMF Mundo | B32: 0.02663867199 | C32: 0.02195348072 | D32: 0.01815040444 | E32: 0.01456615616 | F32: 0.01479673289 | G32: 0.01881760051
A33: (1) Produtos agrícolas e agroalimentares | B33: BT - Total de Bens Transacionáveis (exclui serviços) | H33: *TVMA - Taxa de variação média anual; TVT - Taxa de variação total
A45: Agroalimentar (AA)(1) | B45: 2018 | C45: 2019 | D45: 2020 | E45: 2021 | F45: 2022 | G45: média quinquénio | H45: var. 18/19 | I45: var. 19/20 | J45: var. 20/21 | K45: var. 21/22 | L45: TVMA* 2018-2022 | M45: TVT* 2018-2022
A46: Exportações | B46: 141.260555 | C46: 173.48989 | D46: 170.227644 | E46: 205.951149 | F46: 227.155623 | G46: 183.6169722 | H46: 0.2281552341 | I46: -0.01880366631 | J46: 0.2098572486 | K46: 0.1029587555 | L46: 0.1260965966 | M46: 0.6080612383
A47: Importações | B47: 295.396528 | C47: 230.839524 | D47: 171.743618 | E47: 168.196067 | F47: 217.726594 | G47: 216.7804662 | H47: -0.2185435436 | I47: -0.2560042794 | J47: -0.02065608633 | K47: 0.294480887 | L47: -0.07343365182 | M47: -0.2629344851
A48: Saldo (exp-imp) | B48: -154.135973 | C48: -57.349634 | D48: -1.515974 | E48: 37.755082 | F48: 9.429029 | G48: -33.163494
A49: Cobertura (exp/imp) | B49: 0.4782065516 | C49: 0.751560595 | D49: 0.9911730403 | E49: 1.224470659 | F49: 1.04330674 | G49: 0.8470180705
A50: Exp AA / Exp AMF | B50: 0.2898898889 | C50: 0.3435829152 | D50: 0.3375303539 | E50: 0.3480473061 | F50: 0.33295826 | G50: 0.3313746637 | L50: Exportações
A51: Imp AA / Imp AMF | B51: 0.8135381903 | C51: 0.7601143459 | D51: 0.7253327823 | E51: 0.772656134 | F51: 0.7610083185 | G51: 0.7701676727 | L51: Importações
A52: Exp AA / Exp BT | B52: 0.049171021 | C52: 0.05714113815 | D52: 0.0637457794 | E52: 0.05806246267 | F52: 0.04475437843 | G52: 0.05337054488
A53: Imp AA / Imp BT | B53: 0.2246622028 | C53: 0.1563370866 | D53: 0.1388791705 | E53: 0.08400541039 | F53: 0.06212704393 | G53: 0.1136787823
A54: Exp AA EUA / Exp AA Mundo | B54: 0.02313139095 | C54: 0.02757458374 | D54: 0.02572548646 | E54: 0.02763776154 | F54: 0.02562219577 | G54: 0.02598377852
A55: Imp AA EUA / Imp AA Mundo | B55: 0.03247587252 | C55: 0.02477596992 | D55: 0.01890522769 | E55: 0.01637607145 | F55: 0.01645089473 | G55: 0.02125166022
A56: (1) Produtos agrícolas e agroalimentares | B56: AMF - Agroalimentar, Mar e Florestas; BT - Total de Bens Transacionáveis (exclui serviços) | H56: *TVMA - Taxa de variação média anual; TVT - Taxa de variação total
A67: Mar (M) | B67: 2018 | C67: 2019 | D67: 2020 | E67: 2021 | F67: 2022 | G67: média quinquénio | H67: var. 18/19 | I67: var. 19/20 | J67: var. 20/21 | K67: var. 21/22 | L67: TVMA* 2018-2022 | M67: TVT* 2018-2022
A68: Exportações | B68: 30.150345 | C68: 21.898423 | D68: 24.709633 | E68: 41.123644 | F68: 48.950724 | G68: 33.3665538 | H68: -0.2736924569 | I68: 0.1283749976 | J68: 0.6642757907 | K68: 0.1903304094 | L68: 0.1287992401 | M68: 0.6235543573
A69: Importações | B69: 23.181474 | C69: 27.744695 | D69: 18.775001 | E69: 11.772262 | F69: 16.20483 | G69: 19.5356524 | H69: 0.1968477501 | I69: -0.3232940207 | J69: -0.372982084 | K69: 0.3765264484 | L69: -0.08562181121
A70: Saldo (exp-imp) | B70: 6.968871 | C70: -5.846272 | D70: 5.934632 | E70: 29.351382 | F70: 32.745894 | G70: 13.8309014
A71: Cobertura (exp/imp) | B71: 1.300622428 | C71: 0.7892832486 | D71: 1.316092233 | E71: 3.49326612 | F71: 3.020748999 | G71: 1.70798257
A72: Exp M / Exp AMF | B72: 0.06187346611 | C72: 0.04336808337 | D72: 0.04899469308 | E72: 0.0694969345 | F72: 0.07175058082 | G72: 0.06021682207 | L72: Exportações
A73: Imp M / Imp AMF | B73: 0.06384304695 | C73: 0.09135844818 | D73: 0.07929333195 | E73: 0.0540792101 | F73: 0.05663989044 | G73: 0.06940536759 | L73: Importações
A74: Exp M / Exp BT | B74: 0.01049495556 | C74: 0.007212528718 | D74: 0.009253108234 | E74: 0.01159372044 | F74: 0.009644309911 | G74: 0.009698401709
A75: Imp M / Imp BT | B75: 0.0176305424 | C75: 0.01879021716 | D75: 0.01518226177 | E75: 0.005879648188 | F75: 0.004623955976 | G75: 0.01024441553
A76: Exp M EUA / Exp M Mundo | B76: 0.02764040073 | C76: 0.02049671543 | D76: 0.02746522779 | E76: 0.03754123189 | F76: 0.03808537759 | G76: 0.03067016215
A77: Imp M EUA / Imp M Mundo | B77: 0.01051678948 | C77: 0.01273076549 | D77: 0.009753921666 | E77: 0.005627129439 | F77: 0.006213834424 | G77: 0.008873097009
A78: AMF - Agroalimentar, Mar e Florestas; BT - Total de Bens Transacionáveis (exclui serviços) | H78: *TVMA - Taxa de variação média anual; TVT - Taxa de variação total
A90: Florestas (F) | B90: 2018 | C90: 2019 | D90: 2020 | E90: 2021 | F90: 2022 | G90: média quinquénio | H90: var. 18/19 | I90: var. 19/20 | J90: var. 20/21 | K90: var. 21/22 | L90: TVMA* 2018-2022 | M90: TVT* 2018-2022
A91: Exportações | B91: 315.879483 | C91: 309.554984 | D91: 309.395569 | E91: 344.658415 | F91: 406.128186 | G91: 337.1233274 | H91: -0.02002187334 | I91: -0.0005149812093 | J91: 0.1139733388 | K91: 0.1783498337 | L91: 0.06484262706 | M91: 0.2857061248
A92: Importações | B92: 44.522995 | C92: 45.106305 | D92: 46.260446 | E92: 37.71721 | F92: 52.171354 | G92: 45.155662 | H92: 0.01310131989 | I92: 0.02558713244 | J92: -0.1846769052 | K92: 0.3832241038 | L92: 0.04042776726 | M92: 0.1717844678
A93: Saldo (exp-imp) | B93: 271.356488 | C93: 264.448679 | D93: 263.135123 | E93: 306.941205 | F93: 353.956832 | G93: 291.9676654
A94: Cobertura (exp/imp) | B94: 7.094749196 | C94: 6.862787453 | D94: 6.688123348 | E94: 9.137961557 | F94: 7.784505382 | G94: 7.46580412
A95: Exp F / Exp AMF | B95: 0.648236645 | C95: 0.6130490014 | D95: 0.613474953 | E95: 0.5824557594 | F95: 0.5952911592 | G95: 0.6084085142 | L95: Exportações
A96: Imp F / Imp AMF | B96: 0.1226187627 | C96: 0.1485272059 | D96: 0.1953738858 | E96: 0.1732646559 | F96: 0.1823517911 | G96: 0.1604269597 | L96: Importações
A97: Exp F / Exp BT | B97: 0.1099536717 | C97: 0.1019559359 | D97: 0.1158605102 | E97: 0.09716729649 | F97: 0.08001569271 | G97: 0.09798906636
A98: Imp F / Imp BT | B98: 0.03386171868 | C98: 0.03054844417 | D98: 0.03740815783 | E98: 0.01883783469 | F98: 0.01488679882 | G98: 0.02367944289
A99: Exp F EUA / Exp F Mundo | B99: 0.07093592195 | C99: 0.06928609993 | D99: 0.07698920404 | E99: 0.07107325257 | F99: 0.06507262235 | G99: 0.0701463844
A100: Imp F EUA / Imp F Mundo | B100: 0.0191046019 | C100: 0.01930135509 | D100: 0.02272046248 | E100: 0.01460937365 | F100: 0.0149371081 | G100: 0.01766936478
A101: AMF - Agroalimentar, Mar e Florestas; BT - Total de Bens Transacionáveis (exclui serviços) | H101: *TVMA - Taxa de variação média anual; TVT - Taxa de variação total
A111: Fonte: GPP a partir de dados INE/Comércio Internacional (2021 provisórios; 2022 preliminares) | H111: 2023-05-22T12:29:35.360

Sheet 2
A1: Ranking dos parceiros comerciais de Portugal por país (média 2018-2022 em milhares de euros) produtos agrícolas e agroalimentares, do mar e da floresta
A2: Exportações | F2: Importações | K2: Trocas comerciais (total e saldo)
A3: P | B3: País | C3: média quinquénio | D3: % do Total | F3: P | G3: País | H3: média quinquénio | I3: % do Total | K3: P | L3: País | M3: Total (exp+imp) | N3: % do Total | O3: Saldo (exp-imp)
A4: 1 | B4: Espanha | C4: 4147137.938 | D4: 0.3199825426 | F4: 1 | G4: Espanha | H4: 6901979.232 | I4: 0.4614270306 | K4: 1 | L4: Espanha | M4: 11049117.17 | N4: 0.3957645176 | O4: -2754841.293
A5: 2 | B5: França | C5: 1359640.969 | D5: 0.1049064152 | F5: 2 | G5: França | H5: 986185.2734 | I5: 0.0659307319 | K5: 2 | L5: França | M5: 2345826.243 | N5: 0.08402434124 | O5: 373455.696
A6: 3 | B6: Itália | C6: 876774.7284 | D6: 0.06764969264 | F6: 3 | G6: Alemanha | H6: 880951.0908 | I6: 0.05889537367 | K6: 3 | L6: Alemanha | M6: 1516599.607 | N6: 0.05432255832 | O6: -245302.5748
A7: 4 | B7: Alemanha | C7: 635648.516 | D7: 0.04904501161 | F7: 4 | G7: Países Baixos | H7: 833152.697 | I7: 0.05569984523 | K7: 4 | L7: Países Baixos | M7: 1421542.299 | N7: 0.0509177334 | O7: -244763.0948
A8: 5 | B8: Países Baixos | C8: 588389.6022 | D8: 0.04539863485 | F8: 5 | G8: Brasil | H8: 705274.2876 | I8: 0.04715062294 | K8: 5 | L8: Itália | M8: 1323334.658 | N8: 0.04740006776 | O8: 430214.799
A9: 6 | B9: Estados Unidos | C9: 554106.8534 | D9: 0.04275346575 | F9: 6 | G9: Itália | H9: 446559.9294 | I9: 0.02985445411 | K9: 6 | L9: Brasil | M9: 1157990.816 | N9: 0.04147767371 | O9: -252557.7592 | P9: Nota: Nesta listagem, o Reino Unido passa a ser constituído por três componentes: Reino Unido [até 2020] ; Reino Unido (sem Irlanda do Norte) pós-2020 e Reino Unido (Irlanda do Norte) pós-2020. Estas componentes são calculadas igualmente como média do quinquénio, embora a primeira corresponda apenas a 2018-2020 e as duas últimas a 2021-2022.
A10: 7 | B10: Brasil | C10: 452716.5284 | D10: 0.03493044793 | F10: 7 | G10: Suécia | H10: 342692.7562 | I10: 0.02291048634 | K10: 7 | L10: Estados Unidos | M10: 835578.634 | N10: 0.02992930294 | O10: 272635.0728
A11: 8 | B11: Reino Unido | C11: 382822.421 | D11: 0.0295375976 | F11: 8 | G11: Bélgica | H11: 284922.9008 | I11: 0.01904832276 | K11: 8 | L11: Reino Unido | M11: 527725.3878 | N11: 0.01890241368 | O11: 237919.4542
A12: 9 | B12: Angola | C12: 331120.0664 | D12: 0.02554837633 | F12: 9 | G12: Estados Unidos | H12: 281471.7806 | I12: 0.01881760051 | K12: 9 | L12: Bélgica | M12: 524078.8948 | N12: 0.01877180121 | O12: -45766.9068
A13: 10 | B13: Reino Unido (sem Irlanda do Norte) pós 2020 | C13: 297928.3204 | D13: 0.02298738621 | F13: 10 | G13: Polónia | H13: 207249.91 | I13: 0.01385554887 | K13: 10 | L13: Polónia | M13: 458630.3884 | N13: 0.01642752372 | O13: 44130.5684
A14: 11 | B14: Polónia | C14: 251380.4784 | D14: 0.01939587393 | F14: 11 | G14: Ucrânia | H14: 195332.8996 | I14: 0.01305884541 | K14: 11 | L14: Suécia | M14: 436691.4122 | N14: 0.0156416991 | O14: -248694.1002
A15: 12 | B15: Bélgica | C15: 239155.994 | D15: 0.01845266402 | F15: 12 | G15: China | H15: 173709.004 | I15: 0.01161319488 | K15: 12 | L15: China | M15: 367378.4436 | N15: 0.01315900178 | O15: 19960.4356
A16: 13 | B16: Israel | C16: 214334.0624 | D16: 0.01653746735 | F16: 13 | G16: África do Sul | H16: 145344.5192 | I16: 0.009716906942 | K16: 13 | L16: Reino Unido (sem Irlanda do Norte) pós 2020 | M16: 358990.3996 | N16: 0.01285855333 | O16: 236866.2412
A17: 14 | B17: China | C17: 193669.4396 | D17: 0.01494303798 | F17: 14 | G17: Reino Unido | H17: 144902.9668 | I17: 0.009687387263 | K17: 14 | L17: Angola | M17: 346543.215 | N17: 0.01241271191 | O17: 315696.9178
A18: 15 | B18: Turquia | C18: 167228.7496 | D18: 0.01290294205 | F18: 15 | G18: Dinamarca | H18: 144434.8984 | I18: 0.009656094875 | K18: 15 | L18: Dinamarca | M18: 229206.2586 | N18: 0.008209859936 | O18: -59663.5382
A19: 16 | B19: Suíça | C19: 143381.926 | D19: 0.01106298221 | F19: 16 | G19: Roménia | H19: 138756.2138 | I19: 0.009276450357 | K19: 16 | L19: Turquia | M19: 223208.1582 | N19: 0.007995016046 | O19: 111249.341
A20: 17 | B20: Marrocos | C20: 109032.6026 | D20: 0.008412676387 | F20: 17 | G20: Irlanda | H20: 118290.7746 | I20: 0.007908247626 | K20: 17 | L20: Israel | M20: 222677.5138 | N20: 0.007976009077 | O20: 205990.611
A21: 18 | B21: Cabo Verde | C21: 100901.0544 | D21: 0.007785266952 | F21: 18 | G21: Canadá | H21: 108500.262 | I21: 0.007253709702 | K21: 18 | L21: Ucrânia | M21: 209672.7922 | N21: 0.007510197439 | O21: -180993.007
A22: 19 | B22: Canadá | C22: 96471.0096 | D22: 0.007443456041 | F22: 19 | G22: Rússia | H22: 105947.3528 | I22: 0.007083036729 | K22: 19 | L22: Canadá | M22: 204971.2716 | N22: 0.007341795294 | O22: -12029.2524
A23: 20 | B23: Suécia | C23: 93998.656 | D23: 0.007252695569 | F23: 20 | G23: Uruguai | H23: 102111.7952 | I23: 0.006826613188 | K23: 20 | L23: Rússia | M23: 185992.9178 | N23: 0.006662016183 | O23: -25901.7878
A24: 21 | B24: Dinamarca | C24: 84771.3602 | D24: 0.006540741055 | F24: 21 | G24: Argentina | H24: 97726.5184 | I24: 0.006533438552 | K24: 21 | L24: África do Sul | M24: 182500.0166 | N24: 0.00653690516 | O24: -108189.0218
A25: 22 | B25: Egito | C25: 83378.3752 | D25: 0.0064332619 | F25: 22 | G25: Índia | H25: 75540.6788 | I25: 0.005050219645 | K25: 22 | L25: Irlanda | M25: 182267.8406 | N25: 0.006528588928 | O25: -54313.7086
A26: 23 | B26: Rússia | C26: 80045.565 | D26: 0.006176110801 | F26: 23 | G26: Finlândia | H26: 74110.91 | I26: 0.004954633445 | K26: 23 | L26: Roménia | M26: 164596.3888 | N26: 0.00589562129 | O26: -112916.0388
A27: 24 | B27: Argélia | C27: 78380.8918 | D27: 0.00604766888 | F27: 24 | G27: Vietname | H27: 70006.3292 | I27: 0.004680224545 | K27: 24 | L27: Marrocos | M27: 151640.996 | N27: 0.005431576543 | O27: 66424.2092
A28: 25 | B28: México | C28: 73464.5916 | D28: 0.005668339747 | F28: 25 | G28: Costa Rica | H28: 69968.8442 | I28: 0.004677718511 | K28: 25 | L28: Suíça | M28: 147879.1934 | N28: 0.005296833833 | O28: 138884.6586
A29: 26 | B29: Japão | C29: 66614.1746 | D29: 0.005139779115 | F29: 26 | G29: Áustria | H29: 64420.9792 | I29: 0.004306819847 | K29: 26 | L29: Grécia | M29: 116206.8788 | N29: 0.004162374118 | O29: -11091.8156
A30: 27 | B30: Irlanda | C30: 63977.066 | D30: 0.004936306569 | F30: 27 | G30: Grécia | H30: 63649.3472 | I30: 0.004255232926 | K30: 27 | L30: Argentina | M30: 113791.3158 | N30: 0.0040758519 | O30: -81661.721
A31: 28 | B31: Luxemburgo | C31: 55247.7972 | D31: 0.004262778544 | F31: 28 | G31: Reino Unido (sem Irlanda do Norte) pós 2020 | H31: 61062.0792 | I31: 0.004082262919 | K31: 28 | L31: Uruguai | M31: 105100.8748 | N31: 0.003764571991 | O31: -99122.7156
A32: 29 | B32: Grécia | C32: 52557.5316 | D32: 0.00405520454 | F32: 29 | G32: Turquia | H32: 55979.4086 | I32: 0.003742464504 | K32: 29 | L32: Áustria | M32: 103584.973 | N32: 0.003710274427 | O32: -25256.9854
A33: 30 | B33: Áustria | C33: 39163.9938 | D33: 0.003021793463 | F33: 30 | G33: Equador | H33: 48766.9652 | I33: 0.003260281607 | K33: 30 | L33: Finlândia | M33: 103332.8204 | N33: 0.00370124266 | O33: -44888.9996
A34: 31 | B34: Moçambique | C34: 37451.371 | D34: 0.002889651874 | F34: 31 | G34: Chile | H34: 47783.2146 | I34: 0.003194513644 | K34: 31 | L34: Cabo Verde | M34: 101737.191 | N34: 0.003644089361 | O34: 100064.9178
A35: 32 | B35: África do Sul | C35: 37155.4974 | D35: 0.002866823025 | F35: 32 | G35: Bulgária | H35: 47615.198 | I35: 0.003183281011 | K35: 32 | L35: Índia | M35: 100003.3314 | N35: 0.003581984841 | O35: -51078.0262
A36: 33 | B36: Chile | C36: 36026.5554 | D36: 0.002779716751 | F36: 33 | G36: Cuba | H36: 43073.8564 | I36: 0.00287967277 | K36: 33 | L36: Egito | M36: 93743.8836 | N36: 0.003357779839 | O36: 73012.8668
A37: 34 | B37: Austrália | C37: 34889.2258 | D37: 0.002691963312 | F37: 34 | G37: Marrocos | H37: 42608.3934 | I37: 0.002848554565 | K37: 34 | L37: México | M37: 93550.6764 | N37: 0.003350859417 | O37: 53378.5068
A38: 35 | B38: Arábia Saudita | C38: 32824.7102 | D38: 0.002532670576 | F38: 35 | G38: Moçambique | H38: 40008.1492 | I38: 0.002674717044 | K38: 35 | L38: Chile | M38: 83809.77 | N38: 0.00300195325 | O38: -11756.6592
A39: 36 | B39: Guiné-Bissau | C39: 32182.3282 | D39: 0.002483106026 | F39: 36 | G39: Checa, República | H39: 35954.3558 | I39: 0.0024037035 | K39: 36 | L39: Argélia | M39: 83292.5462 | N39: 0.002983426989 | O39: 73469.2374
A40: 37 | B40: Finlândia | C40: 29221.9104 | D40: 0.00225468777 | F40: 37 | G40: Colômbia | H40: 29155.8878 | I40: 0.001949196641 | K40: 37 | L40: Japão | M40: 83024.7762 | N40: 0.002973835828 | O40: 50203.573
A41: 38 | B41: Checa, República | C41: 29121.3328 | D41: 0.00224692746 | F41: 38 | G41: Indonésia | H41: 28536.2748 | I41: 0.001907772844 | K41: 38 | L41: Moçambique | M41: 77459.5202 | N41: 0.002774495842 | O41: -2556.7782
A42: 39 | B42: Emirados Árabes Unidos | C42: 29075.6888 | D42: 0.002243405686 | F42: 39 | G42: Guiana | H42: 28025.2642 | I42: 0.001873609585 | K42: 39 | L42: Vietname | M42: 75952.8202 | N42: 0.002720527875 | O42: -64059.8382
A43: 40 | B43: São Tomé e Príncipe | C43: 26794.1658 | D43: 0.002067369214 | F43: 40 | G43: Hungria | H43: 24241.9694 | I43: 0.001620680037 | K43: 40 | L43: Costa Rica | M43: 73986.1334 | N43: 0.002650083798 | O43: -65951.555
A44: 41 | B44: Jordânia | C44: 26642.1032 | D44: 0.002055636453 | F44: 41 | G44: Namíbia | H44: 22812.3548 | I44: 0.001525104145 | K44: 41 | L44: Checa, República | M44: 65075.6886 | N44: 0.002330923649 | O44: -6833.023
A45: 42 | B45: Roménia | C45: 25840.175 | D45: 0.001993761727 | F45: 42 | G45: Costa do Marfim | H45: 22796.1714 | I45: 0.001524022215 | K45: 42 | L45: Luxemburgo | M45: 63935.742 | N45: 0.002290092295 | O45: 46559.8524
A46: 43 | B46: Tunísia | C46: 24967.3514 | D46: 0.001926416893 | F46: 43 | G46: Uganda | H46: 22685.1304 | I46: 0.001516598646 | K46: 43 | L46: Bulgária | M46: 60599.4354 | N46: 0.002170590279 | O46: -34630.9606
A47: 44 | B47: Índia | C47: 24462.6526 | D47: 0.001887475626 | F47: 44 | G47: México | H47: 20086.0848 | I47: 0.001342841257 | K47: 44 | L47: Equador | M47: 51816.5236 | N47: 0.00185599819 | O47: -45717.4068
A48: 45 | B48: Noruega | C48: 22053.074 | D48: 0.001701558712 | F48: 45 | G48: Peru | H48: 19492.7516 | I48: 0.001303174378 | K48: 45 | L48: Austrália | M48: 48706.4602 | N48: 0.001744599902 | O48: 21071.9914
A49: 46 | B49: Coreia, República da | C49: 18918.1652 | D49: 0.001459677178 | F49: 46 | G49: Paraguai | H49: 18841.0926 | I49: 0.001259608167 | K49: 46 | L49: Cuba | M49: 48370.083 | N49: 0.001732551323 | O49: -37777.6298
A50: 47 | B50: Hungria | C50: 18307.2964 | D50: 0.001412544106 | F50: 47 | G50: Senegal | H50: 17576.369 | I50: 0.001175055949 | K50: 47 | L50: Hungria | M50: 42549.2658 | N50: 0.001524057479 | O50: -5934.673
A51: 48 | B51: Nigéria | C51: 16230.2952 | D51: 0.001252288012 | F51: 48 | G51: Nova Zelânda | H51: 17376.4264 | I51: 0.001161688925 | K51: 48 | L51: Colômbia | M51: 37488.773 | N51: 0.001342797432 | O51: -20823.0026
A52: 49 | B52: Argentina | C52: 16064.7974 | D52: 0.001239518626 | F52: 49 | G52: Japão | H52: 16410.6016 | I52: 0.001097119379 | K52: 49 | L52: Tunísia | M52: 35512.9364 | N52: 0.001272025622 | O52: 14421.7664
A53: 50 | B53: Lituânia | C53: 14413.7628 | D53: 0.001112129024 | F53: 50 | G53: Angola | H53: 15423.1486 | I53: 0.001031103894 | K53: 50 | L53: Noruega | M53: 34929.1028 | N53: 0.001251113488 | O53: 9177.0452
A54: 51 | B54: Ucrânia | C54: 14339.8926 | D54: 0.001106429389 | F54: 51 | G54: Lituânia | H54: 14634.3552 | I54: 0.0009783696586 | K54: 51 | L54: Costa do Marfim | M54: 32980.227 | N54: 0.001181307378 | O54: -12612.1158
A55: 52 | B55: Macau | C55: 14162.3014 | D55: 0.001092726907 | F55: 52 | G55: Mauritânia | H55: 14124.4552 | I55: 0.0009442806481 | K55: 52 | L55: Arábia Saudita | M55: 32858.648 | N55: 0.001176952581 | O55: 32790.7724
A56: 53 | B56: Síria, República Árabe da | C56: 13309.7072 | D56: 0.001026942922 | F56: 53 | G56: Austrália | H56: 13817.2344 | I56: 0.0009237416147 | K56: 53 | L56: Guiné-Bissau | M56: 32561.5328 | N56: 0.001166310315 | O56: 31803.1236
A57: 54 | B57: Iraque | C57: 13221.9204 | D57: 0.001020169517 | F57: 54 | G57: Tanzânia, República Unida da | H57: 13710.948 | I57: 0.0009166359112 | K57: 54 | L57: Indonésia | M57: 32138.0738 | N57: 0.001151142583 | O57: -24934.4758
A58: 55 | B58: Bulgária | C58: 12984.2374 | D58: 0.001001830505 | F58: 55 | G58: Eslovénia | H58: 13650.401 | I58: 0.0009125880836 | K58: 55 | L58: Coreia, República da | M58: 31290.6162 | N58: 0.001120787791 | O58: 6545.7142
A59: 56 | B59: HongKong | C59: 12801.5844 | D59: 0.0009877374677 | F59: 56 | G59: Suazilândia | H59: 13238.574 | I59: 0.0008850556754 | K59: 56 | L59: Emirados Árabes Unidos | M59: 29704.3194 | N59: 0.001063968773 | O59: 28447.0582
A60: 57 | B60: Eslováquia | C60: 12721.3848 | D60: 0.000981549472 | F60: 57 | G60: Noruega | H60: 12876.0288 | I60: 0.0008608179677 | K60: 57 | L60: Lituânia | M60: 29048.118 | N60: 0.001040464521 | O60: -220.5924
A61: 58 | B61: Letónia | C61: 11855.2754 | D61: 0.0009147226888 | F61: 58 | G61: Tailândia | H61: 12763.9036 | I61: 0.0008533219153 | K61: 58 | L61: Senegal | M61: 28854.7126 | N61: 0.001033537 | O61: -6298.0254
A62: 59 | B62: Croácia | C62: 11368.3906 | D62: 0.0008771559045 | F62: 59 | G62: Camarões | H62: 12420.1756 | I62: 0.0008303422184 | K62: 59 | L62: Guiana | M62: 28164.8444 | N62: 0.001008826849 | O62: -27885.684
A63: 60 | B63: Senegal | C63: 11278.3436 | D63: 0.0008702081086 | F63: 60 | G63: Coreia, República da | H63: 12372.451 | I63: 0.0008271516234 | K63: 60 | L63: São Tomé e Príncipe | M63: 27847.8924 | N63: 0.0009974740546 | O63: 25740.4392
A64: 61 | B64: Dominicana, República | C64: 11207.4662 | D64: 0.0008647393899 | F64: 61 | G64: Estónia | H64: 12168.0976 | I64: 0.0008134897187 | K64: 61 | L64: Jordânia | M64: 26698.3012 | N64: 0.0009562972438 | O64: 26585.9052
A65: 62 | B65: Líbia, Jamahira Árabe da | C65: 11110.442 | D65: 0.0008572532511 | F65: 62 | G65: Moldava, República de | H65: 11911.7076 | I65: 0.0007963489432 | K65: 62 | L65: Peru | M65: 25630.734 | N65: 0.0009180584224 | O65: -13354.7692
A66: 63 | B66: Costa do Marfim | C66: 10184.0556 | D66: 0.000785775649 | F66: 63 | G66: Sérvia | H66: 11556.9174 | I66: 0.0007726296907 | K66: 63 | L66: Uganda | M66: 23651.9568 | N66: 0.0008471812843 | O66: -21718.304
A67: 64 | B67: Malta | C67: 9933.0434 | D67: 0.0007664081904 | F67: 64 | G67: Letónia | H67: 10708.7876 | I67: 0.0007159285616 | K67: 64 | L67: Namíbia | M67: 23552.016 | N67: 0.0008436015392 | O67: -22072.6936
A68: 65 | B68: Líbano | C68: 9909.3948 | D68: 0.000764583525 | F68: 65 | G68: Tunísia | H68: 10545.585 | I68: 0.0007050177651 | K68: 65 | L68: Letónia | M68: 22564.063 | N68: 0.0008082143914 | O68: 1146.4878
A69: 66 | B69: Território Palestiniano Ocupado | C69: 9895.7186 | D69: 0.0007635283045 | F69: 66 | G69: Paquistão | H69: 10439.2814 | I69: 0.0006979109117 | K69: 66 | L69: Tailândia | M69: 22047.6444 | N69: 0.0007897169717 | O69: -3480.1628
A70: 67 | B70: Chipre | C70: 9812.818 | D70: 0.0007571319065 | F70: 67 | G70: Egito | H70: 10365.5084 | I70: 0.000692978869 | K70: 67 | L70: Eslovénia | M70: 21976.3266 | N70: 0.000787162464 | O70: -5324.4754
A71: 68 | B71: Tailândia | C71: 9283.7408 | D71: 0.0007163096647 | F71: 68 | G71: Islândia | H71: 10004.2966 | I71: 0.0006688303048 | K71: 68 | L71: Nigéria | M71: 21616.2318 | N71: 0.0007742643525 | O71: 10844.3586
A72: 69 | B72: Kuwait | C72: 9136.5242 | D72: 0.0007049508088 | F72: 69 | G72: Maurícias | H72: 9636.258 | I72: 0.0006442253397 | K72: 69 | L72: Nova Zelânda | M72: 21601.4804 | N72: 0.0007737359772 | O72: -13151.3724
A73: 70 | B73: Camarões | C73: 9091.9556 | D73: 0.0007015120098 | F73: 70 | G73: Luxemburgo | H73: 8687.9448 | I73: 0.000580826519 | K73: 70 | L73: Camarões | M73: 21512.1312 | N73: 0.000770535609 | O73: -3328.22
A74: 71 | B74: Colômbia | C74: 8332.8852 | D74: 0.0006429440817 | F74: 71 | G74: Israel | H74: 8343.4514 | I74: 0.0005577956518 | K74: 71 | L74: Estónia | M74: 20482.628 | N74: 0.0007336601889 | O74: -3853.5672
A75: 72 | B75: Eslovénia | C75: 8325.9256 | D75: 0.0006424070968 | F75: 72 | G75: Filipinas | H75: 8336.7014 | I75: 0.0005573443853 | K75: 72 | L75: Paraguai | M75: 20050.3854 | N75: 0.0007181778403 | O75: -17631.7998
A76: 73 | B76: Estónia | C76: 8314.5304 | D76: 0.0006415278723 | F76: 73 | G76: Belize | H76: 8129.6594 | I76: 0.0005435027361 | K76: 73 | L76: Croácia | M76: 18456.18 | N76: 0.0006610755468 | O76: 4280.6012
A77: 74 | B77: Geórgia | C77: 8048.6886 | D77: 0.0006210161999 | F77: 74 | G77: Malásia | H77: 8111.8758 | I77: 0.0005423138258 | K77: 74 | L77: Eslováquia | M77: 18115.4256 | N77: 0.0006488701825 | O77: 7327.344
A78: 75 | B78: Gibraltar | C78: 7970.9208 | D78: 0.0006150158356 | F78: 75 | G78: Bangladesh | H78: 7928.3318 | I78: 0.0005300431191 | K78: 75 | L78: Sérvia | M78: 17501.5482 | N78: 0.0006268819196 | O78: -5612.2866
A79: 76 | B79: Gana | C79: 7302.601 | D79: 0.0005634499914 | F79: 76 | G79: Croácia | H79: 7087.7894 | I79: 0.0004738492404 | K79: 76 | L79: Mauritânia | M79: 16926.9998 | N79: 0.0006063023686 | O79: -11321.9106
A80: 77 | B80: Taiwan | C80: 6604.3054 | D80: 0.0005095712912 | F80: 77 | G80: Quénia | H80: 6720.3804 | I80: 0.0004492863668 | K80: 77 | L80: HongKong | M80: 15599.17 | N80: 0.0005587412909 | O80: 10003.9988
A81: 78 | B81: Belarus | C81: 6189.2796 | D81: 0.0004775489633 | F81: 78 | G81: Gana | H81: 6620.3222 | I81: 0.0004425970453 | K81: 78 | L81: Maurícias | M81: 15492.8062 | N81: 0.0005549314826 | O81: -3779.7098
A82: 79 | B82: Guatemala | C82: 6179.8032 | D82: 0.0004768177886 | F82: 79 | G82: Reino Unido (Irlanda do Norte) pós-2020 | H82: 6512.7256 | I82: 0.0004354037492 | K82: 79 | L82: Suazilândia | M82: 15229.7308 | N82: 0.0005455084756 | O82: -11247.4172
A83: 80 | B83: Peru | C83: 6137.9824 | D83: 0.0004735910027 | F83: 80 | G83: Panamá | H83: 6501.636 | I83: 0.0004346623617 | K83: 80 | L83: Moldava, República de | M83: 14880.8148 | N83: 0.0005330107737 | O83: -8942.6004
A84: 81 | B84: Vietname | C84: 5946.491 | D84: 0.0004588160167 | F84: 81 | G84: Honduras | H84: 6221.2504 | I84: 0.0004159173771 | K84: 81 | L84: Síria, República Árabe da | M84: 14259.5412 | N84: 0.0005107575889 | O84: 12359.8732
A85: 82 | B85: Sérvia | C85: 5944.6308 | D85: 0.0004586724885 | F85: 82 | G85: Suriname | H85: 5829.6302 | I85: 0.0003897358804 | K85: 82 | L85: Tanzânia, República Unida da | M85: 14227.4994 | N85: 0.0005096098947 | O85: -13194.3966
A86: 83 | B86: Maurícias | C86: 5856.5482 | D86: 0.0004518762606 | F86: 83 | G86: Eslováquia | H86: 5394.0408 | I86: 0.0003606148535 | K86: 83 | L86: Macau | M86: 14180.6616 | N86: 0.0005079322277 | O86: 14143.9412
A87: 84 | B87: Andorra | C87: 5401.2632 | D87: 0.000416747636 | F87: 84 | G87: Nigéria | H87: 5385.9366 | I87: 0.0003600730528 | K87: 84 | L87: Gana | M87: 13922.9232 | N87: 0.0004987003848 | O87: 682.2788
A88: 85 | B88: Cuba | C88: 5296.2266 | D88: 0.0004086432809 | F88: 85 | G88: Etiópia | H88: 5332.739 | I88: 0.0003565165642 | K88: 85 | L88: Paquistão | M88: 13694.5862 | N88: 0.0004905216605 | O88: -7183.9766
A89: 86 | B89: Singapura | C89: 4688.1098 | D89: 0.000361722546 | F89: 86 | G89: Congo | H89: 5207.2118 | I89: 0.0003481245304 | K89: 86 | L89: Dominicana, República | M89: 13458.9994 | N89: 0.0004820832582 | O89: 8955.933
A90: 87 | B90: Omã | C90: 4393.4536 | D90: 0.0003389876282 | F90: 87 | G90: Guatemala | H90: 5138.5064 | I90: 0.0003435312785 | K90: 87 | L90: Chipre | M90: 13259.2352 | N90: 0.0004749279732 | O90: 6366.4008
A91: 88 | B91: Nova Zelânda | C91: 4225.054 | D91: 0.0003259943464 | F91: 88 | G91: Camboja | H91: 4965.2796 | I91: 0.0003319503211 | K91: 88 | L91: Iraque | M91: 13234.1844 | N91: 0.0004740306872 | O91: 13209.6564
A92: 89 | B92: Panamá | C92: 4203.97 | D92: 0.0003243675589 | F92: 89 | G92: Argélia | H92: 4911.6544 | I92: 0.0003283652455 | K92: 89 | L92: Malta | M92: 12121.6218 | N92: 0.0004341801911 | O92: 7744.465
A93: 90 | B93: Costa Rica | C93: 4017.2892 | D93: 0.0003099637465 | F93: 90 | G93: Macedónia, Antiga República jugoslava da | H93: 4838.0028 | I93: 0.0003234413189 | K93: 90 | L93: Filipinas | M93: 11815.5126 | N93: 0.0004232157713 | O93: -4857.8902
A94: 91 | B94: Catar | C94: 3815.048 | D94: 0.0002943593334 | F94: 91 | G94: Zimbabwe | H94: 4709.1506 | I94: 0.0003148269946 | K94: 91 | L94: Islândia | M94: 11807.758 | N94: 0.0004229380119 | O94: -8200.8352
A95: 92 | B95: Burquina Faso | C95: 3646.8948 | D95: 0.0002813850632 | F95: 92 | G95: Suíça | H95: 4497.2674 | I95: 0.0003006616903 | K95: 92 | L95: Malásia | M95: 11523.7994 | N95: 0.0004127669968 | O95: -4699.9522
A96: 93 | B96: Indonésia | C96: 3601.799 | D96: 0.0002779055867 | F96: 93 | G96: Sri Lanca | H96: 4393.1556 | I96: 0.0002937013682 | K96: 93 | L96: Guatemala | M96: 11318.3096 | N96: 0.0004054066285 | O96: 1041.2968
A97: 94 | B97: Sudão | C97: 3570.9408 | D97: 0.000275524647 | F97: 94 | G97: Madagáscar | H97: 3797.768 | I97: 0.0002538971435 | K97: 94 | L97: Líbia, Jamahira Árabe da | M97: 11116.443 | N97: 0.0003981760383 | O97: 11104.441
A98: 95 | B98: Filipinas | C98: 3478.8112 | D98: 0.000268416163 | F98: 95 | G98: Mali | H98: 3762.5872 | I98: 0.0002515451555 | K98: 95 | L98: Panamá | M98: 10705.606 | N98: 0.0003834604095 | O98: -2297.666
A99: 96 | B99: Mali | C99: 3441.82 | D99: 0.0002655620168 | F99: 96 | G99: Myanmar | H99: 3487.5904 | I99: 0.0002331604353 | K99: 96 | L99: Líbano | M99: 10450.9178 | N99: 0.0003743378207 | O99: 9367.8718
A100: 97 | B100: Malásia | C100: 3411.9236 | D100: 0.0002632552871 | F100: 97 | G100: Nicarágua | H100: 3458.6086 | I100: 0.0002312228772 | K100: 97 | L100: Kuwait | M100: 10320.1982 | N100: 0.0003696556204 | O100: 7952.8502
A101: 98 | B101: Venezuela | C101: 3292.4432 | D101: 0.0002540364854 | F101: 98 | G101: Chipre | H101: 3446.4172 | I101: 0.0002304078296 | K101: 98 | L101: Taiwan | M101: 10028.0136 | N101: 0.000359189961 | O101: 3180.5972
A102: 99 | B102: Paquistão | C102: 3255.3048 | D102: 0.0002511709816 | F102: 99 | G102: Taiwan | H102: 3423.7082 | I102: 0.0002288896352 | K102: 99 | L102: Território Palestiniano Ocupado | M102: 9896.2038 | N102: 0.0003544687112 | O102: 9895.2334
A103: 100 | B103: Irão, República Islâmica do | C103: 3151.3458 | D103: 0.0002431497714 | F103: 100 | G103: Congo, República Democrática do | H103: 3287.5874 | I103: 0.0002197893736 | K103: 100 | L103: Bangladesh | M103: 9893.1502 | N103: 0.0003543593354 | O103: -5963.5134
A104: 101 | B104: Equador | C104: 3049.5584 | D104: 0.0002352961163 | F104: 101 | G104: Malavi | H104: 3258.318 | I104: 0.0002178325882 | K104: 101 | L104: Quénia | M104: 9767.4084 | N104: 0.0003498554332 | O104: -3673.3524
A105: 102 | B105: Quénia | C105: 3047.028 | D105: 0.0002351008771 | F105: 102 | G105: Papuásia-Nova Guiné | H105: 3105.1676 | I105: 0.0002075938245 | K105: 102 | L105: Reino Unido (Irlanda do Norte) pós-2020 | M105: 9039.3634 | N105: 0.0003237778404 | O105: -3986.0878
A106: 103 | B106: Uruguai | C106: 2989.0796 | D106: 0.000230629727 | F106: 103 | G106: HongKong | H106: 2797.5856 | I106: 0.0001870306434 | K106: 103 | L106: Geórgia | M106: 8359.3498 | N106: 0.0002994206678 | O106: 7738.0274
A107: 104 | B107: Moldava, República de | C107: 2969.1072 | D107: 0.0002290887077 | F107: 104 | G107: Gabão | H107: 2642.8406 | I107: 0.0001766852738 | K107: 104 | L107: Belize | M107: 8131.84 | N107: 0.0002912715727 | O107: -8127.4788
A108: 105 | B108: Mauritânia | C108: 2802.5446 | D108: 0.0002162371641 | F108: 105 | G108: Centro-Africana, República | H108: 2579.2684 | I108: 0.0001724351985 | K108: 105 | L108: Gibraltar | M108: 7990.6994 | N108: 0.0002862161062 | O108: 7951.1422
A109: 106 | B109: Timor-Leste | C109: 2726.394 | D109: 0.0002103615788 | F109: 106 | G109: Gâmbia | H109: 2389.373 | I109: 0.0001597398734 | K109: 106 | L109: Congo | M109: 7640.4052 | N109: 0.0002736690391 | O109: -2774.0184
A110: 107 | B110: Guiné | C110: 2676.647 | D110: 0.0002065232277 | F110: 107 | G110: Dominicana, República | H110: 2251.5332 | I110: 0.0001505246892 | K110: 107 | L110: Honduras | M110: 7590.891 | N110: 0.000271895507 | O110: -4851.6098
A111: 108 | B111: Arménia | C111: 2588.4812 | D111: 0.0001997205803 | F111: 108 | G111: Malta | H111: 2188.5784 | I111: 0.0001463158898 | K111: 108 | L111: Etiópia | M111: 7364.853 | N111: 0.0002637991299 | O111: -3300.625
A112: 109 | B112: Gabão | C112: 2550.5466 | D112: 0.0001967936438 | F112: 109 | G112: Serra Leoa | H112: 1997.8504 | I112: 0.0001335649017 | K112: 109 | L112: Mali | M112: 7204.4072 | N112: 0.0002580521771 | O112: -320.7672
A113: 110 | B113: Reino Unido (Irlanda do Norte) pós-2020 | C113: 2526.6378 | D113: 0.000194948902 | F113: 110 | G113: Benim | H113: 1832.152 | I113: 0.0001224872502 | K113: 110 | L113: Belarus | M113: 7048.6518 | N113: 0.0002524732281 | O113: 5329.9074
A114: 111 | B114: Congo | C114: 2433.1934 | D114: 0.0001877389714 | F114: 111 | G114: El Salvador | H114: 1779.4546 | I114: 0.0001189642021 | K114: 111 | L114: Suriname | M114: 6411.9606 | N114: 0.0002296678056 | O114: -5247.2998
A115: 112 | B115: Albânia | C115: 2230.3856 | D115: 0.0001720908409 | F115: 112 | G115: Burquina Faso | H115: 1725.7416 | I115: 0.0001153732568 | K115: 112 | L115: Singapura | M115: 5996.509 | N115: 0.000214786888 | O115: 3379.7106
A116: 113 | B116: Seychelles | C116: 2209.8298 | D116: 0.000170504808 | F116: 113 | G116: Laos, República Democrática Popular do | H116: 1570.485 | I116: 0.0001049936845 | K116: 113 | L116: Camboja | M116: 5868.657 | N116: 0.0002102074013 | O116: -4061.9022
A117: 114 | B117: Guiné Equatorial | C117: 2176.4366 | D117: 0.0001679282743 | F117: 114 | G117: Singapura | H117: 1308.3992 | I117: 8.74721203e-05 | K117: 114 | L117: Sri Lanca | M117: 5833.9434 | N117: 0.0002089640068 | O117: -2952.3678
A118: 115 | B118: Etiópia | C118: 2032.114 | D118: 0.000156792712 | F118: 115 | G118: Seychelles | H118: 1264.2444 | I118: 8.45201818e-05 | K118: 115 | L118: Macedónia, Antiga República jugoslava da | M118: 5788.8886 | N118: 0.0002073502045 | O118: -3887.117
A119: 116 | B119: Suazilândia | C119: 1991.1568 | D119: 0.0001536325594 | F119: 116 | G119: Kuwait | H119: 1183.674 | I119: 7.913370364e-05 | K119: 116 | L119: Andorra | M119: 5443.4826 | N119: 0.0001949782261 | O119: 5359.0438
A120: 117 | B120: Bangladesh | C120: 1964.8184 | D120: 0.0001516003559 | F120: 117 | G120: Bolívia | H120: 1171.2708 | I120: 7.830449631e-05 | K120: 117 | L120: Burquina Faso | M120: 5372.6364 | N120: 0.0001924406105 | O120: 1921.1532
A121: 118 | B121: Islândia | C121: 1803.4614 | D121: 0.000139150463 | F121: 118 | G121: Togo | H121: 1123.3014 | I121: 7.509753537e-05 | K121: 118 | L121: Gabão | M121: 5193.3872 | N121: 0.0001860201452 | O121: -92.294
A122: 119 | B122: Benim | C122: 1771.8166 | D122: 0.0001367088313 | F122: 119 | G122: São Tomé e Príncipe | H122: 1053.7266 | I122: 7.044616041e-05 | K122: 119 | L122: Nicarágua | M122: 5085.0522 | N122: 0.0001821397312 | O122: -1832.165
A123: 120 | B123: Congo, República Democrática do | C123: 1727.2344 | D123: 0.0001332689829 | F123: 120 | G123: Venezuela | H123: 1042.4414 | I123: 6.96916962e-05 | K123: 120 | L123: Congo, República Democrática do | M123: 5014.8218 | N123: 0.0001796241727 | O123: -1560.353
A124: 121 | B124: Jamaica | C124: 1687.498 | D124: 0.000130203024 | F124: 121 | G124: Iémen | H124: 1024.4982 | I124: 6.849211602e-05 | K124: 121 | L124: Omã | M124: 4887.3662 | N124: 0.0001750588845 | O124: 3899.541
A125: 122 | B125: Nicarágua | C125: 1626.4436 | D125: 0.0001254922229 | F125: 122 | G125: Síria, República Árabe da | H125: 949.834 | I125: 6.350049275e-05 | K125: 122 | L125: Zimbabwe | M125: 4774.1098 | N125: 0.0001710021926 | O125: -4644.1914
A126: 123 | B126: Togo | C126: 1570.864 | D126: 0.0001212038433 | F126: 123 | G126: Belarus | H126: 859.3722 | I126: 5.745273191e-05 | K126: 123 | L126: Venezuela | M126: 4334.8846 | N126: 0.0001552697366 | O126: 2250.0018
A127: 124 | B127: El Salvador | C127: 1565.6294 | D127: 0.000120799955 | F127: 124 | G127: Cabo Verde | H127: 836.1366 | I127: 5.5899332e-05 | K127: 124 | L127: Madagáscar | M127: 4107.7632 | N127: 0.0001471345535 | O127: -3487.7728
A128: 125 | B128: Cazaquistão | C128: 1539.9044 | D128: 0.0001188150798 | F128: 125 | G128: Bósnia-Herzegovina | H128: 758.1446 | I128: 5.068523098e-05 | K128: 125 | L128: Myanmar | M128: 3979.9732 | N128: 0.0001425572876 | O128: -2995.2076
A129: 126 | B129: Sri Lanca | C129: 1440.7878 | D129: 0.0001111674968 | F129: 126 | G129: Turquemenistão | H129: 720.6558 | I129: 4.817894327e-05 | K129: 126 | L129: Catar | M129: 3835.8118 | N129: 0.0001373936201 | O129: 3794.2842
A130: 127 | B130: Azerbaijão | C130: 1435.1898 | D130: 0.0001107355695 | F130: 127 | G130: Chade | H130: 675.9004 | I130: 4.518685207e-05 | K130: 127 | L130: Benim | M130: 3603.9686 | N130: 0.0001290893085 | O130: -60.3354
A131: 128 | B131: Bolívia | C131: 1412.2374 | D131: 0.0001089646211 | F131: 128 | G131: Emirados Árabes Unidos | H131: 628.6306 | I131: 4.202666241e-05 | K131: 128 | L131: Sudão | M131: 3591.4234 | N131: 0.0001286399563 | O131: 3550.4582
A132: 129 | B132: Honduras | C132: 1369.6406 | D132: 0.0001056779611 | F132: 129 | G132: Timor-Leste | H132: 614.51 | I132: 4.108263949e-05 | K132: 129 | L132: Seychelles | M132: 3474.0742 | N132: 0.0001244366657 | O132: 945.5854
A133: 130 | B133: São Bartolomeu | C133: 1280.9726 | D133: 9.883656527e-05 | F133: 130 | G133: Faroé, Ilhas | H133: 597.6172 | I133: 3.995328308e-05 | K133: 130 | L133: Irão, República Islâmica do | M133: 3375.8016 | N133: 0.0001209166734 | O133: 2926.89
A134: 131 | B134: Ruanda | C134: 1241.2404 | D134: 9.577093048e-05 | F134: 131 | G134: Líbano | H134: 541.523 | I134: 3.620314427e-05 | K134: 131 | L134: El Salvador | M134: 3345.084 | N134: 0.0001198164103 | O134: -213.8252
A135: 132 | B135: Paraguai | C135: 1209.2928 | D135: 9.330593548e-05 | F135: 132 | G135: Omã | H135: 493.9126 | I135: 3.302018403e-05 | K135: 132 | L135: Timor-Leste | M135: 3340.904 | N135: 0.0001196666883 | O135: 2111.884
A136: 133 | B136: Iémen | C136: 1145.3826 | D136: 8.837478812e-05 | F136: 133 | G136: Gronelândia | H136: 481.3548 | I136: 3.218064103e-05 | K136: 133 | L136: Malavi | M136: 3267.4472 | N136: 0.0001170355645 | O136: -3249.1888
A137: 134 | B137: Montenegro | C137: 1046.3476 | D137: 8.073350114e-05 | F137: 134 | G137: Guiné-Bissau | H137: 379.2046 | I137: 2.535146031e-05 | K137: 134 | L137: Papuásia-Nova Guiné | M137: 3108.0532 | N137: 0.0001113262858 | O137: -3102.282
A138: 135 | B138: Uganda | C138: 966.8264 | D138: 7.4597849e-05 | F138: 135 | G138: Geórgia | H138: 310.6612 | I138: 2.076903888e-05 | K138: 135 | L138: Guiné | M138: 2979.4642 | N138: 0.0001067204007 | O138: 2373.8298
A139: 136 | B139: Macedónia, Antiga República jugoslava da | C139: 950.8858 | D139: 7.336791313e-05 | F139: 136 | G139: Usbequistão | H139: 308.3052 | I139: 2.061153014e-05 | K139: 136 | L139: Gâmbia | M139: 2880.9438 | N139: 0.0001031915325 | O139: -1897.8022
A140: 137 | B140: Bermudas | C140: 907.5284 | D140: 7.002256718e-05 | F140: 137 | G140: Guiné | H140: 302.8172 | I140: 2.024463371e-05 | K140: 137 | L140: Togo | M140: 2694.1654 | N140: 9.650138139e-05 | O140: 447.5626
A141: 138 | B141: Camboja | C141: 903.3774 | D141: 6.970228665e-05 | F141: 138 | G141: Irão, República Islâmica do | H141: 224.4558 | I141: 1.500583671e-05 | K141: 138 | L141: Centro-Africana, República | M141: 2675.6308 | N141: 9.583749694e-05 | O141: -2482.906
A142: 139 | B142: Barbados | C142: 886.8842 | D142: 6.842971358e-05 | F142: 139 | G142: Zâmbia | H142: 199.4064 | I142: 1.333117646e-05 | K142: 139 | L142: Arménia | M142: 2615.4888 | N142: 9.368329138e-05 | O142: 2561.4736
A143: 140 | B143: Trindade e Tobago | C143: 878.7574 | D143: 6.780267051e-05 | F143: 140 | G143: Azerbaijão | H143: 125.9648 | I143: 8.421289267e-06 | K143: 140 | L143: Bolívia | M143: 2583.5082 | N143: 9.25377893e-05 | O143: 240.9666
A144: 141 | B144: Namíbia | C144: 739.6612 | D144: 5.707036394e-05 | F144: 141 | G144: Fiji, Ilhas | H144: 123.8224 | I144: 8.278060602e-06 | K144: 141 | L144: Serra Leoa | M144: 2504.667 | N144: 8.971380354e-05 | O144: -1491.0338
A145: 142 | B145: Turquemenistão | C145: 730.8192 | D145: 5.638813786e-05 | F145: 142 | G145: Maldivas | H145: 106.1904 | I145: 7.099285481e-06 | K145: 142 | L145: Albânia | M145: 2336.138 | N145: 8.367732141e-05 | O145: 2124.6332
A146: 143 | B146: Barém | C146: 714.5288 | D146: 5.513121232e-05 | F146: 143 | G146: Albânia | H146: 105.7524 | I146: 7.070003295e-06 | K146: 143 | L146: Guiné Equatorial | M146: 2182.423 | N146: 7.817145683e-05 | O146: 2170.4502
A147: 144 | B147: Burundi | C147: 677.1012 | D147: 5.224339455e-05 | F147: 144 | G147: Tajiquistão | H147: 59.4122 | I147: 3.971961391e-06 | K147: 144 | L147: Iémen | M147: 2169.8808 | N147: 7.77222121e-05 | O147: 120.8844
A148: 145 | B148: Aruba | C148: 656.9934 | D148: 5.06919282e-05 | F148: 145 | G148: Jordânia | H148: 56.198 | I148: 3.757078281e-06 | K148: 145 | L148: Jamaica | M148: 1698.6206 | N148: 6.084230551e-05 | O148: 1676.3754
A149: 146 | B149: Niger | C149: 652.165 | D149: 5.031938122e-05 | F149: 146 | G149: Andorra | H149: 42.2194 | I149: 2.822548681e-06 | K149: 146 | L149: Laos, República Democrática Popular do | M149: 1586.3348 | N149: 5.682037916e-05 | O149: -1554.6352
A150: 147 | B150: São Martinho (parte holandesa) | C150: 597.7744 | D150: 4.612274182e-05 | F150: 147 | G150: Libéria | H150: 38.8276 | I150: 2.595792246e-06 | K150: 147 | L150: Azerbaijão | M150: 1561.1546 | N150: 5.591845826e-05 | O150: 1309.225
A151: 148 | B151: Suriname | C151: 582.3304 | D151: 4.493112233e-05 | F151: 148 | G151: Falkland Ilhas (Malvinas) | H151: 38.0622 | I151: 2.544621961e-06 | K151: 148 | L151: Cazaquistão | M151: 1555.7084 | N151: 5.57233827e-05 | O151: 1524.1004
A152: 149 | B152: Bósnia-Herzegovina | C152: 535.6404 | D152: 4.13286415e-05 | F152: 149 | G152: Aruba | H152: 38.029 | I152: 2.542402398e-06 | K152: 149 | L152: Turquemenistão | M152: 1451.475 | N152: 5.198988249e-05 | O152: 10.1634
A153: 150 | B153: Tanzânia, República Unida da | C153: 516.5514 | D153: 3.985578315e-05 | F153: 150 | G153: Arábia Saudita | H153: 33.9378 | I153: 2.268888061e-06 | K153: 150 | L153: Bósnia-Herzegovina | M153: 1293.785 | N153: 4.634163876e-05 | O153: -222.5042
A154: 151 | B154: Ceuta e Melilha | C154: 507.8786 | D154: 3.918661211e-05 | F154: 151 | G154: São Marino | H154: 32.7702 | I154: 2.190828974e-06 | K154: 151 | L154: São Bartolomeu | M154: 1281.3862 | N154: 4.589753041e-05 | O154: 1280.559
A155: 152 | B155: Serra Leoa | C155: 506.8166 | D155: 3.910467091e-05 | F155: 152 | G155: Botswana | H155: 29.9908 | I155: 2.005014116e-06 | K155: 152 | L155: Ruanda | M155: 1241.8804 | N155: 4.448248579e-05 | O155: 1240.6004
A156: 153 | B156: Myanmar | C156: 492.3828 | D156: 3.799099587e-05 | F156: 153 | G156: São Pedro e Miquelon | H156: 28.9156 | I156: 1.933132367e-06 | K156: 153 | L156: Montenegro | M156: 1046.6634 | N156: 3.749007539e-05 | O156: 1046.0318
A157: 154 | B157: Gâmbia | C157: 491.5708 | D157: 3.792834403e-05 | F157: 154 | G157: Arménia | H157: 27.0076 | I157: 1.805574351e-06 | K157: 154 | L157: Bermudas | M157: 908.2538 | N157: 3.253242965e-05 | O157: 906.803
A158: 155 | B158: Curaçau | C158: 479.6396 | D158: 3.700776319e-05 | F158: 155 | G158: Catar | H158: 20.7638 | I158: 1.388149436e-06 | K158: 155 | L158: Barbados | M158: 897.2042 | N158: 3.213664784e-05 | O158: 876.5642
A159: 156 | B159: Kosovo | C159: 471.1818 | D159: 3.6355181e-05 | F159: 156 | G159: Sudão | H159: 20.4826 | I159: 1.369350005e-06 | K159: 156 | L159: Trindade e Tobago | M159: 878.7678 | N159: 3.147628079e-05 | O159: 878.747
A160: 157 | B160: Polinésia Francesa | C160: 366.6458 | D160: 2.828945096e-05 | F160: 157 | G160: Gibraltar | H160: 19.7786 | I160: 1.322284574e-06 | K160: 157 | L160: Barém | M160: 719.082 | N160: 2.575655018e-05 | O160: 709.9756
A161: 158 | B161: Antígua e Barbuda | C161: 363.7054 | D161: 2.806257722e-05 | F161: 158 | G161: Macau | H161: 18.3602 | I161: 1.227458426e-06 | K161: 158 | L161: Aruba | M161: 695.0224 | N161: 2.489476767e-05 | O161: 618.9644
A162: 159 | B162: Haiti | C162: 328.5232 | D162: 2.534800877e-05 | F162: 159 | G162: Quirguizistão | H162: 17.4752 | I162: 1.168292366e-06 | K162: 159 | L162: Burundi | M162: 677.2152 | N162: 2.425693771e-05 | O162: 676.9872
A163: 160 | B163: Comores | C163: 311.607 | D163: 2.40427981e-05 | F163: 160 | G163: Salomão, Ilhas | H163: 16.0532 | I163: 1.073225543e-06 | K163: 160 | L163: Chade | M163: 676.014 | N163: 2.421391234e-05 | O163: -675.7868
A164: 161 | B164: Madagáscar | C164: 309.9952 | D164: 2.391843574e-05 | F164: 161 | G164: Cazaquistão | H164: 15.804 | I164: 1.05656545e-06 | K164: 161 | L164: Niger | M164: 655.4318 | N164: 2.347668562e-05 | O164: 648.8982
A165: 162 | B165: Nova Caledónia | C165: 302.6442 | D165: 2.335125141e-05 | F165: 162 | G165: Santa Helena | H165: 15.7338 | I165: 1.051872278e-06 | K165: 162 | L165: Faroé, Ilhas | M165: 598.4668 | N165: 2.143627593e-05 | O165: -596.7676
A166: 163 | B166: Libéria | C166: 295.8354 | D166: 2.282590184e-05 | F166: 163 | G166: Marshall, Ilhas | H166: 13.4098 | I166: 8.965028707e-07 | K166: 163 | L166: São Martinho (parte holandesa) | M166: 597.7772 | N166: 2.141157538e-05 | O166: 597.7716
A167: 164 | B167: Somália | C167: 292.9902 | D167: 2.260637349e-05 | F167: 164 | G167: Curaçau | H167: 12.9632 | I167: 8.666457377e-07 | K167: 164 | L167: Usbequistão | M167: 531.3872 | N167: 1.903357487e-05 | O167: -85.2232
A168: 165 | B168: Bahamas | C168: 280.4744 | D168: 2.164068642e-05 | F168: 165 | G168: Iraque | H168: 12.264 | I168: 8.199012071e-07 | K168: 165 | L168: Ceuta e Melilha | M168: 507.8786 | N168: 1.819152843e-05 | O168: 507.8786
A169: 166 | B169: Usbequistão | C169: 223.082 | D169: 1.721243581e-05 | F169: 166 | G169: Jamaica | H169: 11.1226 | I169: 7.435937024e-07 | K169: 166 | L169: Curaçau | M169: 492.6028 | N169: 1.764436982e-05 | O169: 466.6764
A170: 167 | B170: São Marino | C170: 219.9688 | D170: 1.697222927e-05 | F170: 167 | G170: Nepal | H170: 10.3458 | I170: 6.916612776e-07 | K170: 167 | L170: Gronelândia | M170: 481.9304 | N170: 1.72620988e-05 | O170: -480.7792
A171: 168 | B171: Bonaire, Santo Eustáquio e Saba | C171: 206.5448 | D171: 1.593646781e-05 | F171: 168 | G171: Barbados | H171: 10.32 | I171: 6.899364365e-07 | K171: 168 | L171: Kosovo | M171: 479.554 | N171: 1.717697935e-05 | O171: 462.8096
A172: 169 | B172: Guiana | C172: 139.5802 | D172: 1.076965077e-05 | F172: 169 | G172: Antígua e Barbuda | H172: 9.2326 | I172: 6.172390643e-07 | K172: 169 | L172: Antígua e Barbuda | M172: 372.938 | N172: 1.335813762e-05 | O172: 354.4728
A173: 170 | B173: Zâmbia | C173: 138.1944 | D173: 1.066272599e-05 | F173: 170 | G173: Kosovo | H173: 8.3722 | I173: 5.597176195e-07 | K173: 170 | L173: Polinésia Francesa | M173: 367.1436 | N173: 1.315059e-05 | O173: 366.148
A174: 171 | B174: Maldivas | C174: 129.0678 | D174: 9.958540908e-06 | F174: 171 | G174: Jibuti | H174: 7.3022 | I174: 4.881835123e-07 | K174: 171 | L174: Zâmbia | M174: 337.6008 | N174: 1.209240663e-05 | O174: -61.212
A175: 172 | B175: Santa Lúcia | C175: 120.252 | D175: 9.278336357e-06 | F175: 172 | G175: Líbia, Jamahira Árabe da | H175: 6.001 | I175: 4.011926895e-07 | K175: 172 | L175: Libéria | M175: 334.663 | N175: 1.198717859e-05 | O175: 257.0078
A176: 173 | B176: Liechtenstein | C176: 119.4194 | D176: 9.214095074e-06 | F176: 173 | G176: Guiné Equatorial | H176: 5.9864 | I176: 4.002166166e-07 | K176: 173 | L176: Haiti | M176: 328.8008 | N176: 1.177720247e-05 | O176: 328.2456
A177: 174 | B177: Afeganistão | C177: 109.4574 | D177: 8.445452666e-06 | F177: 174 | G177: Barém | H177: 4.5532 | I177: 3.044010254e-07 | K177: 174 | L177: Comores | M177: 311.607 | N177: 1.116134368e-05 | O177: 311.607
A178: 175 | B178: Quirguizistão | C178: 109.2342 | D178: 8.428231126e-06 | F178: 175 | G178: São Cristovão e Nevis | H178: 4.4378 | I178: 2.966860385e-07 | K178: 175 | L178: Nova Caledónia | M178: 303.3498 | N178: 1.086558188e-05 | O178: 301.9386
A179: 176 | B179: Virgens Britânicas, Ilhas | C179: 102.589 | D179: 7.915504512e-06 | F179: 176 | G179: Afeganistão | H179: 4.3662 | I179: 2.918992702e-07 | K179: 176 | L179: Somália | M179: 292.9902 | N179: 1.049451494e-05 | O179: 292.9902
A180: 177 | B180: Botswana | C180: 98.1832 | D180: 7.575564267e-06 | F180: 177 | G180: Niger | H180: 3.2668 | I180: 2.183996464e-07 | K180: 177 | L180: Bahamas | M180: 280.4744 | N180: 1.004621581e-05 | O180: 280.4744
A181: 178 | B181: Jibuti | C181: 96.957 | D181: 7.480953815e-06 | F181: 178 | G181: Liechtenstein | H181: 1.7444 | I181: 1.166206511e-07 | K181: 178 | L181: São Marino | M181: 252.739 | N181: 9.052771085e-06 | O181: 187.1986
A182: 179 | B182: Centro-Africana, República | C182: 96.3624 | D182: 7.435076002e-06 | F182: 179 | G182: Lesoto | H182: 1.7136 | I182: 1.145615385e-07 | K182: 179 | L182: Maldivas | M182: 235.2582 | N182: 8.426632338e-06 | O182: 22.8774
A183: 180 | B183: Nepal | C183: 77.231 | D183: 5.958946173e-06 | F183: 180 | G183: Butão | H183: 1.2178 | I183: 8.141517368e-08 | K183: 180 | L183: Bonaire, Santo Eustáquio e Saba | M183: 206.5448 | N183: 7.398156965e-06 | O183: 206.5448
A184: 181 | B184: Zimbabwe | C184: 64.9592 | D184: 5.012085513e-06 | F184: 181 | G184: Bermudas | H184: 0.7254 | I184: 4.849611347e-08 | K184: 181 | L184: Fiji, Ilhas | M184: 135.9286 | N184: 4.868779649e-06 | O184: -111.7162
A185: 182 | B185: Caimão, Ilhas | C185: 51.6906 | D185: 3.988314318e-06 | F185: 182 | G185: Nova Caledónia | H185: 0.7056 | I185: 4.717239822e-08 | K185: 182 | L185: Botswana | M185: 128.174 | N185: 4.591020305e-06 | O185: 68.1924
A186: 183 | B186: Mongólia | C186: 37.8358 | D186: 2.919313431e-06 | F186: 183 | G186: Ruanda | H186: 0.64 | I186: 4.278675575e-08 | K186: 183 | L186: Quirguizistão | M186: 126.7094 | N186: 4.538560303e-06 | O186: 91.759
A187: 184 | B187: Turcas e Caicos, Ilhas | C187: 19.071 | D187: 1.47146952e-06 | F187: 184 | G187: Polinésia Francesa | H187: 0.4978 | I187: 3.328007346e-08 | K187: 184 | L187: Liechtenstein | M187: 121.1638 | N187: 4.339924369e-06 | O187: 117.675
A188: 185 | B188: Laos, República Democrática Popular do | C188: 15.8498 | D188: 1.222929977e-06 | F188: 185 | G188: Território Palestiniano Ocupado | H188: 0.4852 | I188: 3.24377092e-08 | K188: 185 | L188: Santa Lúcia | M188: 120.2706 | N188: 4.307931146e-06 | O188: 120.2334
A189: 186 | B189: Fiji, Ilhas | C189: 12.1062 | D189: 9.340833883e-07 | F189: 186 | G189: São Bartolomeu | H189: 0.4136 | I189: 2.76509409e-08 | K189: 186 | L189: Afeganistão | M189: 113.8236 | N189: 4.077008277e-06 | O189: 105.0912
A190: 187 | B190: Anguila | C190: 10.0614 | D190: 7.76311857e-07 | F190: 187 | G190: Micronésia, Estados Federados da | H190: 0.3438 | I190: 2.298451035e-08 | K190: 187 | L190: Jibuti | M190: 104.2592 | N190: 3.734424331e-06 | O190: 89.6548
A191: 188 | B191: Malavi | C191: 9.1292 | D191: 7.043856923e-07 | F191: 188 | G191: Montenegro | H191: 0.3158 | I191: 2.111258979e-08 | K191: 188 | L191: Virgens Britânicas, Ilhas | M191: 102.589 | N191: 3.674600013e-06 | O191: 102.589
A192: 189 | B192: Brunei Darussalam | C192: 7.7238 | D192: 5.959486275e-07 | F192: 189 | G192: Haiti | H192: 0.2776 | I192: 1.855875531e-08 | K192: 189 | L192: Nepal | M192: 87.5768 | N192: 3.136883199e-06 | O192: 66.8852
A193: 190 | B193: São Vicente e Granadinas | C193: 7.6034 | D193: 5.866588719e-07 | F193: 190 | G193: Burundi | H193: 0.114 | I193: 7.621390868e-09 | K193: 190 | L193: Tajiquistão | M193: 59.4122 | N193: 2.128065104e-06 | O193: -59.4122
A194: 191 | B194: Guam | C194: 6.6636 | D194: 5.141463107e-07 | F194: 191 | G194: Oceano Indico, Território Britânico do | H194: 0.098 | I194: 6.551721974e-09 | K194: 191 | L194: Caimão, Ilhas | M194: 51.6906 | N194: 1.851487776e-06 | O194: 51.6906
A195: 192 | B195: Territórios Franceses do Sul | C195: 6.3102 | D195: 4.868788717e-07 | F195: 192 | G195: Nauru | H195: 0.0694 | I195: 4.639688827e-09 | K195: 192 | L195: Falkland Ilhas (Malvinas) | M195: 38.0622 | N195: 1.363336816e-06 | O195: -38.0622
A196: 193 | B196: Menores distantes dos Estados Unidos, lhas | C196: 4.5544 | D196: 3.514058403e-07 | F196: 193 | G196: Vanuatu | H196: 0.065 | I196: 4.345529881e-09 | K196: 193 | L196: Mongólia | M196: 37.8488 | N196: 1.355693115e-06 | O196: 37.8228
A197: 194 | B197: Sudão do Sul | C197: 3.771 | D197: 2.909607026e-07 | F197: 194 | G197: São Vicente e Granadinas | H197: 0.0416 | I197: 2.781139124e-09 | K197: 194 | L197: São Pedro e Miquelon | M197: 29.2314 | N197: 1.047029436e-06 | O197: -28.5998
A198: 195 | B198: Melilha | C198: 3.6164 | D198: 2.790321625e-07 | F198: 195 | G198: Santa Sé (Cidade Estado do Vaticano) | H198: 0.021 | I198: 1.403940423e-09 | K198: 195 | L198: Turcas e Caicos, Ilhas | M198: 19.071 | N198: 6.830975724e-07 | O198: 19.071
A199: 196 | B199: Marianas do Norte, Ilhas | C199: 2.9244 | D199: 2.256392147e-07 | F199: 196 | G199: Santa Lúcia | H199: 0.0186 | I199: 1.243490089e-09 | K199: 196 | L199: Salomão, Ilhas | M199: 16.0532 | N199: 5.750040349e-07 | O199: -16.0532
A200: 197 | B200: Papuásia-Nova Guiné | C200: 2.8856 | D200: 2.22645506e-07 | F200: 197 | G200: Mongólia | H200: 0.013 | I200: 8.691059762e-10 | K200: 197 | L200: Santa Helena | M200: 15.7338 | N200: 5.635635564e-07 | O200: -15.7338
... 58 more rows

Sheet 2AA
A1: Ranking dos parceiros comerciais de Portugal por país (média 2018-2022 em milhares de euros) produtos agrícolas e agroalimentares
A2: Exportações | F2: Importações | K2: Trocas comerciais (total e saldo)
A3: P | B3: País | C3: média quinquénio | D3: % do Total | F3: P | G3: País | H3: média quinquénio | I3: % do Total | K3: P | L3: País | M3: Total (exp+imp) | N3: % do Total | O3: Saldo (exp-imp)
A4: 1 | B4: Espanha | C4: 2411384.356 | D4: 0.3412368491 | F4: 1 | G4: Espanha | H4: 4705156.347 | I4: 0.461261043 | K4: 1 | L4: Espanha | M4: 7116540.703 | N4: 0.4121412567 | O4: -2293771.991
A5: 2 | B5: França | C5: 676917.193 | D5: 0.095791071 | F5: 2 | G5: França | H5: 802414.1936 | I5: 0.07866314753 | K5: 2 | L5: França | M5: 1479331.387 | N5: 0.08567273374 | O5: -125497.0006
A6: 3 | B6: Itália | C6: 450062.431 | D6: 0.06368867969 | F6: 3 | G6: Alemanha | H6: 691414.1182 | I6: 0.0677814665 | K6: 3 | L6: Alemanha | M6: 951387.8206 | N6: 0.05509786122 | O6: -431440.4158
A7: 4 | B7: Brasil | C7: 371211.2184 | D7: 0.05253038414 | F7: 4 | G7: Países Baixos | H7: 595089.4646 | I7: 0.05833846251 | K7: 4 | L7: Países Baixos | M7: 927519.5784 | N7: 0.05371557624 | O7: -262659.3508
A8: 5 | B8: Países Baixos | C8: 332430.1138 | D8: 0.04704244029 | F8: 5 | G8: Brasil | H8: 551854.2014 | I8: 0.05409997581 | K8: 5 | L8: Brasil | M8: 923065.4198 | N8: 0.0534576219 | O8: -180642.983
A9: 6 | B9: Angola | C9: 270815.6406 | D9: 0.03832332895 | F9: 6 | G9: Itália | H9: 325226.391 | I9: 0.03188294995 | K9: 6 | L9: Itália | M9: 775288.822 | N9: 0.0448994143 | O9: 124836.04 | P9: Nota: Nesta listagem, o Reino Unido passa a ser constituído por três componentes: Reino Unido [até 2020] ; Reino Unido (sem Irlanda do Norte) pós-2020 e Reino Unido (Irlanda do Norte) pós-2020. Estas componentes são calculadas igualmente como média do quinquénio, embora a primeira corresponda apenas a 2018-2020 e as duas últimas a 2021-2022.
A10: 7 | B10: Alemanha | C10: 259973.7024 | D10: 0.03678907796 | F10: 7 | G10: Bélgica | H10: 255604.7054 | I10: 0.02505772058 | K10: 7 | L10: Bélgica | M10: 422129.3612 | N10: 0.02444683909 | O10: -89080.0496
A11: 8 | B11: Reino Unido | C11: 202835.6198 | D11: 0.02870342408 | F11: 8 | G11: Estados Unidos | H11: 216780.4662 | I11: 0.02125166022 | K11: 8 | L11: Estados Unidos | M11: 400397.4384 | N11: 0.02318827508 | O11: -33163.494
A12: 9 | B12: Estados Unidos | C12: 183616.9722 | D12: 0.02598377852 | F12: 9 | G12: Ucrânia | H12: 191923.2566 | I12: 0.01881483101 | K12: 9 | L12: Polónia | M12: 317728.7036 | N12: 0.01840066862 | O12: -49129.98
A13: 10 | B13: Israel | C13: 169490.6434 | D13: 0.0239847509 | F13: 10 | G13: Polónia | H13: 183429.3418 | I13: 0.01798214624 | K13: 10 | L13: Reino Unido | M13: 313115.4092 | N13: 0.01813349823 | O13: 92555.8304
A14: 11 | B14: Bélgica | C14: 166524.6558 | D14: 0.02356503172 | F14: 11 | G14: Roménia | H14: 135147.0966 | I14: 0.01324888827 | K14: 11 | L14: Angola | M14: 277936.943 | N14: 0.0160962026 | O14: 263694.3382
A15: 12 | B15: Reino Unido (sem Irlanda do Norte) pós 2020 | C15: 153212.605 | D15: 0.02168123321 | F15: 12 | G15: África do Sul | H15: 112523.4846 | I15: 0.01103102555 | K15: 12 | L15: Reino Unido (sem Irlanda do Norte) pós 2020 | M15: 202799.7018 | N15: 0.01174476862 | O15: 103625.5082
A16: 13 | B16: Polónia | C16: 134299.3618 | D16: 0.01900480566 | F16: 13 | G16: Irlanda | H16: 110291.18 | I16: 0.01081218582 | K16: 13 | L16: Ucrânia | M16: 198678.4348 | N16: 0.01150609309 | O16: -185168.0784
A17: 14 | B17: Suíça | C17: 92002.5032 | D17: 0.01301934477 | F17: 14 | G17: Reino Unido | H17: 110279.7894 | I17: 0.01081106916 | K17: 14 | L17: Canadá | M17: 175349.2144 | N17: 0.01015502456 | O17: -30879.5124
A18: 15 | B18: Cabo Verde | C18: 85448.1822 | D18: 0.01209183778 | F18: 15 | G18: Canadá | H18: 103114.3634 | I18: 0.01010862027 | K18: 15 | L18: Israel | M18: 174656.3316 | N18: 0.01011489753 | O18: 164324.9552
A19: 16 | B19: Canadá | C19: 72234.851 | D19: 0.01022200915 | F19: 16 | G19: Argentina | H19: 72786.9924 | I19: 0.007135534201 | K19: 16 | L19: Roménia | M19: 150956.573 | N19: 0.008742369966 | O19: -119337.6202
A20: 17 | B20: China | C20: 72213.8082 | D20: 0.01021903137 | F20: 17 | G20: Dinamarca | H20: 70235.3942 | I20: 0.00688539313 | K20: 17 | L20: Irlanda | M20: 137073.4678 | N20: 0.007938355676 | O20: -83508.8922
A21: 18 | B21: Japão | C21: 54930.0814 | D21: 0.007773197936 | F21: 18 | G21: Costa Rica | H21: 69966.4528 | I21: 0.006859027972 | K21: 18 | L21: África do Sul | M21: 134358.9168 | N21: 0.007781147489 | O21: -90688.0524
A22: 19 | B22: Suécia | C22: 50847.6768 | D22: 0.007195493731 | F22: 19 | G22: Reino Unido (sem Irlanda do Norte) pós 2020 | H22: 49587.0968 | I22: 0.004861176612 | K22: 19 | L22: Dinamarca | M22: 117607.5464 | N22: 0.006811022939 | O22: -22863.242
A23: 20 | B23: Rússia | C23: 48396.534 | D23: 0.006848630634 | F23: 20 | G23: Bulgária | H23: 45267.761 | I23: 0.004437738752 | K23: 20 | L23: China | M23: 117263.0136 | N23: 0.006791069961 | O23: 27164.6028
A24: 21 | B24: Dinamarca | C24: 47372.1522 | D24: 0.00670366958 | F24: 21 | G24: China | H24: 45049.2054 | I24: 0.00441631307 | K24: 21 | L24: Suíça | M24: 94989.5902 | N24: 0.005501145952 | O24: 89015.4162
A25: 22 | B25: Luxemburgo | C25: 45467.1782 | D25: 0.006434095249 | F25: 22 | G25: Cuba | H25: 35800.4636 | I25: 0.003509630279 | K25: 22 | L25: Cabo Verde | M25: 85574.9204 | N25: 0.004955912811 | O25: 85321.444
A26: 23 | B26: Marrocos | C26: 40790.7978 | D26: 0.005772337073 | F26: 23 | G26: Grécia | H26: 30695.8376 | I26: 0.003009207989 | K26: 23 | L26: Argentina | M26: 73024.3208 | N26: 0.004229068111 | O26: -72549.664
A27: 24 | B27: Guiné-Bissau | C27: 30105.257 | D27: 0.004260218001 | F27: 24 | G27: Vietname | H27: 28842.503 | I27: 0.00282751986 | K27: 24 | L27: Costa Rica | M27: 71166.176 | N27: 0.004121457101 | O27: -68766.7296
A28: 25 | B28: Irlanda | C28: 26782.2878 | D28: 0.003789982082 | F28: 25 | G28: Colômbia | H28: 28226.344 | I28: 0.002767115886 | K28: 25 | L28: Japão | M28: 68521.65 | N28: 0.003968304282 | O28: 41338.5128
A29: 26 | B29: São Tomé e Príncipe | C29: 25260.8806 | D29: 0.003574686582 | F29: 26 | G29: Guiana | H29: 28025.2642 | I29: 0.002747403411 | K29: 26 | L29: Suécia | M29: 64561.625 | N29: 0.003738966778 | O29: 37133.7286
A30: 27 | B30: Arábia Saudita | C30: 25200.9646 | D30: 0.003566207823 | F30: 27 | G30: Chile | H30: 24582.6414 | I30: 0.00240991244 | K30: 27 | L30: Rússia | M30: 60555.2322 | N30: 0.003506943969 | O30: 36237.8358
A31: 28 | B31: Moçambique | C31: 25040.048 | D31: 0.003543436392 | F31: 28 | G31: Áustria | H31: 23768.2002 | I31: 0.002330070248 | K31: 28 | L31: Luxemburgo | M31: 53710.6 | N31: 0.003110549789 | O31: 37223.7564
A32: 29 | B32: Grécia | C32: 22268.7026 | D32: 0.003151261179 | F32: 29 | G32: Uruguai | H32: 22544.114 | I32: 0.002210069288 | K32: 29 | L32: Bulgária | M32: 53424.102 | N32: 0.003093957789 | O32: -37111.42
A33: 30 | B33: África do Sul | C33: 21835.4322 | D33: 0.003089948753 | F33: 30 | G33: Checa, República | H33: 22169.9018 | I33: 0.002173384108 | K33: 30 | L33: Grécia | M33: 52964.5402 | N33: 0.003067343119 | O33: -8427.135
A34: 31 | B34: Finlândia | C34: 19885.3292 | D34: 0.002813988182 | F34: 31 | G34: Costa do Marfim | H34: 21706.6942 | I34: 0.002127974433 | K34: 31 | L34: Marrocos | M34: 50677.0038 | N34: 0.002934864691 | O34: 30904.5918
A35: 32 | B35: Checa, República | C35: 18233.8742 | D35: 0.002580289519 | F35: 32 | G35: Índia | H35: 20821.1078 | I35: 0.002041157656 | K35: 32 | L35: Checa, República | M35: 40403.776 | N35: 0.002339909756 | O35: -3936.0276
A36: 33 | B36: Jordânia | C36: 17519.4376 | D36: 0.002479189048 | F36: 33 | G36: Paraguai | H36: 18543.3936 | I36: 0.001817866282 | K36: 33 | L36: Cuba | M36: 38670.0018 | N36: 0.002239501438 | O36: -32930.9254
A37: 34 | B37: Noruega | C37: 16995.9884 | D37: 0.00240511535 | F37: 34 | G37: Turquia | H37: 17986.1158 | I37: 0.001763234614 | K37: 34 | L37: Áustria | M37: 38055.3092 | N37: 0.002203902656 | O37: -9481.0912
A38: 35 | B38: Roménia | C38: 15809.4764 | D38: 0.002237211127 | F38: 35 | G38: Hungria | H38: 16799.7058 | I38: 0.001646927169 | K38: 35 | L38: Moçambique | M38: 35153.372 | N38: 0.002035842345 | O38: 14926.724
A39: 36 | B39: Austrália | C39: 14444.1886 | D39: 0.002044008204 | F39: 36 | G39: Uganda | H39: 16711.9112 | I39: 0.001638320392 | K39: 36 | L39: Colômbia | M39: 34587.7746 | N39: 0.002003086821 | O39: -21864.9134
A40: 37 | B40: Áustria | C40: 14287.109 | D40: 0.002021779749 | F40: 37 | G40: Suécia | H40: 13713.9482 | I40: 0.001344420798 | K40: 37 | L40: Vietname | M40: 30876.7168 | N40: 0.001788167791 | O40: -26808.2892
A41: 38 | B41: Coreia, República da | C41: 13714.1396 | D41: 0.00194069841 | F41: 38 | G41: Japão | H41: 13591.5686 | I41: 0.001332423547 | K41: 38 | L41: Guiné-Bissau | M41: 30466.7032 | N41: 0.001764422613 | O41: 29743.8108
A42: 39 | B42: Iraque | C42: 12402.8826 | D42: 0.001755141426 | F42: 39 | G42: Suazilândia | H42: 13238.5734 | I42: 0.001297818335 | K42: 39 | L42: Chile | M42: 30212.416 | N42: 0.001749696042 | O42: -18952.8668
A43: 40 | B43: Emirados Árabes Unidos | C43: 11850.4352 | D43: 0.001676964171 | F43: 40 | G43: Indonésia | H43: 13223.1014 | I43: 0.001296301567 | K43: 40 | L43: Guiana | M43: 28043.5076 | N43: 0.001624087734 | O43: -28007.0208
A44: 41 | B44: Argélia | C44: 11256.5744 | D44: 0.001592926474 | F44: 41 | G44: México | H44: 13063.4442 | I44: 0.001280649877 | K44: 41 | L44: Hungria | M44: 27985.9222 | N44: 0.001620752782 | O44: -5613.4894
A45: 42 | B45: Macau | C45: 11226.3432 | D45: 0.001588648434 | F45: 42 | G45: Austrália | H45: 12929.8552 | I45: 0.001267553734 | K45: 42 | L45: Turquia | M45: 27952.4328 | N45: 0.001618813306 | O45: -8019.7988
A46: 43 | B46: Hungria | C46: 11186.2164 | D46: 0.00158297006 | F46: 43 | G46: Rússia | H46: 12158.6982 | I46: 0.001191954826 | K46: 43 | L46: Austrália | M46: 27374.0438 | N46: 0.00158531698 | O46: 1514.3334
A47: 44 | B47: Nigéria | C47: 10950.0114 | D47: 0.001549544509 | F47: 44 | G47: Moldava, República de | H47: 11903.4008 | I47: 0.001166927231 | K47: 44 | L47: Finlândia | M47: 27340.3908 | N47: 0.001583368029 | O47: 12430.2676
A48: 45 | B48: Turquia | C48: 9966.317 | D48: 0.00141034116 | F48: 45 | G48: Peru | H48: 11309.1784 | I48: 0.00110867377 | K48: 45 | L48: Costa do Marfim | M48: 27312.2444 | N48: 0.001581737982 | O48: -16101.144
A49: 46 | B49: Território Palestiniano Ocupado | C49: 9369.3582 | D49: 0.001325865063 | F49: 46 | G49: Lituânia | H49: 10559.0186 | I49: 0.001035133282 | K49: 46 | L49: São Tomé e Príncipe | M49: 26314.3518 | N49: 0.001523946883 | O49: 24207.4094
A50: 47 | B50: Eslováquia | C50: 9086.8 | D50: 0.001285880035 | F50: 47 | G50: Paquistão | H50: 10304.0036 | I50: 0.001010133372 | K50: 47 | L50: Arábia Saudita | M50: 25224.07 | N50: 0.001460805234 | O50: 25177.8592
A51: 48 | B51: Senegal | C51: 8493.732 | D51: 0.001201954528 | F51: 48 | G51: Tailândia | H51: 10199.4412 | I51: 0.0009998827965 | K51: 48 | L51: Uruguai | M51: 24295.7548 | N51: 0.001407043581 | O51: -20792.4732
A52: 49 | B52: Bulgária | C52: 8156.341 | D52: 0.001154210069 | F52: 49 | G52: Moçambique | H52: 10113.324 | I52: 0.0009914404608 | K52: 49 | L52: Índia | M52: 23835.9726 | N52: 0.001380416148 | O52: -17806.243
A53: 50 | B53: Líbia, Jamahira Árabe da | C53: 7994.648 | D53: 0.001131328768 | F53: 50 | G53: Marrocos | H53: 9886.206 | I53: 0.0009691753801 | K53: 50 | L53: Paraguai | M53: 19188.0202 | N53: 0.001111238604 | O53: -17898.767
A54: 51 | B54: Gibraltar | C54: 7555.2434 | D54: 0.001069148286 | F54: 51 | G54: Egito | H54: 9790.4264 | I54: 0.0009597858094 | K54: 51 | L54: México | M54: 18719.0294 | N54: 0.001084077872 | O54: -7407.859
A55: 52 | B55: Kuwait | C55: 7349.7522 | D55: 0.001040069069 | F55: 52 | G55: Letónia | H55: 8947.386 | I55: 0.0008771399491 | K55: 52 | L55: Noruega | M55: 18005.9244 | N55: 0.001042779718 | O55: 15986.0524
A56: 53 | B56: Ucrânia | C56: 6755.1782 | D56: 0.0009559304465 | F56: 53 | G56: Sérvia | H56: 8809.7352 | I56: 0.000863645615 | K56: 53 | L56: Jordânia | M56: 17548.9282 | N56: 0.001016313631 | O56: 17489.947
A57: 54 | B57: Colômbia | C57: 6361.4306 | D57: 0.0009002109218 | F57: 54 | G57: Luxemburgo | H57: 8243.4218 | I57: 0.0008081281592 | K57: 54 | L57: Uganda | M57: 17197.4672 | N57: 0.0009959594191 | O57: -16226.3552
A58: 55 | B58: Letónia | C58: 5852.2048 | D58: 0.0008281499884 | F58: 55 | G58: Equador | H58: 8207.9326 | I58: 0.0008046490431 | K58: 55 | L58: Lituânia | M58: 15596.0102 | N58: 0.0009032140069 | O58: -5522.027
A59: 56 | B59: HongKong | C59: 5831.0346 | D59: 0.0008251541771 | F59: 56 | G59: Nova Zelânda | H59: 7880.6232 | I59: 0.0007725618893 | K59: 56 | L59: Suazilândia | M59: 15229.1516 | N59: 0.0008819680715 | O59: -11247.9952
A60: 57 | B60: Maurícias | C60: 5663.2906 | D60: 0.0008014165951 | F60: 57 | G60: Finlândia | H60: 7455.0616 | I60: 0.0007308427682 | K60: 57 | L60: Letónia | M60: 14799.5908 | N60: 0.0008570908544 | O60: -3095.1812
A61: 58 | B61: México | C61: 5655.5852 | D61: 0.000800326198 | F61: 58 | G61: Malásia | H61: 7402.4108 | I61: 0.0007256812473 | K61: 58 | L61: Coreia, República da | M61: 14651.7386 | N61: 0.0008485282684 | O61: 12776.5406
A62: 59 | B62: Chile | C62: 5629.7746 | D62: 0.0007966737202 | F62: 59 | G62: Angola | H62: 7121.3024 | I62: 0.0006981233206 | K62: 59 | L62: Indonésia | M62: 14360.499 | N62: 0.0008316616671 | O62: -12085.7038
A63: 60 | B63: Costa do Marfim | C63: 5605.5502 | D63: 0.0007932457068 | F63: 60 | G63: Camarões | H63: 6330.7516 | I63: 0.0006206231782 | K63: 60 | L63: Tailândia | M63: 13287.7642 | N63: 0.0007695362206 | O63: -7111.1182
A64: 61 | B64: Andorra | C64: 5268.3636 | D64: 0.0007455301725 | F64: 61 | G64: Honduras | H64: 6193.611 | I64: 0.0006071788607 | K64: 61 | L64: Peru | M64: 13096.3328 | N64: 0.0007584498261 | O64: -9522.024
A65: 62 | B65: Lituânia | C65: 5036.9916 | D65: 0.0007127885434 | F65: 62 | G65: Etiópia | H65: 5332.6708 | I65: 0.0005227782275 | K65: 62 | L65: Eslováquia | M65: 12662.696 | N65: 0.000733336555 | O65: 5510.904
A66: 63 | B66: Estónia | C66: 4881.8086 | D66: 0.0006908284781 | F66: 63 | G66: Israel | H66: 5165.6882 | I66: 0.0005064084063 | K66: 63 | L66: Iraque | M66: 12415.1466 | N66: 0.0007190001906 | O66: 12390.6186
A67: 64 | B67: Malta | C67: 4732.9478 | D67: 0.0006697630721 | F67: 64 | G67: Belize | H67: 5153.7922 | I67: 0.0005052422046 | K67: 64 | L67: Emirados Árabes Unidos | M67: 12305.7766 | N67: 0.0007126662299 | O67: 11395.0938
A68: 65 | B68: Síria, República Árabe da | C68: 4399.3294 | D68: 0.0006225524765 | F68: 65 | G68: Camboja | H68: 4964.372 | I68: 0.000486672756 | K68: 65 | L68: Moldava, República de | M68: 12104.7888 | N68: 0.0007010263942 | O68: -11702.0128
A69: 66 | B69: Chipre | C69: 4087.4456 | D69: 0.0005784175609 | F69: 66 | G69: Zimbabwe | H69: 4708.9854 | I69: 0.000461636417 | K69: 66 | L69: Argélia | M69: 11803.7068 | N69: 0.0006835897886 | O69: 10709.442
A70: 67 | B70: Omã | C70: 3805.6814 | D70: 0.0005385448929 | F70: 67 | G70: Guatemala | H70: 4634.8976 | I70: 0.0004543733606 | K70: 67 | L70: Sérvia | M70: 11344.2464 | N70: 0.0006569809916 | O70: -6275.224
A71: 68 | B71: Eslovénia | C71: 3324.2138 | D71: 0.0004704120436 | F71: 68 | G71: Suriname | H71: 4613.819 | I71: 0.0004523069601 | K71: 68 | L71: Egito | M71: 11328.9988 | N71: 0.0006560979551 | O71: -8251.854
A72: 69 | B72: Mali | C72: 3288.1148 | D72: 0.0004653036465 | F72: 69 | G72: Macedónia, Antiga República jugoslava da | H72: 4601.6794 | I72: 0.0004511168776 | K72: 69 | L72: Macau | M72: 11242.8404 | N72: 0.0006511082512 | O72: 11209.846
A73: 70 | B73: Tailândia | C73: 3088.323 | D73: 0.0004370309557 | F73: 70 | G73: Eslovénia | H73: 4575.887 | I73: 0.0004485883688 | K73: 70 | L73: Nigéria | M73: 11147.6308 | N73: 0.0006455943638 | O73: 10752.392
A74: 71 | B74: Índia | C74: 3014.8648 | D74: 0.0004266358295 | F74: 71 | G74: Tanzânia, República Unida da | H74: 4539.6584 | I74: 0.0004450367669 | K74: 71 | L74: Paquistão | M74: 10570.8542 | N74: 0.0006121914167 | O74: -10037.153
A75: 72 | B75: Singapura | C75: 2956.254 | D75: 0.0004183417702 | F75: 72 | G75: Filipinas | H75: 4493.245 | I75: 0.0004404867176 | K75: 72 | L75: Nova Zelânda | M75: 10271.0628 | N75: 0.0005948295537 | O75: -5490.1836
A76: 73 | B76: Cuba | C76: 2869.5382 | D76: 0.0004060705509 | F76: 73 | G76: Tunísia | H76: 4126.4674 | I76: 0.000404530374 | K76: 73 | L76: Território Palestiniano Ocupado | M76: 9369.8434 | N76: 0.0005426371035 | O76: 9368.873
A77: 74 | B77: Taiwan | C77: 2744.627 | D77: 0.0003883942712 | F77: 74 | G77: Estónia | H77: 4043.5748 | I77: 0.0003964041558 | K77: 74 | L77: Senegal | M77: 9057.0902 | N77: 0.000524524582 | O77: 7930.3738
A78: 75 | B78: Gana | C78: 2742.0304 | D78: 0.0003880268243 | F78: 75 | G78: Reino Unido (Irlanda do Norte) pós-2020 | H78: 4000.7948 | I78: 0.0003922103 | K78: 75 | L78: Equador | M78: 9035.3682 | N78: 0.0005232665926 | O78: -7380.497
A79: 76 | B79: Sérvia | C79: 2534.5112 | D79: 0.0003586606232 | F79: 76 | G79: Mali | H79: 3760.9918 | I79: 0.0003687016695 | K79: 76 | L79: Estónia | M79: 8925.3834 | N79: 0.0005168970269 | O79: 838.2338
A80: 77 | B80: Líbano | C80: 2519.7508 | D80: 0.0003565718677 | F80: 77 | G80: Eslováquia | H80: 3575.896 | I80: 0.0003505561552 | K80: 77 | L80: Malásia | M80: 8903.6532 | N80: 0.0005156385627 | O80: -5901.1684
A81: 78 | B81: Timor-Leste | C81: 2471.9198 | D81: 0.0003498032662 | F81: 78 | G81: Myanmar | H81: 3336.325 | I81: 0.0003270702684 | K81: 78 | L81: Camarões | M81: 8611.8814 | N81: 0.00049874114 | O81: -4049.6218
A82: 79 | B82: Belarus | C82: 2455.9286 | D82: 0.0003475403392 | F82: 79 | G82: Quénia | H82: 3256.0222 | I82: 0.0003191979363 | K82: 79 | L82: Kuwait | M82: 8533.2046 | N82: 0.000494184719 | O82: 6166.2998
A83: 80 | B83: Nova Zelânda | C83: 2390.4396 | D83: 0.0003382729406 | F83: 80 | G83: Malavi | H83: 3254.1762 | I83: 0.0003190169672 | K83: 80 | L83: Líbia, Jamahira Árabe da | M83: 8000.598 | N83: 0.0004633397955 | O83: 7988.698
A84: 81 | B84: Filipinas | C84: 2342.9576 | D84: 0.0003315537264 | F84: 81 | G84: Nicarágua | H84: 3164.5064 | I84: 0.0003102263591 | K84: 81 | L84: Eslovénia | M84: 7900.1008 | N84: 0.0004575196866 | O84: -1251.6732
A85: 82 | B85: Camarões | C85: 2281.1298 | D85: 0.000322804427 | F85: 82 | G85: Chipre | H85: 3134.9022 | I85: 0.0003073241678 | K85: 82 | L85: Gibraltar | M85: 7555.2434 | N85: 0.0004375479098 | O85: 7555.2434
A86: 83 | B86: Guiné | C86: 2270.2954 | D86: 0.0003212712428 | F86: 83 | G86: Sri Lanca | H86: 3073.8124 | I86: 0.0003013353456 | K86: 83 | L86: Chipre | M86: 7222.3478 | N86: 0.0004182688785 | O86: 952.5434
A87: 84 | B87: Irão, República Islâmica do | C87: 2234.7082 | D87: 0.0003162352708 | F87: 84 | G87: Suíça | H87: 2987.087 | I87: 0.0002928333861 | K87: 84 | L87: Maurícias | M87: 7215.0708 | N87: 0.0004178474446 | O87: 4111.5104
A88: 85 | B88: Congo | C88: 2184.5722 | D88: 0.000309140487 | F88: 85 | G88: Taiwan | H88: 2718.5488 | I88: 0.000266507755 | K88: 85 | L88: Mali | M88: 7049.1066 | N88: 0.0004082359357 | O88: -472.877
A89: 86 | B89: Seychelles | C89: 2103.9052 | D89: 0.000297725238 | F89: 86 | G89: Dominicana, República | H89: 2224.7352 | I89: 0.000218097679 | K89: 86 | L89: HongKong | M89: 7034.5032 | N89: 0.0004073902069 | O89: 4627.566
A90: 87 | B90: Gabão | C90: 2079.6516 | D90: 0.0002942930925 | F90: 87 | G90: Serra Leoa | H90: 1997.841 | I90: 0.0001958545382 | K90: 87 | L90: Honduras | M90: 7007.3132 | N90: 0.0004058155485 | O90: -5379.9088
A91: 88 | B91: Venezuela | C91: 2058.7692 | D91: 0.000291338008 | F91: 88 | G91: Benim | H91: 1817.538 | I91: 0.0001781788769 | K91: 88 | L91: Filipinas | M91: 6836.2026 | N91: 0.0003959059954 | O91: -2150.2874
A92: 89 | B92: Vietname | C92: 2034.2138 | D92: 0.0002878631545 | F92: 89 | G92: Croácia | H92: 1813.5626 | I92: 0.0001777891561 | K92: 89 | L92: Etiópia | M92: 6077.0796 | N92: 0.0003519427947 | O92: -4588.262
A93: 90 | B93: Suazilândia | C93: 1990.5782 | D93: 0.0002816882473 | F93: 90 | G93: Burquina Faso | H93: 1725.737 | I93: 0.0001691793407 | K93: 90 | L93: Malta | M93: 5803.922 | N93: 0.0003361233789 | O93: 3661.9736
A94: 91 | B94: Sudão | C94: 1865.0268 | D94: 0.0002639213725 | F94: 91 | G94: Gana | H94: 1658.4144 | I94: 0.0001625794978 | K94: 91 | L94: Taiwan | M94: 5463.1758 | N94: 0.0003163896946 | O94: 26.0782
A95: 92 | B95: Burquina Faso | C95: 1848.8938 | D95: 0.0002616383793 | F95: 92 | G95: Laos, República Democrática Popular do | H95: 1570.3752 | I95: 0.0001539487425 | K95: 92 | L95: Camboja | M95: 5365.8038 | N95: 0.0003107505758 | O95: -4562.9402
A96: 93 | B96: Guiné Equatorial | C96: 1818.2522 | D96: 0.0002573022629 | F96: 93 | G96: Maurícias | H96: 1551.7802 | I96: 0.000152125817 | K96: 93 | L96: Síria, República Árabe da | M96: 5349.1634 | N96: 0.0003097868779 | O96: 3449.4954
A97: 94 | B97: Peru | C97: 1787.1544 | D97: 0.0002529015894 | F97: 94 | G97: Madagáscar | H97: 1535.4896 | I97: 0.0001505287991 | K97: 94 | L97: Reino Unido (Irlanda do Norte) pós-2020 | M97: 5342.7154 | N97: 0.000309413454 | O97: -2658.8742
A98: 95 | B98: Croácia | C98: 1771.985 | D98: 0.000250754956 | F98: 95 | G98: Panamá | H98: 1513.6692 | I98: 0.0001483896777 | K98: 95 | L98: Andorra | M98: 5273.09 | N98: 0.0003053812281 | O98: 5263.6372
A99: 96 | B99: Uruguai | C99: 1751.6408 | D99: 0.0002478760327 | F99: 96 | G99: Congo, República Democrática do | H99: 1226.6902 | I99: 0.0001202562379 | K99: 96 | L99: Belize | M99: 5155.9728 | N99: 0.0002985986026 | O99: -5151.6116
A100: 97 | B100: Dominicana, República | C100: 1708.9932 | D100: 0.0002418409381 | F100: 97 | G100: HongKong | H100: 1203.4686 | I100: 0.0001179797526 | K100: 97 | L100: Guatemala | M100: 5126.7604 | N100: 0.0002969068207 | O100: -4143.0348
A101: 98 | B101: Benim | C101: 1572.4166 | D101: 0.0002225138787 | F101: 98 | G101: Kuwait | H101: 1183.4524 | I101: 0.0001160175025 | K101: 98 | L101: Tanzânia, República Unida da | M101: 4910.6254 | N101: 0.000284389763 | O101: -4168.6914
A102: 99 | B102: Bangladesh | C102: 1558.9346 | D102: 0.0002206060305 | F102: 99 | G102: Togo | H102: 1123.3014 | I102: 0.0001101207138 | K102: 99 | L102: Macedónia, Antiga República jugoslava da | M102: 4874.3908 | N102: 0.0002822913033 | O102: -4328.968
A103: 100 | B103: Egito | C103: 1538.5724 | D103: 0.00021772456 | F103: 100 | G103: Malta | H103: 1070.9742 | I103: 0.0001049909164 | K103: 100 | L103: Tunísia | M103: 4852.0784 | N103: 0.000280999122 | O103: -3400.8564
A104: 101 | B104: Catar | C104: 1515.2294 | D104: 0.0002144212742 | F104: 101 | G104: Singapura | H104: 1064.6932 | I104: 0.0001043751705 | K104: 101 | L104: Zimbabwe | M104: 4772.268 | N104: 0.0002763770507 | O104: -4645.7028
A105: 102 | B105: Malásia | C105: 1501.2424 | D105: 0.0002124419631 | F105: 102 | G105: São Tomé e Príncipe | H105: 1053.4712 | I105: 0.0001032750431 | K105: 102 | L105: Suriname | M105: 4769.9158 | N105: 0.0002762408274 | O105: -4457.7222
A106: 103 | B106: Geórgia | C106: 1344.215 | D106: 0.0001902208953 | F106: 103 | G106: Noruega | H106: 1009.936 | I106: 9.900715266e-05 | K106: 103 | L106: Gana | M106: 4400.4448 | N106: 0.0002548435997 | O106: 1083.616
A107: 104 | B107: Reino Unido (Irlanda do Norte) pós-2020 | C107: 1341.9206 | D107: 0.000189896213 | F107: 104 | G107: Síria, República Árabe da | H107: 949.834 | I107: 9.311516754e-05 | K107: 104 | L107: Omã | M107: 4285.638 | N107: 0.0002481947768 | O107: 3325.7248
A108: 105 | B108: Albânia | C108: 1266.1722 | D108: 0.0001791769988 | F108: 105 | G108: Coreia, República da | H108: 937.599 | I108: 9.191573261e-05 | K108: 105 | L108: Singapura | M108: 4020.9472 | N108: 0.0002328657 | O108: 1891.5608
A109: 106 | B109: Costa Rica | C109: 1199.7232 | D109: 0.0001697737499 | F109: 106 | G109: El Salvador | H109: 727.8254 | I109: 7.135097718e-05 | K109: 106 | L109: Dominicana, República | M109: 3933.7284 | N109: 0.0002278145849 | O109: -515.742
A110: 107 | B110: Indonésia | C110: 1137.3976 | D110: 0.0001609540065 | F110: 107 | G110: Turquemenistão | H110: 720.6558 | I110: 7.06481191e-05 | K110: 107 | L110: Myanmar | M110: 3786.5344 | N110: 0.0002192901174 | O110: -2886.1156
A111: 108 | B111: Islândia | C111: 1133.5366 | D111: 0.0001604076334 | F111: 108 | G111: Chade | H111: 675.9004 | I111: 6.626060868e-05 | K111: 108 | L111: Quénia | M111: 3706.4946 | N111: 0.0002146547608 | O111: -2805.5498
A112: 109 | B112: Congo, República Democrática do | C112: 1102.9464 | D112: 0.0001560787907 | F112: 109 | G112: Timor-Leste | H112: 614.232 | I112: 6.021506451e-05 | K112: 109 | L112: Croácia | M112: 3585.5476 | N112: 0.0002076503396 | O112: -41.5776
A113: 110 | B113: Togo | C113: 886.836 | D113: 0.0001254968423 | F113: 110 | G113: Senegal | H113: 563.3582 | I113: 5.52277484e-05 | K113: 110 | L113: Nicarágua | M113: 3581.558 | N113: 0.0002074192893 | O113: -2747.4548
A114: 111 | B114: Panamá | C114: 853.2114 | D114: 0.0001207385994 | F114: 111 | G114: Argélia | H114: 547.1324 | I114: 5.3637083e-05 | K114: 111 | L114: Burquina Faso | M114: 3574.6308 | N114: 0.0002070181134 | O114: 123.1568
A115: 112 | B115: Equador | C115: 827.4356 | D115: 0.0001170910462 | F115: 112 | G115: Líbano | H115: 532.1362 | I115: 5.216695909e-05 | K115: 112 | L115: Sri Lanca | M115: 3466.8512 | N115: 0.0002007762577 | O115: -2680.7736
A116: 113 | B116: Ruanda | C116: 825.9096 | D116: 0.0001168751008 | F116: 113 | G116: Omã | H116: 479.9566 | I116: 4.705163136e-05 | K116: 113 | L116: Benim | M116: 3389.9546 | N116: 0.0001963229338 | O116: -245.1214
A117: 114 | B117: Honduras | C117: 813.7022 | D117: 0.0001151476222 | F117: 114 | G117: Emirados Árabes Unidos | H117: 455.3414 | I117: 4.46385271e-05 | K117: 114 | L117: Malavi | M117: 3260.7796 | N117: 0.0001888420032 | O117: -3247.5728
A118: 115 | B118: Bermudas | C118: 793.1712 | D118: 0.0001122422647 | F118: 115 | G118: Belarus | H118: 370.9342 | I118: 3.636382797e-05 | K118: 115 | L118: Timor-Leste | M118: 3086.1518 | N118: 0.000178728758 | O118: 1857.6878
A119: 116 | B119: Etiópia | C119: 744.4088 | D119: 0.0001053418601 | F119: 116 | G119: Guiné-Bissau | H119: 361.4462 | I119: 3.543368996e-05 | K119: 116 | L119: Líbano | M119: 3051.887 | N119: 0.0001767443757 | O119: 1987.6146
A120: 117 | B120: Tunísia | C120: 725.611 | D120: 0.000102681769 | F120: 117 | G120: Usbequistão | H120: 308.2694 | I120: 3.022060363e-05 | K120: 117 | L120: Belarus | M120: 2826.8628 | N120: 0.0001637125165 | O120: 2084.9944
A121: 118 | B121: Burundi | C121: 677.0954 | D121: 9.581628921e-05 | F121: 118 | G121: Guiné | H121: 302.1342 | I121: 2.961915098e-05 | K121: 118 | L121: Guiné | M121: 2572.4296 | N121: 0.0001489774895 | O121: 1968.1612
A122: 119 | B122: Iémen | C122: 670.7886 | D122: 9.492380911e-05 | F122: 119 | G122: Geórgia | H122: 294.5626 | I122: 2.887688359e-05 | K122: 119 | L122: Serra Leoa | M122: 2499.2974 | N122: 0.0001447421738 | O122: -1496.3846
A123: 120 | B123: Paraguai | C123: 644.6266 | D123: 9.122160443e-05 | F123: 120 | G123: Bolívia | H123: 281.6492 | I123: 2.761094301e-05 | K123: 120 | L123: Irão, República Islâmica do | M123: 2440.1832 | N123: 0.0001413186845 | O123: 2029.2332
A124: 121 | B124: Namíbia | C124: 633.8792 | D124: 8.970073161e-05 | F124: 121 | G124: Bangladesh | H124: 280.7044 | I124: 2.751832134e-05 | K124: 121 | L124: Congo | M124: 2383.877 | N124: 0.0001380578154 | O124: 1985.2674
A125: 122 | B125: Azerbaijão | C125: 594.9756 | D125: 8.419545335e-05 | F125: 122 | G125: Irão, República Islâmica do | H125: 205.475 | I125: 2.014335036e-05 | K125: 122 | L125: Panamá | M125: 2366.8806 | N125: 0.0001370735004 | O125: -660.4578
A126: 123 | B126: Arménia | C126: 559.6906 | D126: 7.920224594e-05 | F126: 123 | G126: Congo | H126: 199.3048 | I126: 1.953846656e-05 | K126: 123 | L126: Congo, República Democrática do | M126: 2329.6366 | N126: 0.0001349165832 | O126: -123.7438
A127: 124 | B127: Cazaquistão | C127: 531.8816 | D127: 7.526697303e-05 | F127: 124 | G127: Zâmbia | H127: 199.3012 | I127: 1.953811364e-05 | K127: 124 | L127: Venezuela | M127: 2213.7304 | N127: 0.0001282040906 | O127: 1903.808
A128: 125 | B128: Aruba | C128: 522.985 | D128: 7.400800834e-05 | F128: 125 | G128: Nigéria | H128: 197.6194 | I128: 1.937324158e-05 | K128: 125 | L128: Seychelles | M128: 2103.9052 | N128: 0.0001218437678 | O128: 2103.9052
A129: 126 | B129: Serra Leoa | C129: 501.4564 | D129: 7.096147965e-05 | F129: 126 | G129: Islândia | H129: 194.2478 | I129: 1.904271319e-05 | K129: 126 | L129: Gabão | M129: 2079.9016 | N129: 0.0001204536439 | O129: 2079.4016
A130: 127 | B130: Guatemala | C130: 491.8628 | D130: 6.960388196e-05 | F130: 127 | G130: Venezuela | H130: 154.9612 | I130: 1.519132617e-05 | K130: 127 | L130: Togo | M130: 2010.1374 | N130: 0.0001164133796 | O130: -236.4654
A131: 128 | B131: Uganda | C131: 485.556 | D131: 6.871140185e-05 | F131: 128 | G131: Cabo Verde | H131: 126.7382 | I131: 1.242453811e-05 | K131: 128 | L131: Sudão | M131: 1881.5594 | N131: 0.0001089670232 | O131: 1848.4942
A132: 129 | B132: São Bartolomeu | C132: 472.0258 | D132: 6.679673288e-05 | F132: 129 | G132: Azerbaijão | H132: 124.8946 | I132: 1.224380429e-05 | K132: 129 | L132: Bangladesh | M132: 1839.639 | N132: 0.000106539281 | O132: 1278.2302
A133: 130 | B133: Mauritânia | C133: 470.2498 | D133: 6.654540976e-05 | F133: 130 | G133: Albânia | H133: 104.056 | I133: 1.020093182e-05 | K133: 130 | L133: Guiné Equatorial | M133: 1818.2522 | N133: 0.0001053007041 | O133: 1818.2522
A134: 131 | B134: Barém | C134: 469.46 | D134: 6.643364455e-05 | F134: 131 | G134: Namíbia | H134: 69.6464 | I134: 6.827652205e-06 | K134: 131 | L134: Madagáscar | M134: 1665.147 | N134: 9.643390038e-05 | O134: -1405.8322
A135: 132 | B135: Gâmbia | C135: 455.249 | D135: 6.442263505e-05 | F135: 132 | G135: Tajiquistão | H135: 59.4122 | I135: 5.824361896e-06 | K135: 132 | L135: Geórgia | M135: 1638.7776 | N135: 9.490676548e-05 | O135: 1049.6524
A136: 133 | B136: Quénia | C136: 450.4724 | D136: 6.374669472e-05 | F136: 133 | G136: Iémen | H136: 45.76 | I136: 4.485994465e-06 | K136: 133 | L136: Laos, República Democrática Popular do | M136: 1584.7624 | N136: 9.177857535e-05 | O136: -1555.988
A137: 134 | B137: Myanmar | C137: 450.2094 | D137: 6.370947739e-05 | F137: 134 | G137: Libéria | H137: 38.8276 | I137: 3.806389831e-06 | K137: 134 | L137: Catar | M137: 1531.2716 | N137: 8.868075487e-05 | O137: 1499.1872
A138: 135 | B138: Kosovo | C138: 418.4652 | D138: 5.921733131e-05 | F138: 135 | G138: Aruba | H138: 38.029 | I138: 3.728100601e-06 | K138: 135 | L138: Albânia | M138: 1370.2282 | N138: 7.935422503e-05 | O138: 1162.1162
A139: 136 | B139: Nicarágua | C139: 417.0516 | D139: 5.901729169e-05 | F139: 136 | G139: São Marino | H139: 32.7702 | I139: 3.212564157e-06 | K139: 136 | L139: Islândia | M139: 1327.7844 | N139: 7.689617106e-05 | O139: 939.2888
A140: 137 | B140: Camboja | C140: 401.4318 | D140: 5.680692181e-05 | F140: 137 | G140: Botswana | H140: 29.9908 | I140: 2.94009097e-06 | K140: 137 | L140: El Salvador | M140: 1020.3732 | N140: 5.909302153e-05 | O140: -435.2776
A141: 138 | B141: Sri Lanca | C141: 393.0388 | D141: 5.561922195e-05 | F141: 138 | G141: Jordânia | H141: 29.4906 | I141: 2.891054816e-06 | K141: 138 | L141: Ruanda | M141: 826.0866 | N141: 4.784127341e-05 | O141: 825.7326
A142: 139 | B142: Bolívia | C142: 391.1324 | D142: 5.534944582e-05 | F142: 139 | G142: Bósnia-Herzegovina | H142: 27.8982 | I142: 2.734946914e-06 | K142: 139 | L142: Bermudas | M142: 793.8604 | N142: 4.59749528e-05 | O142: 792.482
A143: 140 | B143: Tanzânia, República Unida da | C143: 370.967 | D143: 5.24958246e-05 | F143: 140 | G143: Papuásia-Nova Guiné | H143: 25.837 | I143: 2.532881097e-06 | K143: 140 | L143: Turquemenistão | M143: 732.4956 | N143: 4.242112421e-05 | O143: -708.816
A144: 141 | B144: São Martinho (parte holandesa) | C144: 349.244 | D144: 4.942178622e-05 | F144: 141 | G144: Arábia Saudita | H144: 23.1054 | I144: 2.265093892e-06 | K144: 141 | L144: Azerbaijão | M144: 719.8702 | N144: 4.168994759e-05 | O144: 470.081
A145: 142 | B145: Comores | C145: 311.607 | D145: 4.409574549e-05 | F145: 142 | G145: Quirguizistão | H145: 17.4752 | I145: 1.713147956e-06 | K145: 142 | L145: Iémen | M145: 716.5486 | N145: 4.149758328e-05 | O145: 625.0286
A146: 143 | B146: Libéria | C146: 294.774 | D146: 4.171369475e-05 | F146: 143 | G146: Sudão | H146: 16.5326 | I146: 1.62074196e-06 | K146: 143 | L146: Namíbia | M146: 703.5256 | N146: 4.074338039e-05 | O146: 564.2328
A147: 144 | B147: Somália | C147: 292.8146 | D147: 4.143641856e-05 | F147: 144 | G147: Macau | H147: 16.4972 | I147: 1.617271588e-06 | K147: 144 | L147: Burundi | M147: 677.2094 | N147: 3.921932647e-05 | O147: 676.9814
A148: 145 | B148: El Salvador | C148: 292.5478 | D148: 4.139866349e-05 | F148: 145 | G148: Catar | H148: 16.0422 | I148: 1.57266653e-06 | K148: 145 | L148: Chade | M148: 675.9044 | N148: 3.914374982e-05 | O148: -675.8964
A149: 146 | B149: Jamaica | C149: 276.7996 | D149: 3.917012363e-05 | F149: 146 | G149: Arménia | H149: 15.34 | I149: 1.50382769e-06 | K149: 146 | L149: Bolívia | M149: 672.7816 | N149: 3.896289865e-05 | O149: 109.4832
A150: 147 | B150: Macedónia, Antiga República jugoslava da | C150: 272.7114 | D150: 3.859159931e-05 | F150: 147 | G150: Curaçau | H150: 12.9632 | I150: 1.270822628e-06 | K150: 147 | L150: Arménia | M150: 575.0306 | N150: 3.330183077e-05 | O150: 544.3506
A151: 148 | B151: Paquistão | C151: 266.8506 | D151: 3.776223301e-05 | F151: 148 | G151: Iraque | H151: 12.264 | I151: 1.202277887e-06 | K151: 148 | L151: Aruba | M151: 561.014 | N151: 3.249008537e-05 | O151: 484.956
A152: 149 | B152: Antígua e Barbuda | C152: 264.4064 | D152: 3.741635239e-05 | F152: 149 | G152: Jamaica | H152: 11.1226 | I152: 1.090382912e-06 | K152: 149 | L152: Cazaquistão | M152: 537.7376 | N152: 3.114207583e-05 | O152: 526.0256
A153: 150 | B153: Argentina | C153: 237.3284 | D153: 3.358452385e-05 | F153: 150 | G153: Kosovo | H153: 8.3722 | I153: 8.207526849e-07 | K153: 150 | L153: Barém | M153: 473.8044 | N153: 2.743950312e-05 | O153: 465.1156
A154: 151 | B154: Curaçau | C154: 224.0074 | D154: 3.169945893e-05 | F154: 151 | G154: Líbia, Jamahira Árabe da | H154: 5.95 | I154: 5.832969202e-07 | K154: 151 | L154: São Bartolomeu | M154: 472.3088 | N154: 2.735288822e-05 | O154: 471.7428
A155: 152 | B155: Moldava, República de | C155: 201.388 | D155: 2.849857029e-05 | F155: 152 | G155: Cazaquistão | H155: 5.856 | I155: 5.740818091e-07 | K155: 152 | L155: Mauritânia | M155: 471.8238 | N155: 2.732480035e-05 | O155: 468.6758
A156: 153 | B156: Haiti | C156: 195.7344 | D156: 2.769852502e-05 | F156: 153 | G156: Andorra | H156: 4.7264 | I156: 4.633436241e-07 | K156: 153 | L156: Gâmbia | M156: 455.249 | N156: 2.636490155e-05 | O156: 455.249
A157: 154 | B157: Ceuta e Melilha | C157: 191.5534 | D157: 2.710686851e-05 | F157: 154 | G157: São Cristovão e Nevis | H157: 4.4378 | I157: 4.350512726e-07 | K157: 154 | L157: Kosovo | M157: 426.8374 | N157: 2.471949642e-05 | O157: 410.093
A158: 155 | B158: Suriname | C158: 156.0968 | D158: 2.208937785e-05 | F158: 155 | G158: Afeganistão | H158: 4.3662 | I158: 4.28032103e-07 | K158: 155 | L158: São Martinho (parte holandesa) | M158: 349.244 | N158: 2.022581856e-05 | O158: 349.244
A159: 156 | B159: Trindade e Tobago | C159: 142.2682 | D159: 2.013248206e-05 | F159: 156 | G159: Barém | H159: 4.3444 | I159: 4.258949815e-07 | K159: 156 | L159: Usbequistão | M159: 348.6042 | N159: 2.018876573e-05 | O159: -267.9346
A160: 157 | B160: Nova Caledónia | C160: 140.1192 | D160: 1.982837543e-05 | F160: 157 | G160: Nepal | H160: 2.4222 | I160: 2.374557647e-07 | K160: 157 | L160: Zâmbia | M160: 336.5272 | N160: 1.948934868e-05 | O160: -62.0752
A161: 158 | B161: Zâmbia | C161: 137.226 | D161: 1.941895648e-05 | F161: 158 | G161: Lesoto | H161: 1.7136 | I161: 1.67989513e-07 | K161: 158 | L161: Libéria | M161: 333.6016 | N161: 1.931991798e-05 | O161: 255.9464
A162: 159 | B162: Polinésia Francesa | C162: 133.1554 | D162: 1.884292275e-05 | F162: 159 | G162: Liechtenstein | H162: 1.6922 | I162: 1.658916048e-07 | K162: 159 | L162: Comores | M162: 311.607 | N162: 1.804614151e-05 | O162: 311.607
A163: 160 | B163: Madagáscar | C163: 129.6574 | D163: 1.834791809e-05 | F163: 160 | G163: Mauritânia | H163: 1.574 | I163: 1.543040928e-07 | K163: 160 | L163: Somália | M163: 292.8146 | N163: 1.695781452e-05 | O163: 292.8146
A164: 161 | B164: Maldivas | C164: 127.1794 | D164: 1.799725441e-05 | F164: 161 | G164: Fiji, Ilhas | H164: 1.3646 | I164: 1.337759626e-07 | K164: 161 | L164: Jamaica | M164: 287.9222 | N164: 1.667448024e-05 | O164: 265.677
A165: 162 | B165: Niger | C165: 113.05 | D165: 1.599779218e-05 | F165: 162 | G165: Bermudas | H165: 0.6892 | I165: 6.756440964e-08 | K165: 162 | L165: Antígua e Barbuda | M165: 264.426 | N165: 1.531374139e-05 | O165: 264.3868
A166: 163 | B166: Liechtenstein | C166: 106.2456 | D166: 1.503489632e-05 | F166: 163 | G166: Território Palestiniano Ocupado | H166: 0.4852 | I166: 4.756565809e-08 | K166: 163 | L166: Curaçau | M166: 236.9706 | N166: 1.372371282e-05 | O166: 211.0442
A167: 164 | B167: Centro-Africana, República | C167: 83.0308 | D167: 1.174975217e-05 | F167: 164 | G167: Montenegro | H167: 0.3086 | I167: 3.025301337e-08 | K167: 164 | L167: Haiti | M167: 195.7408 | N167: 1.133596542e-05 | O167: 195.728
A168: 165 | B168: Jibuti | C168: 77.3086 | D168: 1.093999926e-05 | F168: 165 | G168: São Bartolomeu | H168: 0.283 | I168: 2.774336612e-08 | K168: 165 | L168: Ceuta e Melilha | M168: 191.5534 | N168: 1.109345991e-05 | O168: 191.5534
A169: 166 | B169: Nepal | C169: 76.6542 | D169: 1.084739462e-05 | F169: 166 | G169: Gabão | H169: 0.25 | I169: 2.450827396e-08 | K169: 166 | L169: Trindade e Tobago | M169: 142.2786 | N169: 8.239801254e-06 | O169: 142.2578
A170: 167 | B170: Zimbabwe | C170: 63.2826 | D170: 8.955169247e-06 | F170: 167 | G170: Ruanda | H170: 0.177 | I170: 1.735185796e-08 | K170: 167 | L170: Nova Caledónia | M170: 140.1192 | N170: 8.114743608e-06 | O170: 140.1192
A171: 168 | B171: Caimão, Ilhas | C171: 51.4562 | D171: 7.281606315e-06 | F171: 168 | G171: Barbados | H171: 0.1378 | I171: 1.35089606e-08 | K171: 168 | L171: Polinésia Francesa | M171: 133.1554 | N171: 7.711448046e-06 | O171: 133.1554
A172: 169 | B172: Bósnia-Herzegovina | C172: 50.6168 | D172: 7.162822178e-06 | F172: 169 | G172: Niger | H172: 0.1252 | I172: 1.22737436e-08 | K172: 169 | L172: Maldivas | M172: 127.183 | N172: 7.365567576e-06 | O172: 127.1758
A173: 170 | B173: Montenegro | C173: 46.101 | D173: 6.523787857e-06 | F173: 170 | G173: Burundi | H173: 0.114 | I173: 1.117577292e-08 | K173: 170 | L173: Niger | M173: 113.1752 | N173: 6.554331817e-06 | O173: 112.9248
A174: 171 | B174: Bahamas | C174: 42.9652 | D174: 6.080038395e-06 | F174: 171 | G174: Oceano Indico, Território Britânico do | H174: 0.098 | I174: 9.607243391e-09 | K174: 171 | L174: Liechtenstein | M174: 107.9378 | N174: 6.251017509e-06 | O174: 104.5534
A175: 172 | B175: Usbequistão | C175: 40.3348 | D175: 5.707808474e-06 | F175: 172 | G175: São Vicente e Granadinas | H175: 0.0416 | I175: 4.078176786e-09 | K175: 172 | L175: Centro-Africana, República | M175: 83.0308 | N175: 4.808574796e-06 | O175: 83.0308
A176: 173 | B176: Mongólia | C176: 30.8452 | D176: 4.364927902e-06 | F176: 173 | G176: Antígua e Barbuda | H176: 0.0196 | I176: 1.921448678e-09 | K176: 173 | L176: Nepal | M176: 79.0764 | N176: 4.579563054e-06 | O176: 74.232
A177: 174 | B177: Afeganistão | C177: 18.9718 | D177: 2.684713964e-06 | F177: 174 | G177: Santa Sé (Cidade Estado do Vaticano) | H177: 0.018 | I177: 1.764595725e-09 | K177: 174 | L177: Bósnia-Herzegovina | M177: 78.515 | N177: 4.547050614e-06 | O177: 22.7186
A178: 175 | B178: Guiana | C178: 18.2434 | D178: 2.581637522e-06 | F178: 175 | G178: Mongólia | H178: 0.0112 | I178: 1.097970673e-09 | K178: 175 | L178: Jibuti | M178: 77.3086 | N178: 4.477184195e-06 | O178: 77.3086
A179: 176 | B179: Turcas e Caicos, Ilhas | C179: 18.0666 | D179: 2.556618418e-06 | F179: 176 | G179: Trindade e Tobago | H179: 0.0104 | I179: 1.019544197e-09 | K179: 176 | L179: Tajiquistão | M179: 59.4122 | N179: 3.440747379e-06 | O179: -59.4122
A180: 177 | B180: Laos, República Democrática Popular do | C180: 14.3872 | D180: 2.035943703e-06 | F180: 177 | G180: Haiti | H180: 0.0064 | I180: 6.274118133e-10 | K180: 177 | L180: Caimão, Ilhas | M180: 51.4562 | N180: 2.979990394e-06 | O180: 51.4562
A181: 178 | B181: Turquemenistão | C181: 11.8398 | D181: 1.675459176e-06 | F181: 178 | G181: Maldivas | H181: 0.0036 | I181: 3.52919145e-10 | K181: 178 | L181: Montenegro | M181: 46.4096 | N181: 2.687725914e-06 | O181: 45.7924
A182: 179 | B182: Barbados | C182: 11.7888 | D182: 1.668242127e-06 | F182: 179 | G182: Anguila | H182: 0 | I182: 0 | K182: 179 | L182: Bahamas | M182: 42.9652 | N182: 2.488249876e-06 | O182: 42.9652
A183: 180 | B183: Virgens Britânicas, Ilhas | C183: 9.9272 | D183: 1.404805684e-06 | F183: 180 | G183: Antárctica | H183: 0 | I183: 0 | K183: 180 | L183: São Marino | M183: 32.7902 | N183: 1.898983621e-06 | O183: -32.7502
A184: 181 | B184: Fiji, Ilhas | C184: 8.1268 | D184: 1.150029699e-06 | F184: 181 | G184: Antilhas Holandesas | H184: 0 | I184: 0 | K184: 181 | L184: Mongólia | M184: 30.8564 | N184: 1.786991181e-06 | O184: 30.834
A185: 182 | B185: Santa Lúcia | C185: 7.138 | D185: 1.010103853e-06 | F185: 182 | G185: Bahamas | H185: 0 | I185: 0 | K185: 182 | L185: Botswana | M185: 30.0852 | N185: 1.742328563e-06 | O185: -29.8964
A186: 183 | B186: Brunei Darussalam | C186: 6.98 | D186: 9.877451518e-07 | F186: 183 | G186: Bonaire, Santo Eustáquio e Saba | H186: 0 | I186: 0 | K186: 183 | L186: Papuásia-Nova Guiné | M186: 28.7226 | N186: 1.663416111e-06 | O186: -22.9514
A187: 184 | B187: Malavi | C187: 6.6034 | D187: 9.344521971e-07 | F187: 184 | G187: Bouvet, Ilha | H187: 0 | I187: 0 | K187: 184 | L187: Afeganistão | M187: 23.338 | N187: 1.351576988e-06 | O187: 14.6056
A188: 185 | B188: Guam | C188: 6.5774 | D188: 9.307729171e-07 | F188: 185 | G188: Brunei Darussalam | H188: 0 | I188: 0 | K188: 185 | L188: Quirguizistão | M188: 22.1318 | N188: 1.281722152e-06 | O188: -12.8186
A189: 186 | B189: São Vicente e Granadinas | C189: 5.6654 | D189: 8.017150979e-07 | F189: 186 | G189: Butão | H189: 0 | I189: 0 | K189: 186 | L189: Turcas e Caicos, Ilhas | M189: 18.0666 | N189: 1.046293633e-06 | O189: 18.0666
A190: 187 | B190: Quirguizistão | C190: 4.6566 | D190: 6.589590364e-07 | F190: 187 | G190: Caimão, Ilhas | H190: 0 | I190: 0 | K190: 187 | L190: Barbados | M190: 11.9266 | N190: 6.907069203e-07 | O190: 11.651
A191: 188 | B191: Menores distantes dos Estados Unidos, lhas | C191: 4.5542 | D191: 6.444683339e-07 | F191: 188 | G191: Centro-Africana, República | H191: 0 | I191: 0 | K191: 188 | L191: Virgens Britânicas, Ilhas | M191: 9.9272 | N191: 5.749153774e-07 | O191: 9.9272
A192: 189 | B192: Sudão do Sul | C192: 3.771 | D192: 5.336371014e-07 | F192: 189 | G192: Ceuta | H192: 0 | I192: 0 | K192: 189 | L192: Fiji, Ilhas | M192: 9.4914 | N192: 5.496768286e-07 | O192: 6.7622
A193: 190 | B193: Bonaire, Santo Eustáquio e Saba | C193: 3.1276 | D193: 4.425890741e-07 | F193: 190 | G193: Ceuta e Melilha | H193: 0 | I193: 0 | K193: 190 | L193: Santa Lúcia | M193: 7.138 | N193: 4.133840321e-07 | O193: 7.138
A194: 191 | B194: Marianas do Norte, Ilhas | C194: 2.9244 | D194: 4.138340863e-07 | F194: 191 | G194: Christmas, Ilha | H194: 0 | I194: 0 | K194: 191 | L194: Brunei Darussalam | M194: 6.98 | N194: 4.042337551e-07 | O194: 6.98
A195: 192 | B195: Papuásia-Nova Guiné | C195: 2.8856 | D195: 4.083434685e-07 | F195: 192 | G195: Cocos (Keeling), Ilhas | H195: 0 | I195: 0 | K195: 192 | L195: Guam | M195: 6.5774 | N195: 3.809179228e-07 | O195: 6.5774
A196: 193 | B196: Belize | C196: 2.1806 | D196: 3.08578378e-07 | F196: 193 | G196: Comores | H196: 0 | I196: 0 | K196: 193 | L196: São Vicente e Granadinas | M196: 5.707 | N196: 3.30510321e-07 | O196: 5.6238
A197: 194 | B197: Melilha | C197: 1.3464 | D197: 1.905300963e-07 | F197: 194 | G197: Cook, Ilhas | H197: 0 | I197: 0 | K197: 194 | L197: Menores distantes dos Estados Unidos, lhas | M197: 4.5542 | N197: 2.637480469e-07 | O197: 4.5542
A198: 195 | B198: Granada | C198: 0.6866 | D198: 9.716129244e-08 | F198: 195 | G198: Coreia, República Popular Democrática da | H198: 0 | I198: 0 | K198: 195 | L198: São Cristovão e Nevis | M198: 4.4378 | N198: 2.570069568e-07 | O198: -4.4378
A199: 196 | B199: Virgens dos Estados Unidos, Ilhas | C199: 0.295 | D199: 4.174567619e-08 | F199: 196 | G199: Domínica | H199: 0 | I199: 0 | K199: 196 | L199: Sudão do Sul | M199: 3.771 | N199: 2.183904714e-07 | O199: 3.771
A200: 197 | B200: Botswana | C200: 0.0944 | D200: 1.335861638e-08 | F200: 197 | G200: Eritreia | H200: 0 | I200: 0 | K200: 197 | L200: Bonaire, Santo Eustáquio e Saba | M200: 3.1276 | N200: 1.811291537e-07 | O200: 3.1276
... 58 more rows

Sheet 2A
A1: Parceiros comerciais de Portugal - União Europeia vs. Países Terceiros (média 2018-2022 em milhões de euros) produtos agrícolas e agroalimentares, do mar e da floresta
A2: Exportações | F2: Importações | K2: Trocas comerciais (total e saldo)
A3: P | B3: Grupo de Países | C3: média quinquénio | D3: % do Total | F3: P | G3: Grupo de Países | H3: média quinquénio | I3: % do Total | K3: P | L3: Grupo de Países | M3: média quinquénio | N3: % do Total | O3: Saldo (exp-imp)
A4: 1 | B4: União Europeia | C4: 8690.064715 | D4: 0.6705031383 | F4: 1 | G4: União Europeia | H4: 11673.13485 | I4: 0.7803993275 | K4: 1 | L4: União Europeia | M4: 20363.19956 | N4: 0.7293824229 | O4: -2983.070133
A5: 2 | B5: Países Terceiros | C5: 4271.031018 | D5: 0.3295418153 | F5: 2 | G5: Países Terceiros | H5: 3284.764829 | I5: 0.2196006725 | K5: 2 | L5: Países Terceiros | M5: 7555.795847 | N5: 0.2706384458 | O5: 986.2661894
B6: Outros | C6: 0 | D6: -4.495366773e-05 | G6: Outros | H6: 0 | I6: 0 | L6: Outros | M6: 0 | N6: -2.086875799e-05 | O6: 0
B7: Total | C7: 12960.51311 | D7: 1 | G7: Total | H7: 14957.89968 | I7: 1 | L7: Total | M7: 27918.41279 | N7: 1 | O7: -1997.386566
F27: valores em milhões de euros
A28: Nota: Outros = Países não determinados, abastecimentos de bordo, etc.
A29: Fonte: GPP a partir de dados INE/Comércio Internacional (2021 provisórios; 2022 preliminares) | M29: 2023-03-23

Sheet 3
A1: Principais produtos agrícolas e agroalimentares, do mar e da floresta transacionados entre Portugal e EUA em 2018-2022 (NC a 2 e 4 dígitos) em milhões de euros
AC4: P | AE4: Cód.NC | AF4: Descritivo | AG4: Média export quinquénio | AH4: % do total | AI4: % acumulada | AN4: P | AO4: NC | AP4: Exportações | AQ4: 2018 | AR4: 2019 | AS4: 2020 | AT4: 2021 | AU4: 2022 | AV4: média quinquénio
AC5: 1 | AD5: º | AE5: 45 | AF5: Cortiça e suas obras | AG5: 191.9185686 | AH5: 0.3463566051 | AN5: 1º | AO5: 45 | AP5: Cortiça e suas obras | AQ5: 187.166177 | AR5: 179.906551 | AS5: 196.01369 | AT5: 198.797845 | AU5: 197.70858 | AV5: 191.9185686
AC6: 2 | AD6: º | AE6: 48 | AF6: Papel e cartão | AG6: 123.4870464 | AH6: 0.2228578218 | AN6: 2º | AO6: 48 | AP6: Papel e cartão | AQ6: 111.440958 | AR6: 108.272647 | AS6: 95.012178 | AT6: 123.570239 | AU6: 179.13921 | AV6: 123.4870464
AC7: 3 | AD7: º | AE7: 22 | AF7: Bebidas, líquidos alcoólicos e vinagres | AG7: 101.0007134 | AH7: 0.1822766002 | AI7: 0.7514910271 | AN7: 3º | AO7: 22 | AP7: Bebidas, líquidos alcoólicos e vinagres | AQ7: 86.273736 | AR7: 96.000089 | AS7: 98.236449 | AT7: 111.285827 | AU7: 113.207466 | AV7: 101.0007134
AC8: 4 | AD8: º | AE8: 20 | AF8: Preparações de produtos vegetais | AG8: 23.9035166 | AH8: 0.04313882143 | AO8: - | AP8: Outros | AQ8: 102.409512 | AR8: 120.76401 | AS8: 115.070529 | AT8: 158.079297 | AU8: 192.179277 | AV8: 137.700525
AC9: 5 | AD9: º | AE9: 03 | AF9: Peixes e crustáceos | AG9: 23.3017594 | AH9: 0.04205282656 | AP9: Total | AQ9: 487.290383 | AR9: 504.943297 | AS9: 504.332846 | AT9: 591.733208 | AU9: 682.234533 | AV9: 554.1068534
AC10: 6 | AD10: º | AE10: 44 | AF10: Madeira e suas obras | AG10: 19.9233566 | AH10: 0.03595580253
AC11: 7 | AD11: º | AE11: 19a | AF11: Preparações à base de cereais (exc. NC 19022010) (a) | AG11: 15.0302394 | AH11: 0.02712516423
AC12: 8 | AD12: º | AE12: 15 | AF12: Gorduras e óleos animais ou vegetais | AG12: 13.3396514 | AH12: 0.02407414981
AC13: 9 | AD13: º | AE13: 05a | AF13: Outros produtos de origem animal (exc. NC 0508, 051191) (a) | AG13: 12.4511852 | AH13: 0.02247072947
AC14: 10 | AD14: º | AE14: 16p | AF14: Preparações e conservas de peixes ou crustáceos (NC 1604-05) (p) | AG14: 9.786026 | AH14: 0.01766090049 | AI14: 0.9639694216
AE15: - | AF15: Outros | AG15: 19.9647904 | AH15: 0.03603057836
AE16: Total | AG16: 554.1068534 | AH16: 1
AC38: P | AE38: Cód.NC | AF38: Descritivo | AG38: Média import quinquénio | AH38: % do total | AI38: % acumulada | AN38: P | AO38: NC | AP38: Importações | AQ38: 2018 | AR38: 2019 | AS38: 2020 | AT38: 2021 | AU38: 2022 | AV38: média quinquénio
AC39: 1 | AD39: º | AE39: 12 | AF39: Sementes e frutos oleaginosos | AG39: 149.594988 | AH39: 0.531474195 | AN39: 1º | AO39: 12 | AP39: Sementes e frutos oleaginosos | AQ39: 194.493066 | AR39: 169.145327 | AS39: 108.246238 | AT39: 122.161548 | AU39: 153.928761 | AV39: 149.594988
AC40: 2 | AD40: º | AE40: 44 | AF40: Madeira e suas obras | AG40: 30.5426186 | AH40: 0.108510411 | AN40: 2º | AO40: 44 | AP40: Madeira e suas obras | AQ40: 33.370256 | AR40: 27.759892 | AS40: 27.175664 | AT40: 26.951159 | AU40: 37.456122 | AV40: 30.5426186
AC41: 3 | AD41: º | AE41: 03 | AF41: Peixes e crustáceos | AG41: 19.3447866 | AH41: 0.06872726836 | AI41: 0.7087118743 | AN41: 3º | AO41: 03 | AP41: Peixes e crustáceos | AQ41: 22.9529 | AR41: 27.425495 | AS41: 18.562866 | AT41: 11.625396 | AU41: 16.157276 | AV41: 19.3447866
AC42: 4 | AD42: º | AE42: 23a | AF42: Resíduos indústrias alimentares; alimentos p/ animais (exc. NC 230120) (a) | AG42: 17.06949 | AH42: 0.06064369921 | AO42: - | AP42: Outros | AQ42: 112.284775 | AR42: 79.35981 | AS42: 82.794297 | AT42: 56.947436 | AU42: 78.560619 | AV42: 81.9893874
AC43: 5 | AD43: º | AE43: 10 | AF43: Cereais | AG43: 17.012549 | AH43: 0.06044140185 | AP43: Total | AQ43: 363.100997 | AR43: 303.690524 | AS43: 236.779065 | AT43: 217.685539 | AU43: 286.102778 | AV43: 281.4717806
AC44: 6 | AD44: º | AE44: 48 | AF44: Papel e cartão | AG44: 7.899518 | AH44: 0.02806504433
AC45: 7 | AD45: º | AE45: 08 | AF45: Frutas | AG45: 5.7574908 | AH45: 0.02045494858
AC46: 8 | AD46: º | AE46: 52 | AF46: Algodão (NC 5201-5203) | AG46: 5.4329828 | AH46: 0.01930205148
AC47: 9 | AD47: º | AE47: 07 | AF47: Produtos hortícolas | AG47: 4.036009 | AH47: 0.0143389472
AC48: 10 | AD48: º | AE48: 22 | AF48: Bebidas, líquidos alcoólicos e vinagres | AG48: 3.3689166 | AH48: 0.01196893199 | AI48: 0.923926899
AE49: - | AF49: Outros | AG49: 21.4124312 | AH49: 0.07607310102
AE50: Total | AG50: 281.4717806 | AH50: 1
AC62: DESAGREGAÇÃO A 4 DÍGITOS | AN62: DESAGREGAÇÃO A 4 DÍGITOS
AC64: P | AE64: Cód.NC | AF64: Descritivo | AG64: Média export quinquénio | AH64: % do total | AI64: % acumulada | AN64: P | AO64: NC | AP64: Exportações | AQ64: 2018 | AR64: 2019 | AS64: 2020 | AT64: 2021 | AU64: 2022 | AV64: média quinquénio
AC65: 1 | AD65: º | AE65: 4503 | AF65: Obras de cortiça natural | AG65: 114.5766746 | AH65: 0.2067772198 | AN65: 1º | AO65: 4503 | AP65: Obras de cortiça natural | AQ65: 110.861755 | AR65: 108.309543 | AS65: 117.927176 | AT65: 114.031597 | AU65: 121.753302 | AV65: 114.5766746
AC66: 2 | AD66: º | AE66: 4802 | AF66: Papel e cartão p/ escrita, etc. | AG66: 108.8386652 | AH66: 0.1964217994 | AN66: 2º | AO66: 4802 | AP66: Papel e cartão p/ escrita, etc. | AQ66: 107.790532 | AR66: 101.258676 | AS66: 78.650844 | AT66: 102.782301 | AU66: 153.710973 | AV66: 108.8386652
AC67: 3 | AD67: º | AE67: 2204 | AF67: Vinhos de uvas frescas | AG67: 94.5734634 | AH67: 0.1706773032 | AI67: 0.5738763223 | AN67: 3º | AO67: 2204 | AP67: Vinhos de uvas frescas | AQ67: 80.842429 | AR67: 89.48035 | AS67: 92.250347 | AT67: 104.305176 | AU67: 105.989015 | AV67: 94.5734634
AC68: 4 | AD68: º | AE68: 4504 | AF68: Cortiça aglomerada e suas obras | AG68: 73.7002318 | AH68: 0.1330072555 | AN68: - | AO68: - | AP68: Outros | AQ68: 187.795667 | AR68: 205.894728 | AS68: 215.504479 | AT68: 270.614134 | AU68: 300.781243 | AV68: 236.1180502
AC69: 5 | AD69: º | AE69: 0307 | AF69: Moluscos | AG69: 14.9378754 | AH69: 0.02695847436 | AP69: Total | AQ69: 487.290383 | AR69: 504.943297 | AS69: 504.332846 | AT69: 591.733208 | AU69: 682.234533 | AV69: 554.1068534
AC70: 6 | AD70: º | AE70: 1905 | AF70: Produtos de padaria, pastelaria, etc. | AG70: 14.2362836 | AH70: 0.02569230738
AC71: 7 | AD71: º | AE71: 2005 | AF71: Produtos hortícolas preparados, não congelados | AG71: 13.3467126 | AH71: 0.0240868932
AC72: 8 | AD72: º | AE72: 0504 | AF72: Tripas de animais (excepto peixes) | AG72: 12.4386736 | AH72: 0.02244814971
AC73: 9 | AD73: º | AE73: 1509 | AF73: Azeite (processos mecânicos ou físicos) | AG73: 11.7880732 | AH73: 0.02127400722
AC74: 10 | AD74: º | AE74: 4819 | AF74: Embalagens de papel, cartão etc. | AG74: 8.8449996 | AH74: 0.01596262444 | AI74: 0.8433060341
AE75: - | AF75: Outros | AG75: 86.8252004 | AH75: 0.1566939659
AE76: Total | AG76: 554.1068534 | AH76: 1
AC89: DESAGREGAÇÃO A 4 DÍGITOS | AN89: DESAGREGAÇÃO A 4 DÍGITOS
G91: média 2018-2022 em milhões de euros | I91: Cód. NC | J91: Descritivo | K91: Export | L91: Import | M91: Saldo | AC91: P | AE91: Cód.NC | AF91: Descritivo | AG91: Média import quinquénio | AH91: % do total | AI91: % acumulada | AN91: P | AO91: NC | AP91: Importações | AQ91: 2018 | AR91: 2019 | AS91: 2020 | AT91: 2021 | AU91: 2022 | AV91: média quinquénio
I92: 4503 | J92: Obras de cortiça natural | K92: 114.5766746 | L92: 2.374347 | M92: 112.2023276 | AC92: 1 | AD92: º | AE92: 1201 | AF92: Soja, mesmo triturada | AG92: 144.6418346 | AH92: 0.5138768593 | AN92: 1º | AO92: 1201 | AP92: Soja, mesmo triturada | AQ92: 189.021186 | AR92: 164.043805 | AS92: 103.49008 | AT92: 118.328024 | AU92: 148.326078 | AV92: 144.6418346
I93: 4802 | J93: Papel e cartão p/ escrita, etc. | K93: 108.8386652 | L93: 0.0694128 | M93: 108.7692524 | AC93: 2 | AD93: º | AE93: 0303 | AF93: Peixes congelados | AG93: 15.0344894 | AH93: 0.05341384265 | AN93: 2º | AO93: 0303 | AP93: Peixes congelados | AQ93: 17.935311 | AR93: 23.434833 | AS93: 15.433481 | AT93: 8.143346 | AU93: 10.225476 | AV93: 15.0344894
I94: 2204 | J94: Vinhos de uvas frescas | K94: 94.5734634 | L94: 0.189472 | M94: 94.3839914 | AC94: 3 | AD94: º | AE94: 4407 | AF94: Madeira serrada, etc. | AG94: 14.8466348 | AH94: 0.05274644147 | AI94: 0.6200371434 | AN94: 3º | AO94: 4407 | AP94: Madeira serrada, etc. | AQ94: 16.543981 | AR94: 14.541846 | AS94: 12.578127 | AT94: 13.664956 | AU94: 16.904264 | AV94: 14.8466348
I95: 4504 | J95: Cortiça aglomerada e suas obras | K95: 73.7002318 | L95: 0.4120052 | M95: 73.2882266 | AC95: 4 | AD95: º | AE95: 1005 | AF95: Milho | AG95: 9.0556858 | AH95: 0.03217262413 | AN95: - | AO95: - | AP95: Outros | AQ95: 139.600519 | AR95: 101.67004 | AS95: 105.277377 | AT95: 77.549213 | AU95: 110.64696 | AV95: 106.9488218
I96: 0307 | J96: Moluscos | K96: 14.9378754 | L96: 0.432302 | M96: 14.5055734 | AC96: 5 | AD96: º | AE96: 2309 | AF96: Preparações p/ alimentação animal | AG96: 8.487912 | AH96: 0.03015546348 | AP96: Total | AQ96: 363.100997 | AR96: 303.690524 | AS96: 236.779065 | AT96: 217.685539 | AU96: 286.102778 | AV96: 281.4717806
I97: 1905 | J97: Produtos de padaria, pastelaria, etc. | K97: 14.2362836 | L97: 0.1785036 | M97: 14.05778 | AC97: 6 | AD97: º | AE97: 4408 | AF97: Folhas para folheados ou contraplacados, etc. | AG97: 7.6121484 | AH97: 0.02704409083
I98: 2005 | J98: Produtos hortícolas preparados, não congelados | K98: 13.3467126 | L98: 0.0279776 | M98: 13.318735 | AC98: 7 | AD98: º | AE98: 4403 | AF98: Madeira em bruto | AG98: 7.3284994 | AH98: 0.0260363557
I99: 0504 | J99: Tripas de animais (excepto peixes) | K99: 12.4386736 | L99: 0.0681558 | M99: 12.3705178 | AC99: 8 | AD99: º | AE99: 1001 | AF99: Trigo e mistura trigo/centeio | AG99: 6.678593 | AH99: 0.02372739813
I100: 1509 | J100: Azeite (processos mecânicos ou físicos) | K100: 11.7880732 | L100: 0.0137306 | M100: 11.7743426 | AC100: 9 | AD100: º | AE100: 2303 | AF100: Resíduos da fabricação de amido, etc. | AG100: 6.3781446 | AH100: 0.02265997887
I101: 4819 | J101: Embalagens de papel, cartão etc. | K101: 8.8449996 | L101: 0.059748 | M101: 8.7852516 | AC101: 10 | AD101: º | AE101: 0802 | AF101: Frutas de casca rija | AG101: 5.70531 | AH101: 0.02026956304 | AI101: 0.8021026176
I102: - | J102: Outros | K102: 80.6357982 | L102: 54.1256016 | M102: 26.5101966 | AE102: - | AF102: Outros | AG102: 55.7025286 | AH102: 0.1978973824
I103: 0802 | J103: Frutas de casca rija | K103: 0.682727 | L103: 5.70531 | M103: -5.022583 | AE103: Total | AG103: 281.4717806 | AH103: 1
I104: 5201 | J104: Algodão não cardado nem penteado | K104: 0.000526 | L104: 5.3634208 | M104: -5.3628948
I105: 2303 | J105: Resíduos da fabricação de amido, etc. | K105: 0 | L105: 6.3781446 | M105: -6.3781446
I106: 1001 | J106: Trigo e mistura trigo/centeio | K106: 0 | L106: 6.678593 | M106: -6.678593
I107: 4403 | J107: Madeira em bruto | K107: 0.0042152 | L107: 7.3284994 | M107: -7.3242842
I108: 2309 | J108: Preparações p/ alimentação animal | K108: 0.1809008 | L108: 8.487912 | M108: -8.3070112
I109: 1005 | J109: Milho | K109: 0.0001572 | L109: 9.0556858 | M109: -9.0555286
I110: 0303 | J110: Peixes congelados | K110: 3.0883924 | L110: 15.0344894 | M110: -11.946097
I111: 4407 | J111: Madeira serrada, etc. | K111: 2.2324754 | L111: 14.8466348 | M111: -12.6141594
I112: 1201 | J112: Soja, mesmo triturada | K112: 8.2e-06 | L112: 144.6418346 | M112: -144.6418264
I113: Total | K113: 554.1068534 | L113: 281.4717806 | M113: 272.6350728
A116: Fonte: GPP a partir de dados INE/Comércio Internacional (2021 provisórios; 2022 preliminares) | Y116: 2023-05-22T12:29:35.360

Sheet 3A
A1: Principais produtos agrícolas e agroalimentares transacionados entre Portugal e EUA em 2018-2022 (NC a 2 e 4 dígitos) em milhões de euros
AC4: P | AE4: Cód.NC | AF4: Descritivo | AG4: Média export quinquénio | AH4: % do total | AI4: % acumulada | AN4: P | AO4: NC | AP4: Exportações | AQ4: 2018 | AR4: 2019 | AS4: 2020 | AT4: 2021 | AU4: 2022 | AV4: média quinquénio
AC5: 1 | AD5: º | AE5: 22 | AF5: Bebidas, líquidos alcoólicos e vinagres | AG5: 101.0007134 | AH5: 0.5500619697 | AN5: 1º | AO5: 22 | AP5: Bebidas, líquidos alcoólicos e vinagres | AQ5: 86.273736 | AR5: 96.000089 | AS5: 98.236449 | AT5: 111.285827 | AU5: 113.207466 | AV5: 101.0007134
AC6: 2 | AD6: º | AE6: 20 | AF6: Preparações de produtos vegetais | AG6: 23.9035166 | AH6: 0.1301814114 | AN6: 2º | AO6: 20 | AP6: Preparações de produtos vegetais | AQ6: 14.665184 | AR6: 21.051859 | AS6: 21.011571 | AT6: 33.133623 | AU6: 29.655346 | AV6: 23.9035166
AC7: 3 | AD7: º | AE7: 19a | AF7: Preparações à base de cereais (exc. NC 19022010) (a) | AG7: 15.0302394 | AH7: 0.08185648211 | AI7: 0.7620998632 | AN7: 3º | AO7: 19a | AP7: Preparações à base de cereais (exc. NC 19022010) (a) | AQ7: 12.688653 | AR7: 13.853912 | AS7: 14.004053 | AT7: 14.69217 | AU7: 19.912409 | AV7: 15.0302394
AC8: 4 | AD8: º | AE8: 15 | AF8: Gorduras e óleos animais ou vegetais | AG8: 13.3396514 | AH8: 0.07264933759 | AO8: - | AP8: Outros | AQ8: 27.632982 | AR8: 42.58403 | AS8: 36.975571 | AT8: 46.839529 | AU8: 64.380402 | AV8: 43.6825028
AC9: 5 | AD9: º | AE9: 05a | AF9: Outros produtos de origem animal (exc. NC 0508, 051191) (a) | AG9: 12.4511852 | AH9: 0.06781064436 | AP9: Total | AQ9: 141.260555 | AR9: 173.48989 | AS9: 170.227644 | AT9: 205.951149 | AU9: 227.155623 | AV9: 183.6169722
AC10: 6 | AD10: º | AE10: 21 | AF10: Preparações alimentícias diversas | AG10: 3.6790936 | AH10: 0.02003678394
AC11: 7 | AD11: º | AE11: 04 | AF11: Leite e laticínios; ovos; mel, etc. | AG11: 3.6161486 | AH11: 0.01969397794
AC12: 8 | AD12: º | AE12: 07 | AF12: Produtos hortícolas | AG12: 2.545881 | AH12: 0.01386517254
AC13: 9 | AD13: º | AE13: 51 | AF13: Lã não cardada (NC 5101-5103) | AG13: 2.5015706 | AH13: 0.0136238528
AC14: 10 | AD14: º | AE14: 09 | AF14: Café, chá, mate e especiarias | AG14: 2.2745236 | AH14: 0.01238732767 | AI14: 0.9821669601
AE15: - | AF15: Outros | AG15: 3.2744488 | AH15: 0.01783303995
AE16: Total | AG16: 183.6169722 | AH16: 1
AC38: P | AE38: Cód.NC | AF38: Descritivo | AG38: Média import quinquénio | AH38: % do total | AI38: % acumulada | AN38: P | AO38: NC | AP38: Importações | AQ38: 2018 | AR38: 2019 | AS38: 2020 | AT38: 2021 | AU38: 2022 | AV38: média quinquénio
AC39: 1 | AD39: º | AE39: 12 | AF39: Sementes e frutos oleaginosos | AG39: 149.594988 | AH39: 0.6900759585 | AN39: 1º | AO39: 12 | AP39: Sementes e frutos oleaginosos | AQ39: 194.493066 | AR39: 169.145327 | AS39: 108.246238 | AT39: 122.161548 | AU39: 153.928761 | AV39: 149.594988
AC40: 2 | AD40: º | AE40: 23a | AF40: Resíduos indústrias alimentares; alimentos p/ animais (exc. NC 230120) (a) | AG40: 17.06949 | AH40: 0.07874090456 | AN40: 2º | AO40: 23a | AP40: Resíduos indústrias alimentares; alimentos p/ animais (exc. NC 230120) (a) | AQ40: 23.510161 | AR40: 17.580956 | AS40: 13.788103 | AT40: 16.169724 | AU40: 14.298506 | AV40: 17.06949
AC41: 3 | AD41: º | AE41: 10 | AF41: Cereais | AG41: 17.012549 | AH41: 0.07847823791 | AI41: 0.847295101 | AN41: 3º | AO41: 10 | AP41: Cereais | AQ41: 38.84778 | AR41: 9.321157 | AS41: 13.919156 | AT41: 4.968311 | AU41: 18.006341 | AV41: 17.012549
AC42: 4 | AD42: º | AE42: 08 | AF42: Frutas | AG42: 5.7574908 | AH42: 0.02655908487 | AO42: - | AP42: Outros | AQ42: 38.545521 | AR42: 34.792084 | AS42: 35.790121 | AT42: 24.896484 | AU42: 31.492986 | AV42: 33.1034392
AC43: 5 | AD43: º | AE43: 52 | AF43: Algodão (NC 5201-5203) | AG43: 5.4329828 | AH43: 0.02506214188 | AP43: Total | AQ43: 295.396528 | AR43: 230.839524 | AS43: 171.743618 | AT43: 168.196067 | AU43: 217.726594 | AV43: 216.7804662
AC44: 6 | AD44: º | AE44: 07 | AF44: Produtos hortícolas | AG44: 4.036009 | AH44: 0.01861795516
AC45: 7 | AD45: º | AE45: 22 | AF45: Bebidas, líquidos alcoólicos e vinagres | AG45: 3.3689166 | AH45: 0.01554068343
AC46: 8 | AD46: º | AE46: 24 | AF46: Tabaco | AG46: 3.1315564 | AH46: 0.01444574991
AC47: 9 | AD47: º | AE47: 21 | AF47: Preparações alimentícias diversas | AG47: 2.6475844 | AH47: 0.01221320558
AC48: 10 | AD48: º | AE48: 15 | AF48: Gorduras e óleos animais ou vegetais | AG48: 1.9558384 | AH48: 0.00902220774 | AI48: 0.9687561296
AE49: - | AF49: Outros | AG49: 6.7730608 | AH49: 0.03124387044
AE50: Total | AG50: 216.7804662 | AH50: 1
AC62: DESAGREGAÇÃO A 4 DÍGITOS | AN62: DESAGREGAÇÃO A 4 DÍGITOS
AC64: P | AE64: Cód.NC | AF64: Descritivo | AG64: Média export quinquénio | AH64: % do total | AI64: % acumulada | AN64: P | AO64: NC | AP64: Exportações | AQ64: 2018 | AR64: 2019 | AS64: 2020 | AT64: 2021 | AU64: 2022 | AV64: média quinquénio
AC65: 1 | AD65: º | AE65: 2204 | AF65: Vinhos de uvas frescas | AG65: 94.5734634 | AH65: 0.5150583972 | AN65: 1º | AO65: 2204 | AP65: Vinhos de uvas frescas | AQ65: 80.842429 | AR65: 89.48035 | AS65: 92.250347 | AT65: 104.305176 | AU65: 105.989015 | AV65: 94.5734634
AC66: 2 | AD66: º | AE66: 1905 | AF66: Produtos de padaria, pastelaria, etc. | AG66: 14.2362836 | AH66: 0.07753250383 | AN66: 2º | AO66: 1905 | AP66: Produtos de padaria, pastelaria, etc. | AQ66: 11.936753 | AR66: 13.098738 | AS66: 13.221277 | AT66: 13.933025 | AU66: 18.991625 | AV66: 14.2362836
AC67: 3 | AD67: º | AE67: 2005 | AF67: Produtos hortícolas preparados, não congelados | AG67: 13.3467126 | AH67: 0.07268779373 | AI67: 0.6652786948 | AN67: 3º | AO67: 2005 | AP67: Produtos hortícolas preparados, não congelados | AQ67: 10.662627 | AR67: 16.526739 | AS67: 11.136606 | AT67: 11.120915 | AU67: 17.286676 | AV67: 13.3467126
AC68: 4 | AD68: º | AE68: 0504 | AF68: Tripas de animais (excepto peixes) | AG68: 12.4386736 | AH68: 0.06774250469 | AN68: - | AO68: - | AP68: Outros | AQ68: 37.818746 | AR68: 54.384063 | AS68: 53.619414 | AT68: 76.592033 | AU68: 84.888307 | AV68: 61.4605126
AC69: 5 | AD69: º | AE69: 1509 | AF69: Azeite (processos mecânicos ou físicos) | AG69: 11.7880732 | AH69: 0.06419925707 | AP69: Total | AQ69: 141.260555 | AR69: 173.48989 | AS69: 170.227644 | AT69: 205.951149 | AU69: 227.155623 | AV69: 183.6169722
AC70: 6 | AD70: º | AE70: 2009 | AF70: Sumos de frutas | AG70: 8.331045 | AH70: 0.04537186786
AC71: 7 | AD71: º | AE71: 0406 | AF71: Queijos e requeijão | AG71: 3.1732488 | AH71: 0.01728189264
AC72: 8 | AD72: º | AE72: 5102 | AF72: Pêlos finos ou grosseiros | AG72: 2.5015706 | AH72: 0.0136238528
AC73: 9 | AD73: º | AE73: 0710 | AF73: Produtos hortícolas congelados | AG73: 2.2178364 | AH73: 0.01207860239
AC74: 10 | AD74: º | AE74: 2202 | AF74: Águas com açúcar ou outros produtos; outras bebidas | AG74: 1.9955764 | AH74: 0.01086814784 | AI74: 0.89644482
AE75: - | AF75: Outros | AG75: 19.0144886 | AH75: 0.10355518
AE76: Total | AG76: 183.6169722 | AH76: 1
AC89: DESAGREGAÇÃO A 4 DÍGITOS | AN89: DESAGREGAÇÃO A 4 DÍGITOS
G91: média 2018-2022 em milhões de euros | I91: Cód. NC | J91: Descritivo | K91: Export | L91: Import | M91: Saldo | AC91: P | AE91: Cód.NC | AF91: Descritivo | AG91: Média import quinquénio | AH91: % do total | AI91: % acumulada | AN91: P | AO91: NC | AP91: Importações | AQ91: 2018 | AR91: 2019 | AS91: 2020 | AT91: 2021 | AU91: 2022 | AV91: média quinquénio
I92: 2204 | J92: Vinhos de uvas frescas | K92: 94.5734634 | L92: 0.189472 | M92: 94.3839914 | AC92: 1 | AD92: º | AE92: 1201 | AF92: Soja, mesmo triturada | AG92: 144.6418346 | AH92: 0.6672272513 | AN92: 1º | AO92: 1201 | AP92: Soja, mesmo triturada | AQ92: 189.021186 | AR92: 164.043805 | AS92: 103.49008 | AT92: 118.328024 | AU92: 148.326078 | AV92: 144.6418346
I93: 1905 | J93: Produtos de padaria, pastelaria, etc. | K93: 14.2362836 | L93: 0.1785036 | M93: 14.05778 | AC93: 2 | AD93: º | AE93: 1005 | AF93: Milho | AG93: 9.0556858 | AH93: 0.04177353227 | AN93: 2º | AO93: 1005 | AP93: Milho | AQ93: 36.385264 | AR93: 0.088027 | AS93: 0.020034 | AT93: 0.021069 | AU93: 8.764035 | AV93: 9.0556858
I94: 2005 | J94: Produtos hortícolas preparados, não congelados | K94: 13.3467126 | L94: 0.0279776 | M94: 13.318735 | AC94: 3 | AD94: º | AE94: 2309 | AF94: Preparações p/ alimentação animal | AG94: 8.487912 | AH94: 0.03915441344 | AI94: 0.748155197 | AN94: 3º | AO94: 2309 | AP94: Preparações p/ alimentação animal | AQ94: 10.524049 | AR94: 8.625084 | AS94: 7.716715 | AT94: 8.119546 | AU94: 7.454166 | AV94: 8.487912
I95: 0504 | J95: Tripas de animais (excepto peixes) | K95: 12.4386736 | L95: 0.0681558 | M95: 12.3705178 | AC95: 4 | AD95: º | AE95: 1001 | AF95: Trigo e mistura trigo/centeio | AG95: 6.678593 | AH95: 0.03080809409 | AN95: - | AO95: - | AP95: Outros | AQ95: 59.466029 | AR95: 58.082608 | AS95: 60.516789 | AT95: 41.727428 | AU95: 53.182315 | AV95: 54.5950338
I96: 1509 | J96: Azeite (processos mecânicos ou físicos) | K96: 11.7880732 | L96: 0.0137306 | M96: 11.7743426 | AC96: 5 | AD96: º | AE96: 2303 | AF96: Resíduos da fabricação de amido, etc. | AG96: 6.3781446 | AH96: 0.02942213711 | AP96: Total | AQ96: 295.396528 | AR96: 230.839524 | AS96: 171.743618 | AT96: 168.196067 | AU96: 217.726594 | AV96: 216.7804662
I97: 2009 | J97: Sumos de frutas | K97: 8.331045 | L97: 0.0178898 | M97: 8.3131552 | AC97: 6 | AD97: º | AE97: 0802 | AF97: Frutas de casca rija | AG97: 5.70531 | AH97: 0.02631837684
I98: 0406 | J98: Queijos e requeijão | K98: 3.1732488 | L98: 2e-07 | M98: 3.1732486 | AC98: 7 | AD98: º | AE98: 5201 | AF98: Algodão não cardado nem penteado | AG98: 5.3634208 | AH98: 0.02474125503
I99: 5102 | J99: Pêlos finos ou grosseiros | K99: 2.5015706 | L99: 0.0039264 | M99: 2.4976442 | AC99: 8 | AD99: º | AE99: 0713 | AF99: Legumes de vagem, secos, em grão | AG99: 3.948616 | AH99: 0.0182148146
I100: 0710 | J100: Produtos hortícolas congelados | K100: 2.2178364 | L100: 0.0045626 | M100: 2.2132738 | AC100: 9 | AD100: º | AE100: 2401 | AF100: Tabaco não manufaturado | AG100: 3.129191 | AH100: 0.01443483841
I101: 0901 | J101: Café | K101: 1.8666202 | L101: 0.0626188 | M101: 1.8040014 | AC101: 10 | AD101: º | AE101: 1202 | AF101: Amendoins não torrados | AG101: 3.106128 | AH101: 0.01432844967 | AI101: 0.9064231628
I102: - | J102: Outros | K102: 18.1987548 | L102: 19.718793 | M102: -1.5200382 | AE102: - | AF102: Outros | AG102: 20.2856304 | AH102: 0.09357683723
I103: 1202 | J103: Amendoins não torrados | K103: 0 | L103: 3.106128 | M103: -3.106128 | AE103: Total | AG103: 216.7804662 | AH103: 1
I104: 2401 | J104: Tabaco não manufaturado | K104: 4.8e-06 | L104: 3.129191 | M104: -3.1291862
I105: 0713 | J105: Legumes de vagem, secos, em grão | K105: 0.080366 | L105: 3.948616 | M105: -3.86825
I106: 0802 | J106: Frutas de casca rija | K106: 0.682727 | L106: 5.70531 | M106: -5.022583
I107: 5201 | J107: Algodão não cardado nem penteado | K107: 0.000526 | L107: 5.3634208 | M107: -5.3628948
I108: 2303 | J108: Resíduos da fabricação de amido, etc. | K108: 0 | L108: 6.3781446 | M108: -6.3781446
I109: 1001 | J109: Trigo e mistura trigo/centeio | K109: 0 | L109: 6.678593 | M109: -6.678593
I110: 2309 | J110: Preparações p/ alimentação animal | K110: 0.1809008 | L110: 8.487912 | M110: -8.3070112
I111: 1005 | J111: Milho | K111: 0.0001572 | L111: 9.0556858 | M111: -9.0555286
I112: 1201 | J112: Soja, mesmo triturada | K112: 8.2e-06 | L112: 144.6418346 | M112: -144.6418264
I113: Total | K113: 183.6169722 | L113: 216.7804662 | M113: -33.163494
A116: Fonte: GPP a partir de dados INE/Comércio Internacional (2021 provisórios; 2022 preliminares) | Y116: 2023-05-22T12:29:35.360

Sheet 4A
A1: Evolução da balança comercial Portugal-EUA 2018-2022 por produto em euros (NC 2 dígitos)
A3: =+aux!A31 -> Evolução da balança comercial Portugal-EUA para Bebidas, líquidos alcoólicos e vinagres
A5: Selecione o produto:
Q7: Para obter uma maior desagregação deste produto, clique no botão respetivo:
A20: =+aux!A43 -> Evolução da balança comercial Portugal-EUA para Sementes e frutos oleaginosos
A22: Selecione o produto:
A38: Fonte: GPP a partir de dados INE/Comércio Internacional (2021 provisórios; 2022 preliminares) | N38: 2023-05-22T12:29:35.360

Sheet 5.2
A1: Trocas comerciais Portugal-EUA 2018-2022 em milhares de euros (NC 2 dígitos) | C1: Produtos agrícolas e agroalimentares, do mar e da floresta
A2: Cód. NC | B2: Descritivo | C2: Importações | K2: Exportações | S2: Saldo quinquénio (exp-imp) | T2: Evolução das importações | U2: =+"Variação das Importações " & INDEX(K3:N3,1,aux!AL1) & "-"& '5.2'!O3 &"" -> Variação das Importações 2018-2022 | Z2: Evolução das exportações | AA2: ="Variação das Exportações " & INDEX(K3:N3,1,aux!AL1) & "-"& '5.2'!O3 &"" -> Variação das Exportações 2018-2022
C3: 2018 | D3: 2019 | E3: 2020 | F3: 2021 | G3: 2022 | H3: média quinquénio | I3: % Subtot | J3: % Total | K3: 2018 | L3: 2019 | M3: 2020 | N3: 2021 | O3: 2022 | P3: média quinquénio | Q3: % Subtot | R3: % Total | U3: variação total em valor | V3: % no subtotal de variação | W3: % no total de variação | X3: taxa de variação média anual | Y3: taxa de variação total | AA3: variação total em valor | AB3: % no subtotal de variação | AC3: % no total de variação | AD3: taxa de variação média anual | AE3: taxa de variação total
A4: 01 | B4: Animais vivos | C4: 907.233 | D4: 1406.031 | E4: 946.732 | F4: 678.408 | G4: 547.865 | H4: 897.2538 | I4: 0.004138997465 | J4: 0.003187722045 | K4: 63.165 | L4: 24.337 | M4: 41.076 | N4: 71.499 | O4: 71.137 | P4: 54.2428 | Q4: 0.0002954127788 | R4: 9.789231024e-05 | S4: -843.011 | U4: =G4-INDEX($C4:$G4,1,aux!$AL$1) -> -359.368 | V4: =IF($U$37<>0,U4/$U$37, "n.d.") -> 0.004626861148 | W4: =IF($U$53<>0,U4/$U$53, "n.d.") -> 0.004667224835 | X4: =+IF(INDEX($C4:$G4,1,aux!$AL$1)>0,(G4/INDEX($C4:$G4,1,aux!$AL$1))^(1/($G$3-INDEX($C$3:$G$3,1,aux!$AL$1)))-1,"n.d.") -> -0.1184667874 | Y4: =IF(INDEX($C4:$G4,1,aux!$AL$1)>0,(G4-INDEX($C4:$G4,1,aux!$AL$1))/INDEX($C4:$G4,1,aux!$AL$1),"n.d.") -> -0.3961143389 | AA4: =O4-INDEX($K4:$O4,1,aux!$AL$1) -> 7.972 | AB4: =IF($AA$37<>0,AA4/$AA$37, "n.d.") -> 9.281091669e-05 | AC4: =IF($AA$53<>0,AA4/$AA$53, "n.d.") -> 4.089376368e-05 | AD4: =+IF(INDEX($K4:$O4,1,aux!$AL$1)>0,(O4/INDEX($K4:$O4,1,aux!$AL$1))^(1/($O$3-INDEX($K$3:$O$3,1,aux!$AL$1)))-1,"n.d.") -> 0.03016018673 | AE4: =IF(INDEX($K4:$O4,1,aux!$AL$1)>0,(O4-INDEX($K4:$O4,1,aux!$AL$1))/INDEX($K4:$O4,1,aux!$AL$1),"n.d.") -> 0.1262091348
A5: 02 | B5: Carnes e miudezas | C5: 0 | D5: 0 | E5: 0 | F5: 0 | G5: 0 | H5: 0 | I5: 0 | J5: 0 | K5: 285.433 | L5: 163.686 | M5: 412.036 | N5: 558.953 | O5: 425.853 | P5: 369.1922 | Q5: 0.002010664894 | R5: 0.0006662834032 | S5: 369.1922 | U5: =G5-INDEX($C5:$G5,1,aux!$AL$1) -> 0 | V5: 0 | W5: 0 | X5: =+IF(INDEX($C5:$G5,1,aux!$AL$1)>0,(G5/INDEX($C5:$G5,1,aux!$AL$1))^(1/($G$3-INDEX($C$3:$G$3,1,aux!$AL$1)))-1,"n.d.") -> n.d. | Y5: =IF(INDEX($C5:$G5,1,aux!$AL$1)>0,(G5-INDEX($C5:$G5,1,aux!$AL$1))/INDEX($C5:$G5,1,aux!$AL$1),"n.d.") -> n.d. | AA5: =O5-INDEX($K5:$O5,1,aux!$AL$1) -> 140.42 | AB5: 0.001634785364 | AC5: 0.000720308868 | AD5: =+IF(INDEX($K5:$O5,1,aux!$AL$1)>0,(O5/INDEX($K5:$O5,1,aux!$AL$1))^(1/($O$3-INDEX($K$3:$O$3,1,aux!$AL$1)))-1,"n.d.") -> 0.1051949256 | AE5: =IF(INDEX($K5:$O5,1,aux!$AL$1)>0,(O5-INDEX($K5:$O5,1,aux!$AL$1))/INDEX($K5:$O5,1,aux!$AL$1),"n.d.") -> 0.491954329
A6: 04 | B6: Leite e laticínios; ovos; mel, etc. | C6: 0.073 | D6: 0 | E6: 0.006 | F6: 3.799 | G6: 128.918 | H6: 26.5592 | I6: 0.0001225165739 | J6: 9.435830456e-05 | K6: 2987.093 | L6: 3694.789 | M6: 3707.626 | N6: 3541.497 | O6: 4149.738 | P6: 3616.1486 | Q6: 0.01969397794 | R6: 0.006526085317 | S6: 3589.5894 | U6: =G6-INDEX($C6:$G6,1,aux!$AL$1) -> 128.845 | V6: -0.001658878711 | W6: -0.001673350393 | X6: =+IF(INDEX($C6:$G6,1,aux!$AL$1)>0,(G6/INDEX($C6:$G6,1,aux!$AL$1))^(1/($G$3-INDEX($C$3:$G$3,1,aux!$AL$1)))-1,"n.d.") -> 5.482576863 | Y6: =IF(INDEX($C6:$G6,1,aux!$AL$1)>0,(G6-INDEX($C6:$G6,1,aux!$AL$1))/INDEX($C6:$G6,1,aux!$AL$1),"n.d.") -> 1765 | AA6: =O6-INDEX($K6:$O6,1,aux!$AL$1) -> 1162.645 | AB6: 0.01353564328 | AC6: 0.005963990199 | AD6: =+IF(INDEX($K6:$O6,1,aux!$AL$1)>0,(O6/INDEX($K6:$O6,1,aux!$AL$1))^(1/($O$3-INDEX($K$3:$O$3,1,aux!$AL$1)))-1,"n.d.") -> 0.08565786617 | AE6: =IF(INDEX($K6:$O6,1,aux!$AL$1)>0,(O6-INDEX($K6:$O6,1,aux!$AL$1))/INDEX($K6:$O6,1,aux!$AL$1),"n.d.") -> 0.3892229
A7: 05a | B7: Outros produtos de origem animal (exc. NC 0508, 051191) (a) | C7: 901.443 | D7: 675.149 | E7: 689.137 | F7: 891.332 | G7: 769.6 | H7: 785.3322 | I7: 0.003622707404 | J7: 0.00279009213 | K7: 5808.12 | L7: 14003.334 | M7: 13015.329 | N7: 14022.971 | O7: 15406.172 | P7: 12451.1852 | Q7: 0.06781064436 | R7: 0.02247072947 | S7: 11665.853 | U7: =G7-INDEX($C7:$G7,1,aux!$AL$1) -> -131.843 | V7: 0.001697477946 | W7: 0.001712286358 | X7: =+IF(INDEX($C7:$G7,1,aux!$AL$1)>0,(G7/INDEX($C7:$G7,1,aux!$AL$1))^(1/($G$3-INDEX($C$3:$G$3,1,aux!$AL$1)))-1,"n.d.") -> -0.03876030471 | Y7: =IF(INDEX($C7:$G7,1,aux!$AL$1)>0,(G7-INDEX($C7:$G7,1,aux!$AL$1))/INDEX($C7:$G7,1,aux!$AL$1),"n.d.") -> -0.1462577223 | AA7: =O7-INDEX($K7:$O7,1,aux!$AL$1) -> 9598.052 | AB7: 0.1117415962 | AC7: 0.04923488086 | AD7: =+IF(INDEX($K7:$O7,1,aux!$AL$1)>0,(O7/INDEX($K7:$O7,1,aux!$AL$1))^(1/($O$3-INDEX($K$3:$O$3,1,aux!$AL$1)))-1,"n.d.") -> 0.276188393 | AE7: =IF(INDEX($K7:$O7,1,aux!$AL$1)>0,(O7-INDEX($K7:$O7,1,aux!$AL$1))/INDEX($K7:$O7,1,aux!$AL$1),"n.d.") -> 1.652523019
A8: 06 | B8: Plantas vivas e produtos de floricultura | C8: 12.236 | D8: 20.552 | E8: 16.49 | F8: 16.625 | G8: 16.763 | H8: 16.5332 | I8: 7.62670193e-05 | J8: 5.873839276e-05 | K8: 23.512 | L8: 70.973 | M8: 51.772 | N8: 145.737 | O8: 71.965 | P8: 72.7918 | Q8: 0.0003964328522 | R8: 0.0001313678031 | S8: 56.2586 | U8: =G8-INDEX($C8:$G8,1,aux!$AL$1) -> 4.527 | V8: -5.828510167e-05 | W8: -5.879356768e-05 | X8: =+IF(INDEX($C8:$G8,1,aux!$AL$1)>0,(G8/INDEX($C8:$G8,1,aux!$AL$1))^(1/($G$3-INDEX($C$3:$G$3,1,aux!$AL$1)))-1,"n.d.") -> 0.08187745114 | Y8: =IF(INDEX($C8:$G8,1,aux!$AL$1)>0,(G8-INDEX($C8:$G8,1,aux!$AL$1))/INDEX($C8:$G8,1,aux!$AL$1),"n.d.") -> 0.3699738477 | AA8: =O8-INDEX($K8:$O8,1,aux!$AL$1) -> 48.453 | AB8: 0.0005640952517 | AC8: 0.0002485481098 | AD8: =+IF(INDEX($K8:$O8,1,aux!$AL$1)>0,(O8/INDEX($K8:$O8,1,aux!$AL$1))^(1/($O$3-INDEX($K$3:$O$3,1,aux!$AL$1)))-1,"n.d.") -> 0.3226896011 | AE8: =IF(INDEX($K8:$O8,1,aux!$AL$1)>0,(O8-INDEX($K8:$O8,1,aux!$AL$1))/INDEX($K8:$O8,1,aux!$AL$1),"n.d.") -> 2.060777475
A9: 07 | B9: Produtos hortícolas | C9: 3410.196 | D9: 9838.962 | E9: 5134.285 | F9: 1124.391 | G9: 672.211 | H9: 4036.009 | I9: 0.01861795516 | J9: 0.0143389472 | K9: 2874.28 | L9: 2881.081 | M9: 2880.368 | N9: 1538.758 | O9: 2554.918 | P9: 2545.881 | Q9: 0.01386517254 | R9: 0.004594566886 | S9: -1490.128 | U9: =G9-INDEX($C9:$G9,1,aux!$AL$1) -> -2737.985 | V9: 0.03525154277 | W9: 0.03555906923 | X9: =+IF(INDEX($C9:$G9,1,aux!$AL$1)>0,(G9/INDEX($C9:$G9,1,aux!$AL$1))^(1/($G$3-INDEX($C$3:$G$3,1,aux!$AL$1)))-1,"n.d.") -> -0.3336819646 | Y9: =IF(INDEX($C9:$G9,1,aux!$AL$1)>0,(G9-INDEX($C9:$G9,1,aux!$AL$1))/INDEX($C9:$G9,1,aux!$AL$1),"n.d.") -> -0.8028820044 | AA9: =O9-INDEX($K9:$O9,1,aux!$AL$1) -> -319.362 | AB9: -0.003718048165 | AC9: -0.00163822305 | AD9: =+IF(INDEX($K9:$O9,1,aux!$AL$1)>0,(O9/INDEX($K9:$O9,1,aux!$AL$1))^(1/($O$3-INDEX($K$3:$O$3,1,aux!$AL$1)))-1,"n.d.") -> -0.02901622434 | AE9: =IF(INDEX($K9:$O9,1,aux!$AL$1)>0,(O9-INDEX($K9:$O9,1,aux!$AL$1))/INDEX($K9:$O9,1,aux!$AL$1),"n.d.") -> -0.1111102607
A10: 08 | B10: Frutas | C10: 8696.972 | D10: 4960.344 | E10: 7067.813 | F10: 3490.089 | G10: 4572.236 | H10: 5757.4908 | I10: 0.02655908487 | J10: 0.02045494858 | K10: 709.765 | L10: 881.9 | M10: 1022.56 | N10: 1436.752 | O10: 651.065 | P10: 940.4084 | Q10: 0.005121576664 | R10: 0.001697160745 | S10: -4817.0824 | U10: =G10-INDEX($C10:$G10,1,aux!$AL$1) -> -4124.736 | V10: 0.05310595474 | W10: 0.05356923905 | X10: =+IF(INDEX($C10:$G10,1,aux!$AL$1)>0,(G10/INDEX($C10:$G10,1,aux!$AL$1))^(1/($G$3-INDEX($C$3:$G$3,1,aux!$AL$1)))-1,"n.d.") -> -0.1484892371 | Y10: =IF(INDEX($C10:$G10,1,aux!$AL$1)>0,(G10-INDEX($C10:$G10,1,aux!$AL$1))/INDEX($C10:$G10,1,aux!$AL$1),"n.d.") -> -0.4742726549 | AA10: =O10-INDEX($K10:$O10,1,aux!$AL$1) -> -58.7 | AB10: -0.0006833919731 | AC10: -0.0003011118826 | AD10: =+IF(INDEX($K10:$O10,1,aux!$AL$1)>0,(O10/INDEX($K10:$O10,1,aux!$AL$1))^(1/($O$3-INDEX($K$3:$O$3,1,aux!$AL$1)))-1,"n.d.") -> -0.02134990546 | AE10: =IF(INDEX($K10:$O10,1,aux!$AL$1)>0,(O10-INDEX($K10:$O10,1,aux!$AL$1))/INDEX($K10:$O10,1,aux!$AL$1),"n.d.") -> -0.08270343001
A11: 09 | B11: Café, chá, mate e especiarias | C11: 107.671 | D11: 106.393 | E11: 93.85 | F11: 168.716 | G11: 141.366 | H11: 123.5992 | I11: 0.0005701583827 | J11: 0.0004391175546 | K11: 2170.282 | L11: 2281.736 | M11: 2259.789 | N11: 2348.51 | O11: 2312.301 | P11: 2274.5236 | Q11: 0.01238732767 | R11: 0.00410484654 | S11: 2150.9244 | U11: =G11-INDEX($C11:$G11,1,aux!$AL$1) -> 33.695 | V11: -0.0004338229514 | W11: -0.0004376075244 | X11: =+IF(INDEX($C11:$G11,1,aux!$AL$1)>0,(G11/INDEX($C11:$G11,1,aux!$AL$1))^(1/($G$3-INDEX($C$3:$G$3,1,aux!$AL$1)))-1,"n.d.") -> 0.07043809325 | Y11: =IF(INDEX($C11:$G11,1,aux!$AL$1)>0,(G11-INDEX($C11:$G11,1,aux!$AL$1))/INDEX($C11:$G11,1,aux!$AL$1),"n.d.") -> 0.3129440611 | AA11: =O11-INDEX($K11:$O11,1,aux!$AL$1) -> 142.019 | AB11: 0.001653401101 | AC11: 0.0007285112172 | AD11: =+IF(INDEX($K11:$O11,1,aux!$AL$1)>0,(O11/INDEX($K11:$O11,1,aux!$AL$1))^(1/($O$3-INDEX($K$3:$O$3,1,aux!$AL$1)))-1,"n.d.") -> 0.01597272661 | AE11: =IF(INDEX($K11:$O11,1,aux!$AL$1)>0,(O11-INDEX($K11:$O11,1,aux!$AL$1))/INDEX($K11:$O11,1,aux!$AL$1),"n.d.") -> 0.06543803985
A12: 10 | B12: Cereais | C12: 38847.78 | D12: 9321.157 | E12: 13919.156 | F12: 4968.311 | G12: 18006.341 | H12: 17012.549 | I12: 0.07847823791 | J12: 0.06044140185 | K12: 11.478 | L12: 40.152 | M12: 178.747 | N12: 170.089 | O12: 400.982 | P12: 160.2896 | Q12: 0.0008729563399 | R12: 0.0002892756136 | S12: -16852.2594 | U12: =G12-INDEX($C12:$G12,1,aux!$AL$1) -> -20841.439 | V12: 0.2683334197 | W12: 0.2706742996 | X12: =+IF(INDEX($C12:$G12,1,aux!$AL$1)>0,(G12/INDEX($C12:$G12,1,aux!$AL$1))^(1/($G$3-INDEX($C$3:$G$3,1,aux!$AL$1)))-1,"n.d.") -> -0.1748843657 | Y12: =IF(INDEX($C12:$G12,1,aux!$AL$1)>0,(G12-INDEX($C12:$G12,1,aux!$AL$1))/INDEX($C12:$G12,1,aux!$AL$1),"n.d.") -> -0.5364898329 | AA12: =O12-INDEX($K12:$O12,1,aux!$AL$1) -> 389.504 | AB12: 0.004534649184 | AC12: 0.001998028666 | AD12: =+IF(INDEX($K12:$O12,1,aux!$AL$1)>0,(O12/INDEX($K12:$O12,1,aux!$AL$1))^(1/($O$3-INDEX($K$3:$O$3,1,aux!$AL$1)))-1,"n.d.") -> 1.431166285 | AE12: =IF(INDEX($K12:$O12,1,aux!$AL$1)>0,(O12-INDEX($K12:$O12,1,aux!$AL$1))/INDEX($K12:$O12,1,aux!$AL$1),"n.d.") -> 33.93483185
A13: 11 | B13: Produtos da indústria de moagem e outros | C13: 566.983 | D13: 230.19 | E13: 189.529 | F13: 104.449 | G13: 136.122 | H13: 245.4546 | I13: 0.001132272683 | J13: 0.0008720398168 | K13: 71.257 | L13: 61.549 | M13: 79.296 | N13: 72.962 | O13: 81.061 | P13: 73.225 | Q13: 0.0003987921112 | R13: 0.0001321496017 | S13: -172.2296 | U13: =G13-INDEX($C13:$G13,1,aux!$AL$1) -> -430.861 | V13: 0.005547333155 | W13: 0.005595726831 | X13: =+IF(INDEX($C13:$G13,1,aux!$AL$1)>0,(G13/INDEX($C13:$G13,1,aux!$AL$1))^(1/($G$3-INDEX($C$3:$G$3,1,aux!$AL$1)))-1,"n.d.") -> -0.3000136503 | Y13: =IF(INDEX($C13:$G13,1,aux!$AL$1)>0,(G13-INDEX($C13:$G13,1,aux!$AL$1))/INDEX($C13:$G13,1,aux!$AL$1),"n.d.") -> -0.7599187277 | AA13: =O13-INDEX($K13:$O13,1,aux!$AL$1) -> 9.804 | AB13: 0.0001141392658 | AC13: 5.029132703e-05 | AD13: =+IF(INDEX($K13:$O13,1,aux!$AL$1)>0,(O13/INDEX($K13:$O13,1,aux!$AL$1))^(1/($O$3-INDEX($K$3:$O$3,1,aux!$AL$1)))-1,"n.d.") -> 0.03275214517 | AE13: =IF(INDEX($K13:$O13,1,aux!$AL$1)>0,(O13-INDEX($K13:$O13,1,aux!$AL$1))/INDEX($K13:$O13,1,aux!$AL$1),"n.d.") -> 0.1375864827
A14: 12 | B14: Sementes e frutos oleaginosos | C14: 194493.066 | D14: 169145.327 | E14: 108246.238 | F14: 122161.548 | G14: 153928.761 | H14: 149594.988 | I14: 0.6900759585 | J14: 0.531474195 | K14: 121.084 | L14: 85.671 | M14: 253.464 | N14: 509.331 | O14: 426.212 | P14: 279.1524 | Q14: 0.00152029737 | R14: 0.0005037880298 | S14: -149315.8356 | U14: =G14-INDEX($C14:$G14,1,aux!$AL$1) -> -40564.305 | V14: 0.5222652178 | W14: 0.5268213412 | X14: =+IF(INDEX($C14:$G14,1,aux!$AL$1)>0,(G14/INDEX($C14:$G14,1,aux!$AL$1))^(1/($G$3-INDEX($C$3:$G$3,1,aux!$AL$1)))-1,"n.d.") -> -0.05679973791 | Y14: =IF(INDEX($C14:$G14,1,aux!$AL$1)>0,(G14-INDEX($C14:$G14,1,aux!$AL$1))/INDEX($C14:$G14,1,aux!$AL$1),"n.d.") -> -0.2085642734 | AA14: =O14-INDEX($K14:$O14,1,aux!$AL$1) -> 305.128 | AB14: 0.003552334344 | AC14: 0.001565207266 | AD14: =+IF(INDEX($K14:$O14,1,aux!$AL$1)>0,(O14/INDEX($K14:$O14,1,aux!$AL$1))^(1/($O$3-INDEX($K$3:$O$3,1,aux!$AL$1)))-1,"n.d.") -> 0.3697292449 | AE14: =IF(INDEX($K14:$O14,1,aux!$AL$1)>0,(O14-INDEX($K14:$O14,1,aux!$AL$1))/INDEX($K14:$O14,1,aux!$AL$1),"n.d.") -> 2.519969608
A15: 13a | B15: Sucos e extratos vegetais (exc. NC 1301) (a) | C15: 18.441 | D15: 13.77 | E15: 3225.949 | F15: 17.485 | G15: 20.5 | H15: 659.229 | I15: 0.003040998165 | J15: 0.00234207848 | K15: 0.72 | L15: 0.037 | M15: 6.491 | N15: 4.965 | O15: 0.028 | P15: 2.4482 | Q15: 1.333319012e-05 | R15: 4.418281393e-06 | S15: -656.7808 | U15: =G15-INDEX($C15:$G15,1,aux!$AL$1) -> 2.059 | V15: -2.650961439e-05 | W15: -2.674087825e-05 | X15: =+IF(INDEX($C15:$G15,1,aux!$AL$1)>0,(G15/INDEX($C15:$G15,1,aux!$AL$1))^(1/($G$3-INDEX($C$3:$G$3,1,aux!$AL$1)))-1,"n.d.") -> 0.02681534038 | Y15: =IF(INDEX($C15:$G15,1,aux!$AL$1)>0,(G15-INDEX($C15:$G15,1,aux!$AL$1))/INDEX($C15:$G15,1,aux!$AL$1),"n.d.") -> 0.1116533811 | AA15: =O15-INDEX($K15:$O15,1,aux!$AL$1) -> -0.692 | AB15: -8.056341489e-06 | AC15: -3.549734629e-06 | AD15: =+IF(INDEX($K15:$O15,1,aux!$AL$1)>0,(O15/INDEX($K15:$O15,1,aux!$AL$1))^(1/($O$3-INDEX($K$3:$O$3,1,aux!$AL$1)))-1,"n.d.") -> -0.5559249394 | AE15: =IF(INDEX($K15:$O15,1,aux!$AL$1)>0,(O15-INDEX($K15:$O15,1,aux!$AL$1))/INDEX($K15:$O15,1,aux!$AL$1),"n.d.") -> -0.9611111111
A16: 14 | B16: Matérias para entrançar e outros | C16: 0 | D16: 0.023 | E16: 0 | F16: 0 | G16: 0 | H16: 0.0046 | I16: 2.121962408e-08 | J16: 1.634266849e-08 | K16: 0 | L16: 4.5 | M16: 0 | N16: 0.203 | O16: 0.242 | P16: 0.989 | Q16: 5.386212332e-06 | R16: 1.7848543e-06 | S16: 0.9844 | U16: =G16-INDEX($C16:$G16,1,aux!$AL$1) -> 0 | V16: 0 | W16: 0 | X16: =+IF(INDEX($C16:$G16,1,aux!$AL$1)>0,(G16/INDEX($C16:$G16,1,aux!$AL$1))^(1/($G$3-INDEX($C$3:$G$3,1,aux!$AL$1)))-1,"n.d.") -> n.d. | Y16: =IF(INDEX($C16:$G16,1,aux!$AL$1)>0,(G16-INDEX($C16:$G16,1,aux!$AL$1))/INDEX($C16:$G16,1,aux!$AL$1),"n.d.") -> n.d. | AA16: =O16-INDEX($K16:$O16,1,aux!$AL$1) -> 0.242 | AB16: 2.817391099e-06 | AC16: 1.241381185e-06 | AD16: =+IF(INDEX($K16:$O16,1,aux!$AL$1)>0,(O16/INDEX($K16:$O16,1,aux!$AL$1))^(1/($O$3-INDEX($K$3:$O$3,1,aux!$AL$1)))-1,"n.d.") -> n.d. | AE16: =IF(INDEX($K16:$O16,1,aux!$AL$1)>0,(O16-INDEX($K16:$O16,1,aux!$AL$1))/INDEX($K16:$O16,1,aux!$AL$1),"n.d.") -> n.d.
A17: 15 | B17: Gorduras e óleos animais ou vegetais | C17: 7442.901 | D17: 419.927 | E17: 1317.561 | F17: 193.667 | G17: 405.136 | H17: 1955.8384 | I17: 0.00902220774 | J17: 0.006948612738 | K17: 7934.972 | L17: 11959.424 | M17: 7603.028 | N17: 14368.143 | O17: 24832.69 | P17: 13339.6514 | Q17: 0.07264933759 | R17: 0.02407414981 | S17: 11383.813 | U17: =G17-INDEX($C17:$G17,1,aux!$AL$1) -> -7037.765 | V17: 0.09061118811 | W17: 0.09140165956 | X17: =+IF(INDEX($C17:$G17,1,aux!$AL$1)>0,(G17/INDEX($C17:$G17,1,aux!$AL$1))^(1/($G$3-INDEX($C$3:$G$3,1,aux!$AL$1)))-1,"n.d.") -> -0.5169805174 | Y17: =IF(INDEX($C17:$G17,1,aux!$AL$1)>0,(G17-INDEX($C17:$G17,1,aux!$AL$1))/INDEX($C17:$G17,1,aux!$AL$1),"n.d.") -> -0.9455674609 | AA17: =O17-INDEX($K17:$O17,1,aux!$AL$1) -> 16897.718 | AB17: 0.1967251251 | AC17: 0.08667979008 | AD17: =+IF(INDEX($K17:$O17,1,aux!$AL$1)>0,(O17/INDEX($K17:$O17,1,aux!$AL$1))^(1/($O$3-INDEX($K$3:$O$3,1,aux!$AL$1)))-1,"n.d.") -> 0.3300549754 | AE17: =IF(INDEX($K17:$O17,1,aux!$AL$1)>0,(O17-INDEX($K17:$O17,1,aux!$AL$1))/INDEX($K17:$O17,1,aux!$AL$1),"n.d.") -> 2.129524591
A18: 16a | B18: Preparações de carnes (exc. NC 1604-05) (a) | C18: 0 | D18: 0 | E18: 0 | F18: 0 | G18: 0.08 | H18: 0.016 | I18: 7.380738809e-08 | J18: 5.684406432e-08 | K18: 0.899 | L18: 2.273 | M18: 4.038 | N18: 1.387 | O18: 3.051 | P18: 2.3296 | Q18: 1.268728033e-05 | R18: 4.204243253e-06 | S18: 2.3136 | U18: =G18-INDEX($C18:$G18,1,aux!$AL$1) -> 0.08 | V18: -1.029999588e-06 | W18: -1.038985071e-06 | X18: =+IF(INDEX($C18:$G18,1,aux!$AL$1)>0,(G18/INDEX($C18:$G18,1,aux!$AL$1))^(1/($G$3-INDEX($C$3:$G$3,1,aux!$AL$1)))-1,"n.d.") -> n.d. | Y18: =IF(INDEX($C18:$G18,1,aux!$AL$1)>0,(G18-INDEX($C18:$G18,1,aux!$AL$1))/INDEX($C18:$G18,1,aux!$AL$1),"n.d.") -> n.d. | AA18: =O18-INDEX($K18:$O18,1,aux!$AL$1) -> 2.152 | AB18: 2.505382498e-05 | AC18: 1.103905914e-05 | AD18: =+IF(INDEX($K18:$O18,1,aux!$AL$1)>0,(O18/INDEX($K18:$O18,1,aux!$AL$1))^(1/($O$3-INDEX($K$3:$O$3,1,aux!$AL$1)))-1,"n.d.") -> 0.3572836857 | AE18: =IF(INDEX($K18:$O18,1,aux!$AL$1)>0,(O18-INDEX($K18:$O18,1,aux!$AL$1))/INDEX($K18:$O18,1,aux!$AL$1),"n.d.") -> 2.393770857
A19: 17 | B19: Açúcares e produtos de confeitaria | C19: 181.848 | D19: 164.996 | E19: 203.457 | F19: 234.118 | G19: 286.325 | H19: 214.1488 | I19: 0.0009878602245 | J19: 0.00076081801 | K19: 143.837 | L19: 131.48 | M19: 115.075 | N19: 365.106 | O19: 560.002 | P19: 263.1 | Q19: 0.001432874079 | R19: 0.0004748181662 | S19: 48.9512 | U19: =G19-INDEX($C19:$G19,1,aux!$AL$1) -> 104.477 | V19: -0.001345140837 | W19: -0.00135687554 | X19: =+IF(INDEX($C19:$G19,1,aux!$AL$1)>0,(G19/INDEX($C19:$G19,1,aux!$AL$1))^(1/($G$3-INDEX($C$3:$G$3,1,aux!$AL$1)))-1,"n.d.") -> 0.1201796665 | Y19: =IF(INDEX($C19:$G19,1,aux!$AL$1)>0,(G19-INDEX($C19:$G19,1,aux!$AL$1))/INDEX($C19:$G19,1,aux!$AL$1),"n.d.") -> 0.5745292772 | AA19: =O19-INDEX($K19:$O19,1,aux!$AL$1) -> 416.165 | AB19: 0.004845039531 | AC19: 0.002134790913 | AD19: =+IF(INDEX($K19:$O19,1,aux!$AL$1)>0,(O19/INDEX($K19:$O19,1,aux!$AL$1))^(1/($O$3-INDEX($K$3:$O$3,1,aux!$AL$1)))-1,"n.d.") -> 0.4046875733 | AE19: =IF(INDEX($K19:$O19,1,aux!$AL$1)>0,(O19-INDEX($K19:$O19,1,aux!$AL$1))/INDEX($K19:$O19,1,aux!$AL$1),"n.d.") -> 2.893309788
A20: 18 | B20: Cacau e suas preparações | C20: 288.691 | D20: 345.894 | E20: 293.643 | F20: 674.843 | G20: 940.819 | H20: 508.778 | I20: 0.002346973456 | J20: 0.001807563085 | K20: 432.627 | L20: 330.983 | M20: 461.693 | N20: 457.602 | O20: 723.116 | P20: 481.2042 | Q20: 0.002620695648 | R20: 0.0008684321391 | S20: -27.5738 | U20: =G20-INDEX($C20:$G20,1,aux!$AL$1) -> 652.128 | V20: -0.008396144639 | W20: -0.008469390701 | X20: =+IF(INDEX($C20:$G20,1,aux!$AL$1)>0,(G20/INDEX($C20:$G20,1,aux!$AL$1))^(1/($G$3-INDEX($C$3:$G$3,1,aux!$AL$1)))-1,"n.d.") -> 0.343594473 | Y20: =IF(INDEX($C20:$G20,1,aux!$AL$1)>0,(G20-INDEX($C20:$G20,1,aux!$AL$1))/INDEX($C20:$G20,1,aux!$AL$1),"n.d.") -> 2.25891351 | AA20: =O20-INDEX($K20:$O20,1,aux!$AL$1) -> 290.489 | AB20: 0.003381905466 | AC20: 0.001490113963 | AD20: =+IF(INDEX($K20:$O20,1,aux!$AL$1)>0,(O20/INDEX($K20:$O20,1,aux!$AL$1))^(1/($O$3-INDEX($K$3:$O$3,1,aux!$AL$1)))-1,"n.d.") -> 0.1370343572 | AE20: =IF(INDEX($K20:$O20,1,aux!$AL$1)>0,(O20-INDEX($K20:$O20,1,aux!$AL$1))/INDEX($K20:$O20,1,aux!$AL$1),"n.d.") -> 0.6714537003
A21: 19a | B21: Preparações à base de cereais (exc. NC 19022010) (a) | C21: 860.413 | D21: 960.833 | E21: 868.183 | F21: 829.646 | G21: 828.368 | H21: 869.4886 | I21: 0.004010917659 | J21: 0.003089079119 | K21: 12688.653 | L21: 13853.912 | M21: 14004.053 | N21: 14692.17 | O21: 19912.409 | P21: 15030.2394 | Q21: 0.08185648211 | R21: 0.02712516423 | S21: 14160.7508 | U21: =G21-INDEX($C21:$G21,1,aux!$AL$1) -> -32.045 | V21: 0.0004125792099 | W21: 0.0004161784573 | X21: =+IF(INDEX($C21:$G21,1,aux!$AL$1)>0,(G21/INDEX($C21:$G21,1,aux!$AL$1))^(1/($G$3-INDEX($C$3:$G$3,1,aux!$AL$1)))-1,"n.d.") -> -0.009443875458 | Y21: =IF(INDEX($C21:$G21,1,aux!$AL$1)>0,(G21-INDEX($C21:$G21,1,aux!$AL$1))/INDEX($C21:$G21,1,aux!$AL$1),"n.d.") -> -0.03724374225 | AA21: =O21-INDEX($K21:$O21,1,aux!$AL$1) -> 7223.756 | AB21: 0.08409977625 | AC21: 0.03705551564 | AD21: =+IF(INDEX($K21:$O21,1,aux!$AL$1)>0,(O21/INDEX($K21:$O21,1,aux!$AL$1))^(1/($O$3-INDEX($K$3:$O$3,1,aux!$AL$1)))-1,"n.d.") -> 0.1192499169 | AE21: =IF(INDEX($K21:$O21,1,aux!$AL$1)>0,(O21-INDEX($K21:$O21,1,aux!$AL$1))/INDEX($K21:$O21,1,aux!$AL$1),"n.d.") -> 0.5693083419
A22: 20 | B22: Preparações de produtos vegetais | C22: 484.28 | D22: 378.873 | E22: 354.911 | F22: 273.67 | G22: 344.405 | H22: 367.2278 | I22: 0.001694007797 | J22: 0.001304670043 | K22: 14665.184 | L22: 21051.859 | M22: 21011.571 | N22: 33133.623 | O22: 29655.346 | P22: 23903.5166 | Q22: 0.1301814114 | R22: 0.04313882143 | S22: 23536.2888 | U22: =G22-INDEX($C22:$G22,1,aux!$AL$1) -> -139.875 | V22: 0.001800889904 | W22: 0.001816600459 | X22: =+IF(INDEX($C22:$G22,1,aux!$AL$1)>0,(G22/INDEX($C22:$G22,1,aux!$AL$1))^(1/($G$3-INDEX($C$3:$G$3,1,aux!$AL$1)))-1,"n.d.") -> -0.08168172196 | Y22: =IF(INDEX($C22:$G22,1,aux!$AL$1)>0,(G22-INDEX($C22:$G22,1,aux!$AL$1))/INDEX($C22:$G22,1,aux!$AL$1),"n.d.") -> -0.2888308417 | AA22: =O22-INDEX($K22:$O22,1,aux!$AL$1) -> 14990.162 | AB22: 0.1745171446 | AC22: 0.07689464906 | AD22: =+IF(INDEX($K22:$O22,1,aux!$AL$1)>0,(O22/INDEX($K22:$O22,1,aux!$AL$1))^(1/($O$3-INDEX($K$3:$O$3,1,aux!$AL$1)))-1,"n.d.") -> 0.1924875946 | AE22: =IF(INDEX($K22:$O22,1,aux!$AL$1)>0,(O22-INDEX($K22:$O22,1,aux!$AL$1))/INDEX($K22:$O22,1,aux!$AL$1),"n.d.") -> 1.022159831
A23: 21 | B23: Preparações alimentícias diversas | C23: 2392.409 | D23: 3000.91 | E23: 2439.552 | F23: 2444.672 | G23: 2960.379 | H23: 2647.5844 | I23: 0.01221320558 | J23: 0.00940621612 | K23: 1911.155 | L23: 2119.49 | M23: 2462.911 | N23: 4388.433 | O23: 7513.479 | P23: 3679.0936 | Q23: 0.02003678394 | R23: 0.00663968254 | S23: 1031.5092 | U23: =G23-INDEX($C23:$G23,1,aux!$AL$1) -> 567.97 | V23: -0.007312610823 | W23: -0.007376404382 | X23: =+IF(INDEX($C23:$G23,1,aux!$AL$1)>0,(G23/INDEX($C23:$G23,1,aux!$AL$1))^(1/($G$3-INDEX($C$3:$G$3,1,aux!$AL$1)))-1,"n.d.") -> 0.05469763415 | Y23: =IF(INDEX($C23:$G23,1,aux!$AL$1)>0,(G23-INDEX($C23:$G23,1,aux!$AL$1))/INDEX($C23:$G23,1,aux!$AL$1),"n.d.") -> 0.2374050591 | AA23: =O23-INDEX($K23:$O23,1,aux!$AL$1) -> 5602.324 | AB23: 0.06522288334 | AC23: 0.02873809755 | AD23: =+IF(INDEX($K23:$O23,1,aux!$AL$1)>0,(O23/INDEX($K23:$O23,1,aux!$AL$1))^(1/($O$3-INDEX($K$3:$O$3,1,aux!$AL$1)))-1,"n.d.") -> 0.4081090557 | AE23: =IF(INDEX($K23:$O23,1,aux!$AL$1)>0,(O23-INDEX($K23:$O23,1,aux!$AL$1))/INDEX($K23:$O23,1,aux!$AL$1),"n.d.") -> 2.931381285
A24: 22 | B24: Bebidas, líquidos alcoólicos e vinagres | C24: 4427.573 | D24: 2610.064 | E24: 2825.789 | F24: 2430.572 | G24: 4550.585 | H24: 3368.9166 | I24: 0.01554068343 | J24: 0.01196893199 | K24: 86273.736 | L24: 96000.089 | M24: 98236.449 | N24: 111285.827 | O24: 113207.466 | P24: 101000.7134 | Q24: 0.5500619697 | R24: 0.1822766002 | S24: 97631.7968 | U24: =G24-INDEX($C24:$G24,1,aux!$AL$1) -> 123.012 | V24: -0.001583778866 | W24: -0.001597595394 | X24: =+IF(INDEX($C24:$G24,1,aux!$AL$1)>0,(G24/INDEX($C24:$G24,1,aux!$AL$1))^(1/($G$3-INDEX($C$3:$G$3,1,aux!$AL$1)))-1,"n.d.") -> 0.006874576592 | Y24: =IF(INDEX($C24:$G24,1,aux!$AL$1)>0,(G24-INDEX($C24:$G24,1,aux!$AL$1))/INDEX($C24:$G24,1,aux!$AL$1),"n.d.") -> 0.02778316699 | AA24: =O24-INDEX($K24:$O24,1,aux!$AL$1) -> 26933.73 | AB24: 0.3135655006 | AC24: 0.1381612631 | AD24: =+IF(INDEX($K24:$O24,1,aux!$AL$1)>0,(O24/INDEX($K24:$O24,1,aux!$AL$1))^(1/($O$3-INDEX($K$3:$O$3,1,aux!$AL$1)))-1,"n.d.") -> 0.07028420452 | AE24: =IF(INDEX($K24:$O24,1,aux!$AL$1)>0,(O24-INDEX($K24:$O24,1,aux!$AL$1))/INDEX($K24:$O24,1,aux!$AL$1),"n.d.") -> 0.312189216
A25: 23a | B25: Resíduos indústrias alimentares; alimentos p/ animais (exc. NC 230120) (a) | C25: 23510.161 | D25: 17580.956 | E25: 13788.103 | F25: 16169.724 | G25: 14298.506 | H25: 17069.49 | I25: 0.07874090456 | J25: 0.06064369921 | K25: 3.109 | L25: 202.331 | M25: 76.723 | N25: 241.855 | O25: 745.425 | P25: 253.8886 | Q25: 0.001382707693 | R25: 0.0004581942967 | S25: -16815.6014 | U25: =G25-INDEX($C25:$G25,1,aux!$AL$1) -> -9211.655 | V25: 0.1186000107 | W25: 0.1196346503 | X25: =+IF(INDEX($C25:$G25,1,aux!$AL$1)>0,(G25/INDEX($C25:$G25,1,aux!$AL$1))^(1/($G$3-INDEX($C$3:$G$3,1,aux!$AL$1)))-1,"n.d.") -> -0.1169022776 | Y25: =IF(INDEX($C25:$G25,1,aux!$AL$1)>0,(G25-INDEX($C25:$G25,1,aux!$AL$1))/INDEX($C25:$G25,1,aux!$AL$1),"n.d.") -> -0.3918159046 | AA25: =O25-INDEX($K25:$O25,1,aux!$AL$1) -> 742.316 | AB25: 0.008642125995 | AC25: 0.003807839322 | AD25: =+IF(INDEX($K25:$O25,1,aux!$AL$1)>0,(O25/INDEX($K25:$O25,1,aux!$AL$1))^(1/($O$3-INDEX($K$3:$O$3,1,aux!$AL$1)))-1,"n.d.") -> 2.935009707 | AE25: =IF(INDEX($K25:$O25,1,aux!$AL$1)>0,(O25-INDEX($K25:$O25,1,aux!$AL$1))/INDEX($K25:$O25,1,aux!$AL$1),"n.d.") -> 238.7635896
A26: 24 | B26: Tabaco | C26: 2900.341 | D26: 2404.974 | E26: 4170.919 | F26: 4337.828 | G26: 1843.72 | H26: 3131.5564 | I26: 0.01444574991 | J26: 0.01112564959 | K26: 2.668 | L26: 2.69 | M26: 0 | N26: 2.668 | O26: 0.024 | P26: 1.61 | Q26: 8.768252633e-06 | R26: 2.905576768e-06 | S26: -3129.9464 | U26: =G26-INDEX($C26:$G26,1,aux!$AL$1) -> -1056.621 | V26: 0.01360398993 | W26: 0.01372266805 | X26: =+IF(INDEX($C26:$G26,1,aux!$AL$1)>0,(G26/INDEX($C26:$G26,1,aux!$AL$1))^(1/($G$3-INDEX($C$3:$G$3,1,aux!$AL$1)))-1,"n.d.") -> -0.1070822089 | Y26: =IF(INDEX($C26:$G26,1,aux!$AL$1)>0,(G26-INDEX($C26:$G26,1,aux!$AL$1))/INDEX($C26:$G26,1,aux!$AL$1),"n.d.") -> -0.3643092312 | AA26: =O26-INDEX($K26:$O26,1,aux!$AL$1) -> -2.644 | AB26: -3.078174407e-05 | AC26: -1.35628589e-05 | AD26: =+IF(INDEX($K26:$O26,1,aux!$AL$1)>0,(O26/INDEX($K26:$O26,1,aux!$AL$1))^(1/($O$3-INDEX($K$3:$O$3,1,aux!$AL$1)))-1,"n.d.") -> -0.69203146 | AE26: =IF(INDEX($K26:$O26,1,aux!$AL$1)>0,(O26-INDEX($K26:$O26,1,aux!$AL$1))/INDEX($K26:$O26,1,aux!$AL$1),"n.d.") -> -0.9910044978
A27: 29 | B27: Manitol e sorbitol (NC 290543; 290544) | C27: 0 | D27: 40.664 | E27: 106.283 | F27: 53.741 | G27: 0.227 | H27: 40.183 | I27: 0.0001853626422 | J27: 0.0001427603148 | K27: 0 | L27: 0.027 | M27: 1.365 | N27: 0 | O27: 0.007 | P27: 0.2798 | Q27: 1.523824278e-06 | R27: 5.049567575e-07 | S27: -39.9032 | U27: =G27-INDEX($C27:$G27,1,aux!$AL$1) -> 0.227 | V27: -2.92262383e-06 | W27: -2.948120138e-06 | X27: =+IF(INDEX($C27:$G27,1,aux!$AL$1)>0,(G27/INDEX($C27:$G27,1,aux!$AL$1))^(1/($G$3-INDEX($C$3:$G$3,1,aux!$AL$1)))-1,"n.d.") -> n.d. | Y27: =IF(INDEX($C27:$G27,1,aux!$AL$1)>0,(G27-INDEX($C27:$G27,1,aux!$AL$1))/INDEX($C27:$G27,1,aux!$AL$1),"n.d.") -> n.d. | AA27: =O27-INDEX($K27:$O27,1,aux!$AL$1) -> 0.007 | AB27: 8.149478384e-08 | AC27: 3.590772024e-08 | AD27: =+IF(INDEX($K27:$O27,1,aux!$AL$1)>0,(O27/INDEX($K27:$O27,1,aux!$AL$1))^(1/($O$3-INDEX($K$3:$O$3,1,aux!$AL$1)))-1,"n.d.") -> n.d. | AE27: =IF(INDEX($K27:$O27,1,aux!$AL$1)>0,(O27-INDEX($K27:$O27,1,aux!$AL$1))/INDEX($K27:$O27,1,aux!$AL$1),"n.d.") -> n.d.
A28: 33 | B28: Óleos essenciais e resinóides (NC 3301) | C28: 336.504 | D28: 1007.399 | E28: 842.788 | F28: 932.323 | G28: 2103.069 | H28: 1044.4166 | I28: 0.004817853833 | J28: 0.003710555274 | K28: 0.045 | L28: 1263.777 | M28: 85.824 | N28: 23.987 | O28: 10.361 | P28: 276.7988 | Q28: 0.001507479383 | R28: 0.0004995404736 | S28: -767.6178 | U28: =G28-INDEX($C28:$G28,1,aux!$AL$1) -> 1766.565 | V28: -0.02274451527 | W28: -0.02294293326 | X28: =+IF(INDEX($C28:$G28,1,aux!$AL$1)>0,(G28/INDEX($C28:$G28,1,aux!$AL$1))^(1/($G$3-INDEX($C$3:$G$3,1,aux!$AL$1)))-1,"n.d.") -> 0.581123606 | Y28: =IF(INDEX($C28:$G28,1,aux!$AL$1)>0,(G28-INDEX($C28:$G28,1,aux!$AL$1))/INDEX($C28:$G28,1,aux!$AL$1),"n.d.") -> 5.24975929 | AA28: =O28-INDEX($K28:$O28,1,aux!$AL$1) -> 10.316 | AB28: 0.0001201000272 | AC28: 5.291772028e-05 | AD28: =+IF(INDEX($K28:$O28,1,aux!$AL$1)>0,(O28/INDEX($K28:$O28,1,aux!$AL$1))^(1/($O$3-INDEX($K$3:$O$3,1,aux!$AL$1)))-1,"n.d.") -> 2.895357216 | AE28: =IF(INDEX($K28:$O28,1,aux!$AL$1)>0,(O28-INDEX($K28:$O28,1,aux!$AL$1))/INDEX($K28:$O28,1,aux!$AL$1),"n.d.") -> 229.2444444
A29: 35 | B29: Caseínas, albuminas, gelatinas, peptonas, dextrinas (NC 3501 a 3505) | C29: 5.884 | D29: 6.078 | E29: 6.378 | F29: 2.385 | G29: 3.817 | H29: 4.9084 | I29: 2.264226148e-05 | J29: 1.743833783e-05 | K29: 5.638 | L29: 5.628 | M29: 10.143 | N29: 5.29 | O29: 10.355 | P29: 7.4108 | Q29: 4.036010349e-05 | R29: 1.337431572e-05 | S29: 2.5024 | U29: =G29-INDEX($C29:$G29,1,aux!$AL$1) -> -2.067 | V29: 2.661261435e-05 | W29: 2.684477676e-05 | X29: =+IF(INDEX($C29:$G29,1,aux!$AL$1)>0,(G29/INDEX($C29:$G29,1,aux!$AL$1))^(1/($G$3-INDEX($C$3:$G$3,1,aux!$AL$1)))-1,"n.d.") -> -0.1025456355 | Y29: =IF(INDEX($C29:$G29,1,aux!$AL$1)>0,(G29-INDEX($C29:$G29,1,aux!$AL$1))/INDEX($C29:$G29,1,aux!$AL$1),"n.d.") -> -0.3512916383 | AA29: =O29-INDEX($K29:$O29,1,aux!$AL$1) -> 4.717 | AB29: 5.49158422e-05 | AC29: 2.419667377e-05 | AD29: =+IF(INDEX($K29:$O29,1,aux!$AL$1)>0,(O29/INDEX($K29:$O29,1,aux!$AL$1))^(1/($O$3-INDEX($K$3:$O$3,1,aux!$AL$1)))-1,"n.d.") -> 0.1641428039 | AE29: =IF(INDEX($K29:$O29,1,aux!$AL$1)>0,(O29-INDEX($K29:$O29,1,aux!$AL$1))/INDEX($K29:$O29,1,aux!$AL$1),"n.d.") -> 0.8366442001
A30: 38a | B30: Agentes de acabamento, ácidos gordos, sorbitol (NC 380910, 382311-12-13-19-70, 382460) (a) | C30: 0 | D30: 0 | E30: 0.8 | F30: 0.722 | G30: 0 | H30: 0.3044 | I30: 1.404185558e-06 | J30: 1.081458324e-06 | K30: 0 | L30: 7.049 | M30: 0 | N30: 0 | O30: 0 | P30: 1.4098 | Q30: 7.67793948e-06 | R30: 2.544274613e-06 | S30: 1.1054 | U30: =G30-INDEX($C30:$G30,1,aux!$AL$1) -> 0 | V30: 0 | W30: 0 | X30: =+IF(INDEX($C30:$G30,1,aux!$AL$1)>0,(G30/INDEX($C30:$G30,1,aux!$AL$1))^(1/($G$3-INDEX($C$3:$G$3,1,aux!$AL$1)))-1,"n.d.") -> n.d. | Y30: =IF(INDEX($C30:$G30,1,aux!$AL$1)>0,(G30-INDEX($C30:$G30,1,aux!$AL$1))/INDEX($C30:$G30,1,aux!$AL$1),"n.d.") -> n.d. | AA30: =O30-INDEX($K30:$O30,1,aux!$AL$1) -> 0 | AB30: 0 | AC30: 0 | AD30: =+IF(INDEX($K30:$O30,1,aux!$AL$1)>0,(O30/INDEX($K30:$O30,1,aux!$AL$1))^(1/($O$3-INDEX($K$3:$O$3,1,aux!$AL$1)))-1,"n.d.") -> n.d. | AE30: =IF(INDEX($K30:$O30,1,aux!$AL$1)>0,(O30-INDEX($K30:$O30,1,aux!$AL$1))/INDEX($K30:$O30,1,aux!$AL$1),"n.d.") -> n.d.
A31: 41 | B31: Couro e peles em bruto (NC 4101 a 4103) | C31: 0 | D31: 22.889 | E31: 115.197 | F31: 0 | G31: 37.541 | H31: 35.1254 | I31: 0.0001620321269 | J31: 0.000124791906 | K31: 0.115 | L31: 0.484 | M31: 51.396 | N31: 0 | O31: 97 | P31: 29.799 | Q31: 0.0001622889194 | R31: 5.377843609e-05 | S31: -5.3264 | U31: =G31-INDEX($C31:$G31,1,aux!$AL$1) -> 37.541 | V31: -0.0004833401815 | W31: -0.0004875567317 | X31: =+IF(INDEX($C31:$G31,1,aux!$AL$1)>0,(G31/INDEX($C31:$G31,1,aux!$AL$1))^(1/($G$3-INDEX($C$3:$G$3,1,aux!$AL$1)))-1,"n.d.") -> n.d. | Y31: =IF(INDEX($C31:$G31,1,aux!$AL$1)>0,(G31-INDEX($C31:$G31,1,aux!$AL$1))/INDEX($C31:$G31,1,aux!$AL$1),"n.d.") -> n.d. | AA31: =O31-INDEX($K31:$O31,1,aux!$AL$1) -> 96.885 | AB31: 0.001127946019 | AC31: 0.0004969884964 | AD31: =+IF(INDEX($K31:$O31,1,aux!$AL$1)>0,(O31/INDEX($K31:$O31,1,aux!$AL$1))^(1/($O$3-INDEX($K$3:$O$3,1,aux!$AL$1)))-1,"n.d.") -> 4.389127685 | AE31: =IF(INDEX($K31:$O31,1,aux!$AL$1)>0,(O31-INDEX($K31:$O31,1,aux!$AL$1))/INDEX($K31:$O31,1,aux!$AL$1),"n.d.") -> 842.4782609
A32: 43 | B32: Peles com pelo em bruto (NC 4301) | C32: 536.963 | D32: 828.302 | E32: 889.991 | F32: 925.916 | G32: 1471.549 | H32: 930.5442 | I32: 0.004292564807 | J32: 0.003305994647 | K32: 0 | L32: 0 | M32: 0 | N32: 0 | O32: 0 | P32: 0 | Q32: 0 | R32: 0 | S32: -930.5442 | U32: =G32-INDEX($C32:$G32,1,aux!$AL$1) -> 934.586 | V32: -0.01203278993 | W32: -0.01213776126 | X32: =+IF(INDEX($C32:$G32,1,aux!$AL$1)>0,(G32/INDEX($C32:$G32,1,aux!$AL$1))^(1/($G$3-INDEX($C$3:$G$3,1,aux!$AL$1)))-1,"n.d.") -> 0.2866416079 | Y32: =IF(INDEX($C32:$G32,1,aux!$AL$1)>0,(G32-INDEX($C32:$G32,1,aux!$AL$1))/INDEX($C32:$G32,1,aux!$AL$1),"n.d.") -> 1.740503536 | AA32: =O32-INDEX($K32:$O32,1,aux!$AL$1) -> 0 | AB32: 0 | AC32: 0 | AD32: =+IF(INDEX($K32:$O32,1,aux!$AL$1)>0,(O32/INDEX($K32:$O32,1,aux!$AL$1))^(1/($O$3-INDEX($K$3:$O$3,1,aux!$AL$1)))-1,"n.d.") -> n.d. | AE32: =IF(INDEX($K32:$O32,1,aux!$AL$1)>0,(O32-INDEX($K32:$O32,1,aux!$AL$1))/INDEX($K32:$O32,1,aux!$AL$1),"n.d.") -> n.d.
A33: 50 | B33: Seda crua (NC 5001-5003) | C33: 0 | D33: 0 | E33: 0 | F33: 0 | G33: 0 | H33: 0 | I33: 0 | J33: 0 | K33: 0 | L33: 0 | M33: 0 | N33: 0 | O33: 0.18 | P33: 0.036 | Q33: 1.960603073e-07 | R33: 6.496941841e-08 | S33: 0.036 | U33: =G33-INDEX($C33:$G33,1,aux!$AL$1) -> 0 | V33: 0 | W33: 0 | X33: =+IF(INDEX($C33:$G33,1,aux!$AL$1)>0,(G33/INDEX($C33:$G33,1,aux!$AL$1))^(1/($G$3-INDEX($C$3:$G$3,1,aux!$AL$1)))-1,"n.d.") -> n.d. | Y33: =IF(INDEX($C33:$G33,1,aux!$AL$1)>0,(G33-INDEX($C33:$G33,1,aux!$AL$1))/INDEX($C33:$G33,1,aux!$AL$1),"n.d.") -> n.d. | AA33: =O33-INDEX($K33:$O33,1,aux!$AL$1) -> 0.18 | AB33: 2.095580156e-06 | AC33: 9.233413775e-07 | AD33: =+IF(INDEX($K33:$O33,1,aux!$AL$1)>0,(O33/INDEX($K33:$O33,1,aux!$AL$1))^(1/($O$3-INDEX($K$3:$O$3,1,aux!$AL$1)))-1,"n.d.") -> n.d. | AE33: =IF(INDEX($K33:$O33,1,aux!$AL$1)>0,(O33-INDEX($K33:$O33,1,aux!$AL$1))/INDEX($K33:$O33,1,aux!$AL$1),"n.d.") -> n.d.
A34: 51 | B34: Lã não cardada (NC 5101-5103) | C34: 0 | D34: 0 | E34: 19.632 | F34: 0.069 | G34: 0.068 | H34: 3.9538 | I34: 1.823872819e-05 | J34: 1.404687884e-05 | K34: 2068.286 | L34: 2361.964 | M34: 2192.236 | N34: 2560.444 | O34: 3324.923 | P34: 2501.5706 | Q34: 0.0136238528 | R34: 0.004514599638 | S34: 2497.6168 | U34: =G34-INDEX($C34:$G34,1,aux!$AL$1) -> 0.068 | V34: -8.754996496e-07 | W34: -8.8313731e-07 | X34: =+IF(INDEX($C34:$G34,1,aux!$AL$1)>0,(G34/INDEX($C34:$G34,1,aux!$AL$1))^(1/($G$3-INDEX($C$3:$G$3,1,aux!$AL$1)))-1,"n.d.") -> n.d. | Y34: =IF(INDEX($C34:$G34,1,aux!$AL$1)>0,(G34-INDEX($C34:$G34,1,aux!$AL$1))/INDEX($C34:$G34,1,aux!$AL$1),"n.d.") -> n.d. | AA34: =O34-INDEX($K34:$O34,1,aux!$AL$1) -> 1256.637 | AB34: 0.01462990867 | AC34: 0.006446138548 | AD34: =+IF(INDEX($K34:$O34,1,aux!$AL$1)>0,(O34/INDEX($K34:$O34,1,aux!$AL$1))^(1/($O$3-INDEX($K$3:$O$3,1,aux!$AL$1)))-1,"n.d.") -> 0.1260113029 | AE34: =IF(INDEX($K34:$O34,1,aux!$AL$1)>0,(O34-INDEX($K34:$O34,1,aux!$AL$1))/INDEX($K34:$O34,1,aux!$AL$1),"n.d.") -> 0.6075740976
A35: 52 | B35: Algodão (NC 5201-5203) | C35: 4066.466 | D35: 5348.867 | E35: 3971.246 | F35: 5067.018 | G35: 8711.317 | H35: 5432.9828 | I35: 0.02506214188 | J35: 0.01930205148 | K35: 3.442 | L35: 2.64 | M35: 2.25 | N35: 2.337 | O35: 8.115 | P35: 3.7568 | Q35: 2.045998229e-05 | R35: 6.779919752e-06 | S35: -5429.226 | U35: =G35-INDEX($C35:$G35,1,aux!$AL$1) -> 4644.851 | V35: -0.05980243269 | W35: -0.06032413555 | X35: =+IF(INDEX($C35:$G35,1,aux!$AL$1)>0,(G35/INDEX($C35:$G35,1,aux!$AL$1))^(1/($G$3-INDEX($C$3:$G$3,1,aux!$AL$1)))-1,"n.d.") -> 0.2098086019 | Y35: =IF(INDEX($C35:$G35,1,aux!$AL$1)>0,(G35-INDEX($C35:$G35,1,aux!$AL$1))/INDEX($C35:$G35,1,aux!$AL$1),"n.d.") -> 1.142232838 | AA35: =O35-INDEX($K35:$O35,1,aux!$AL$1) -> 4.673 | AB35: 5.440358927e-05 | AC35: 2.39709681e-05 | AD35: =+IF(INDEX($K35:$O35,1,aux!$AL$1)>0,(O35/INDEX($K35:$O35,1,aux!$AL$1))^(1/($O$3-INDEX($K$3:$O$3,1,aux!$AL$1)))-1,"n.d.") -> 0.2391372555 | AE35: =IF(INDEX($K35:$O35,1,aux!$AL$1)>0,(O35-INDEX($K35:$O35,1,aux!$AL$1))/INDEX($K35:$O35,1,aux!$AL$1),"n.d.") -> 1.357640906
A36: 53 | B36: Linho e cânhamo em bruto (NC 5301-5302) | C36: 0 | D36: 0 | E36: 0 | F36: 0 | G36: 0 | H36: 0 | I36: 0 | J36: 0 | K36: 0 | L36: 0.045 | M36: 0.335 | N36: 0.05 | O36: 0 | P36: 0.086 | Q36: 4.683662897e-07 | R36: 1.552047217e-07 | S36: 0.086 | U36: =G36-INDEX($C36:$G36,1,aux!$AL$1) -> 0 | V36: 0 | W36: =IF($U$53<>0,U36/$U$53, "n.d.") -> 0 | X36: =+IF(INDEX($C36:$G36,1,aux!$AL$1)>0,(G36/INDEX($C36:$G36,1,aux!$AL$1))^(1/($G$3-INDEX($C$3:$G$3,1,aux!$AL$1)))-1,"n.d.") -> n.d. | Y36: =IF(INDEX($C36:$G36,1,aux!$AL$1)>0,(G36-INDEX($C36:$G36,1,aux!$AL$1))/INDEX($C36:$G36,1,aux!$AL$1),"n.d.") -> n.d. | AA36: =O36-INDEX($K36:$O36,1,aux!$AL$1) -> 0 | AB36: 0 | AC36: =IF($AA$53<>0,AA36/$AA$53, "n.d.") -> 0 | AD36: =+IF(INDEX($K36:$O36,1,aux!$AL$1)>0,(O36/INDEX($K36:$O36,1,aux!$AL$1))^(1/($O$3-INDEX($K$3:$O$3,1,aux!$AL$1)))-1,"n.d.") -> n.d. | AE36: =IF(INDEX($K36:$O36,1,aux!$AL$1)>0,(O36-INDEX($K36:$O36,1,aux!$AL$1))/INDEX($K36:$O36,1,aux!$AL$1),"n.d.") -> n.d.
A37: Subtotal Agrícola e Agroalimentar | C37: 295396.528 | D37: 230839.524 | E37: 171743.618 | F37: 168196.067 | G37: 217726.594 | H37: 216780.4662 | I37: 1 | J37: 0.7701676727 | K37: 141260.555 | L37: 173489.89 | M37: 170227.644 | N37: 205951.149 | O37: 227155.623 | P37: 183616.9722 | Q37: 1 | R37: 0.3313746637 | S37: -33163.494 | U37: =G37-INDEX($C37:$G37,1,aux!$AL$1) -> -77669.934 | V37: 1 | W37: 1.008723773 | X37: =+IF(INDEX($C37:$G37,1,aux!$AL$1)>0,(G37/INDEX($C37:$G37,1,aux!$AL$1))^(1/($G$3-INDEX($C$3:$G$3,1,aux!$AL$1)))-1,"n.d.") -> -0.07343365182 | Y37: =IF(INDEX($C37:$G37,1,aux!$AL$1)>0,(G37-INDEX($C37:$G37,1,aux!$AL$1))/INDEX($C37:$G37,1,aux!$AL$1),"n.d.") -> -0.2629344851 | AA37: =O37-INDEX($K37:$O37,1,aux!$AL$1) -> 85895.068 | AB37: 1 | AC37: 0.4406137245 | AD37: =+IF(INDEX($K37:$O37,1,aux!$AL$1)>0,(O37/INDEX($K37:$O37,1,aux!$AL$1))^(1/($O$3-INDEX($K$3:$O$3,1,aux!$AL$1)))-1,"n.d.") -> 0.1260965966 | AE37: =IF(INDEX($K37:$O37,1,aux!$AL$1)>0,(O37-INDEX($K37:$O37,1,aux!$AL$1))/INDEX($K37:$O37,1,aux!$AL$1),"n.d.") -> 0.6080612383
A38: 03 | B38: Peixes e crustáceos | C38: 22952.9 | D38: 27425.495 | E38: 18562.866 | F38: 11625.396 | G38: 16157.276 | H38: 19344.7866 | I38: 0.9902298733 | J38: 0.06872726836 | K38: 23181.063 | L38: 15139.255 | M38: 14702.942 | N38: 29373.175 | O38: 34112.362 | P38: 23301.7594 | Q38: 0.6983567898 | R38: 0.04205282656 | S38: 3956.9728 | U38: =G38-INDEX($C38:$G38,1,aux!$AL$1) -> -6795.624 | V38: =IF($U$44<>0,U38/$U$44, "n.d.") -> 0.9740534274 | W38: 0.08825689851 | X38: =+IF(INDEX($C38:$G38,1,aux!$AL$1)>0,(G38/INDEX($C38:$G38,1,aux!$AL$1))^(1/($G$3-INDEX($C$3:$G$3,1,aux!$AL$1)))-1,"n.d.") -> -0.08402705788 | Y38: =IF(INDEX($C38:$G38,1,aux!$AL$1)>0,(G38-INDEX($C38:$G38,1,aux!$AL$1))/INDEX($C38:$G38,1,aux!$AL$1),"n.d.") -> -0.2960682092 | AA38: =O38-INDEX($K38:$O38,1,aux!$AL$1) -> 10931.299 | AB38: =IF($AA$44<>0,AA38/$AA$44, "n.d.") -> 0.5814403529 | AC38: 0.05607400376 | AD38: =+IF(INDEX($K38:$O38,1,aux!$AL$1)>0,(O38/INDEX($K38:$O38,1,aux!$AL$1))^(1/($O$3-INDEX($K$3:$O$3,1,aux!$AL$1)))-1,"n.d.") -> 0.1013988308 | AE38: =IF(INDEX($K38:$O38,1,aux!$AL$1)>0,(O38-INDEX($K38:$O38,1,aux!$AL$1))/INDEX($K38:$O38,1,aux!$AL$1),"n.d.") -> 0.4715615932
A39: 05p | B39: Outros produtos de pescado (NC 0508, 051191) (p) | C39: 0.76 | D39: 2.631 | E39: 1.996 | F39: 1.346 | G39: 8.495 | H39: 3.0456 | I39: 0.0001558995798 | J39: 1.082026764e-05 | K39: 0.068 | L39: 0 | M39: 0 | N39: 0.009 | O39: 0.655 | P39: 0.1464 | Q39: 4.387627229e-06 | R39: 2.642089682e-07 | S39: -2.8992 | U39: =G39-INDEX($C39:$G39,1,aux!$AL$1) -> 7.735 | V39: -0.001108699254 | W39: -0.000100456869 | X39: =+IF(INDEX($C39:$G39,1,aux!$AL$1)>0,(G39/INDEX($C39:$G39,1,aux!$AL$1))^(1/($G$3-INDEX($C$3:$G$3,1,aux!$AL$1)))-1,"n.d.") -> 0.8284683519 | Y39: =IF(INDEX($C39:$G39,1,aux!$AL$1)>0,(G39-INDEX($C39:$G39,1,aux!$AL$1))/INDEX($C39:$G39,1,aux!$AL$1),"n.d.") -> 10.17763158 | AA39: =O39-INDEX($K39:$O39,1,aux!$AL$1) -> 0.587 | AB39: 3.122277482e-05 | AC39: 3.011118826e-06 | AD39: =+IF(INDEX($K39:$O39,1,aux!$AL$1)>0,(O39/INDEX($K39:$O39,1,aux!$AL$1))^(1/($O$3-INDEX($K$3:$O$3,1,aux!$AL$1)))-1,"n.d.") -> 0.7617046344 | AE39: =IF(INDEX($K39:$O39,1,aux!$AL$1)>0,(O39-INDEX($K39:$O39,1,aux!$AL$1))/INDEX($K39:$O39,1,aux!$AL$1),"n.d.") -> 8.632352941
A40: 16p | B40: Preparações e conservas de peixes ou crustáceos (NC 1604-05) (p) | C40: 222.783 | D40: 313.222 | E40: 207.138 | F40: 136.631 | G40: 36.126 | H40: 183.18 | I40: 0.009376702464 | J40: 0.0006507934814 | K40: 6732.906 | L40: 6553.948 | M40: 9845.911 | N40: 11572.359 | O40: 14225.006 | P40: 9786.026 | Q40: 0.2932884846 | R40: 0.01766090049 | S40: 9602.846 | U40: =G40-INDEX($C40:$G40,1,aux!$AL$1) -> -186.657 | V40: 0.0267545542 | W40: 0.002424172954 | X40: =+IF(INDEX($C40:$G40,1,aux!$AL$1)>0,(G40/INDEX($C40:$G40,1,aux!$AL$1))^(1/($G$3-INDEX($C$3:$G$3,1,aux!$AL$1)))-1,"n.d.") -> -0.3654228097 | Y40: =IF(INDEX($C40:$G40,1,aux!$AL$1)>0,(G40-INDEX($C40:$G40,1,aux!$AL$1))/INDEX($C40:$G40,1,aux!$AL$1),"n.d.") -> -0.8378422052 | AA40: =O40-INDEX($K40:$O40,1,aux!$AL$1) -> 7492.1 | AB40: 0.3985079237 | AC40: 0.03843203297 | AD40: =+IF(INDEX($K40:$O40,1,aux!$AL$1)>0,(O40/INDEX($K40:$O40,1,aux!$AL$1))^(1/($O$3-INDEX($K$3:$O$3,1,aux!$AL$1)))-1,"n.d.") -> 0.2056256434 | AE40: =IF(INDEX($K40:$O40,1,aux!$AL$1)>0,(O40-INDEX($K40:$O40,1,aux!$AL$1))/INDEX($K40:$O40,1,aux!$AL$1),"n.d.") -> 1.11275874
A41: 19p | B41: Massas recheadas com pescado (NC 19022010) (p) | C41: 0 | D41: 0 | E41: 0 | F41: 0 | G41: 0 | H41: 0 | I41: 0 | J41: 0 | K41: 60.51 | L41: 26.205 | M41: 19.846 | N41: 3.75 | O41: 12.512 | P41: 24.5646 | Q41: 0.0007362042885 | R41: 4.433188265e-05 | S41: 24.5646 | U41: =G41-INDEX($C41:$G41,1,aux!$AL$1) -> 0 | V41: 0 | W41: 0 | X41: =+IF(INDEX($C41:$G41,1,aux!$AL$1)>0,(G41/INDEX($C41:$G41,1,aux!$AL$1))^(1/($G$3-INDEX($C$3:$G$3,1,aux!$AL$1)))-1,"n.d.") -> n.d. | Y41: =IF(INDEX($C41:$G41,1,aux!$AL$1)>0,(G41-INDEX($C41:$G41,1,aux!$AL$1))/INDEX($C41:$G41,1,aux!$AL$1),"n.d.") -> n.d. | AA41: =O41-INDEX($K41:$O41,1,aux!$AL$1) -> -47.998 | AB41: -0.002553033638 | AC41: -0.000246214108 | AD41: =+IF(INDEX($K41:$O41,1,aux!$AL$1)>0,(O41/INDEX($K41:$O41,1,aux!$AL$1))^(1/($O$3-INDEX($K$3:$O$3,1,aux!$AL$1)))-1,"n.d.") -> -0.3256662511 | AE41: =IF(INDEX($K41:$O41,1,aux!$AL$1)>0,(O41-INDEX($K41:$O41,1,aux!$AL$1))/INDEX($K41:$O41,1,aux!$AL$1),"n.d.") -> -0.7932242605
A42: 23p | B42: Farinhas de pescado (NC 230120) (p) | C42: 0 | D42: 0 | E42: 0 | F42: 0 | G42: 0 | H42: 0 | I42: 0 | J42: 0 | K42: 0 | L42: 0 | M42: 0 | N42: 0 | O42: 0 | P42: 0 | Q42: 0 | R42: 0 | S42: 0 | U42: =G42-INDEX($C42:$G42,1,aux!$AL$1) -> 0 | V42: 0 | W42: 0 | X42: =+IF(INDEX($C42:$G42,1,aux!$AL$1)>0,(G42/INDEX($C42:$G42,1,aux!$AL$1))^(1/($G$3-INDEX($C$3:$G$3,1,aux!$AL$1)))-1,"n.d.") -> n.d. | Y42: =IF(INDEX($C42:$G42,1,aux!$AL$1)>0,(G42-INDEX($C42:$G42,1,aux!$AL$1))/INDEX($C42:$G42,1,aux!$AL$1),"n.d.") -> n.d. | AA42: =O42-INDEX($K42:$O42,1,aux!$AL$1) -> 0 | AB42: 0 | AC42: 0 | AD42: =+IF(INDEX($K42:$O42,1,aux!$AL$1)>0,(O42/INDEX($K42:$O42,1,aux!$AL$1))^(1/($O$3-INDEX($K$3:$O$3,1,aux!$AL$1)))-1,"n.d.") -> n.d. | AE42: =IF(INDEX($K42:$O42,1,aux!$AL$1)>0,(O42-INDEX($K42:$O42,1,aux!$AL$1))/INDEX($K42:$O42,1,aux!$AL$1),"n.d.") -> n.d.
A43: 25 | B43: Sal e cloreto de sódio puro; água do mar (NC 2501) | C43: 5.031 | D43: 3.347 | E43: 3.001 | F43: 8.889 | G43: 2.933 | H43: 4.6402 | I43: 0.0002375247012 | J43: 1.64854892e-05 | K43: 175.798 | L43: 179.015 | M43: 140.934 | N43: 174.351 | O43: 600.189 | P43: 254.0574 | Q43: 0.007614133648 | R43: 0.0004584989311 | S43: 249.4172 | U43: =G43-INDEX($C43:$G43,1,aux!$AL$1) -> -2.098 | V43: 0.0003007176516 | W43: 2.724738348e-05 | X43: =+IF(INDEX($C43:$G43,1,aux!$AL$1)>0,(G43/INDEX($C43:$G43,1,aux!$AL$1))^(1/($G$3-INDEX($C$3:$G$3,1,aux!$AL$1)))-1,"n.d.") -> -0.1261951792 | Y43: =IF(INDEX($C43:$G43,1,aux!$AL$1)>0,(G43-INDEX($C43:$G43,1,aux!$AL$1))/INDEX($C43:$G43,1,aux!$AL$1),"n.d.") -> -0.41701451 | AA43: =O43-INDEX($K43:$O43,1,aux!$AL$1) -> 424.391 | AB43: 0.02257353429 | AC43: 0.002176987614 | AD43: =+IF(INDEX($K43:$O43,1,aux!$AL$1)>0,(O43/INDEX($K43:$O43,1,aux!$AL$1))^(1/($O$3-INDEX($K$3:$O$3,1,aux!$AL$1)))-1,"n.d.") -> 0.3593100424 | AE43: =IF(INDEX($K43:$O43,1,aux!$AL$1)>0,(O43-INDEX($K43:$O43,1,aux!$AL$1))/INDEX($K43:$O43,1,aux!$AL$1),"n.d.") -> 2.414083209
A44: Subtotal Mar | C44: 23181.474 | D44: 27744.695 | E44: 18775.001 | F44: 11772.262 | G44: 16204.83 | H44: 19535.6524 | I44: 1 | J44: 0.06940536759 | K44: 30150.345 | L44: 21898.423 | M44: 24709.633 | N44: 41123.644 | O44: 48950.724 | P44: 33366.5538 | Q44: 1 | R44: 0.06021682207 | S44: 13830.9014 | U44: =G44-INDEX($C44:$G44,1,aux!$AL$1) -> -6976.644 | V44: 1 | W44: 0.09060786198 | X44: =+IF(INDEX($C44:$G44,1,aux!$AL$1)>0,(G44/INDEX($C44:$G44,1,aux!$AL$1))^(1/($G$3-INDEX($C$3:$G$3,1,aux!$AL$1)))-1,"n.d.") -> -0.08562181121 | Y44: =IF(INDEX($C44:$G44,1,aux!$AL$1)>0,(G44-INDEX($C44:$G44,1,aux!$AL$1))/INDEX($C44:$G44,1,aux!$AL$1),"n.d.") -> -0.3009577389 | AA44: =O44-INDEX($K44:$O44,1,aux!$AL$1) -> 18800.379 | AB44: 1 | AC44: 0.09643982135 | AD44: =+IF(INDEX($K44:$O44,1,aux!$AL$1)>0,(O44/INDEX($K44:$O44,1,aux!$AL$1))^(1/($O$3-INDEX($K$3:$O$3,1,aux!$AL$1)))-1,"n.d.") -> 0.1287992401 | AE44: =IF(INDEX($K44:$O44,1,aux!$AL$1)>0,(O44-INDEX($K44:$O44,1,aux!$AL$1))/INDEX($K44:$O44,1,aux!$AL$1),"n.d.") -> 0.6235543573
A45: 13f | B45: Gomas e resinas (NC 1301) (f) | C45: 44.237 | D45: 0.029 | E45: 58.719 | F45: 0.014 | G45: 12.191 | H45: 23.038 | I45: 0.0005101907265 | J45: 8.184834711e-05 | K45: 0.585 | L45: 0 | M45: 9.523 | N45: 0 | O45: 0 | P45: 2.0216 | Q45: 5.996618554e-06 | R45: 3.648393785e-06 | S45: -21.0164 | U45: =G45-INDEX($C45:$G45,1,aux!$AL$1) -> -32.046 | V45: =IF($U$52<>0,U45/$U$52, "n.d.") -> -0.004189918386 | W45: 0.0004161914446 | X45: =+IF(INDEX($C45:$G45,1,aux!$AL$1)>0,(G45/INDEX($C45:$G45,1,aux!$AL$1))^(1/($G$3-INDEX($C$3:$G$3,1,aux!$AL$1)))-1,"n.d.") -> -0.2754582494 | Y45: =IF(INDEX($C45:$G45,1,aux!$AL$1)>0,(G45-INDEX($C45:$G45,1,aux!$AL$1))/INDEX($C45:$G45,1,aux!$AL$1),"n.d.") -> -0.7244162127 | AA45: =O45-INDEX($K45:$O45,1,aux!$AL$1) -> -0.585 | AB45: =IF($AA$52<>0,AA45/$AA$52, "n.d.") -> -6.482087615e-06 | AC45: -3.000859477e-06 | AD45: =+IF(INDEX($K45:$O45,1,aux!$AL$1)>0,(O45/INDEX($K45:$O45,1,aux!$AL$1))^(1/($O$3-INDEX($K$3:$O$3,1,aux!$AL$1)))-1,"n.d.") -> -1 | AE45: =IF(INDEX($K45:$O45,1,aux!$AL$1)>0,(O45-INDEX($K45:$O45,1,aux!$AL$1))/INDEX($K45:$O45,1,aux!$AL$1),"n.d.") -> -1
A46: 38f | B46: Tall oil, essências e colofónias (NC 3803,3805,3806) (f) | C46: 918.543 | D46: 269.432 | E46: 130.417 | F46: 377.848 | G46: 1151.157 | H46: 569.4794 | I46: 0.01261147273 | J46: 0.002023220228 | K46: 1746.925 | L46: 3166.917 | M46: 1035.216 | N46: 1208.804 | O46: 1774.642 | P46: 1786.5008 | Q46: 0.005299250022 | R46: 0.003224108832 | S46: 1217.0214 | U46: =G46-INDEX($C46:$G46,1,aux!$AL$1) -> 232.614 | V46: 0.03041358284 | W46: -0.003021030915 | X46: =+IF(INDEX($C46:$G46,1,aux!$AL$1)>0,(G46/INDEX($C46:$G46,1,aux!$AL$1))^(1/($G$3-INDEX($C$3:$G$3,1,aux!$AL$1)))-1,"n.d.") -> 0.05805627381 | Y46: =IF(INDEX($C46:$G46,1,aux!$AL$1)>0,(G46-INDEX($C46:$G46,1,aux!$AL$1))/INDEX($C46:$G46,1,aux!$AL$1),"n.d.") -> 0.2532423632 | AA46: =O46-INDEX($K46:$O46,1,aux!$AL$1) -> 27.717 | AB46: 0.0003071179871 | AC46: 0.0001421791831 | AD46: =+IF(INDEX($K46:$O46,1,aux!$AL$1)>0,(O46/INDEX($K46:$O46,1,aux!$AL$1))^(1/($O$3-INDEX($K$3:$O$3,1,aux!$AL$1)))-1,"n.d.") -> 0.003943157106 | AE46: =IF(INDEX($K46:$O46,1,aux!$AL$1)>0,(O46-INDEX($K46:$O46,1,aux!$AL$1))/INDEX($K46:$O46,1,aux!$AL$1),"n.d.") -> 0.01586616483
A47: 44 | B47: Madeira e suas obras | C47: 33370.256 | D47: 27759.892 | E47: 27175.664 | F47: 26951.159 | G47: 37456.122 | H47: 30542.6186 | I47: 0.6763851364 | J47: 0.108510411 | K47: 15520.31 | L47: 18201.796 | M47: 17321.001 | N47: 21072.068 | O47: 27501.608 | P47: 19923.3566 | Q47: 0.05909812517 | R47: 0.03595580253 | S47: -10619.262 | U47: =G47-INDEX($C47:$G47,1,aux!$AL$1) -> 4085.866 | V47: 0.534214725 | W47: -0.05306442218 | X47: =+IF(INDEX($C47:$G47,1,aux!$AL$1)>0,(G47/INDEX($C47:$G47,1,aux!$AL$1))^(1/($G$3-INDEX($C$3:$G$3,1,aux!$AL$1)))-1,"n.d.") -> 0.02929726346 | Y47: =IF(INDEX($C47:$G47,1,aux!$AL$1)>0,(G47-INDEX($C47:$G47,1,aux!$AL$1))/INDEX($C47:$G47,1,aux!$AL$1),"n.d.") -> 0.1224403553 | AA47: =O47-INDEX($K47:$O47,1,aux!$AL$1) -> 11981.298 | AB47: 0.1327586724 | AC47: 0.06146015667 | AD47: =+IF(INDEX($K47:$O47,1,aux!$AL$1)>0,(O47/INDEX($K47:$O47,1,aux!$AL$1))^(1/($O$3-INDEX($K$3:$O$3,1,aux!$AL$1)))-1,"n.d.") -> 0.1537571993 | AE47: =IF(INDEX($K47:$O47,1,aux!$AL$1)>0,(O47-INDEX($K47:$O47,1,aux!$AL$1))/INDEX($K47:$O47,1,aux!$AL$1),"n.d.") -> 0.7719754309
A48: 45 | B48: Cortiça e suas obras | C48: 2924.082 | D48: 4155.481 | E48: 3576.227 | F48: 1641.183 | G48: 1804.345 | H48: 2820.2636 | I48: 0.06245647777 | J48: 0.01001970284 | K48: 187166.177 | L48: 179906.551 | M48: 196013.69 | N48: 198797.845 | O48: 197708.58 | P48: 191918.5686 | Q48: 0.5692829686 | R48: 0.3463566051 | S48: 189098.305 | U48: =G48-INDEX($C48:$G48,1,aux!$AL$1) -> -1119.737 | V48: -0.1464022544 | W48: 0.01454237532 | X48: =+IF(INDEX($C48:$G48,1,aux!$AL$1)>0,(G48/INDEX($C48:$G48,1,aux!$AL$1))^(1/($G$3-INDEX($C$3:$G$3,1,aux!$AL$1)))-1,"n.d.") -> -0.1136964103 | Y48: =IF(INDEX($C48:$G48,1,aux!$AL$1)>0,(G48-INDEX($C48:$G48,1,aux!$AL$1))/INDEX($C48:$G48,1,aux!$AL$1),"n.d.") -> -0.3829362514 | AA48: =O48-INDEX($K48:$O48,1,aux!$AL$1) -> 10542.403 | AB48: 0.1168150084 | AC48: 0.05407909394 | AD48: =+IF(INDEX($K48:$O48,1,aux!$AL$1)>0,(O48/INDEX($K48:$O48,1,aux!$AL$1))^(1/($O$3-INDEX($K$3:$O$3,1,aux!$AL$1)))-1,"n.d.") -> 0.01379358033 | AE48: =IF(INDEX($K48:$O48,1,aux!$AL$1)>0,(O48-INDEX($K48:$O48,1,aux!$AL$1))/INDEX($K48:$O48,1,aux!$AL$1),"n.d.") -> 0.05632643231
A49: 46 | B49: Obras de espartaria ou de cestaria | C49: 1.41 | D49: 2.536 | E49: 0.952 | F49: 0.661 | G49: 3.389 | H49: 1.7896 | I49: 3.963179634e-05 | J49: 6.358008594e-06 | K49: 1.165 | L49: 6.966 | M49: 2.619 | N49: 9.413 | O49: 3.646 | P49: 4.7618 | Q49: 1.412480126e-05 | R49: 8.593649349e-06 | S49: 2.9722 | U49: =G49-INDEX($C49:$G49,1,aux!$AL$1) -> 1.979 | V49: 0.0002587483145 | W49: -2.570189318e-05 | X49: =+IF(INDEX($C49:$G49,1,aux!$AL$1)>0,(G49/INDEX($C49:$G49,1,aux!$AL$1))^(1/($G$3-INDEX($C$3:$G$3,1,aux!$AL$1)))-1,"n.d.") -> 0.2451254614 | Y49: =IF(INDEX($C49:$G49,1,aux!$AL$1)>0,(G49-INDEX($C49:$G49,1,aux!$AL$1))/INDEX($C49:$G49,1,aux!$AL$1),"n.d.") -> 1.403546099 | AA49: =O49-INDEX($K49:$O49,1,aux!$AL$1) -> 2.481 | AB49: 2.749069978e-05 | AC49: 1.272672199e-05 | AD49: =+IF(INDEX($K49:$O49,1,aux!$AL$1)>0,(O49/INDEX($K49:$O49,1,aux!$AL$1))^(1/($O$3-INDEX($K$3:$O$3,1,aux!$AL$1)))-1,"n.d.") -> 0.3300644468 | AE49: =IF(INDEX($K49:$O49,1,aux!$AL$1)>0,(O49-INDEX($K49:$O49,1,aux!$AL$1))/INDEX($K49:$O49,1,aux!$AL$1),"n.d.") -> 2.129613734
A50: 47 | B50: Pastas de madeira | C50: 2699.943 | D50: 3621.614 | E50: 2737.252 | F50: 2085.629 | G50: 5350.336 | H50: 3298.9548 | I50: 0.07305738979 | J50: 0.01172037493 | K50: 3.363 | L50: 0.107 | M50: 1.342 | N50: 0.046 | O50: 0.5 | P50: 1.0716 | Q50: 3.178658707e-06 | R50: 1.933923021e-06 | S50: -3297.8832 | U50: =G50-INDEX($C50:$G50,1,aux!$AL$1) -> 2650.393 | V50: 0.3465309356 | W50: -0.03442148448 | X50: =+IF(INDEX($C50:$G50,1,aux!$AL$1)>0,(G50/INDEX($C50:$G50,1,aux!$AL$1))^(1/($G$3-INDEX($C$3:$G$3,1,aux!$AL$1)))-1,"n.d.") -> 0.1864696003 | Y50: =IF(INDEX($C50:$G50,1,aux!$AL$1)>0,(G50-INDEX($C50:$G50,1,aux!$AL$1))/INDEX($C50:$G50,1,aux!$AL$1),"n.d.") -> 0.9816477607 | AA50: =O50-INDEX($K50:$O50,1,aux!$AL$1) -> -2.863 | AB50: -3.172344759e-05 | AC50: -1.468625758e-05 | AD50: =+IF(INDEX($K50:$O50,1,aux!$AL$1)>0,(O50/INDEX($K50:$O50,1,aux!$AL$1))^(1/($O$3-INDEX($K$3:$O$3,1,aux!$AL$1)))-1,"n.d.") -> -0.3790440623 | AE50: =IF(INDEX($K50:$O50,1,aux!$AL$1)>0,(O50-INDEX($K50:$O50,1,aux!$AL$1))/INDEX($K50:$O50,1,aux!$AL$1),"n.d.") -> -0.8513232233
A51: 48 | B51: Papel e cartão | C51: 4564.524 | D51: 9297.321 | E51: 12581.215 | F51: 6660.716 | G51: 6393.814 | H51: 7899.518 | I51: 0.1749397008 | J51: 0.02806504433 | K51: 111440.958 | L51: 108272.647 | M51: 95012.178 | N51: 123570.239 | O51: 179139.21 | P51: 123487.0464 | Q51: 0.3662963562 | R51: 0.2228578218 | S51: 115587.5284 | U51: =G51-INDEX($C51:$G51,1,aux!$AL$1) -> 1829.29 | V51: 0.239174181 | W51: -0.0237575625 | X51: =+IF(INDEX($C51:$G51,1,aux!$AL$1)>0,(G51/INDEX($C51:$G51,1,aux!$AL$1))^(1/($G$3-INDEX($C$3:$G$3,1,aux!$AL$1)))-1,"n.d.") -> 0.0879053834 | Y51: =IF(INDEX($C51:$G51,1,aux!$AL$1)>0,(G51-INDEX($C51:$G51,1,aux!$AL$1))/INDEX($C51:$G51,1,aux!$AL$1),"n.d.") -> 0.4007624891 | AA51: =O51-INDEX($K51:$O51,1,aux!$AL$1) -> 67698.252 | AB51: 0.750129916 | AC51: 0.3472699848 | AD51: =+IF(INDEX($K51:$O51,1,aux!$AL$1)>0,(O51/INDEX($K51:$O51,1,aux!$AL$1))^(1/($O$3-INDEX($K$3:$O$3,1,aux!$AL$1)))-1,"n.d.") -> 0.1259949804 | AE51: =IF(INDEX($K51:$O51,1,aux!$AL$1)>0,(O51-INDEX($K51:$O51,1,aux!$AL$1))/INDEX($K51:$O51,1,aux!$AL$1),"n.d.") -> 0.6074808869
A52: Subtotal Florestas | C52: 44522.995 | D52: 45106.305 | E52: 46260.446 | F52: 37717.21 | G52: 52171.354 | H52: 45155.662 | I52: 1 | J52: 0.1604269597 | K52: 315879.483 | L52: 309554.984 | M52: 309395.569 | N52: 344658.415 | O52: 406128.186 | P52: 337123.3274 | Q52: 1 | R52: 0.6084085142 | S52: 291967.6654 | U52: =G52-INDEX($C52:$G52,1,aux!$AL$1) -> 7648.359 | V52: 1 | W52: -0.09933163519 | X52: =+IF(INDEX($C52:$G52,1,aux!$AL$1)>0,(G52/INDEX($C52:$G52,1,aux!$AL$1))^(1/($G$3-INDEX($C$3:$G$3,1,aux!$AL$1)))-1,"n.d.") -> 0.04042776726 | Y52: =IF(INDEX($C52:$G52,1,aux!$AL$1)>0,(G52-INDEX($C52:$G52,1,aux!$AL$1))/INDEX($C52:$G52,1,aux!$AL$1),"n.d.") -> 0.1717844678 | AA52: =O52-INDEX($K52:$O52,1,aux!$AL$1) -> 90248.703 | AB52: 1 | AC52: 0.4629464542 | AD52: =+IF(INDEX($K52:$O52,1,aux!$AL$1)>0,(O52/INDEX($K52:$O52,1,aux!$AL$1))^(1/($O$3-INDEX($K$3:$O$3,1,aux!$AL$1)))-1,"n.d.") -> 0.06484262706 | AE52: =IF(INDEX($K52:$O52,1,aux!$AL$1)>0,(O52-INDEX($K52:$O52,1,aux!$AL$1))/INDEX($K52:$O52,1,aux!$AL$1),"n.d.") -> 0.2857061248
B53: TOTAL | C53: 363100.997 | D53: 303690.524 | E53: 236779.065 | F53: 217685.539 | G53: 286102.778 | H53: 281471.7806 | J53: 1 | K53: 487290.383 | L53: 504943.297 | M53: 504332.846 | N53: 591733.208 | O53: 682234.533 | P53: 554106.8534 | R53: 1 | S53: 272635.0728 | U53: =G53-INDEX($C53:$G53,1,aux!$AL$1) -> -76998.219 | W53: 1 | X53: =+IF(INDEX($C53:$G53,1,aux!$AL$1)>0,(G53/INDEX($C53:$G53,1,aux!$AL$1))^(1/($G$3-INDEX($C$3:$G$3,1,aux!$AL$1)))-1,"n.d.") -> -0.05784217745 | Y53: =IF(INDEX($C53:$G53,1,aux!$AL$1)>0,(G53-INDEX($C53:$G53,1,aux!$AL$1))/INDEX($C53:$G53,1,aux!$AL$1),"n.d.") -> -0.2120573054 | AA53: =O53-INDEX($K53:$O53,1,aux!$AL$1) -> 194944.15 | AC53: 1 | AD53: =+IF(INDEX($K53:$O53,1,aux!$AL$1)>0,(O53/INDEX($K53:$O53,1,aux!$AL$1))^(1/($O$3-INDEX($K$3:$O$3,1,aux!$AL$1)))-1,"n.d.") -> 0.08776846577 | AE53: =IF(INDEX($K53:$O53,1,aux!$AL$1)>0,(O53-INDEX($K53:$O53,1,aux!$AL$1))/INDEX($K53:$O53,1,aux!$AL$1),"n.d.") -> 0.400057454
B54: a - agrícola e agroalimentar; p - pescas; f - florestas
A55: Fonte: GPP a partir de dados INE/Comércio Internacional (2021 provisórios; 2022 preliminares) | S55: 2023-05-22T12:29:35.360

Sheet 5.2_var
A1: ="Principais contributos por produto para a variação das trocas comerciais PT-EUA_x000D_ no período " & INDEX('5.2'!K3:N3,1,aux!AL1) & "-2022 (NC 2 dígitos - milhares de euros) Produtos agrícolas e agroalimentares, do mar e da floresta" -> Principais contributos por produto para a variação das trocas comerciais PT-EUA no período 2018-2022 (NC 2 dígitos - milhares de euros) Produtos agrícolas e agroalimentares, do mar e da floresta
E5: aumento das importações | J5: aumento das exportações
E17: redução das importações | J17: redução das exportações
A28: Fonte: GPP a partir de dados INE/Comércio Internacional (2021 provisórios; 2022 preliminares) | F28: a - agrícola e agroalimentar; p - mar; f - florestas | H28: ='3'!Y116 -> 2023-05-22T12:29:35.360
A29: Cód. NC | B29: Descritivo | C29: ="Variação das Importações " & INDEX('5.2'!K3:N3,1,aux!AL1) & "-"& '5.2'!O3 &"" -> Variação das Importações 2018-2022 | F29: Cód. NC | G29: Descritivo | H29: ="Variação das Exportações " & INDEX('5.2'!K3:N3,1,aux!AL1) & "-"& '5.2'!O3 &"" -> Variação das Exportações 2018-2022
C30: variação total em valor | D30: % do aumento/ redução total | H30: variação total em valor | I30: % do aumento/ redução total
A31: =IF(C31>0,aux!AU6,"") -> 52 | B31: =IF(C31>0,aux!AV6,"") -> Algodão (NC 5201-5203) | C31: =IF(aux!AW6>0,aux!AW6,0) -> 4644.851 | D31: =IF(SUM($C$31:$C$41)<>0,C31/SUM($C$31:$C$41),0) -> 0.2608220183 | F31: =IF(H31>0,aux!AZ6,"") -> 48 | G31: =IF(H31>0,aux!BA6,"") -> Papel e cartão | H31: =IF(aux!BB6>0,aux!BB6,0) -> 67698.252 | I31: =IF(SUM($H$31:$H$41)<>0,H31/SUM($H$31:$H$41),0) -> 0.3465006325
A32: =IF(C32>0,aux!AU7,"") -> 44 | B32: =IF(C32>0,aux!AV7,"") -> Madeira e suas obras | C32: =IF(aux!AW7>0,aux!AW7,0) -> 4085.866 | D32: =IF(SUM($C$31:$C$41)<>0,C32/SUM($C$31:$C$41),0) -> 0.2294333697 | F32: =IF(H32>0,aux!AZ7,"") -> 22 | G32: =IF(H32>0,aux!BA7,"") -> Bebidas, líquidos alcoólicos e vinagres | H32: =IF(aux!BB7>0,aux!BB7,0) -> 26933.73 | I32: =IF(SUM($H$31:$H$41)<>0,H32/SUM($H$31:$H$41),0) -> 0.1378551765
A33: =IF(C33>0,aux!AU8,"") -> 47 | B33: =IF(C33>0,aux!AV8,"") -> Pastas de madeira | C33: =IF(aux!AW8>0,aux!AW8,0) -> 2650.393 | D33: 0.148827347 | F33: =IF(H33>0,aux!AZ8,"") -> 15 | G33: =IF(H33>0,aux!BA8,"") -> Gorduras e óleos animais ou vegetais | H33: =IF(aux!BB8>0,aux!BB8,0) -> 16897.718 | I33: 0.0864877571
A34: =IF(C34>0,aux!AU9,"") -> 48 | B34: =IF(C34>0,aux!AV9,"") -> Papel e cartão | C34: =IF(aux!AW9>0,aux!AW9,0) -> 1829.29 | D34: 0.1027200033 | F34: =IF(H34>0,aux!AZ9,"") -> 20 | G34: =IF(H34>0,aux!BA9,"") -> Preparações de produtos vegetais | H34: =IF(aux!BB9>0,aux!BB9,0) -> 14990.162 | I34: 0.07672429437
A35: =IF(C35>0,aux!AU10,"") -> 33 | B35: =IF(C35>0,aux!AV10,"") -> Óleos essenciais e resinóides (NC 3301) | C35: =IF(aux!AW10>0,aux!AW10,0) -> 1766.565 | D35: 0.09919781039 | F35: =IF(H35>0,aux!AZ10,"") -> 44 | G35: =IF(H35>0,aux!BA10,"") -> Madeira e suas obras | H35: =IF(aux!BB10>0,aux!BB10,0) -> 11981.298 | I35: 0.06132399601
A36: =IF(C36>0,aux!AU11,"") -> 43 | B36: =IF(C36>0,aux!AV11,"") -> Peles com pelo em bruto (NC 4301) | C36: =IF(aux!AW11>0,aux!AW11,0) -> 934.586 | D36: 0.05247974732 | F36: =IF(H36>0,aux!AZ11,"") -> 03 | G36: =IF(H36>0,aux!BA11,"") -> Peixes e crustáceos | H36: =IF(aux!BB11>0,aux!BB11,0) -> 10931.299 | I36: 0.05594977574
A37: =IF(C37>0,aux!AU12,"") -> 18 | B37: =IF(C37>0,aux!AV12,"") -> Cacau e suas preparações | C37: =IF(aux!AW12>0,aux!AW12,0) -> 652.128 | D37: 0.03661890148 | F37: =IF(H37>0,aux!AZ12,"") -> 45 | G37: =IF(H37>0,aux!BA12,"") -> Cortiça e suas obras | H37: =IF(aux!BB12>0,aux!BB12,0) -> 10542.403 | I37: 0.0539592855
A38: =IF(C38>0,aux!AU13,"") -> 21 | B38: =IF(C38>0,aux!AV13,"") -> Preparações alimentícias diversas | C38: =IF(aux!AW13>0,aux!AW13,0) -> 567.97 | D38: 0.03189318274 | F38: =IF(H38>0,aux!AZ13,"") -> 05a | G38: =IF(H38>0,aux!BA13,"") -> Outros produtos de origem animal (exc. NC 0508, 051191) (a) | H38: =IF(aux!BB13>0,aux!BB13,0) -> 9598.052 | I38: 0.04912580444
A39: =IF(C39>0,aux!AU14,"") -> 38f | B39: =IF(C39>0,aux!AV14,"") -> Tall oil, essências e colofónias (NC 3803,3805,3806) (f) | C39: =IF(aux!AW14>0,aux!AW14,0) -> 232.614 | D39: 0.01306195892 | F39: =IF(H39>0,aux!AZ14,"") -> 16p | G39: =IF(H39>0,aux!BA14,"") -> Preparações e conservas de peixes ou crustáceos (NC 1604-05) (p) | H39: =IF(aux!BB14>0,aux!BB14,0) -> 7492.1 | I39: 0.0383468895
A40: =IF(C40>0,aux!AU15,"") -> 04 | B40: =IF(C40>0,aux!AV15,"") -> Leite e laticínios; ovos; mel, etc. | C40: =IF(aux!AW15>0,aux!AW15,0) -> 128.845 | D40: 0.007235024967 | F40: =IF(H40>0,aux!AZ15,"") -> 19a | G40: =IF(H40>0,aux!BA15,"") -> Preparações à base de cereais (exc. NC 19022010) (a) | H40: =IF(aux!BB15>0,aux!BB15,0) -> 7223.756 | I40: 0.03697342175
B41: Outros contributos para o aumento das importações | C41: =SUMIF(aux!AW16:AW51,">0") -> 315.4 | D41: 0.01771063584 | G41: Outros contributos para o aumento das exportações | H41: =SUMIF(aux!BB16:BB51,">0") -> 11088.224 | I41: 0.05675296652
B42: Outros contributos para a redução das importações | C42: =SUMIF(aux!AW6:AW41,"<0") -> -885.999 | D42: =IF(SUM($C$42:$C$52)<>0,C42/SUM($C$42:$C$52),0) -> 0.00934531787 | G42: Outros contributos para a redução das exportações | H42: =SUMIF(aux!BB6:BB41,"<0") -> 0 | I42: =IF(SUM($H$42:$H$52)<>0,H42/SUM($H$42:$H$52),0) -> 0
A43: =IF(C43<>0,aux!AU42,"") -> 11 | B43: =IF(C43<0,aux!AV42,"") -> Produtos da indústria de moagem e outros | C43: =IF(aux!AW42<0,aux!AW42,0) -> -430.861 | D43: =IF(SUM($C$42:$C$52)<>0,C43/SUM($C$42:$C$52),0) -> 0.004544624771 | F43: =IF(H43<>0,aux!AZ42,"") ->  | G43: =IF(H43<>0,aux!BA42,"") ->  | H43: =IF(aux!BB42<0,aux!BB42,0) -> 0 | I43: =IF(SUM($H$42:$H$52)<>0,H43/SUM($H$42:$H$52),0) -> 0
A44: =IF(C44<>0,aux!AU43,"") -> 24 | B44: =IF(C44<0,aux!AV43,"") -> Tabaco | C44: =IF(aux!AW43<0,aux!AW43,0) -> -1056.621 | D44: 0.01114500029 | F44: =IF(H44<>0,aux!AZ43,"") ->  | G44: =IF(H44<>0,aux!BA43,"") ->  | H44: =IF(aux!BB43<0,aux!BB43,0) -> 0 | I44: 0
A45: =IF(C45<>0,aux!AU44,"") -> 45 | B45: =IF(C45<0,aux!AV44,"") -> Cortiça e suas obras | C45: =IF(aux!AW44<0,aux!AW44,0) -> -1119.737 | D45: 0.01181073364 | F45: =IF(H45<>0,aux!AZ44,"") ->  | G45: =IF(H45<>0,aux!BA44,"") ->  | H45: =IF(aux!BB44<0,aux!BB44,0) -> 0 | I45: 0
A46: =IF(C46<>0,aux!AU45,"") -> 07 | B46: =IF(C46<0,aux!AV45,"") -> Produtos hortícolas | C46: =IF(aux!AW45<0,aux!AW45,0) -> -2737.985 | D46: 0.02887964901 | F46: =IF(H46<>0,aux!AZ45,"") -> 13f | G46: =IF(H46<>0,aux!BA45,"") -> Gomas e resinas (NC 1301) (f) | H46: =IF(aux!BB45<0,aux!BB45,0) -> -0.585 | I46: 0.001351526185
A47: =IF(C47<>0,aux!AU46,"") -> 08 | B47: =IF(C47<0,aux!AV46,"") -> Frutas | C47: =IF(aux!AW46<0,aux!AW46,0) -> -4124.736 | D47: 0.04350678618 | F47: =IF(H47<>0,aux!AZ46,"") -> 13a | G47: =IF(H47<>0,aux!BA46,"") -> Sucos e extratos vegetais (exc. NC 1301) (a) | H47: =IF(aux!BB46<0,aux!BB46,0) -> -0.692 | I47: 0.00159872841
A48: =IF(C48<>0,aux!AU47,"") -> 03 | B48: =IF(C48<0,aux!AV47,"") -> Peixes e crustáceos | C48: =IF(aux!AW47<0,aux!AW47,0) -> -6795.624 | D48: 0.07167871115 | F48: =IF(H48<>0,aux!AZ47,"") -> 24 | G48: =IF(H48<>0,aux!BA47,"") -> Tabaco | H48: =IF(aux!BB47<0,aux!BB47,0) -> -2.644 | I48: 0.006108436296
A49: =IF(C49<>0,aux!AU48,"") -> 15 | B49: =IF(C49<0,aux!AV48,"") -> Gorduras e óleos animais ou vegetais | C49: =IF(aux!AW48<0,aux!AW48,0) -> -7037.765 | D49: 0.07423275988 | F49: =IF(H49<>0,aux!AZ48,"") -> 47 | G49: =IF(H49<>0,aux!BA48,"") -> Pastas de madeira | H49: =IF(aux!BB48<0,aux!BB48,0) -> -2.863 | I49: 0.006614392252
A50: =IF(C50<>0,aux!AU49,"") -> 23a | B50: =IF(C50<0,aux!AV49,"") -> Resíduos indústrias alimentares; alimentos p/ animais (exc. NC 230120) (a) | C50: =IF(aux!AW49<0,aux!AW49,0) -> -9211.655 | D50: 0.0971624619 | F50: =IF(H50<>0,aux!AZ49,"") -> 19p | G50: =IF(H50<>0,aux!BA49,"") -> Massas recheadas com pescado (NC 19022010) (p) | H50: =IF(aux!BB49<0,aux!BB49,0) -> -47.998 | I50: 0.1108898356
A51: =IF(C51<>0,aux!AU50,"") -> 10 | B51: =IF(C51<0,aux!AV50,"") -> Cereais | C51: =IF(aux!AW50<0,aux!AW50,0) -> -20841.439 | D51: 0.2198308038 | F51: =IF(H51<>0,aux!AZ50,"") -> 08 | G51: =IF(H51<>0,aux!BA50,"") -> Frutas | H51: =IF(aux!BB50<0,aux!BB50,0) -> -58.7 | I51: 0.1356146787
A52: =IF(C52<>0,aux!AU51,"") -> 12 | B52: =IF(C52<0,aux!AV51,"") -> Sementes e frutos oleaginosos | C52: =IF(aux!AW51<0,aux!AW51,0) -> -40564.305 | D52: 0.4278631515 | F52: =IF(H52<>0,aux!AZ51,"") -> 07 | G52: =IF(H52<>0,aux!BA51,"") -> Produtos hortícolas | H52: =IF(aux!BB51<0,aux!BB51,0) -> -319.362 | I52: 0.7378224025
A53: TOTAL | C53: =SUM(C31:C52) -> -76998.219 | F53: TOTAL | H53: =SUM(H31:H52) -> 194944.15

Sheet 5.2A
A1: Trocas comerciais Portugal-EUA 2018-2022 em milhares de euros (NC 4 dígitos) | G1: Produtos agrícolas e agroalimentares, do mar e da floresta
A2: Cód. NC | B2: Descritivo | C2: Importações | K2: Exportações | S2: Saldo quinquénio (exp-imp) | T2: Evolução das importações | U2: =+"Variação das Importações " & INDEX(K3:N3,1,aux!AL1) & "-"& '5.2'!O3 &"" -> Variação das Importações 2018-2022 | Z2: Evolução das exportações | AA2: ="Variação das Exportações " & INDEX(K3:N3,1,aux!AL1) & "-"& '5.2'!O3 &"" -> Variação das Exportações 2018-2022
C3: 2018 | D3: 2019 | E3: 2020 | F3: 2021 | G3: 2022 | H3: média quinquénio | I3: % Subtot | J3: % Total | K3: 2018 | L3: 2019 | M3: 2020 | N3: 2021 | O3: 2022 | P3: média quinquénio | Q3: % Subtot | R3: % Total | U3: variação total em valor | V3: % no subtotal de variação | W3: % no total de variação | X3: taxa de variação média anual | Y3: taxa de variação total | AA3: variação total em valor | AB3: % no subtotal de variação | AC3: % no total de variação | AD3: taxa de variação média anual | AE3: taxa de variação total | AX3: filtro
A4: 0101 | B4: Equídeos vivos | C4: 0 | D4: 20.03 | E4: 12.129 | F4: 115.458 | G4: 0 | H4: 29.5234 | I4: 0.0001361903151 | J4: 0.000104889378 | K4: 31 | L4: 0 | M4: 0 | N4: 0 | O4: 0 | P4: 6.2 | Q4: 3.376594182e-05 | R4: 1.118917761e-05 | S4: -23.3234 | U4: =G4-INDEX($C4:$G4,1,aux!$AL$1) -> 0 | V4: =IF($U$237<>0,U4/$U$237, "n.d.") -> 0 | W4: =IF($U$322<>0,U4/$U$322, "n.d.") -> 0 | X4: =+IF(INDEX($C4:$G4,1,aux!$AL$1)>0,(G4/INDEX($C4:$G4,1,aux!$AL$1))^(1/($G$3-INDEX($C$3:$G$3,1,aux!$AL$1)))-1,"n.d.") -> n.d. | Y4: =IF(INDEX($C4:$G4,1,aux!$AL$1)>0,(G4-INDEX($C4:$G4,1,aux!$AL$1))/INDEX($C4:$G4,1,aux!$AL$1),"n.d.") -> n.d. | AA4: =O4-INDEX($K4:$O4,1,aux!$AL$1) -> -31 | AB4: =IF($AA$237<>0,AA4/$AA$237, "n.d.") -> -0.0003609054713 | AC4: =IF($AA$322<>0,AA4/$AA$322, "n.d.") -> -0.0001590199039 | AD4: =+IF(INDEX($K4:$O4,1,aux!$AL$1)>0,(O4/INDEX($K4:$O4,1,aux!$AL$1))^(1/($O$3-INDEX($K$3:$O$3,1,aux!$AL$1)))-1,"n.d.") -> -1 | AE4: =IF(INDEX($K4:$O4,1,aux!$AL$1)>0,(O4-INDEX($K4:$O4,1,aux!$AL$1))/INDEX($K4:$O4,1,aux!$AL$1),"n.d.") -> -1 | AX4: =+LEFT(A4,2) -> 01
A5: 0102 | B5: Bovinos vivos | C5: 0 | D5: 0 | E5: 0 | F5: 0 | G5: 0 | H5: 0 | I5: 0 | J5: 0 | K5: 0 | L5: 0 | M5: 0 | N5: 0 | O5: 0 | P5: 0 | Q5: 0 | R5: 0 | S5: 0 | U5: =G5-INDEX($C5:$G5,1,aux!$AL$1) -> 0 | V5: 0 | W5: 0 | X5: =+IF(INDEX($C5:$G5,1,aux!$AL$1)>0,(G5/INDEX($C5:$G5,1,aux!$AL$1))^(1/($G$3-INDEX($C$3:$G$3,1,aux!$AL$1)))-1,"n.d.") -> n.d. | Y5: =IF(INDEX($C5:$G5,1,aux!$AL$1)>0,(G5-INDEX($C5:$G5,1,aux!$AL$1))/INDEX($C5:$G5,1,aux!$AL$1),"n.d.") -> n.d. | AA5: =O5-INDEX($K5:$O5,1,aux!$AL$1) -> 0 | AB5: 0 | AC5: 0 | AD5: =+IF(INDEX($K5:$O5,1,aux!$AL$1)>0,(O5/INDEX($K5:$O5,1,aux!$AL$1))^(1/($O$3-INDEX($K$3:$O$3,1,aux!$AL$1)))-1,"n.d.") -> n.d. | AE5: =IF(INDEX($K5:$O5,1,aux!$AL$1)>0,(O5-INDEX($K5:$O5,1,aux!$AL$1))/INDEX($K5:$O5,1,aux!$AL$1),"n.d.") -> n.d. | AX5: 01
A6: 0103 | B6: Suínos vivos | C6: 0 | D6: 0 | E6: 0 | F6: 0 | G6: 0 | H6: 0 | I6: 0 | J6: 0 | K6: 0 | L6: 0 | M6: 0 | N6: 0 | O6: 0 | P6: 0 | Q6: 0 | R6: 0 | S6: 0 | U6: =G6-INDEX($C6:$G6,1,aux!$AL$1) -> 0 | V6: 0 | W6: 0 | X6: =+IF(INDEX($C6:$G6,1,aux!$AL$1)>0,(G6/INDEX($C6:$G6,1,aux!$AL$1))^(1/($G$3-INDEX($C$3:$G$3,1,aux!$AL$1)))-1,"n.d.") -> n.d. | Y6: =IF(INDEX($C6:$G6,1,aux!$AL$1)>0,(G6-INDEX($C6:$G6,1,aux!$AL$1))/INDEX($C6:$G6,1,aux!$AL$1),"n.d.") -> n.d. | AA6: =O6-INDEX($K6:$O6,1,aux!$AL$1) -> 0 | AB6: 0 | AC6: 0 | AD6: =+IF(INDEX($K6:$O6,1,aux!$AL$1)>0,(O6/INDEX($K6:$O6,1,aux!$AL$1))^(1/($O$3-INDEX($K$3:$O$3,1,aux!$AL$1)))-1,"n.d.") -> n.d. | AE6: =IF(INDEX($K6:$O6,1,aux!$AL$1)>0,(O6-INDEX($K6:$O6,1,aux!$AL$1))/INDEX($K6:$O6,1,aux!$AL$1),"n.d.") -> n.d. | AX6: 01
A7: 0104 | B7: Ovinos ou caprinos vivos | C7: 0 | D7: 0 | E7: 0 | F7: 0 | G7: 0 | H7: 0 | I7: 0 | J7: 0 | K7: 0 | L7: 0 | M7: 0 | N7: 0 | O7: 0 | P7: 0 | Q7: 0 | R7: 0 | S7: 0 | U7: =G7-INDEX($C7:$G7,1,aux!$AL$1) -> 0 | V7: 0 | W7: 0 | X7: =+IF(INDEX($C7:$G7,1,aux!$AL$1)>0,(G7/INDEX($C7:$G7,1,aux!$AL$1))^(1/($G$3-INDEX($C$3:$G$3,1,aux!$AL$1)))-1,"n.d.") -> n.d. | Y7: =IF(INDEX($C7:$G7,1,aux!$AL$1)>0,(G7-INDEX($C7:$G7,1,aux!$AL$1))/INDEX($C7:$G7,1,aux!$AL$1),"n.d.") -> n.d. | AA7: =O7-INDEX($K7:$O7,1,aux!$AL$1) -> 0 | AB7: 0 | AC7: 0 | AD7: =+IF(INDEX($K7:$O7,1,aux!$AL$1)>0,(O7/INDEX($K7:$O7,1,aux!$AL$1))^(1/($O$3-INDEX($K$3:$O$3,1,aux!$AL$1)))-1,"n.d.") -> n.d. | AE7: =IF(INDEX($K7:$O7,1,aux!$AL$1)>0,(O7-INDEX($K7:$O7,1,aux!$AL$1))/INDEX($K7:$O7,1,aux!$AL$1),"n.d.") -> n.d. | AX7: 01
A8: 0105 | B8: Aves de capoeira vivas | C8: 0 | D8: 0 | E8: 0 | F8: 0 | G8: 0 | H8: 0 | I8: 0 | J8: 0 | K8: 0 | L8: 0 | M8: 0 | N8: 0 | O8: 0 | P8: 0 | Q8: 0 | R8: 0 | S8: 0 | U8: =G8-INDEX($C8:$G8,1,aux!$AL$1) -> 0 | V8: 0 | W8: 0 | X8: =+IF(INDEX($C8:$G8,1,aux!$AL$1)>0,(G8/INDEX($C8:$G8,1,aux!$AL$1))^(1/($G$3-INDEX($C$3:$G$3,1,aux!$AL$1)))-1,"n.d.") -> n.d. | Y8: =IF(INDEX($C8:$G8,1,aux!$AL$1)>0,(G8-INDEX($C8:$G8,1,aux!$AL$1))/INDEX($C8:$G8,1,aux!$AL$1),"n.d.") -> n.d. | AA8: =O8-INDEX($K8:$O8,1,aux!$AL$1) -> 0 | AB8: 0 | AC8: 0 | AD8: =+IF(INDEX($K8:$O8,1,aux!$AL$1)>0,(O8/INDEX($K8:$O8,1,aux!$AL$1))^(1/($O$3-INDEX($K$3:$O$3,1,aux!$AL$1)))-1,"n.d.") -> n.d. | AE8: =IF(INDEX($K8:$O8,1,aux!$AL$1)>0,(O8-INDEX($K8:$O8,1,aux!$AL$1))/INDEX($K8:$O8,1,aux!$AL$1),"n.d.") -> n.d. | AX8: 01
A9: 0106 | B9: Outros animais vivos | C9: 907.233 | D9: 1386.001 | E9: 934.603 | F9: 562.95 | G9: 547.865 | H9: 867.7304 | I9: 0.00400280715 | J9: 0.003082832667 | K9: 32.165 | L9: 24.337 | M9: 41.076 | N9: 71.499 | O9: 71.137 | P9: 48.0428 | Q9: 0.000261646837 | R9: 8.670313263e-05 | S9: -819.6876 | U9: =G9-INDEX($C9:$G9,1,aux!$AL$1) -> -359.368 | V9: 0.004626861148 | W9: 0.004667224835 | X9: =+IF(INDEX($C9:$G9,1,aux!$AL$1)>0,(G9/INDEX($C9:$G9,1,aux!$AL$1))^(1/($G$3-INDEX($C$3:$G$3,1,aux!$AL$1)))-1,"n.d.") -> -0.1184667874 | Y9: =IF(INDEX($C9:$G9,1,aux!$AL$1)>0,(G9-INDEX($C9:$G9,1,aux!$AL$1))/INDEX($C9:$G9,1,aux!$AL$1),"n.d.") -> -0.3961143389 | AA9: =O9-INDEX($K9:$O9,1,aux!$AL$1) -> 38.972 | AB9: 0.000453716388 | AC9: 0.0001999136676 | AD9: =+IF(INDEX($K9:$O9,1,aux!$AL$1)>0,(O9/INDEX($K9:$O9,1,aux!$AL$1))^(1/($O$3-INDEX($K$3:$O$3,1,aux!$AL$1)))-1,"n.d.") -> 0.2194893098 | AE9: =IF(INDEX($K9:$O9,1,aux!$AL$1)>0,(O9-INDEX($K9:$O9,1,aux!$AL$1))/INDEX($K9:$O9,1,aux!$AL$1),"n.d.") -> 1.211627545 | AX9: 01
A10: 01SS | B10: Animais vivos | C10: 0 | D10: 0 | E10: 0 | F10: 0 | G10: 0 | H10: 0 | I10: 0 | J10: 0 | K10: 0 | L10: 0 | M10: 0 | N10: 0 | O10: 0 | P10: 0 | Q10: 0 | R10: 0 | S10: 0 | U10: =G10-INDEX($C10:$G10,1,aux!$AL$1) -> 0 | V10: 0 | W10: 0 | X10: =+IF(INDEX($C10:$G10,1,aux!$AL$1)>0,(G10/INDEX($C10:$G10,1,aux!$AL$1))^(1/($G$3-INDEX($C$3:$G$3,1,aux!$AL$1)))-1,"n.d.") -> n.d. | Y10: =IF(INDEX($C10:$G10,1,aux!$AL$1)>0,(G10-INDEX($C10:$G10,1,aux!$AL$1))/INDEX($C10:$G10,1,aux!$AL$1),"n.d.") -> n.d. | AA10: =O10-INDEX($K10:$O10,1,aux!$AL$1) -> 0 | AB10: 0 | AC10: 0 | AD10: =+IF(INDEX($K10:$O10,1,aux!$AL$1)>0,(O10/INDEX($K10:$O10,1,aux!$AL$1))^(1/($O$3-INDEX($K$3:$O$3,1,aux!$AL$1)))-1,"n.d.") -> n.d. | AE10: =IF(INDEX($K10:$O10,1,aux!$AL$1)>0,(O10-INDEX($K10:$O10,1,aux!$AL$1))/INDEX($K10:$O10,1,aux!$AL$1),"n.d.") -> n.d. | AX10: 01
A11: 0201 | B11: Carnes de bovino, frescas ou refrigeradas | C11: 0 | D11: 0 | E11: 0 | F11: 0 | G11: 0 | H11: 0 | I11: 0 | J11: 0 | K11: 0 | L11: 0 | M11: 0 | N11: 0 | O11: 1.034 | P11: 0.2068 | Q11: 1.126257543e-06 | R11: 3.732132146e-07 | S11: 0.2068 | U11: =G11-INDEX($C11:$G11,1,aux!$AL$1) -> 0 | V11: 0 | W11: 0 | X11: =+IF(INDEX($C11:$G11,1,aux!$AL$1)>0,(G11/INDEX($C11:$G11,1,aux!$AL$1))^(1/($G$3-INDEX($C$3:$G$3,1,aux!$AL$1)))-1,"n.d.") -> n.d. | Y11: =IF(INDEX($C11:$G11,1,aux!$AL$1)>0,(G11-INDEX($C11:$G11,1,aux!$AL$1))/INDEX($C11:$G11,1,aux!$AL$1),"n.d.") -> n.d. | AA11: =O11-INDEX($K11:$O11,1,aux!$AL$1) -> 1.034 | AB11: 1.203794379e-05 | AC11: 5.304083246e-06 | AD11: =+IF(INDEX($K11:$O11,1,aux!$AL$1)>0,(O11/INDEX($K11:$O11,1,aux!$AL$1))^(1/($O$3-INDEX($K$3:$O$3,1,aux!$AL$1)))-1,"n.d.") -> n.d. | AE11: =IF(INDEX($K11:$O11,1,aux!$AL$1)>0,(O11-INDEX($K11:$O11,1,aux!$AL$1))/INDEX($K11:$O11,1,aux!$AL$1),"n.d.") -> n.d. | AX11: 02
A12: 0202 | B12: Carnes de bovino, congeladas | C12: 0 | D12: 0 | E12: 0 | F12: 0 | G12: 0 | H12: 0 | I12: 0 | J12: 0 | K12: 0 | L12: 0 | M12: 0 | N12: 0 | O12: 0 | P12: 0 | Q12: 0 | R12: 0 | S12: 0 | U12: =G12-INDEX($C12:$G12,1,aux!$AL$1) -> 0 | V12: 0 | W12: 0 | X12: =+IF(INDEX($C12:$G12,1,aux!$AL$1)>0,(G12/INDEX($C12:$G12,1,aux!$AL$1))^(1/($G$3-INDEX($C$3:$G$3,1,aux!$AL$1)))-1,"n.d.") -> n.d. | Y12: =IF(INDEX($C12:$G12,1,aux!$AL$1)>0,(G12-INDEX($C12:$G12,1,aux!$AL$1))/INDEX($C12:$G12,1,aux!$AL$1),"n.d.") -> n.d. | AA12: =O12-INDEX($K12:$O12,1,aux!$AL$1) -> 0 | AB12: 0 | AC12: 0 | AD12: =+IF(INDEX($K12:$O12,1,aux!$AL$1)>0,(O12/INDEX($K12:$O12,1,aux!$AL$1))^(1/($O$3-INDEX($K$3:$O$3,1,aux!$AL$1)))-1,"n.d.") -> n.d. | AE12: =IF(INDEX($K12:$O12,1,aux!$AL$1)>0,(O12-INDEX($K12:$O12,1,aux!$AL$1))/INDEX($K12:$O12,1,aux!$AL$1),"n.d.") -> n.d. | AX12: 02
A13: 0203 | B13: Carnes de suíno | C13: 0 | D13: 0 | E13: 0 | F13: 0 | G13: 0 | H13: 0 | I13: 0 | J13: 0 | K13: 0.124 | L13: 0 | M13: 0 | N13: 0.012 | O13: 0 | P13: 0.0272 | Q13: 1.481344544e-07 | R13: 4.908800502e-08 | S13: 0.0272 | U13: =G13-INDEX($C13:$G13,1,aux!$AL$1) -> 0 | V13: 0 | W13: 0 | X13: =+IF(INDEX($C13:$G13,1,aux!$AL$1)>0,(G13/INDEX($C13:$G13,1,aux!$AL$1))^(1/($G$3-INDEX($C$3:$G$3,1,aux!$AL$1)))-1,"n.d.") -> n.d. | Y13: =IF(INDEX($C13:$G13,1,aux!$AL$1)>0,(G13-INDEX($C13:$G13,1,aux!$AL$1))/INDEX($C13:$G13,1,aux!$AL$1),"n.d.") -> n.d. | AA13: =O13-INDEX($K13:$O13,1,aux!$AL$1) -> -0.124 | AB13: -1.443621885e-06 | AC13: -6.360796156e-07 | AD13: =+IF(INDEX($K13:$O13,1,aux!$AL$1)>0,(O13/INDEX($K13:$O13,1,aux!$AL$1))^(1/($O$3-INDEX($K$3:$O$3,1,aux!$AL$1)))-1,"n.d.") -> -1 | AE13: =IF(INDEX($K13:$O13,1,aux!$AL$1)>0,(O13-INDEX($K13:$O13,1,aux!$AL$1))/INDEX($K13:$O13,1,aux!$AL$1),"n.d.") -> -1 | AX13: 02
A14: 0204 | B14: Carnes de ovino ou caprino | C14: 0 | D14: 0 | E14: 0 | F14: 0 | G14: 0 | H14: 0 | I14: 0 | J14: 0 | K14: 0 | L14: 0 | M14: 0 | N14: 0 | O14: 0 | P14: 0 | Q14: 0 | R14: 0 | S14: 0 | U14: =G14-INDEX($C14:$G14,1,aux!$AL$1) -> 0 | V14: 0 | W14: 0 | X14: =+IF(INDEX($C14:$G14,1,aux!$AL$1)>0,(G14/INDEX($C14:$G14,1,aux!$AL$1))^(1/($G$3-INDEX($C$3:$G$3,1,aux!$AL$1)))-1,"n.d.") -> n.d. | Y14: =IF(INDEX($C14:$G14,1,aux!$AL$1)>0,(G14-INDEX($C14:$G14,1,aux!$AL$1))/INDEX($C14:$G14,1,aux!$AL$1),"n.d.") -> n.d. | AA14: =O14-INDEX($K14:$O14,1,aux!$AL$1) -> 0 | AB14: 0 | AC14: 0 | AD14: =+IF(INDEX($K14:$O14,1,aux!$AL$1)>0,(O14/INDEX($K14:$O14,1,aux!$AL$1))^(1/($O$3-INDEX($K$3:$O$3,1,aux!$AL$1)))-1,"n.d.") -> n.d. | AE14: =IF(INDEX($K14:$O14,1,aux!$AL$1)>0,(O14-INDEX($K14:$O14,1,aux!$AL$1))/INDEX($K14:$O14,1,aux!$AL$1),"n.d.") -> n.d. | AX14: 02
A15: 0205 | B15: Carnes de equídeo | C15: 0 | D15: 0 | E15: 0 | F15: 0 | G15: 0 | H15: 0 | I15: 0 | J15: 0 | K15: 0 | L15: 0 | M15: 0 | N15: 0 | O15: 0 | P15: 0 | Q15: 0 | R15: 0 | S15: 0 | U15: =G15-INDEX($C15:$G15,1,aux!$AL$1) -> 0 | V15: 0 | W15: 0 | X15: =+IF(INDEX($C15:$G15,1,aux!$AL$1)>0,(G15/INDEX($C15:$G15,1,aux!$AL$1))^(1/($G$3-INDEX($C$3:$G$3,1,aux!$AL$1)))-1,"n.d.") -> n.d. | Y15: =IF(INDEX($C15:$G15,1,aux!$AL$1)>0,(G15-INDEX($C15:$G15,1,aux!$AL$1))/INDEX($C15:$G15,1,aux!$AL$1),"n.d.") -> n.d. | AA15: =O15-INDEX($K15:$O15,1,aux!$AL$1) -> 0 | AB15: 0 | AC15: 0 | AD15: =+IF(INDEX($K15:$O15,1,aux!$AL$1)>0,(O15/INDEX($K15:$O15,1,aux!$AL$1))^(1/($O$3-INDEX($K$3:$O$3,1,aux!$AL$1)))-1,"n.d.") -> n.d. | AE15: =IF(INDEX($K15:$O15,1,aux!$AL$1)>0,(O15-INDEX($K15:$O15,1,aux!$AL$1))/INDEX($K15:$O15,1,aux!$AL$1),"n.d.") -> n.d. | AX15: 02
A16: 0206 | B16: Miudezas de bovino, suíno, ovino, caprino,equídeo | C16: 0 | D16: 0 | E16: 0 | F16: 0 | G16: 0 | H16: 0 | I16: 0 | J16: 0 | K16: 0 | L16: 0 | M16: 0 | N16: 0 | O16: 0 | P16: 0 | Q16: 0 | R16: 0 | S16: 0 | U16: =G16-INDEX($C16:$G16,1,aux!$AL$1) -> 0 | V16: 0 | W16: 0 | X16: =+IF(INDEX($C16:$G16,1,aux!$AL$1)>0,(G16/INDEX($C16:$G16,1,aux!$AL$1))^(1/($G$3-INDEX($C$3:$G$3,1,aux!$AL$1)))-1,"n.d.") -> n.d. | Y16: =IF(INDEX($C16:$G16,1,aux!$AL$1)>0,(G16-INDEX($C16:$G16,1,aux!$AL$1))/INDEX($C16:$G16,1,aux!$AL$1),"n.d.") -> n.d. | AA16: =O16-INDEX($K16:$O16,1,aux!$AL$1) -> 0 | AB16: 0 | AC16: 0 | AD16: =+IF(INDEX($K16:$O16,1,aux!$AL$1)>0,(O16/INDEX($K16:$O16,1,aux!$AL$1))^(1/($O$3-INDEX($K$3:$O$3,1,aux!$AL$1)))-1,"n.d.") -> n.d. | AE16: =IF(INDEX($K16:$O16,1,aux!$AL$1)>0,(O16-INDEX($K16:$O16,1,aux!$AL$1))/INDEX($K16:$O16,1,aux!$AL$1),"n.d.") -> n.d. | AX16: 02
A17: 0207 | B17: Carnes e miudezas de aves de capoeira | C17: 0 | D17: 0 | E17: 0 | F17: 0 | G17: 0 | H17: 0 | I17: 0 | J17: 0 | K17: 128.351 | L17: 0 | M17: 0 | N17: 298.976 | O17: 178.677 | P17: 121.2008 | Q17: 0.0006600740582 | R17: 0.0002187318191 | S17: 121.2008 | U17: =G17-INDEX($C17:$G17,1,aux!$AL$1) -> 0 | V17: 0 | W17: 0 | X17: =+IF(INDEX($C17:$G17,1,aux!$AL$1)>0,(G17/INDEX($C17:$G17,1,aux!$AL$1))^(1/($G$3-INDEX($C$3:$G$3,1,aux!$AL$1)))-1,"n.d.") -> n.d. | Y17: =IF(INDEX($C17:$G17,1,aux!$AL$1)>0,(G17-INDEX($C17:$G17,1,aux!$AL$1))/INDEX($C17:$G17,1,aux!$AL$1),"n.d.") -> n.d. | AA17: =O17-INDEX($K17:$O17,1,aux!$AL$1) -> 50.326 | AB17: 0.0005859009274 | AC17: 0.0002581559898 | AD17: =+IF(INDEX($K17:$O17,1,aux!$AL$1)>0,(O17/INDEX($K17:$O17,1,aux!$AL$1))^(1/($O$3-INDEX($K$3:$O$3,1,aux!$AL$1)))-1,"n.d.") -> 0.08621888418 | AE17: =IF(INDEX($K17:$O17,1,aux!$AL$1)>0,(O17-INDEX($K17:$O17,1,aux!$AL$1))/INDEX($K17:$O17,1,aux!$AL$1),"n.d.") -> 0.3920966724 | AX17: 02
A18: 0208 | B18: Outras carnes e miudezas | C18: 0 | D18: 0 | E18: 0 | F18: 0 | G18: 0 | H18: 0 | I18: 0 | J18: 0 | K18: 156.958 | L18: 163.686 | M18: 412.036 | N18: 259.784 | O18: 246.133 | P18: 247.7194 | Q18: 0.001349109492 | R18: 0.0004470607041 | S18: 247.7194 | U18: =G18-INDEX($C18:$G18,1,aux!$AL$1) -> 0 | V18: 0 | W18: 0 | X18: =+IF(INDEX($C18:$G18,1,aux!$AL$1)>0,(G18/INDEX($C18:$G18,1,aux!$AL$1))^(1/($G$3-INDEX($C$3:$G$3,1,aux!$AL$1)))-1,"n.d.") -> n.d. | Y18: =IF(INDEX($C18:$G18,1,aux!$AL$1)>0,(G18-INDEX($C18:$G18,1,aux!$AL$1))/INDEX($C18:$G18,1,aux!$AL$1),"n.d.") -> n.d. | AA18: =O18-INDEX($K18:$O18,1,aux!$AL$1) -> 89.175 | AB18: 0.001038185336 | AC18: 0.0004574387074 | AD18: =+IF(INDEX($K18:$O18,1,aux!$AL$1)>0,(O18/INDEX($K18:$O18,1,aux!$AL$1))^(1/($O$3-INDEX($K$3:$O$3,1,aux!$AL$1)))-1,"n.d.") -> 0.1190425422 | AE18: =IF(INDEX($K18:$O18,1,aux!$AL$1)>0,(O18-INDEX($K18:$O18,1,aux!$AL$1))/INDEX($K18:$O18,1,aux!$AL$1),"n.d.") -> 0.5681456186 | AX18: 02
A19: 0209 | B19: Toucinho, gorduras de porco e de aves | C19: 0 | D19: 0 | E19: 0 | F19: 0 | G19: 0 | H19: 0 | I19: 0 | J19: 0 | K19: 0 | L19: 0 | M19: 0 | N19: 0 | O19: 0 | P19: 0 | Q19: 0 | R19: 0 | S19: 0 | U19: =G19-INDEX($C19:$G19,1,aux!$AL$1) -> 0 | V19: 0 | W19: 0 | X19: =+IF(INDEX($C19:$G19,1,aux!$AL$1)>0,(G19/INDEX($C19:$G19,1,aux!$AL$1))^(1/($G$3-INDEX($C$3:$G$3,1,aux!$AL$1)))-1,"n.d.") -> n.d. | Y19: =IF(INDEX($C19:$G19,1,aux!$AL$1)>0,(G19-INDEX($C19:$G19,1,aux!$AL$1))/INDEX($C19:$G19,1,aux!$AL$1),"n.d.") -> n.d. | AA19: =O19-INDEX($K19:$O19,1,aux!$AL$1) -> 0 | AB19: 0 | AC19: 0 | AD19: =+IF(INDEX($K19:$O19,1,aux!$AL$1)>0,(O19/INDEX($K19:$O19,1,aux!$AL$1))^(1/($O$3-INDEX($K$3:$O$3,1,aux!$AL$1)))-1,"n.d.") -> n.d. | AE19: =IF(INDEX($K19:$O19,1,aux!$AL$1)>0,(O19-INDEX($K19:$O19,1,aux!$AL$1))/INDEX($K19:$O19,1,aux!$AL$1),"n.d.") -> n.d. | AX19: 02
A20: 0210 | B20: Carnes e miudezas processadas; farinhas de carnes | C20: 0 | D20: 0 | E20: 0 | F20: 0 | G20: 0 | H20: 0 | I20: 0 | J20: 0 | K20: 0 | L20: 0 | M20: 0 | N20: 0.181 | O20: 0.009 | P20: 0.038 | Q20: 2.069525466e-07 | R20: 6.857883054e-08 | S20: 0.038 | U20: =G20-INDEX($C20:$G20,1,aux!$AL$1) -> 0 | V20: 0 | W20: 0 | X20: =+IF(INDEX($C20:$G20,1,aux!$AL$1)>0,(G20/INDEX($C20:$G20,1,aux!$AL$1))^(1/($G$3-INDEX($C$3:$G$3,1,aux!$AL$1)))-1,"n.d.") -> n.d. | Y20: =IF(INDEX($C20:$G20,1,aux!$AL$1)>0,(G20-INDEX($C20:$G20,1,aux!$AL$1))/INDEX($C20:$G20,1,aux!$AL$1),"n.d.") -> n.d. | AA20: =O20-INDEX($K20:$O20,1,aux!$AL$1) -> 0.009 | AB20: 1.047790078e-07 | AC20: 4.616706888e-08 | AD20: =+IF(INDEX($K20:$O20,1,aux!$AL$1)>0,(O20/INDEX($K20:$O20,1,aux!$AL$1))^(1/($O$3-INDEX($K$3:$O$3,1,aux!$AL$1)))-1,"n.d.") -> n.d. | AE20: =IF(INDEX($K20:$O20,1,aux!$AL$1)>0,(O20-INDEX($K20:$O20,1,aux!$AL$1))/INDEX($K20:$O20,1,aux!$AL$1),"n.d.") -> n.d. | AX20: 02
A21: 02SS | B21: Carnes e miudezas, comestíveis | C21: 0 | D21: 0 | E21: 0 | F21: 0 | G21: 0 | H21: 0 | I21: 0 | J21: 0 | K21: 0 | L21: 0 | M21: 0 | N21: 0 | O21: 0 | P21: 0 | Q21: 0 | R21: 0 | S21: 0 | U21: =G21-INDEX($C21:$G21,1,aux!$AL$1) -> 0 | V21: 0 | W21: 0 | X21: =+IF(INDEX($C21:$G21,1,aux!$AL$1)>0,(G21/INDEX($C21:$G21,1,aux!$AL$1))^(1/($G$3-INDEX($C$3:$G$3,1,aux!$AL$1)))-1,"n.d.") -> n.d. | Y21: =IF(INDEX($C21:$G21,1,aux!$AL$1)>0,(G21-INDEX($C21:$G21,1,aux!$AL$1))/INDEX($C21:$G21,1,aux!$AL$1),"n.d.") -> n.d. | AA21: =O21-INDEX($K21:$O21,1,aux!$AL$1) -> 0 | AB21: 0 | AC21: 0 | AD21: =+IF(INDEX($K21:$O21,1,aux!$AL$1)>0,(O21/INDEX($K21:$O21,1,aux!$AL$1))^(1/($O$3-INDEX($K$3:$O$3,1,aux!$AL$1)))-1,"n.d.") -> n.d. | AE21: =IF(INDEX($K21:$O21,1,aux!$AL$1)>0,(O21-INDEX($K21:$O21,1,aux!$AL$1))/INDEX($K21:$O21,1,aux!$AL$1),"n.d.") -> n.d. | AX21: 02
A22: 0401 | B22: Leite e nata, não concentrados | C22: 0 | D22: 0 | E22: 0 | F22: 0 | G22: 0 | H22: 0 | I22: 0 | J22: 0 | K22: 0 | L22: 11.263 | M22: 65.242 | N22: 38.526 | O22: 69.216 | P22: 36.8494 | Q22: 0.0002006862414 | R22: 6.650233574e-05 | S22: 36.8494 | U22: =G22-INDEX($C22:$G22,1,aux!$AL$1) -> 0 | V22: 0 | W22: 0 | X22: =+IF(INDEX($C22:$G22,1,aux!$AL$1)>0,(G22/INDEX($C22:$G22,1,aux!$AL$1))^(1/($G$3-INDEX($C$3:$G$3,1,aux!$AL$1)))-1,"n.d.") -> n.d. | Y22: =IF(INDEX($C22:$G22,1,aux!$AL$1)>0,(G22-INDEX($C22:$G22,1,aux!$AL$1))/INDEX($C22:$G22,1,aux!$AL$1),"n.d.") -> n.d. | AA22: =O22-INDEX($K22:$O22,1,aux!$AL$1) -> 69.216 | AB22: 0.0008058204227 | AC22: 0.0003550555377 | AD22: =+IF(INDEX($K22:$O22,1,aux!$AL$1)>0,(O22/INDEX($K22:$O22,1,aux!$AL$1))^(1/($O$3-INDEX($K$3:$O$3,1,aux!$AL$1)))-1,"n.d.") -> n.d. | AE22: =IF(INDEX($K22:$O22,1,aux!$AL$1)>0,(O22-INDEX($K22:$O22,1,aux!$AL$1))/INDEX($K22:$O22,1,aux!$AL$1),"n.d.") -> n.d. | AX22: 04
A23: 0402 | B23: Leite e nata, concentrados | C23: 0 | D23: 0 | E23: 0 | F23: 3.72 | G23: 0.175 | H23: 0.779 | I23: 3.593497208e-06 | J23: 2.767595381e-06 | K23: 0 | L23: 62.551 | M23: 67.779 | N23: 75.184 | O23: 78.578 | P23: 56.8184 | Q23: 0.0003094398046 | R23: 0.0001025405112 | S23: 56.0394 | U23: =G23-INDEX($C23:$G23,1,aux!$AL$1) -> 0.175 | V23: -2.253124098e-06 | W23: -2.272779842e-06 | X23: =+IF(INDEX($C23:$G23,1,aux!$AL$1)>0,(G23/INDEX($C23:$G23,1,aux!$AL$1))^(1/($G$3-INDEX($C$3:$G$3,1,aux!$AL$1)))-1,"n.d.") -> n.d. | Y23: =IF(INDEX($C23:$G23,1,aux!$AL$1)>0,(G23-INDEX($C23:$G23,1,aux!$AL$1))/INDEX($C23:$G23,1,aux!$AL$1),"n.d.") -> n.d. | AA23: =O23-INDEX($K23:$O23,1,aux!$AL$1) -> 78.578 | AB23: 0.000914813875 | AC23: 0.0004030795487 | AD23: =+IF(INDEX($K23:$O23,1,aux!$AL$1)>0,(O23/INDEX($K23:$O23,1,aux!$AL$1))^(1/($O$3-INDEX($K$3:$O$3,1,aux!$AL$1)))-1,"n.d.") -> n.d. | AE23: =IF(INDEX($K23:$O23,1,aux!$AL$1)>0,(O23-INDEX($K23:$O23,1,aux!$AL$1))/INDEX($K23:$O23,1,aux!$AL$1),"n.d.") -> n.d. | AX23: 04
A24: 0403 | B24: Leitelho, leite coalhado, iogurte, etc. | C24: 0 | D24: 0 | E24: 0 | F24: 0 | G24: 0 | H24: 0 | I24: 0 | J24: 0 | K24: 4.71 | L24: 29.693 | M24: 16.307 | N24: 33.083 | O24: 2.246 | P24: 17.2078 | Q24: 9.371573768e-05 | R24: 3.105502106e-05 | S24: 17.2078 | U24: =G24-INDEX($C24:$G24,1,aux!$AL$1) -> 0 | V24: 0 | W24: 0 | X24: =+IF(INDEX($C24:$G24,1,aux!$AL$1)>0,(G24/INDEX($C24:$G24,1,aux!$AL$1))^(1/($G$3-INDEX($C$3:$G$3,1,aux!$AL$1)))-1,"n.d.") -> n.d. | Y24: =IF(INDEX($C24:$G24,1,aux!$AL$1)>0,(G24-INDEX($C24:$G24,1,aux!$AL$1))/INDEX($C24:$G24,1,aux!$AL$1),"n.d.") -> n.d. | AA24: =O24-INDEX($K24:$O24,1,aux!$AL$1) -> -2.464 | AB24: -2.868616391e-05 | AC24: -1.263951752e-05 | AD24: =+IF(INDEX($K24:$O24,1,aux!$AL$1)>0,(O24/INDEX($K24:$O24,1,aux!$AL$1))^(1/($O$3-INDEX($K$3:$O$3,1,aux!$AL$1)))-1,"n.d.") -> -0.1690072952 | AE24: =IF(INDEX($K24:$O24,1,aux!$AL$1)>0,(O24-INDEX($K24:$O24,1,aux!$AL$1))/INDEX($K24:$O24,1,aux!$AL$1),"n.d.") -> -0.5231422505 | AX24: 04
A25: 0404 | B25: Soro de leite e outros produtos do leite | C25: 0 | D25: 0 | E25: 0 | F25: 0 | G25: 0.038 | H25: 0.0076 | I25: 3.505850934e-08 | J25: 2.700093055e-08 | K25: 0 | L25: 0 | M25: 0 | N25: 0 | O25: 0 | P25: 0 | Q25: 0 | R25: 0 | S25: -0.0076 | U25: =G25-INDEX($C25:$G25,1,aux!$AL$1) -> 0.038 | V25: -4.892498042e-07 | W25: -4.935179085e-07 | X25: =+IF(INDEX($C25:$G25,1,aux!$AL$1)>0,(G25/INDEX($C25:$G25,1,aux!$AL$1))^(1/($G$3-INDEX($C$3:$G$3,1,aux!$AL$1)))-1,"n.d.") -> n.d. | Y25: =IF(INDEX($C25:$G25,1,aux!$AL$1)>0,(G25-INDEX($C25:$G25,1,aux!$AL$1))/INDEX($C25:$G25,1,aux!$AL$1),"n.d.") -> n.d. | AA25: =O25-INDEX($K25:$O25,1,aux!$AL$1) -> 0 | AB25: 0 | AC25: 0 | AD25: =+IF(INDEX($K25:$O25,1,aux!$AL$1)>0,(O25/INDEX($K25:$O25,1,aux!$AL$1))^(1/($O$3-INDEX($K$3:$O$3,1,aux!$AL$1)))-1,"n.d.") -> n.d. | AE25: =IF(INDEX($K25:$O25,1,aux!$AL$1)>0,(O25-INDEX($K25:$O25,1,aux!$AL$1))/INDEX($K25:$O25,1,aux!$AL$1),"n.d.") -> n.d. | AX25: 04
A26: 0405 | B26: Manteiga | C26: 0 | D26: 0 | E26: 0 | F26: 0 | G26: 0 | H26: 0 | I26: 0 | J26: 0 | K26: 111.791 | L26: 134.811 | M26: 138.907 | N26: 137.024 | O26: 184.317 | P26: 141.37 | Q26: 0.0007699179346 | R26: 0.0002551312967 | S26: 141.37 | U26: =G26-INDEX($C26:$G26,1,aux!$AL$1) -> 0 | V26: 0 | W26: 0 | X26: =+IF(INDEX($C26:$G26,1,aux!$AL$1)>0,(G26/INDEX($C26:$G26,1,aux!$AL$1))^(1/($G$3-INDEX($C$3:$G$3,1,aux!$AL$1)))-1,"n.d.") -> n.d. | Y26: =IF(INDEX($C26:$G26,1,aux!$AL$1)>0,(G26-INDEX($C26:$G26,1,aux!$AL$1))/INDEX($C26:$G26,1,aux!$AL$1),"n.d.") -> n.d. | AA26: =O26-INDEX($K26:$O26,1,aux!$AL$1) -> 72.526 | AB26: 0.0008443558133 | AC26: 0.0003720347597 | AD26: =+IF(INDEX($K26:$O26,1,aux!$AL$1)>0,(O26/INDEX($K26:$O26,1,aux!$AL$1))^(1/($O$3-INDEX($K$3:$O$3,1,aux!$AL$1)))-1,"n.d.") -> 0.1331558312 | AE26: =IF(INDEX($K26:$O26,1,aux!$AL$1)>0,(O26-INDEX($K26:$O26,1,aux!$AL$1))/INDEX($K26:$O26,1,aux!$AL$1),"n.d.") -> 0.6487642118 | AX26: 04
A27: 0406 | B27: Queijos e requeijão | C27: 0 | D27: 0 | E27: 0 | F27: 0 | G27: 0.001 | H27: 0.0002 | I27: 9.225923512e-10 | J27: 7.10550804e-10 | K27: 2672.929 | L27: 3309.281 | M27: 3226.826 | N27: 3109.741 | O27: 3547.467 | P27: 3173.2488 | Q27: 0.01728189264 | R27: 0.005726781361 | S27: 3173.2486 | U27: =G27-INDEX($C27:$G27,1,aux!$AL$1) -> 0.001 | V27: -1.287499485e-08 | W27: -1.298731338e-08 | X27: =+IF(INDEX($C27:$G27,1,aux!$AL$1)>0,(G27/INDEX($C27:$G27,1,aux!$AL$1))^(1/($G$3-INDEX($C$3:$G$3,1,aux!$AL$1)))-1,"n.d.") -> n.d. | Y27: =IF(INDEX($C27:$G27,1,aux!$AL$1)>0,(G27-INDEX($C27:$G27,1,aux!$AL$1))/INDEX($C27:$G27,1,aux!$AL$1),"n.d.") -> n.d. | AA27: =O27-INDEX($K27:$O27,1,aux!$AL$1) -> 874.538 | AB27: 0.01018146932 | AC27: 0.00448609512 | AD27: =+IF(INDEX($K27:$O27,1,aux!$AL$1)>0,(O27/INDEX($K27:$O27,1,aux!$AL$1))^(1/($O$3-INDEX($K$3:$O$3,1,aux!$AL$1)))-1,"n.d.") -> 0.07332868292 | AE27: =IF(INDEX($K27:$O27,1,aux!$AL$1)>0,(O27-INDEX($K27:$O27,1,aux!$AL$1))/INDEX($K27:$O27,1,aux!$AL$1),"n.d.") -> 0.3271834007 | AX27: 04
A28: 0407 | B28: Ovos de aves, com cascas | C28: 0 | D28: 0 | E28: 0 | F28: 0 | G28: 128.681 | H28: 25.7362 | I28: 0.0001187201063 | J28: 9.143438801e-05 | K28: 0 | L28: 0 | M28: 0 | N28: 0 | O28: 0 | P28: 0 | Q28: 0 | R28: 0 | S28: -25.7362 | U28: =G28-INDEX($C28:$G28,1,aux!$AL$1) -> 128.681 | V28: -0.001656767212 | W28: -0.001671220473 | X28: =+IF(INDEX($C28:$G28,1,aux!$AL$1)>0,(G28/INDEX($C28:$G28,1,aux!$AL$1))^(1/($G$3-INDEX($C$3:$G$3,1,aux!$AL$1)))-1,"n.d.") -> n.d. | Y28: =IF(INDEX($C28:$G28,1,aux!$AL$1)>0,(G28-INDEX($C28:$G28,1,aux!$AL$1))/INDEX($C28:$G28,1,aux!$AL$1),"n.d.") -> n.d. | AA28: =O28-INDEX($K28:$O28,1,aux!$AL$1) -> 0 | AB28: 0 | AC28: 0 | AD28: =+IF(INDEX($K28:$O28,1,aux!$AL$1)>0,(O28/INDEX($K28:$O28,1,aux!$AL$1))^(1/($O$3-INDEX($K$3:$O$3,1,aux!$AL$1)))-1,"n.d.") -> n.d. | AE28: =IF(INDEX($K28:$O28,1,aux!$AL$1)>0,(O28-INDEX($K28:$O28,1,aux!$AL$1))/INDEX($K28:$O28,1,aux!$AL$1),"n.d.") -> n.d. | AX28: 04
A29: 0408 | B29: Ovos de aves, sem casca | C29: 0 | D29: 0 | E29: 0 | F29: 0 | G29: 0 | H29: 0 | I29: 0 | J29: 0 | K29: 0 | L29: 0 | M29: 0 | N29: 0 | O29: 0 | P29: 0 | Q29: 0 | R29: 0 | S29: 0 | U29: =G29-INDEX($C29:$G29,1,aux!$AL$1) -> 0 | V29: 0 | W29: 0 | X29: =+IF(INDEX($C29:$G29,1,aux!$AL$1)>0,(G29/INDEX($C29:$G29,1,aux!$AL$1))^(1/($G$3-INDEX($C$3:$G$3,1,aux!$AL$1)))-1,"n.d.") -> n.d. | Y29: =IF(INDEX($C29:$G29,1,aux!$AL$1)>0,(G29-INDEX($C29:$G29,1,aux!$AL$1))/INDEX($C29:$G29,1,aux!$AL$1),"n.d.") -> n.d. | AA29: =O29-INDEX($K29:$O29,1,aux!$AL$1) -> 0 | AB29: 0 | AC29: 0 | AD29: =+IF(INDEX($K29:$O29,1,aux!$AL$1)>0,(O29/INDEX($K29:$O29,1,aux!$AL$1))^(1/($O$3-INDEX($K$3:$O$3,1,aux!$AL$1)))-1,"n.d.") -> n.d. | AE29: =IF(INDEX($K29:$O29,1,aux!$AL$1)>0,(O29-INDEX($K29:$O29,1,aux!$AL$1))/INDEX($K29:$O29,1,aux!$AL$1),"n.d.") -> n.d. | AX29: 04
A30: 0409 | B30: Mel natural | C30: 0.073 | D30: 0 | E30: 0.006 | F30: 0.079 | G30: 0.023 | H30: 0.0362 | I30: 1.669892156e-07 | J30: 1.286096955e-07 | K30: 197.663 | L30: 147.19 | M30: 192.565 | N30: 147.939 | O30: 267.914 | P30: 190.6542 | Q30: 0.001038325585 | R30: 0.0003440747914 | S30: 190.618 | U30: =G30-INDEX($C30:$G30,1,aux!$AL$1) -> -0.05 | V30: 6.437497423e-07 | W30: 6.493656691e-07 | X30: =+IF(INDEX($C30:$G30,1,aux!$AL$1)>0,(G30/INDEX($C30:$G30,1,aux!$AL$1))^(1/($G$3-INDEX($C$3:$G$3,1,aux!$AL$1)))-1,"n.d.") -> -0.2507940048 | Y30: =IF(INDEX($C30:$G30,1,aux!$AL$1)>0,(G30-INDEX($C30:$G30,1,aux!$AL$1))/INDEX($C30:$G30,1,aux!$AL$1),"n.d.") -> -0.6849315068 | AA30: =O30-INDEX($K30:$O30,1,aux!$AL$1) -> 70.251 | AB30: 0.0008178700086 | AC30: 0.0003603647506 | AD30: =+IF(INDEX($K30:$O30,1,aux!$AL$1)>0,(O30/INDEX($K30:$O30,1,aux!$AL$1))^(1/($O$3-INDEX($K$3:$O$3,1,aux!$AL$1)))-1,"n.d.") -> 0.07899021567 | AE30: =IF(INDEX($K30:$O30,1,aux!$AL$1)>0,(O30-INDEX($K30:$O30,1,aux!$AL$1))/INDEX($K30:$O30,1,aux!$AL$1),"n.d.") -> 0.3554079418 | AX30: 04
A31: 0410 | B31: Outros produtos comestíveis de origem animal | C31: 0 | D31: 0 | E31: 0 | F31: 0 | G31: 0 | H31: 0 | I31: 0 | J31: 0 | K31: 0 | L31: 0 | M31: 0 | N31: 0 | O31: 0 | P31: 0 | Q31: 0 | R31: 0 | S31: 0 | U31: =G31-INDEX($C31:$G31,1,aux!$AL$1) -> 0 | V31: 0 | W31: 0 | X31: =+IF(INDEX($C31:$G31,1,aux!$AL$1)>0,(G31/INDEX($C31:$G31,1,aux!$AL$1))^(1/($G$3-INDEX($C$3:$G$3,1,aux!$AL$1)))-1,"n.d.") -> n.d. | Y31: =IF(INDEX($C31:$G31,1,aux!$AL$1)>0,(G31-INDEX($C31:$G31,1,aux!$AL$1))/INDEX($C31:$G31,1,aux!$AL$1),"n.d.") -> n.d. | AA31: =O31-INDEX($K31:$O31,1,aux!$AL$1) -> 0 | AB31: 0 | AC31: 0 | AD31: =+IF(INDEX($K31:$O31,1,aux!$AL$1)>0,(O31/INDEX($K31:$O31,1,aux!$AL$1))^(1/($O$3-INDEX($K$3:$O$3,1,aux!$AL$1)))-1,"n.d.") -> n.d. | AE31: =IF(INDEX($K31:$O31,1,aux!$AL$1)>0,(O31-INDEX($K31:$O31,1,aux!$AL$1))/INDEX($K31:$O31,1,aux!$AL$1),"n.d.") -> n.d. | AX31: 04
A32: 04SS | B32: Leite e lacticínios; ovos de aves; mel natural; etc. | C32: 0 | D32: 0 | E32: 0 | F32: 0 | G32: 0 | H32: 0 | I32: 0 | J32: 0 | K32: 0 | L32: 0 | M32: 0 | N32: 0 | O32: 0 | P32: 0 | Q32: 0 | R32: 0 | S32: 0 | U32: =G32-INDEX($C32:$G32,1,aux!$AL$1) -> 0 | V32: 0 | W32: 0 | X32: =+IF(INDEX($C32:$G32,1,aux!$AL$1)>0,(G32/INDEX($C32:$G32,1,aux!$AL$1))^(1/($G$3-INDEX($C$3:$G$3,1,aux!$AL$1)))-1,"n.d.") -> n.d. | Y32: =IF(INDEX($C32:$G32,1,aux!$AL$1)>0,(G32-INDEX($C32:$G32,1,aux!$AL$1))/INDEX($C32:$G32,1,aux!$AL$1),"n.d.") -> n.d. | AA32: =O32-INDEX($K32:$O32,1,aux!$AL$1) -> 0 | AB32: 0 | AC32: 0 | AD32: =+IF(INDEX($K32:$O32,1,aux!$AL$1)>0,(O32/INDEX($K32:$O32,1,aux!$AL$1))^(1/($O$3-INDEX($K$3:$O$3,1,aux!$AL$1)))-1,"n.d.") -> n.d. | AE32: =IF(INDEX($K32:$O32,1,aux!$AL$1)>0,(O32-INDEX($K32:$O32,1,aux!$AL$1))/INDEX($K32:$O32,1,aux!$AL$1),"n.d.") -> n.d. | AX32: 04
A33: 0501 | B33: Cabelos em bruto | C33: 0 | D33: 0 | E33: 0 | F33: 1.059 | G33: 2.135 | H33: 0.6388 | I33: 2.94675997e-06 | J33: 2.269499268e-06 | K33: 0 | L33: 0 | M33: 0 | N33: 0 | O33: 0 | P33: 0 | Q33: 0 | R33: 0 | S33: -0.6388 | U33: =G33-INDEX($C33:$G33,1,aux!$AL$1) -> 2.135 | V33: -2.7488114e-05 | W33: -2.772791407e-05 | X33: =+IF(INDEX($C33:$G33,1,aux!$AL$1)>0,(G33/INDEX($C33:$G33,1,aux!$AL$1))^(1/($G$3-INDEX($C$3:$G$3,1,aux!$AL$1)))-1,"n.d.") -> n.d. | Y33: =IF(INDEX($C33:$G33,1,aux!$AL$1)>0,(G33-INDEX($C33:$G33,1,aux!$AL$1))/INDEX($C33:$G33,1,aux!$AL$1),"n.d.") -> n.d. | AA33: =O33-INDEX($K33:$O33,1,aux!$AL$1) -> 0 | AB33: 0 | AC33: 0 | AD33: =+IF(INDEX($K33:$O33,1,aux!$AL$1)>0,(O33/INDEX($K33:$O33,1,aux!$AL$1))^(1/($O$3-INDEX($K$3:$O$3,1,aux!$AL$1)))-1,"n.d.") -> n.d. | AE33: =IF(INDEX($K33:$O33,1,aux!$AL$1)>0,(O33-INDEX($K33:$O33,1,aux!$AL$1))/INDEX($K33:$O33,1,aux!$AL$1),"n.d.") -> n.d. | AX33: 05
A34: 0502 | B34: Cerdas de porco ou de javali, etc. | C34: 0 | D34: 0 | E34: 0 | F34: 0 | G34: 0 | H34: 0 | I34: 0 | J34: 0 | K34: 0 | L34: 0 | M34: 0 | N34: 0 | O34: 0 | P34: 0 | Q34: 0 | R34: 0 | S34: 0 | U34: =G34-INDEX($C34:$G34,1,aux!$AL$1) -> 0 | V34: 0 | W34: 0 | X34: =+IF(INDEX($C34:$G34,1,aux!$AL$1)>0,(G34/INDEX($C34:$G34,1,aux!$AL$1))^(1/($G$3-INDEX($C$3:$G$3,1,aux!$AL$1)))-1,"n.d.") -> n.d. | Y34: =IF(INDEX($C34:$G34,1,aux!$AL$1)>0,(G34-INDEX($C34:$G34,1,aux!$AL$1))/INDEX($C34:$G34,1,aux!$AL$1),"n.d.") -> n.d. | AA34: =O34-INDEX($K34:$O34,1,aux!$AL$1) -> 0 | AB34: 0 | AC34: 0 | AD34: =+IF(INDEX($K34:$O34,1,aux!$AL$1)>0,(O34/INDEX($K34:$O34,1,aux!$AL$1))^(1/($O$3-INDEX($K$3:$O$3,1,aux!$AL$1)))-1,"n.d.") -> n.d. | AE34: =IF(INDEX($K34:$O34,1,aux!$AL$1)>0,(O34-INDEX($K34:$O34,1,aux!$AL$1))/INDEX($K34:$O34,1,aux!$AL$1),"n.d.") -> n.d. | AX34: 05
A35: 0504 | B35: Tripas de animais (excepto peixes) | C35: 158.613 | D35: 0 | E35: 30.738 | F35: 151.428 | G35: 0 | H35: 68.1558 | I35: 0.0003144000988 | J35: 0.0002421407924 | K35: 5806.271 | L35: 14000.458 | M35: 12985.363 | N35: 14016.646 | O35: 15384.63 | P35: 12438.6736 | Q35: 0.06774250469 | R35: 0.02244814971 | S35: 12370.5178 | U35: =G35-INDEX($C35:$G35,1,aux!$AL$1) -> -158.613 | V35: 0.002042141558 | W35: 0.002059956737 | X35: =+IF(INDEX($C35:$G35,1,aux!$AL$1)>0,(G35/INDEX($C35:$G35,1,aux!$AL$1))^(1/($G$3-INDEX($C$3:$G$3,1,aux!$AL$1)))-1,"n.d.") -> -1 | Y35: =IF(INDEX($C35:$G35,1,aux!$AL$1)>0,(G35-INDEX($C35:$G35,1,aux!$AL$1))/INDEX($C35:$G35,1,aux!$AL$1),"n.d.") -> -1 | AA35: =O35-INDEX($K35:$O35,1,aux!$AL$1) -> 9578.359 | AB35: 0.111512328 | AC35: 0.04913386219 | AD35: =+IF(INDEX($K35:$O35,1,aux!$AL$1)>0,(O35/INDEX($K35:$O35,1,aux!$AL$1))^(1/($O$3-INDEX($K$3:$O$3,1,aux!$AL$1)))-1,"n.d.") -> 0.2758435972 | AE35: =IF(INDEX($K35:$O35,1,aux!$AL$1)>0,(O35-INDEX($K35:$O35,1,aux!$AL$1))/INDEX($K35:$O35,1,aux!$AL$1),"n.d.") -> 1.649657586 | AX35: 05
A36: 0505 | B36: Peles e outras partes de aves | C36: 0.021 | D36: 0 | E36: 0 | F36: 0.03 | G36: 0 | H36: 0.0102 | I36: 4.705220991e-08 | J36: 3.6238091e-08 | K36: 0 | L36: 0 | M36: 0 | N36: 0 | O36: 0 | P36: 0 | Q36: 0 | R36: 0 | S36: -0.0102 | U36: =G36-INDEX($C36:$G36,1,aux!$AL$1) -> -0.021 | V36: 2.703748918e-07 | W36: 2.72733581e-07 | X36: =+IF(INDEX($C36:$G36,1,aux!$AL$1)>0,(G36/INDEX($C36:$G36,1,aux!$AL$1))^(1/($G$3-INDEX($C$3:$G$3,1,aux!$AL$1)))-1,"n.d.") -> -1 | Y36: =IF(INDEX($C36:$G36,1,aux!$AL$1)>0,(G36-INDEX($C36:$G36,1,aux!$AL$1))/INDEX($C36:$G36,1,aux!$AL$1),"n.d.") -> -1 | AA36: =O36-INDEX($K36:$O36,1,aux!$AL$1) -> 0 | AB36: 0 | AC36: 0 | AD36: =+IF(INDEX($K36:$O36,1,aux!$AL$1)>0,(O36/INDEX($K36:$O36,1,aux!$AL$1))^(1/($O$3-INDEX($K$3:$O$3,1,aux!$AL$1)))-1,"n.d.") -> n.d. | AE36: =IF(INDEX($K36:$O36,1,aux!$AL$1)>0,(O36-INDEX($K36:$O36,1,aux!$AL$1))/INDEX($K36:$O36,1,aux!$AL$1),"n.d.") -> n.d. | AX36: 05
A37: 0506 | B37: Ossos e núcleos córneos, em bruto | C37: 0 | D37: 0 | E37: 0 | F37: 0 | G37: 0 | H37: 0 | I37: 0 | J37: 0 | K37: 0 | L37: 0 | M37: 0 | N37: 0 | O37: 0 | P37: 0 | Q37: 0 | R37: 0 | S37: 0 | U37: =G37-INDEX($C37:$G37,1,aux!$AL$1) -> 0 | V37: 0 | W37: 0 | X37: =+IF(INDEX($C37:$G37,1,aux!$AL$1)>0,(G37/INDEX($C37:$G37,1,aux!$AL$1))^(1/($G$3-INDEX($C$3:$G$3,1,aux!$AL$1)))-1,"n.d.") -> n.d. | Y37: =IF(INDEX($C37:$G37,1,aux!$AL$1)>0,(G37-INDEX($C37:$G37,1,aux!$AL$1))/INDEX($C37:$G37,1,aux!$AL$1),"n.d.") -> n.d. | AA37: =O37-INDEX($K37:$O37,1,aux!$AL$1) -> 0 | AB37: 0 | AC37: 0 | AD37: =+IF(INDEX($K37:$O37,1,aux!$AL$1)>0,(O37/INDEX($K37:$O37,1,aux!$AL$1))^(1/($O$3-INDEX($K$3:$O$3,1,aux!$AL$1)))-1,"n.d.") -> n.d. | AE37: =IF(INDEX($K37:$O37,1,aux!$AL$1)>0,(O37-INDEX($K37:$O37,1,aux!$AL$1))/INDEX($K37:$O37,1,aux!$AL$1),"n.d.") -> n.d. | AX37: 05
A38: 0507 | B38: Marfim, carapaças de tartaruga, etc. | C38: 0 | D38: 0 | E38: 0 | F38: 0 | G38: 0 | H38: 0 | I38: 0 | J38: 0 | K38: 0.859 | L38: 0 | M38: 0 | N38: 0 | O38: 0 | P38: 0.1718 | Q38: 9.356433555e-07 | R38: 3.100485023e-07 | S38: 0.1718 | U38: =G38-INDEX($C38:$G38,1,aux!$AL$1) -> 0 | V38: 0 | W38: 0 | X38: =+IF(INDEX($C38:$G38,1,aux!$AL$1)>0,(G38/INDEX($C38:$G38,1,aux!$AL$1))^(1/($G$3-INDEX($C$3:$G$3,1,aux!$AL$1)))-1,"n.d.") -> n.d. | Y38: =IF(INDEX($C38:$G38,1,aux!$AL$1)>0,(G38-INDEX($C38:$G38,1,aux!$AL$1))/INDEX($C38:$G38,1,aux!$AL$1),"n.d.") -> n.d. | AA38: =O38-INDEX($K38:$O38,1,aux!$AL$1) -> -0.859 | AB38: -1.000057419e-05 | AC38: -4.40639024e-06 | AD38: =+IF(INDEX($K38:$O38,1,aux!$AL$1)>0,(O38/INDEX($K38:$O38,1,aux!$AL$1))^(1/($O$3-INDEX($K$3:$O$3,1,aux!$AL$1)))-1,"n.d.") -> -1 | AE38: =IF(INDEX($K38:$O38,1,aux!$AL$1)>0,(O38-INDEX($K38:$O38,1,aux!$AL$1))/INDEX($K38:$O38,1,aux!$AL$1),"n.d.") -> -1 | AX38: 05
A39: 0510 | B39: Âmbar-cinzento, castóreo, algália e almíscar, etc. | C39: 0 | D39: 0 | E39: 0 | F39: 0 | G39: 0 | H39: 0 | I39: 0 | J39: 0 | K39: 0 | L39: 0.009 | M39: 0 | N39: 0 | O39: 0 | P39: 0.0018 | Q39: 9.803015366e-09 | R39: 3.24847092e-09 | S39: 0.0018 | U39: =G39-INDEX($C39:$G39,1,aux!$AL$1) -> 0 | V39: 0 | W39: 0 | X39: =+IF(INDEX($C39:$G39,1,aux!$AL$1)>0,(G39/INDEX($C39:$G39,1,aux!$AL$1))^(1/($G$3-INDEX($C$3:$G$3,1,aux!$AL$1)))-1,"n.d.") -> n.d. | Y39: =IF(INDEX($C39:$G39,1,aux!$AL$1)>0,(G39-INDEX($C39:$G39,1,aux!$AL$1))/INDEX($C39:$G39,1,aux!$AL$1),"n.d.") -> n.d. | AA39: =O39-INDEX($K39:$O39,1,aux!$AL$1) -> 0 | AB39: 0 | AC39: 0 | AD39: =+IF(INDEX($K39:$O39,1,aux!$AL$1)>0,(O39/INDEX($K39:$O39,1,aux!$AL$1))^(1/($O$3-INDEX($K$3:$O$3,1,aux!$AL$1)))-1,"n.d.") -> n.d. | AE39: =IF(INDEX($K39:$O39,1,aux!$AL$1)>0,(O39-INDEX($K39:$O39,1,aux!$AL$1))/INDEX($K39:$O39,1,aux!$AL$1),"n.d.") -> n.d. | AX39: 05
A40: 0511 | B40: Outros produtos de origem animal (exc. NC 0511 91) (a) | C40: 742.809 | D40: 675.149 | E40: 658.399 | F40: 738.815 | G40: 767.465 | H40: 716.5274 | I40: 0.003305313493 | J40: 0.002545645601 | K40: 0.99 | L40: 2.867 | M40: 29.966 | N40: 6.325 | O40: 21.542 | P40: 12.338 | Q40: 6.719422422e-05 | R40: 2.226646345e-05 | S40: -704.1894 | U40: =G40-INDEX($C40:$G40,1,aux!$AL$1) -> 24.656 | V40: -0.0003174458729 | W40: -0.0003202151987 | X40: =+IF(INDEX($C40:$G40,1,aux!$AL$1)>0,(G40/INDEX($C40:$G40,1,aux!$AL$1))^(1/($G$3-INDEX($C$3:$G$3,1,aux!$AL$1)))-1,"n.d.") -> 0.008196894605 | Y40: =IF(INDEX($C40:$G40,1,aux!$AL$1)>0,(G40-INDEX($C40:$G40,1,aux!$AL$1))/INDEX($C40:$G40,1,aux!$AL$1),"n.d.") -> 0.03319292039 | AA40: =O40-INDEX($K40:$O40,1,aux!$AL$1) -> 20.552 | AB40: 0.0002392686854 | AC40: 0.0001054250666 | AD40: =+IF(INDEX($K40:$O40,1,aux!$AL$1)>0,(O40/INDEX($K40:$O40,1,aux!$AL$1))^(1/($O$3-INDEX($K$3:$O$3,1,aux!$AL$1)))-1,"n.d.") -> 1.159795872 | AE40: =IF(INDEX($K40:$O40,1,aux!$AL$1)>0,(O40-INDEX($K40:$O40,1,aux!$AL$1))/INDEX($K40:$O40,1,aux!$AL$1),"n.d.") -> 20.75959596 | AX40: 05
A41: 05SS | B41: Outros produtos de origem animal | C41: 0 | D41: 0 | E41: 0 | F41: 0 | G41: 0 | H41: 0 | I41: 0 | J41: 0 | K41: 0 | L41: 0 | M41: 0 | N41: 0 | O41: 0 | P41: 0 | Q41: 0 | R41: 0 | S41: 0 | U41: =G41-INDEX($C41:$G41,1,aux!$AL$1) -> 0 | V41: 0 | W41: 0 | X41: =+IF(INDEX($C41:$G41,1,aux!$AL$1)>0,(G41/INDEX($C41:$G41,1,aux!$AL$1))^(1/($G$3-INDEX($C$3:$G$3,1,aux!$AL$1)))-1,"n.d.") -> n.d. | Y41: =IF(INDEX($C41:$G41,1,aux!$AL$1)>0,(G41-INDEX($C41:$G41,1,aux!$AL$1))/INDEX($C41:$G41,1,aux!$AL$1),"n.d.") -> n.d. | AA41: =O41-INDEX($K41:$O41,1,aux!$AL$1) -> 0 | AB41: 0 | AC41: 0 | AD41: =+IF(INDEX($K41:$O41,1,aux!$AL$1)>0,(O41/INDEX($K41:$O41,1,aux!$AL$1))^(1/($O$3-INDEX($K$3:$O$3,1,aux!$AL$1)))-1,"n.d.") -> n.d. | AE41: =IF(INDEX($K41:$O41,1,aux!$AL$1)>0,(O41-INDEX($K41:$O41,1,aux!$AL$1))/INDEX($K41:$O41,1,aux!$AL$1),"n.d.") -> n.d. | AX41: 05
A42: 0601 | B42: Bolbos, tubérculos, raízes, etc. | C42: 0 | D42: 0 | E42: 0 | F42: 0 | G42: 0 | H42: 0 | I42: 0 | J42: 0 | K42: 0 | L42: 0 | M42: 0 | N42: 0 | O42: 0 | P42: 0 | Q42: 0 | R42: 0 | S42: 0 | U42: =G42-INDEX($C42:$G42,1,aux!$AL$1) -> 0 | V42: 0 | W42: 0 | X42: =+IF(INDEX($C42:$G42,1,aux!$AL$1)>0,(G42/INDEX($C42:$G42,1,aux!$AL$1))^(1/($G$3-INDEX($C$3:$G$3,1,aux!$AL$1)))-1,"n.d.") -> n.d. | Y42: =IF(INDEX($C42:$G42,1,aux!$AL$1)>0,(G42-INDEX($C42:$G42,1,aux!$AL$1))/INDEX($C42:$G42,1,aux!$AL$1),"n.d.") -> n.d. | AA42: =O42-INDEX($K42:$O42,1,aux!$AL$1) -> 0 | AB42: 0 | AC42: 0 | AD42: =+IF(INDEX($K42:$O42,1,aux!$AL$1)>0,(O42/INDEX($K42:$O42,1,aux!$AL$1))^(1/($O$3-INDEX($K$3:$O$3,1,aux!$AL$1)))-1,"n.d.") -> n.d. | AE42: =IF(INDEX($K42:$O42,1,aux!$AL$1)>0,(O42-INDEX($K42:$O42,1,aux!$AL$1))/INDEX($K42:$O42,1,aux!$AL$1),"n.d.") -> n.d. | AX42: 06
A43: 0602 | B43: Plantas vivas | C43: 12.236 | D43: 20.229 | E43: 16.148 | F43: 16.625 | G43: 16.396 | H43: 16.3268 | I43: 7.5314904e-05 | J43: 5.800510433e-05 | K43: 23.507 | L43: 29.119 | M43: 25.459 | N43: 47.717 | O43: 31.449 | P43: 31.4502 | Q43: 0.0001712815522 | R43: 5.675836674e-05 | S43: 15.1234 | U43: =G43-INDEX($C43:$G43,1,aux!$AL$1) -> 4.16 | V43: -5.355997856e-05 | W43: -5.402722367e-05 | X43: =+IF(INDEX($C43:$G43,1,aux!$AL$1)>0,(G43/INDEX($C43:$G43,1,aux!$AL$1))^(1/($G$3-INDEX($C$3:$G$3,1,aux!$AL$1)))-1,"n.d.") -> 0.07590669585 | Y43: =IF(INDEX($C43:$G43,1,aux!$AL$1)>0,(G43-INDEX($C43:$G43,1,aux!$AL$1))/INDEX($C43:$G43,1,aux!$AL$1),"n.d.") -> 0.3399803857 | AA43: =O43-INDEX($K43:$O43,1,aux!$AL$1) -> 7.942 | AB43: 9.246165333e-05 | AC43: 4.073987345e-05 | AD43: =+IF(INDEX($K43:$O43,1,aux!$AL$1)>0,(O43/INDEX($K43:$O43,1,aux!$AL$1))^(1/($O$3-INDEX($K$3:$O$3,1,aux!$AL$1)))-1,"n.d.") -> 0.07548017283 | AE43: =IF(INDEX($K43:$O43,1,aux!$AL$1)>0,(O43-INDEX($K43:$O43,1,aux!$AL$1))/INDEX($K43:$O43,1,aux!$AL$1),"n.d.") -> 0.3378568086 | AX43: 06
A44: 0603 | B44: Flores e seus botões | C44: 0 | D44: 0.323 | E44: 0.342 | F44: 0 | G44: 0.22 | H44: 0.177 | I44: 8.164942308e-07 | J44: 6.288374615e-07 | K44: 0 | L44: 36.091 | M44: 26.313 | N44: 97.423 | O44: 38.605 | P44: 39.6864 | Q44: 0.0002161368828 | R44: 7.162228685e-05 | S44: 39.5094 | U44: =G44-INDEX($C44:$G44,1,aux!$AL$1) -> 0.22 | V44: -2.832498866e-06 | W44: -2.857208944e-06 | X44: =+IF(INDEX($C44:$G44,1,aux!$AL$1)>0,(G44/INDEX($C44:$G44,1,aux!$AL$1))^(1/($G$3-INDEX($C$3:$G$3,1,aux!$AL$1)))-1,"n.d.") -> n.d. | Y44: =IF(INDEX($C44:$G44,1,aux!$AL$1)>0,(G44-INDEX($C44:$G44,1,aux!$AL$1))/INDEX($C44:$G44,1,aux!$AL$1),"n.d.") -> n.d. | AA44: =O44-INDEX($K44:$O44,1,aux!$AL$1) -> 38.605 | AB44: 0.0004494437329 | AC44: 0.0001980310771 | AD44: =+IF(INDEX($K44:$O44,1,aux!$AL$1)>0,(O44/INDEX($K44:$O44,1,aux!$AL$1))^(1/($O$3-INDEX($K$3:$O$3,1,aux!$AL$1)))-1,"n.d.") -> n.d. | AE44: =IF(INDEX($K44:$O44,1,aux!$AL$1)>0,(O44-INDEX($K44:$O44,1,aux!$AL$1))/INDEX($K44:$O44,1,aux!$AL$1),"n.d.") -> n.d. | AX44: 06
A45: 0604 | B45: Folhagem, folhas, ramos e outras partes de plantas | C45: 0 | D45: 0 | E45: 0 | F45: 0 | G45: 0.147 | H45: 0.0294 | I45: 1.356210756e-07 | J45: 1.044509682e-07 | K45: 0.005 | L45: 5.763 | M45: 0 | N45: 0.597 | O45: 1.911 | P45: 1.6552 | Q45: 9.014417241e-06 | R45: 2.987149482e-06 | S45: 1.6258 | U45: =G45-INDEX($C45:$G45,1,aux!$AL$1) -> 0.147 | V45: -1.892624242e-06 | W45: -1.909135067e-06 | X45: =+IF(INDEX($C45:$G45,1,aux!$AL$1)>0,(G45/INDEX($C45:$G45,1,aux!$AL$1))^(1/($G$3-INDEX($C$3:$G$3,1,aux!$AL$1)))-1,"n.d.") -> n.d. | Y45: =IF(INDEX($C45:$G45,1,aux!$AL$1)>0,(G45-INDEX($C45:$G45,1,aux!$AL$1))/INDEX($C45:$G45,1,aux!$AL$1),"n.d.") -> n.d. | AA45: =O45-INDEX($K45:$O45,1,aux!$AL$1) -> 1.906 | AB45: 2.218986543e-05 | AC45: 9.777159253e-06 | AD45: =+IF(INDEX($K45:$O45,1,aux!$AL$1)>0,(O45/INDEX($K45:$O45,1,aux!$AL$1))^(1/($O$3-INDEX($K$3:$O$3,1,aux!$AL$1)))-1,"n.d.") -> 3.421530964 | AE45: =IF(INDEX($K45:$O45,1,aux!$AL$1)>0,(O45-INDEX($K45:$O45,1,aux!$AL$1))/INDEX($K45:$O45,1,aux!$AL$1),"n.d.") -> 381.2 | AX45: 06
A46: 06SS | B46: Plantas vivas e produtos de floricultura | C46: 0 | D46: 0 | E46: 0 | F46: 0 | G46: 0 | H46: 0 | I46: 0 | J46: 0 | K46: 0 | L46: 0 | M46: 0 | N46: 0 | O46: 0 | P46: 0 | Q46: 0 | R46: 0 | S46: 0 | U46: =G46-INDEX($C46:$G46,1,aux!$AL$1) -> 0 | V46: 0 | W46: 0 | X46: =+IF(INDEX($C46:$G46,1,aux!$AL$1)>0,(G46/INDEX($C46:$G46,1,aux!$AL$1))^(1/($G$3-INDEX($C$3:$G$3,1,aux!$AL$1)))-1,"n.d.") -> n.d. | Y46: =IF(INDEX($C46:$G46,1,aux!$AL$1)>0,(G46-INDEX($C46:$G46,1,aux!$AL$1))/INDEX($C46:$G46,1,aux!$AL$1),"n.d.") -> n.d. | AA46: =O46-INDEX($K46:$O46,1,aux!$AL$1) -> 0 | AB46: 0 | AC46: 0 | AD46: =+IF(INDEX($K46:$O46,1,aux!$AL$1)>0,(O46/INDEX($K46:$O46,1,aux!$AL$1))^(1/($O$3-INDEX($K$3:$O$3,1,aux!$AL$1)))-1,"n.d.") -> n.d. | AE46: =IF(INDEX($K46:$O46,1,aux!$AL$1)>0,(O46-INDEX($K46:$O46,1,aux!$AL$1))/INDEX($K46:$O46,1,aux!$AL$1),"n.d.") -> n.d. | AX46: 06
A47: 0701 | B47: Batatas, frescas ou refrigeradas | C47: 0 | D47: 0 | E47: 0 | F47: 0 | G47: 0 | H47: 0 | I47: 0 | J47: 0 | K47: 0 | L47: 0 | M47: 0 | N47: 0 | O47: 0 | P47: 0 | Q47: 0 | R47: 0 | S47: 0 | U47: =G47-INDEX($C47:$G47,1,aux!$AL$1) -> 0 | V47: 0 | W47: 0 | X47: =+IF(INDEX($C47:$G47,1,aux!$AL$1)>0,(G47/INDEX($C47:$G47,1,aux!$AL$1))^(1/($G$3-INDEX($C$3:$G$3,1,aux!$AL$1)))-1,"n.d.") -> n.d. | Y47: =IF(INDEX($C47:$G47,1,aux!$AL$1)>0,(G47-INDEX($C47:$G47,1,aux!$AL$1))/INDEX($C47:$G47,1,aux!$AL$1),"n.d.") -> n.d. | AA47: =O47-INDEX($K47:$O47,1,aux!$AL$1) -> 0 | AB47: 0 | AC47: 0 | AD47: =+IF(INDEX($K47:$O47,1,aux!$AL$1)>0,(O47/INDEX($K47:$O47,1,aux!$AL$1))^(1/($O$3-INDEX($K$3:$O$3,1,aux!$AL$1)))-1,"n.d.") -> n.d. | AE47: =IF(INDEX($K47:$O47,1,aux!$AL$1)>0,(O47-INDEX($K47:$O47,1,aux!$AL$1))/INDEX($K47:$O47,1,aux!$AL$1),"n.d.") -> n.d. | AX47: 07
A48: 0702 | B48: Tomates, frescos ou refrigerados | C48: 0 | D48: 0 | E48: 0 | F48: 0 | G48: 0 | H48: 0 | I48: 0 | J48: 0 | K48: 0.018 | L48: 0 | M48: 0 | N48: 0 | O48: 0 | P48: 0.0036 | Q48: 1.960603073e-08 | R48: 6.496941841e-09 | S48: 0.0036 | U48: =G48-INDEX($C48:$G48,1,aux!$AL$1) -> 0 | V48: 0 | W48: 0 | X48: =+IF(INDEX($C48:$G48,1,aux!$AL$1)>0,(G48/INDEX($C48:$G48,1,aux!$AL$1))^(1/($G$3-INDEX($C$3:$G$3,1,aux!$AL$1)))-1,"n.d.") -> n.d. | Y48: =IF(INDEX($C48:$G48,1,aux!$AL$1)>0,(G48-INDEX($C48:$G48,1,aux!$AL$1))/INDEX($C48:$G48,1,aux!$AL$1),"n.d.") -> n.d. | AA48: =O48-INDEX($K48:$O48,1,aux!$AL$1) -> -0.018 | AB48: -2.095580156e-07 | AC48: -9.233413775e-08 | AD48: =+IF(INDEX($K48:$O48,1,aux!$AL$1)>0,(O48/INDEX($K48:$O48,1,aux!$AL$1))^(1/($O$3-INDEX($K$3:$O$3,1,aux!$AL$1)))-1,"n.d.") -> -1 | AE48: =IF(INDEX($K48:$O48,1,aux!$AL$1)>0,(O48-INDEX($K48:$O48,1,aux!$AL$1))/INDEX($K48:$O48,1,aux!$AL$1),"n.d.") -> -1 | AX48: 07
A49: 0703 | B49: Cebolas, alhos, etc., frescos ou refrigerados | C49: 0 | D49: 0 | E49: 0 | F49: 0 | G49: 0 | H49: 0 | I49: 0 | J49: 0 | K49: 0 | L49: 0 | M49: 0 | N49: 0 | O49: 0 | P49: 0 | Q49: 0 | R49: 0 | S49: 0 | U49: =G49-INDEX($C49:$G49,1,aux!$AL$1) -> 0 | V49: 0 | W49: 0 | X49: =+IF(INDEX($C49:$G49,1,aux!$AL$1)>0,(G49/INDEX($C49:$G49,1,aux!$AL$1))^(1/($G$3-INDEX($C$3:$G$3,1,aux!$AL$1)))-1,"n.d.") -> n.d. | Y49: =IF(INDEX($C49:$G49,1,aux!$AL$1)>0,(G49-INDEX($C49:$G49,1,aux!$AL$1))/INDEX($C49:$G49,1,aux!$AL$1),"n.d.") -> n.d. | AA49: =O49-INDEX($K49:$O49,1,aux!$AL$1) -> 0 | AB49: 0 | AC49: 0 | AD49: =+IF(INDEX($K49:$O49,1,aux!$AL$1)>0,(O49/INDEX($K49:$O49,1,aux!$AL$1))^(1/($O$3-INDEX($K$3:$O$3,1,aux!$AL$1)))-1,"n.d.") -> n.d. | AE49: =IF(INDEX($K49:$O49,1,aux!$AL$1)>0,(O49-INDEX($K49:$O49,1,aux!$AL$1))/INDEX($K49:$O49,1,aux!$AL$1),"n.d.") -> n.d. | AX49: 07
A50: 0704 | B50: Couves, frescas ou refrigeradas | C50: 0 | D50: 0 | E50: 0 | F50: 0 | G50: 0 | H50: 0 | I50: 0 | J50: 0 | K50: 0 | L50: 0 | M50: 0 | N50: 0 | O50: 2.471 | P50: 0.4942 | Q50: 2.69147233e-06 | R50: 8.918857382e-07 | S50: 0.4942 | U50: =G50-INDEX($C50:$G50,1,aux!$AL$1) -> 0 | V50: 0 | W50: 0 | X50: =+IF(INDEX($C50:$G50,1,aux!$AL$1)>0,(G50/INDEX($C50:$G50,1,aux!$AL$1))^(1/($G$3-INDEX($C$3:$G$3,1,aux!$AL$1)))-1,"n.d.") -> n.d. | Y50: =IF(INDEX($C50:$G50,1,aux!$AL$1)>0,(G50-INDEX($C50:$G50,1,aux!$AL$1))/INDEX($C50:$G50,1,aux!$AL$1),"n.d.") -> n.d. | AA50: =O50-INDEX($K50:$O50,1,aux!$AL$1) -> 2.471 | AB50: 2.87676587e-05 | AC50: 1.267542524e-05 | AD50: =+IF(INDEX($K50:$O50,1,aux!$AL$1)>0,(O50/INDEX($K50:$O50,1,aux!$AL$1))^(1/($O$3-INDEX($K$3:$O$3,1,aux!$AL$1)))-1,"n.d.") -> n.d. | AE50: =IF(INDEX($K50:$O50,1,aux!$AL$1)>0,(O50-INDEX($K50:$O50,1,aux!$AL$1))/INDEX($K50:$O50,1,aux!$AL$1),"n.d.") -> n.d. | AX50: 07
A51: 0705 | B51: Alfaces, frescas ou refrigeradas | C51: 0 | D51: 0 | E51: 0 | F51: 0 | G51: 0 | H51: 0 | I51: 0 | J51: 0 | K51: 0 | L51: 0 | M51: 0 | N51: 0 | O51: 0 | P51: 0 | Q51: 0 | R51: 0 | S51: 0 | U51: =G51-INDEX($C51:$G51,1,aux!$AL$1) -> 0 | V51: 0 | W51: 0 | X51: =+IF(INDEX($C51:$G51,1,aux!$AL$1)>0,(G51/INDEX($C51:$G51,1,aux!$AL$1))^(1/($G$3-INDEX($C$3:$G$3,1,aux!$AL$1)))-1,"n.d.") -> n.d. | Y51: =IF(INDEX($C51:$G51,1,aux!$AL$1)>0,(G51-INDEX($C51:$G51,1,aux!$AL$1))/INDEX($C51:$G51,1,aux!$AL$1),"n.d.") -> n.d. | AA51: =O51-INDEX($K51:$O51,1,aux!$AL$1) -> 0 | AB51: 0 | AC51: 0 | AD51: =+IF(INDEX($K51:$O51,1,aux!$AL$1)>0,(O51/INDEX($K51:$O51,1,aux!$AL$1))^(1/($O$3-INDEX($K$3:$O$3,1,aux!$AL$1)))-1,"n.d.") -> n.d. | AE51: =IF(INDEX($K51:$O51,1,aux!$AL$1)>0,(O51-INDEX($K51:$O51,1,aux!$AL$1))/INDEX($K51:$O51,1,aux!$AL$1),"n.d.") -> n.d. | AX51: 07
A52: 0706 | B52: Cenouras, nabos, beterrabas, etc., frescos ou refrigerados | C52: 0 | D52: 0 | E52: 0 | F52: 0 | G52: 0 | H52: 0 | I52: 0 | J52: 0 | K52: 0 | L52: 0 | M52: 0 | N52: 0 | O52: 0 | P52: 0 | Q52: 0 | R52: 0 | S52: 0 | U52: =G52-INDEX($C52:$G52,1,aux!$AL$1) -> 0 | V52: 0 | W52: 0 | X52: =+IF(INDEX($C52:$G52,1,aux!$AL$1)>0,(G52/INDEX($C52:$G52,1,aux!$AL$1))^(1/($G$3-INDEX($C$3:$G$3,1,aux!$AL$1)))-1,"n.d.") -> n.d. | Y52: =IF(INDEX($C52:$G52,1,aux!$AL$1)>0,(G52-INDEX($C52:$G52,1,aux!$AL$1))/INDEX($C52:$G52,1,aux!$AL$1),"n.d.") -> n.d. | AA52: =O52-INDEX($K52:$O52,1,aux!$AL$1) -> 0 | AB52: 0 | AC52: 0 | AD52: =+IF(INDEX($K52:$O52,1,aux!$AL$1)>0,(O52/INDEX($K52:$O52,1,aux!$AL$1))^(1/($O$3-INDEX($K$3:$O$3,1,aux!$AL$1)))-1,"n.d.") -> n.d. | AE52: =IF(INDEX($K52:$O52,1,aux!$AL$1)>0,(O52-INDEX($K52:$O52,1,aux!$AL$1))/INDEX($K52:$O52,1,aux!$AL$1),"n.d.") -> n.d. | AX52: 07
A53: 0707 | B53: Pepinos e pepininhos, frescos ou refrigerados | C53: 0 | D53: 0 | E53: 0 | F53: 0 | G53: 0 | H53: 0 | I53: 0 | J53: 0 | K53: 0 | L53: 0 | M53: 0 | N53: 0 | O53: 0 | P53: 0 | Q53: 0 | R53: 0 | S53: 0 | U53: =G53-INDEX($C53:$G53,1,aux!$AL$1) -> 0 | V53: 0 | W53: 0 | X53: =+IF(INDEX($C53:$G53,1,aux!$AL$1)>0,(G53/INDEX($C53:$G53,1,aux!$AL$1))^(1/($G$3-INDEX($C$3:$G$3,1,aux!$AL$1)))-1,"n.d.") -> n.d. | Y53: =IF(INDEX($C53:$G53,1,aux!$AL$1)>0,(G53-INDEX($C53:$G53,1,aux!$AL$1))/INDEX($C53:$G53,1,aux!$AL$1),"n.d.") -> n.d. | AA53: =O53-INDEX($K53:$O53,1,aux!$AL$1) -> 0 | AB53: 0 | AC53: 0 | AD53: =+IF(INDEX($K53:$O53,1,aux!$AL$1)>0,(O53/INDEX($K53:$O53,1,aux!$AL$1))^(1/($O$3-INDEX($K$3:$O$3,1,aux!$AL$1)))-1,"n.d.") -> n.d. | AE53: =IF(INDEX($K53:$O53,1,aux!$AL$1)>0,(O53-INDEX($K53:$O53,1,aux!$AL$1))/INDEX($K53:$O53,1,aux!$AL$1),"n.d.") -> n.d. | AX53: 07
A54: 0708 | B54: Tomates preparados ou conservados | C54: 0 | D54: 0 | E54: 0 | F54: 0.014 | G54: 0 | H54: 0.0028 | I54: 1.291629292e-08 | J54: 9.947711256e-09 | K54: 0 | L54: 0 | M54: 0 | N54: 0 | O54: 0 | P54: 0 | Q54: 0 | R54: 0 | S54: -0.0028 | U54: =G54-INDEX($C54:$G54,1,aux!$AL$1) -> 0 | V54: 0 | W54: 0 | X54: =+IF(INDEX($C54:$G54,1,aux!$AL$1)>0,(G54/INDEX($C54:$G54,1,aux!$AL$1))^(1/($G$3-INDEX($C$3:$G$3,1,aux!$AL$1)))-1,"n.d.") -> n.d. | Y54: =IF(INDEX($C54:$G54,1,aux!$AL$1)>0,(G54-INDEX($C54:$G54,1,aux!$AL$1))/INDEX($C54:$G54,1,aux!$AL$1),"n.d.") -> n.d. | AA54: =O54-INDEX($K54:$O54,1,aux!$AL$1) -> 0 | AB54: 0 | AC54: 0 | AD54: =+IF(INDEX($K54:$O54,1,aux!$AL$1)>0,(O54/INDEX($K54:$O54,1,aux!$AL$1))^(1/($O$3-INDEX($K$3:$O$3,1,aux!$AL$1)))-1,"n.d.") -> n.d. | AE54: =IF(INDEX($K54:$O54,1,aux!$AL$1)>0,(O54-INDEX($K54:$O54,1,aux!$AL$1))/INDEX($K54:$O54,1,aux!$AL$1),"n.d.") -> n.d. | AX54: 07
A55: 0709 | B55: Outros produtos hortícolas, frescos ou refrigerados | C55: 0 | D55: 0 | E55: 0 | F55: 0 | G55: 0 | H55: 0 | I55: 0 | J55: 0 | K55: 16.541 | L55: 113.88 | M55: 528.657 | N55: 33.442 | O55: 277.273 | P55: 193.9586 | Q55: 0.001056321742 | R55: 0.0003500382621 | S55: 193.9586 | U55: =G55-INDEX($C55:$G55,1,aux!$AL$1) -> 0 | V55: 0 | W55: 0 | X55: =+IF(INDEX($C55:$G55,1,aux!$AL$1)>0,(G55/INDEX($C55:$G55,1,aux!$AL$1))^(1/($G$3-INDEX($C$3:$G$3,1,aux!$AL$1)))-1,"n.d.") -> n.d. | Y55: =IF(INDEX($C55:$G55,1,aux!$AL$1)>0,(G55-INDEX($C55:$G55,1,aux!$AL$1))/INDEX($C55:$G55,1,aux!$AL$1),"n.d.") -> n.d. | AA55: =O55-INDEX($K55:$O55,1,aux!$AL$1) -> 260.732 | AB55: 0.00303547114 | AC55: 0.001337470245 | AD55: =+IF(INDEX($K55:$O55,1,aux!$AL$1)>0,(O55/INDEX($K55:$O55,1,aux!$AL$1))^(1/($O$3-INDEX($K$3:$O$3,1,aux!$AL$1)))-1,"n.d.") -> 1.023421941 | AE55: =IF(INDEX($K55:$O55,1,aux!$AL$1)>0,(O55-INDEX($K55:$O55,1,aux!$AL$1))/INDEX($K55:$O55,1,aux!$AL$1),"n.d.") -> 15.7627713 | AX55: 07
A56: 0710 | B56: Produtos hortícolas congelados | C56: 0 | D56: 22.725 | E56: 0 | F56: 0.088 | G56: 0 | H56: 4.5626 | I56: 2.104709931e-05 | J56: 1.620979549e-05 | K56: 2700.849 | L56: 2615.123 | M56: 2311.7 | N56: 1434.13 | O56: 2027.38 | P56: 2217.8364 | Q56: 0.01207860239 | R56: 0.004002542806 | S56: 2213.2738 | U56: =G56-INDEX($C56:$G56,1,aux!$AL$1) -> 0 | V56: 0 | W56: 0 | X56: =+IF(INDEX($C56:$G56,1,aux!$AL$1)>0,(G56/INDEX($C56:$G56,1,aux!$AL$1))^(1/($G$3-INDEX($C$3:$G$3,1,aux!$AL$1)))-1,"n.d.") -> n.d. | Y56: =IF(INDEX($C56:$G56,1,aux!$AL$1)>0,(G56-INDEX($C56:$G56,1,aux!$AL$1))/INDEX($C56:$G56,1,aux!$AL$1),"n.d.") -> n.d. | AA56: =O56-INDEX($K56:$O56,1,aux!$AL$1) -> -673.469 | AB56: -0.007840601512 | AC56: -0.003454676634 | AD56: =+IF(INDEX($K56:$O56,1,aux!$AL$1)>0,(O56/INDEX($K56:$O56,1,aux!$AL$1))^(1/($O$3-INDEX($K$3:$O$3,1,aux!$AL$1)))-1,"n.d.") -> -0.06919498734 | AE56: =IF(INDEX($K56:$O56,1,aux!$AL$1)>0,(O56-INDEX($K56:$O56,1,aux!$AL$1))/INDEX($K56:$O56,1,aux!$AL$1),"n.d.") -> -0.2493545548 | AX56: 07
A57: 0711 | B57: Produtos hortícolas conservados transitoriamente | C57: 0 | D57: 0 | E57: 0 | F57: 0 | G57: 0 | H57: 0 | I57: 0 | J57: 0 | K57: 0 | L57: 4.05 | M57: 0 | N57: 0 | O57: 0 | P57: 0.81 | Q57: 4.411356915e-06 | R57: 1.461811914e-06 | S57: 0.81 | U57: =G57-INDEX($C57:$G57,1,aux!$AL$1) -> 0 | V57: 0 | W57: 0 | X57: =+IF(INDEX($C57:$G57,1,aux!$AL$1)>0,(G57/INDEX($C57:$G57,1,aux!$AL$1))^(1/($G$3-INDEX($C$3:$G$3,1,aux!$AL$1)))-1,"n.d.") -> n.d. | Y57: =IF(INDEX($C57:$G57,1,aux!$AL$1)>0,(G57-INDEX($C57:$G57,1,aux!$AL$1))/INDEX($C57:$G57,1,aux!$AL$1),"n.d.") -> n.d. | AA57: =O57-INDEX($K57:$O57,1,aux!$AL$1) -> 0 | AB57: 0 | AC57: 0 | AD57: =+IF(INDEX($K57:$O57,1,aux!$AL$1)>0,(O57/INDEX($K57:$O57,1,aux!$AL$1))^(1/($O$3-INDEX($K$3:$O$3,1,aux!$AL$1)))-1,"n.d.") -> n.d. | AE57: =IF(INDEX($K57:$O57,1,aux!$AL$1)>0,(O57-INDEX($K57:$O57,1,aux!$AL$1))/INDEX($K57:$O57,1,aux!$AL$1),"n.d.") -> n.d. | AX57: 07
A58: 0712 | B58: Produtos hortícolas secos | C58: 59.069 | D58: 78.194 | E58: 77.697 | F58: 25.839 | G58: 129.895 | H58: 74.1388 | I58: 0.000341999449 | J58: 0.0002633969197 | K58: 0.186 | L58: 0.36 | M58: 0.02 | N58: 4.482 | O58: 58.063 | P58: 12.6222 | Q58: 6.874201142e-05 | R58: 2.277936092e-05 | S58: -61.5166 | U58: =G58-INDEX($C58:$G58,1,aux!$AL$1) -> 70.826 | V58: -0.000911884385 | W58: -0.0009198394576 | X58: =+IF(INDEX($C58:$G58,1,aux!$AL$1)>0,(G58/INDEX($C58:$G58,1,aux!$AL$1))^(1/($G$3-INDEX($C$3:$G$3,1,aux!$AL$1)))-1,"n.d.") -> 0.2177501841 | Y58: =IF(INDEX($C58:$G58,1,aux!$AL$1)>0,(G58-INDEX($C58:$G58,1,aux!$AL$1))/INDEX($C58:$G58,1,aux!$AL$1),"n.d.") -> 1.199038413 | AA58: =O58-INDEX($K58:$O58,1,aux!$AL$1) -> 57.877 | AB58: 0.0006738105149 | AC58: 0.0002968901606 | AD58: =+IF(INDEX($K58:$O58,1,aux!$AL$1)>0,(O58/INDEX($K58:$O58,1,aux!$AL$1))^(1/($O$3-INDEX($K$3:$O$3,1,aux!$AL$1)))-1,"n.d.") -> 3.203360432 | AE58: =IF(INDEX($K58:$O58,1,aux!$AL$1)>0,(O58-INDEX($K58:$O58,1,aux!$AL$1))/INDEX($K58:$O58,1,aux!$AL$1),"n.d.") -> 311.1666667 | AX58: 07
A59: 0713 | B59: Legumes de vagem, secos, em grão | C59: 3338.083 | D59: 9707.643 | E59: 5056.588 | F59: 1098.45 | G59: 542.316 | H59: 3948.616 | I59: 0.0182148146 | J59: 0.01402846137 | K59: 119.776 | L59: 110.319 | M59: 9.395 | N59: 15.415 | O59: 146.925 | P59: 80.366 | Q59: 0.0004376828516 | R59: 0.0001450370078 | S59: -3868.25 | U59: =G59-INDEX($C59:$G59,1,aux!$AL$1) -> -2795.767 | V59: 0.03599548572 | W59: 0.03630950217 | X59: =+IF(INDEX($C59:$G59,1,aux!$AL$1)>0,(G59/INDEX($C59:$G59,1,aux!$AL$1))^(1/($G$3-INDEX($C$3:$G$3,1,aux!$AL$1)))-1,"n.d.") -> -0.365124129 | Y59: =IF(INDEX($C59:$G59,1,aux!$AL$1)>0,(G59-INDEX($C59:$G59,1,aux!$AL$1))/INDEX($C59:$G59,1,aux!$AL$1),"n.d.") -> -0.837536694 | AA59: =O59-INDEX($K59:$O59,1,aux!$AL$1) -> 27.149 | AB59: 0.0003160716981 | AC59: 0.0001392655281 | AD59: =+IF(INDEX($K59:$O59,1,aux!$AL$1)>0,(O59/INDEX($K59:$O59,1,aux!$AL$1))^(1/($O$3-INDEX($K$3:$O$3,1,aux!$AL$1)))-1,"n.d.") -> 0.05240153652 | AE59: =IF(INDEX($K59:$O59,1,aux!$AL$1)>0,(O59-INDEX($K59:$O59,1,aux!$AL$1))/INDEX($K59:$O59,1,aux!$AL$1),"n.d.") -> 0.2266647742 | AX59: 07
A60: 0714 | B60: Raízes de mandioca, de araruta, batata-doce, etc. | C60: 13.044 | D60: 30.4 | E60: 0 | F60: 0 | G60: 0 | H60: 8.6888 | I60: 4.00811021e-05 | J60: 3.086916913e-05 | K60: 36.91 | L60: 37.349 | M60: 30.596 | N60: 51.289 | O60: 42.806 | P60: 39.79 | Q60: 0.0002167011008 | R60: 7.18092544e-05 | S60: 31.1012 | U60: =G60-INDEX($C60:$G60,1,aux!$AL$1) -> -13.044 | V60: 0.0001679414328 | W60: 0.0001694065158 | X60: =+IF(INDEX($C60:$G60,1,aux!$AL$1)>0,(G60/INDEX($C60:$G60,1,aux!$AL$1))^(1/($G$3-INDEX($C$3:$G$3,1,aux!$AL$1)))-1,"n.d.") -> -1 | Y60: =IF(INDEX($C60:$G60,1,aux!$AL$1)>0,(G60-INDEX($C60:$G60,1,aux!$AL$1))/INDEX($C60:$G60,1,aux!$AL$1),"n.d.") -> -1 | AA60: =O60-INDEX($K60:$O60,1,aux!$AL$1) -> 5.896 | AB60: 6.864189222e-05 | AC60: 3.024455979e-05 | AD60: =+IF(INDEX($K60:$O60,1,aux!$AL$1)>0,(O60/INDEX($K60:$O60,1,aux!$AL$1))^(1/($O$3-INDEX($K$3:$O$3,1,aux!$AL$1)))-1,"n.d.") -> 0.03774380746 | AE60: =IF(INDEX($K60:$O60,1,aux!$AL$1)>0,(O60-INDEX($K60:$O60,1,aux!$AL$1))/INDEX($K60:$O60,1,aux!$AL$1),"n.d.") -> 0.1597399079 | AX60: 07
A61: 07SS | B61: Produtos hortícolas, plantas, raízes e tubérculos, comestíveis | C61: 0 | D61: 0 | E61: 0 | F61: 0 | G61: 0 | H61: 0 | I61: 0 | J61: 0 | K61: 0 | L61: 0 | M61: 0 | N61: 0 | O61: 0 | P61: 0 | Q61: 0 | R61: 0 | S61: 0 | U61: =G61-INDEX($C61:$G61,1,aux!$AL$1) -> 0 | V61: 0 | W61: 0 | X61: =+IF(INDEX($C61:$G61,1,aux!$AL$1)>0,(G61/INDEX($C61:$G61,1,aux!$AL$1))^(1/($G$3-INDEX($C$3:$G$3,1,aux!$AL$1)))-1,"n.d.") -> n.d. | Y61: =IF(INDEX($C61:$G61,1,aux!$AL$1)>0,(G61-INDEX($C61:$G61,1,aux!$AL$1))/INDEX($C61:$G61,1,aux!$AL$1),"n.d.") -> n.d. | AA61: =O61-INDEX($K61:$O61,1,aux!$AL$1) -> 0 | AB61: 0 | AC61: 0 | AD61: =+IF(INDEX($K61:$O61,1,aux!$AL$1)>0,(O61/INDEX($K61:$O61,1,aux!$AL$1))^(1/($O$3-INDEX($K$3:$O$3,1,aux!$AL$1)))-1,"n.d.") -> n.d. | AE61: =IF(INDEX($K61:$O61,1,aux!$AL$1)>0,(O61-INDEX($K61:$O61,1,aux!$AL$1))/INDEX($K61:$O61,1,aux!$AL$1),"n.d.") -> n.d. | AX61: 07
A62: 0801 | B62: Cocos, castanhas do brasil e castanha de cajú | C62: 0.196 | D62: 0.833 | E62: 0.432 | F62: 0.91 | G62: 1.091 | H62: 0.6924 | I62: 3.19401472e-06 | J62: 2.459926883e-06 | K62: 34.541 | L62: 43.459 | M62: 46.364 | N62: 31.597 | O62: 61.365 | P62: 43.4652 | Q62: 0.0002367166797 | R62: 7.844191014e-05 | S62: 42.7728 | U62: =G62-INDEX($C62:$G62,1,aux!$AL$1) -> 0.895 | V62: -1.152312039e-05 | W62: -1.162364548e-05 | X62: =+IF(INDEX($C62:$G62,1,aux!$AL$1)>0,(G62/INDEX($C62:$G62,1,aux!$AL$1))^(1/($G$3-INDEX($C$3:$G$3,1,aux!$AL$1)))-1,"n.d.") -> 0.5360033745 | Y62: =IF(INDEX($C62:$G62,1,aux!$AL$1)>0,(G62-INDEX($C62:$G62,1,aux!$AL$1))/INDEX($C62:$G62,1,aux!$AL$1),"n.d.") -> 4.566326531 | AA62: =O62-INDEX($K62:$O62,1,aux!$AL$1) -> 26.824 | AB62: 0.0003122880117 | AC62: 0.0001375983839 | AD62: =+IF(INDEX($K62:$O62,1,aux!$AL$1)>0,(O62/INDEX($K62:$O62,1,aux!$AL$1))^(1/($O$3-INDEX($K$3:$O$3,1,aux!$AL$1)))-1,"n.d.") -> 0.1545067009 | AE62: =IF(INDEX($K62:$O62,1,aux!$AL$1)>0,(O62-INDEX($K62:$O62,1,aux!$AL$1))/INDEX($K62:$O62,1,aux!$AL$1),"n.d.") -> 0.776584349 | AX62: 08
A63: 0802 | B63: Frutas de casca rija | C63: 8643.173 | D63: 4951.511 | E63: 7063.72 | F63: 3311.453 | G63: 4556.693 | H63: 5705.31 | I63: 0.02631837684 | J63: 0.02026956304 | K63: 486.266 | L63: 620.995 | M63: 688.089 | N63: 1161.096 | O63: 457.189 | P63: 682.727 | Q63: 0.003718212929 | R63: 0.001232121559 | S63: -5022.583 | U63: =G63-INDEX($C63:$G63,1,aux!$AL$1) -> -4086.48 | V63: 0.05261340894 | W63: 0.05307239639 | X63: =+IF(INDEX($C63:$G63,1,aux!$AL$1)>0,(G63/INDEX($C63:$G63,1,aux!$AL$1))^(1/($G$3-INDEX($C$3:$G$3,1,aux!$AL$1)))-1,"n.d.") -> -0.1478929844 | Y63: =IF(INDEX($C63:$G63,1,aux!$AL$1)>0,(G63-INDEX($C63:$G63,1,aux!$AL$1))/INDEX($C63:$G63,1,aux!$AL$1),"n.d.") -> -0.4727985891 | AA63: =O63-INDEX($K63:$O63,1,aux!$AL$1) -> -29.077 | AB63: -0.00033851769 | AC63: -0.0001491555402 | AD63: =+IF(INDEX($K63:$O63,1,aux!$AL$1)>0,(O63/INDEX($K63:$O63,1,aux!$AL$1))^(1/($O$3-INDEX($K$3:$O$3,1,aux!$AL$1)))-1,"n.d.") -> -0.01529653292 | AE63: =IF(INDEX($K63:$O63,1,aux!$AL$1)>0,(O63-INDEX($K63:$O63,1,aux!$AL$1))/INDEX($K63:$O63,1,aux!$AL$1),"n.d.") -> -0.05979648999 | AX63: 08
A64: 0803 | B64: Bananas, frescas ou secas | C64: 0 | D64: 0 | E64: 0 | F64: 0 | G64: 0 | H64: 0 | I64: 0 | J64: 0 | K64: 0 | L64: 0 | M64: 0 | N64: 0 | O64: 0 | P64: 0 | Q64: 0 | R64: 0 | S64: 0 | U64: =G64-INDEX($C64:$G64,1,aux!$AL$1) -> 0 | V64: 0 | W64: 0 | X64: =+IF(INDEX($C64:$G64,1,aux!$AL$1)>0,(G64/INDEX($C64:$G64,1,aux!$AL$1))^(1/($G$3-INDEX($C$3:$G$3,1,aux!$AL$1)))-1,"n.d.") -> n.d. | Y64: =IF(INDEX($C64:$G64,1,aux!$AL$1)>0,(G64-INDEX($C64:$G64,1,aux!$AL$1))/INDEX($C64:$G64,1,aux!$AL$1),"n.d.") -> n.d. | AA64: =O64-INDEX($K64:$O64,1,aux!$AL$1) -> 0 | AB64: 0 | AC64: 0 | AD64: =+IF(INDEX($K64:$O64,1,aux!$AL$1)>0,(O64/INDEX($K64:$O64,1,aux!$AL$1))^(1/($O$3-INDEX($K$3:$O$3,1,aux!$AL$1)))-1,"n.d.") -> n.d. | AE64: =IF(INDEX($K64:$O64,1,aux!$AL$1)>0,(O64-INDEX($K64:$O64,1,aux!$AL$1))/INDEX($K64:$O64,1,aux!$AL$1),"n.d.") -> n.d. | AX64: 08
A65: 0804 | B65: Tâmaras, figos, ananases, abacates, goiabas, mangas | C65: 0.125 | D65: 0.178 | E65: 0.214 | F65: 0.145 | G65: 0.174 | H65: 0.1672 | I65: 7.712872056e-07 | J65: 5.940204721e-07 | K65: 109.249 | L65: 68.362 | M65: 71.722 | N65: 31.16 | O65: 72.693 | P65: 70.6372 | Q65: 0.0003846986428 | R65: 0.0001274793834 | S65: 70.47 | U65: =G65-INDEX($C65:$G65,1,aux!$AL$1) -> 0.049 | V65: -6.308747475e-07 | W65: -6.363783557e-07 | X65: =+IF(INDEX($C65:$G65,1,aux!$AL$1)>0,(G65/INDEX($C65:$G65,1,aux!$AL$1))^(1/($G$3-INDEX($C$3:$G$3,1,aux!$AL$1)))-1,"n.d.") -> 0.08620002592 | Y65: =IF(INDEX($C65:$G65,1,aux!$AL$1)>0,(G65-INDEX($C65:$G65,1,aux!$AL$1))/INDEX($C65:$G65,1,aux!$AL$1),"n.d.") -> 0.392 | AA65: =O65-INDEX($K65:$O65,1,aux!$AL$1) -> -36.556 | AB65: -0.0004255890455 | AC65: -0.0001875203744 | AD65: =+IF(INDEX($K65:$O65,1,aux!$AL$1)>0,(O65/INDEX($K65:$O65,1,aux!$AL$1))^(1/($O$3-INDEX($K$3:$O$3,1,aux!$AL$1)))-1,"n.d.") -> -0.09683150357 | AE65: =IF(INDEX($K65:$O65,1,aux!$AL$1)>0,(O65-INDEX($K65:$O65,1,aux!$AL$1))/INDEX($K65:$O65,1,aux!$AL$1),"n.d.") -> -0.3346117585 | AX65: 08
A66: 0805 | B66: Citrinos, frescos ou secos | C66: 0 | D66: 0 | E66: 0 | F66: 0 | G66: 0 | H66: 0 | I66: 0 | J66: 0 | K66: 0 | L66: 0 | M66: 0 | N66: 0 | O66: 0 | P66: 0 | Q66: 0 | R66: 0 | S66: 0 | U66: =G66-INDEX($C66:$G66,1,aux!$AL$1) -> 0 | V66: 0 | W66: 0 | X66: =+IF(INDEX($C66:$G66,1,aux!$AL$1)>0,(G66/INDEX($C66:$G66,1,aux!$AL$1))^(1/($G$3-INDEX($C$3:$G$3,1,aux!$AL$1)))-1,"n.d.") -> n.d. | Y66: =IF(INDEX($C66:$G66,1,aux!$AL$1)>0,(G66-INDEX($C66:$G66,1,aux!$AL$1))/INDEX($C66:$G66,1,aux!$AL$1),"n.d.") -> n.d. | AA66: =O66-INDEX($K66:$O66,1,aux!$AL$1) -> 0 | AB66: 0 | AC66: 0 | AD66: =+IF(INDEX($K66:$O66,1,aux!$AL$1)>0,(O66/INDEX($K66:$O66,1,aux!$AL$1))^(1/($O$3-INDEX($K$3:$O$3,1,aux!$AL$1)))-1,"n.d.") -> n.d. | AE66: =IF(INDEX($K66:$O66,1,aux!$AL$1)>0,(O66-INDEX($K66:$O66,1,aux!$AL$1))/INDEX($K66:$O66,1,aux!$AL$1),"n.d.") -> n.d. | AX66: 08
A67: 0806 | B67: Uvas, frescas ou secas | C67: 1.322 | D67: 1.326 | E67: 1.622 | F67: 1.39 | G67: 1.298 | H67: 1.3916 | I67: 6.419397579e-06 | J67: 4.944012494e-06 | K67: 0.374 | L67: 0 | M67: 0.241 | N67: 0 | O67: 0.409 | P67: 0.2048 | Q67: 1.115365304e-06 | R67: 3.696038025e-07 | S67: -1.1868 | U67: =G67-INDEX($C67:$G67,1,aux!$AL$1) -> -0.024 | V67: 3.089998763e-07 | W67: 3.116955212e-07 | X67: =+IF(INDEX($C67:$G67,1,aux!$AL$1)>0,(G67/INDEX($C67:$G67,1,aux!$AL$1))^(1/($G$3-INDEX($C$3:$G$3,1,aux!$AL$1)))-1,"n.d.") -> -0.004569807297 | Y67: =IF(INDEX($C67:$G67,1,aux!$AL$1)>0,(G67-INDEX($C67:$G67,1,aux!$AL$1))/INDEX($C67:$G67,1,aux!$AL$1),"n.d.") -> -0.01815431165 | AA67: =O67-INDEX($K67:$O67,1,aux!$AL$1) -> 0.035 | AB67: 4.074739192e-07 | AC67: 1.795386012e-07 | AD67: =+IF(INDEX($K67:$O67,1,aux!$AL$1)>0,(O67/INDEX($K67:$O67,1,aux!$AL$1))^(1/($O$3-INDEX($K$3:$O$3,1,aux!$AL$1)))-1,"n.d.") -> 0.02261680758 | AE67: =IF(INDEX($K67:$O67,1,aux!$AL$1)>0,(O67-INDEX($K67:$O67,1,aux!$AL$1))/INDEX($K67:$O67,1,aux!$AL$1),"n.d.") -> 0.0935828877 | AX67: 08
A68: 0807 | B68: Melões, melancias e papaia, frescos | C68: 19.495 | D68: 3.67 | E68: 0 | F68: 24.104 | G68: 7.324 | H68: 10.9186 | I68: 5.036708423e-05 | J68: 3.879110004e-05 | K68: 39.653 | L68: 68.34 | M68: 90.429 | N68: 68.689 | O68: 50.69 | P68: 63.5602 | Q68: 0.000346156454 | R68: 0.0001147074785 | S68: 52.6416 | U68: =G68-INDEX($C68:$G68,1,aux!$AL$1) -> -12.171 | V68: =IF($U$237<>0,U68/$U$237, "n.d.") -> 0.0001567015623 | W68: =IF($U$322<>0,U68/$U$322, "n.d.") -> 0.0001580685912 | X68: =+IF(INDEX($C68:$G68,1,aux!$AL$1)>0,(G68/INDEX($C68:$G68,1,aux!$AL$1))^(1/($G$3-INDEX($C$3:$G$3,1,aux!$AL$1)))-1,"n.d.") -> -0.2171000343 | Y68: =IF(INDEX($C68:$G68,1,aux!$AL$1)>0,(G68-INDEX($C68:$G68,1,aux!$AL$1))/INDEX($C68:$G68,1,aux!$AL$1),"n.d.") -> -0.6243139266 | AA68: =O68-INDEX($K68:$O68,1,aux!$AL$1) -> 11.037 | AB68: =IF($AA$237<>0,AA68/$AA$237, "n.d.") -> 0.0001284939899 | AC68: =IF($AA$322<>0,AA68/$AA$322, "n.d.") -> 5.661621546e-05 | AD68: =+IF(INDEX($K68:$O68,1,aux!$AL$1)>0,(O68/INDEX($K68:$O68,1,aux!$AL$1))^(1/($O$3-INDEX($K$3:$O$3,1,aux!$AL$1)))-1,"n.d.") -> 0.06331406929 | AE68: =IF(INDEX($K68:$O68,1,aux!$AL$1)>0,(O68-INDEX($K68:$O68,1,aux!$AL$1))/INDEX($K68:$O68,1,aux!$AL$1),"n.d.") -> 0.278339596 | AX68: 08
A69: 0808 | B69: Maçãs, peras e marmelos, frescos | C69: 22.097 | D69: 0 | E69: 0 | F69: 0 | G69: 0 | H69: 4.4194 | I69: 2.038652318e-05 | J69: 1.570104112e-05 | K69: 0 | L69: 0.01 | M69: 53.188 | N69: 15.734 | O69: 0.057 | P69: 13.7978 | Q69: 7.514446968e-05 | R69: 2.490097337e-05 | S69: 9.3784 | U69: =G69-INDEX($C69:$G69,1,aux!$AL$1) -> -22.097 | V69: 0.0002844987611 | W69: 0.0002869806638 | X69: =+IF(INDEX($C69:$G69,1,aux!$AL$1)>0,(G69/INDEX($C69:$G69,1,aux!$AL$1))^(1/($G$3-INDEX($C$3:$G$3,1,aux!$AL$1)))-1,"n.d.") -> -1 | Y69: =IF(INDEX($C69:$G69,1,aux!$AL$1)>0,(G69-INDEX($C69:$G69,1,aux!$AL$1))/INDEX($C69:$G69,1,aux!$AL$1),"n.d.") -> -1 | AA69: =O69-INDEX($K69:$O69,1,aux!$AL$1) -> 0.057 | AB69: 6.636003827e-07 | AC69: 2.923914362e-07 | AD69: =+IF(INDEX($K69:$O69,1,aux!$AL$1)>0,(O69/INDEX($K69:$O69,1,aux!$AL$1))^(1/($O$3-INDEX($K$3:$O$3,1,aux!$AL$1)))-1,"n.d.") -> n.d. | AE69: =IF(INDEX($K69:$O69,1,aux!$AL$1)>0,(O69-INDEX($K69:$O69,1,aux!$AL$1))/INDEX($K69:$O69,1,aux!$AL$1),"n.d.") -> n.d. | AX69: 08
A70: 0809 | B70: Damascos, cerejas, pêssegos, etc., frescos | C70: 0 | D70: 0 | E70: 0 | F70: 147.608 | G70: 0 | H70: 29.5216 | I70: 0.0001361820118 | J70: 0.0001048829831 | K70: 0 | L70: 47 | M70: 0 | N70: 0.047 | O70: 0.002 | P70: 9.4098 | Q70: 5.124689666e-05 | R70: 1.698192315e-05 | S70: -20.1118 | U70: =G70-INDEX($C70:$G70,1,aux!$AL$1) -> 0 | V70: 0 | W70: 0 | X70: =+IF(INDEX($C70:$G70,1,aux!$AL$1)>0,(G70/INDEX($C70:$G70,1,aux!$AL$1))^(1/($G$3-INDEX($C$3:$G$3,1,aux!$AL$1)))-1,"n.d.") -> n.d. | Y70: =IF(INDEX($C70:$G70,1,aux!$AL$1)>0,(G70-INDEX($C70:$G70,1,aux!$AL$1))/INDEX($C70:$G70,1,aux!$AL$1),"n.d.") -> n.d. | AA70: =O70-INDEX($K70:$O70,1,aux!$AL$1) -> 0.002 | AB70: 2.328422396e-08 | AC70: 1.025934864e-08 | AD70: =+IF(INDEX($K70:$O70,1,aux!$AL$1)>0,(O70/INDEX($K70:$O70,1,aux!$AL$1))^(1/($O$3-INDEX($K$3:$O$3,1,aux!$AL$1)))-1,"n.d.") -> n.d. | AE70: =IF(INDEX($K70:$O70,1,aux!$AL$1)>0,(O70-INDEX($K70:$O70,1,aux!$AL$1))/INDEX($K70:$O70,1,aux!$AL$1),"n.d.") -> n.d. | AX70: 08
A71: 0810 | B71: Outras frutas frescas | C71: 0 | D71: 0 | E71: 0 | F71: 0 | G71: 0 | H71: 0 | I71: 0 | J71: 0 | K71: 0.021 | L71: 0 | M71: 0.037 | N71: 0.108 | O71: 0.074 | P71: 0.048 | Q71: 2.614137431e-07 | R71: 8.662589121e-08 | S71: 0.048 | U71: =G71-INDEX($C71:$G71,1,aux!$AL$1) -> 0 | V71: 0 | W71: 0 | X71: =+IF(INDEX($C71:$G71,1,aux!$AL$1)>0,(G71/INDEX($C71:$G71,1,aux!$AL$1))^(1/($G$3-INDEX($C$3:$G$3,1,aux!$AL$1)))-1,"n.d.") -> n.d. | Y71: =IF(INDEX($C71:$G71,1,aux!$AL$1)>0,(G71-INDEX($C71:$G71,1,aux!$AL$1))/INDEX($C71:$G71,1,aux!$AL$1),"n.d.") -> n.d. | AA71: =O71-INDEX($K71:$O71,1,aux!$AL$1) -> 0.053 | AB71: 6.170319348e-07 | AC71: 2.718727389e-07 | AD71: =+IF(INDEX($K71:$O71,1,aux!$AL$1)>0,(O71/INDEX($K71:$O71,1,aux!$AL$1))^(1/($O$3-INDEX($K$3:$O$3,1,aux!$AL$1)))-1,"n.d.") -> 0.3701026498 | AE71: =IF(INDEX($K71:$O71,1,aux!$AL$1)>0,(O71-INDEX($K71:$O71,1,aux!$AL$1))/INDEX($K71:$O71,1,aux!$AL$1),"n.d.") -> 2.523809524 | AX71: 08
A72: 0811 | B72: Frutas não cozidas ou cozidas em água ou vapor, congeladas | C72: 0 | D72: 0 | E72: 0 | F72: 0.914 | G72: 0.011 | H72: 0.185 | I72: 8.533979248e-07 | J72: 6.572594937e-07 | K72: 4.5 | L72: 8.46 | M72: 31.573 | N72: 12.871 | O72: 7.263 | P72: 12.9334 | Q72: 7.043684386e-05 | R72: 2.334098544e-05 | S72: 12.7484 | U72: =G72-INDEX($C72:$G72,1,aux!$AL$1) -> 0.011 | V72: -1.416249433e-07 | W72: -1.428604472e-07 | X72: =+IF(INDEX($C72:$G72,1,aux!$AL$1)>0,(G72/INDEX($C72:$G72,1,aux!$AL$1))^(1/($G$3-INDEX($C$3:$G$3,1,aux!$AL$1)))-1,"n.d.") -> n.d. | Y72: =IF(INDEX($C72:$G72,1,aux!$AL$1)>0,(G72-INDEX($C72:$G72,1,aux!$AL$1))/INDEX($C72:$G72,1,aux!$AL$1),"n.d.") -> n.d. | AA72: =O72-INDEX($K72:$O72,1,aux!$AL$1) -> 2.763 | AB72: 3.216715539e-05 | AC72: 1.417329014e-05 | AD72: =+IF(INDEX($K72:$O72,1,aux!$AL$1)>0,(O72/INDEX($K72:$O72,1,aux!$AL$1))^(1/($O$3-INDEX($K$3:$O$3,1,aux!$AL$1)))-1,"n.d.") -> 0.127134862 | AE72: =IF(INDEX($K72:$O72,1,aux!$AL$1)>0,(O72-INDEX($K72:$O72,1,aux!$AL$1))/INDEX($K72:$O72,1,aux!$AL$1),"n.d.") -> 0.614 | AX72: 08
A73: 0812 | B73: Frutas conservadas transitoriamente | C73: 0 | D73: 0 | E73: 0 | F73: 0 | G73: 0 | H73: 0 | I73: 0 | J73: 0 | K73: 0 | L73: 0 | M73: 0 | N73: 0 | O73: 0 | P73: 0 | Q73: 0 | R73: 0 | S73: 0 | U73: =G73-INDEX($C73:$G73,1,aux!$AL$1) -> 0 | V73: 0 | W73: 0 | X73: =+IF(INDEX($C73:$G73,1,aux!$AL$1)>0,(G73/INDEX($C73:$G73,1,aux!$AL$1))^(1/($G$3-INDEX($C$3:$G$3,1,aux!$AL$1)))-1,"n.d.") -> n.d. | Y73: =IF(INDEX($C73:$G73,1,aux!$AL$1)>0,(G73-INDEX($C73:$G73,1,aux!$AL$1))/INDEX($C73:$G73,1,aux!$AL$1),"n.d.") -> n.d. | AA73: =O73-INDEX($K73:$O73,1,aux!$AL$1) -> 0 | AB73: 0 | AC73: 0 | AD73: =+IF(INDEX($K73:$O73,1,aux!$AL$1)>0,(O73/INDEX($K73:$O73,1,aux!$AL$1))^(1/($O$3-INDEX($K$3:$O$3,1,aux!$AL$1)))-1,"n.d.") -> n.d. | AE73: =IF(INDEX($K73:$O73,1,aux!$AL$1)>0,(O73-INDEX($K73:$O73,1,aux!$AL$1))/INDEX($K73:$O73,1,aux!$AL$1),"n.d.") -> n.d. | AX73: 08
A74: 0813 | B74: Outras frutas secas | C74: 10.564 | D74: 2.826 | E74: 1.825 | F74: 3.565 | G74: 5.645 | H74: 4.885 | I74: 2.253431818e-05 | J74: 1.735520339e-05 | K74: 35.161 | L74: 25.274 | M74: 40.917 | N74: 115.45 | O74: 1.323 | P74: 43.625 | Q74: 0.0002375869696 | R74: 7.873030217e-05 | S74: 38.74 | U74: =G74-INDEX($C74:$G74,1,aux!$AL$1) -> -4.919 | V74: 6.333209965e-05 | W74: 6.388459453e-05 | X74: =+IF(INDEX($C74:$G74,1,aux!$AL$1)>0,(G74/INDEX($C74:$G74,1,aux!$AL$1))^(1/($G$3-INDEX($C$3:$G$3,1,aux!$AL$1)))-1,"n.d.") -> -0.1450142264 | Y74: =IF(INDEX($C74:$G74,1,aux!$AL$1)>0,(G74-INDEX($C74:$G74,1,aux!$AL$1))/INDEX($C74:$G74,1,aux!$AL$1),"n.d.") -> -0.4656380159 | AA74: =O74-INDEX($K74:$O74,1,aux!$AL$1) -> -33.838 | AB74: -0.0003939457851 | AC74: -0.0001735779196 | AD74: =+IF(INDEX($K74:$O74,1,aux!$AL$1)>0,(O74/INDEX($K74:$O74,1,aux!$AL$1))^(1/($O$3-INDEX($K$3:$O$3,1,aux!$AL$1)))-1,"n.d.") -> -0.5595722685 | AE74: =IF(INDEX($K74:$O74,1,aux!$AL$1)>0,(O74-INDEX($K74:$O74,1,aux!$AL$1))/INDEX($K74:$O74,1,aux!$AL$1),"n.d.") -> -0.9623730838 | AX74: 08
A75: 0814 | B75: Cascas de citrinos, melões ou melancias | C75: 0 | D75: 0 | E75: 0 | F75: 0 | G75: 0 | H75: 0 | I75: 0 | J75: 0 | K75: 0 | L75: 0 | M75: 0 | N75: 0 | O75: 0 | P75: 0 | Q75: 0 | R75: 0 | S75: 0 | U75: =G75-INDEX($C75:$G75,1,aux!$AL$1) -> 0 | V75: 0 | W75: 0 | X75: =+IF(INDEX($C75:$G75,1,aux!$AL$1)>0,(G75/INDEX($C75:$G75,1,aux!$AL$1))^(1/($G$3-INDEX($C$3:$G$3,1,aux!$AL$1)))-1,"n.d.") -> n.d. | Y75: =IF(INDEX($C75:$G75,1,aux!$AL$1)>0,(G75-INDEX($C75:$G75,1,aux!$AL$1))/INDEX($C75:$G75,1,aux!$AL$1),"n.d.") -> n.d. | AA75: =O75-INDEX($K75:$O75,1,aux!$AL$1) -> 0 | AB75: 0 | AC75: 0 | AD75: =+IF(INDEX($K75:$O75,1,aux!$AL$1)>0,(O75/INDEX($K75:$O75,1,aux!$AL$1))^(1/($O$3-INDEX($K$3:$O$3,1,aux!$AL$1)))-1,"n.d.") -> n.d. | AE75: =IF(INDEX($K75:$O75,1,aux!$AL$1)>0,(O75-INDEX($K75:$O75,1,aux!$AL$1))/INDEX($K75:$O75,1,aux!$AL$1),"n.d.") -> n.d. | AX75: =+LEFT(A75,2) -> 08
A76: 08SS | B76: Frutas; cascas de citrinos e de melões | C76: 0 | D76: 0 | E76: 0 | F76: 0 | G76: 0 | H76: 0 | I76: 0 | J76: 0 | K76: 0 | L76: 0 | M76: 0 | N76: 0 | O76: 0 | P76: 0 | Q76: 0 | R76: 0 | S76: 0 | U76: =G76-INDEX($C76:$G76,1,aux!$AL$1) -> 0 | V76: 0 | W76: 0 | X76: =+IF(INDEX($C76:$G76,1,aux!$AL$1)>0,(G76/INDEX($C76:$G76,1,aux!$AL$1))^(1/($G$3-INDEX($C$3:$G$3,1,aux!$AL$1)))-1,"n.d.") -> n.d. | Y76: =IF(INDEX($C76:$G76,1,aux!$AL$1)>0,(G76-INDEX($C76:$G76,1,aux!$AL$1))/INDEX($C76:$G76,1,aux!$AL$1),"n.d.") -> n.d. | AA76: =O76-INDEX($K76:$O76,1,aux!$AL$1) -> 0 | AB76: 0 | AC76: 0 | AD76: =+IF(INDEX($K76:$O76,1,aux!$AL$1)>0,(O76/INDEX($K76:$O76,1,aux!$AL$1))^(1/($O$3-INDEX($K$3:$O$3,1,aux!$AL$1)))-1,"n.d.") -> n.d. | AE76: =IF(INDEX($K76:$O76,1,aux!$AL$1)>0,(O76-INDEX($K76:$O76,1,aux!$AL$1))/INDEX($K76:$O76,1,aux!$AL$1),"n.d.") -> n.d. | AX76: 08
A77: 0901 | B77: Café | C77: 73.112 | D77: 35.816 | E77: 67.414 | F77: 62.638 | G77: 74.114 | H77: 62.6188 | I77: 0.0002888581296 | J77: 0.0002224691934 | K77: 1682.028 | L77: 1866.87 | M77: 1905.021 | N77: 1878.541 | O77: 2000.641 | P77: 1866.6202 | Q77: 0.01016583695 | R77: 0.003368700799 | S77: 1804.0014 | U77: =G77-INDEX($C77:$G77,1,aux!$AL$1) -> 1.002 | V77: -1.290074484e-05 | W77: -1.301328801e-05 | X77: =+IF(INDEX($C77:$G77,1,aux!$AL$1)>0,(G77/INDEX($C77:$G77,1,aux!$AL$1))^(1/($G$3-INDEX($C$3:$G$3,1,aux!$AL$1)))-1,"n.d.") -> 0.003408780814 | Y77: =IF(INDEX($C77:$G77,1,aux!$AL$1)>0,(G77-INDEX($C77:$G77,1,aux!$AL$1))/INDEX($C77:$G77,1,aux!$AL$1),"n.d.") -> 0.01370500055 | AA77: =O77-INDEX($K77:$O77,1,aux!$AL$1) -> 318.613 | AB77: 0.003709328224 | AC77: 0.001634380924 | AD77: =+IF(INDEX($K77:$O77,1,aux!$AL$1)>0,(O77/INDEX($K77:$O77,1,aux!$AL$1))^(1/($O$3-INDEX($K$3:$O$3,1,aux!$AL$1)))-1,"n.d.") -> 0.04432093919 | AE77: =IF(INDEX($K77:$O77,1,aux!$AL$1)>0,(O77-INDEX($K77:$O77,1,aux!$AL$1))/INDEX($K77:$O77,1,aux!$AL$1),"n.d.") -> 0.1894219359 | AX77: 09
A78: 0902 | B78: Chá | C78: 0.339 | D78: 1.453 | E78: 2.676 | F78: 11.63 | G78: 13.146 | H78: 5.8488 | I78: 2.698029072e-05 | J78: 2.077934771e-05 | K78: 38.731 | L78: 69.306 | M78: 102.173 | N78: 75.2 | O78: 69.222 | P78: 70.9264 | Q78: 0.0003862736606 | R78: 0.0001280013044 | S78: 65.0776 | U78: =G78-INDEX($C78:$G78,1,aux!$AL$1) -> 12.807 | V78: -0.000164890059 | W78: -0.0001663285225 | X78: =+IF(INDEX($C78:$G78,1,aux!$AL$1)>0,(G78/INDEX($C78:$G78,1,aux!$AL$1))^(1/($G$3-INDEX($C$3:$G$3,1,aux!$AL$1)))-1,"n.d.") -> 1.495447758 | Y78: =IF(INDEX($C78:$G78,1,aux!$AL$1)>0,(G78-INDEX($C78:$G78,1,aux!$AL$1))/INDEX($C78:$G78,1,aux!$AL$1),"n.d.") -> 37.77876106 | AA78: =O78-INDEX($K78:$O78,1,aux!$AL$1) -> 30.491 | AB78: 0.0003549796363 | AC78: 0.0001564088997 | AD78: =+IF(INDEX($K78:$O78,1,aux!$AL$1)>0,(O78/INDEX($K78:$O78,1,aux!$AL$1))^(1/($O$3-INDEX($K$3:$O$3,1,aux!$AL$1)))-1,"n.d.") -> 0.1562356565 | AE78: =IF(INDEX($K78:$O78,1,aux!$AL$1)>0,(O78-INDEX($K78:$O78,1,aux!$AL$1))/INDEX($K78:$O78,1,aux!$AL$1),"n.d.") -> 0.7872505228 | AX78: 09
A79: 0903 | B79: Mate | C79: 0 | D79: 0 | E79: 0.157 | F79: 0.742 | G79: 1.328 | H79: 0.4454 | I79: 2.054613166e-06 | J79: 1.58239664e-06 | K79: 0.287 | L79: 0.124 | M79: 0.17 | N79: 4.383 | O79: 1.583 | P79: 1.3094 | Q79: 7.131149067e-06 | R79: 2.363082124e-06 | S79: 0.864 | U79: =G79-INDEX($C79:$G79,1,aux!$AL$1) -> 1.328 | V79: -1.709799316e-05 | W79: -1.724715217e-05 | X79: =+IF(INDEX($C79:$G79,1,aux!$AL$1)>0,(G79/INDEX($C79:$G79,1,aux!$AL$1))^(1/($G$3-INDEX($C$3:$G$3,1,aux!$AL$1)))-1,"n.d.") -> n.d. | Y79: =IF(INDEX($C79:$G79,1,aux!$AL$1)>0,(G79-INDEX($C79:$G79,1,aux!$AL$1))/INDEX($C79:$G79,1,aux!$AL$1),"n.d.") -> n.d. | AA79: =O79-INDEX($K79:$O79,1,aux!$AL$1) -> 1.296 | AB79: 1.508817712e-05 | AC79: 6.648057918e-06 | AD79: =+IF(INDEX($K79:$O79,1,aux!$AL$1)>0,(O79/INDEX($K79:$O79,1,aux!$AL$1))^(1/($O$3-INDEX($K$3:$O$3,1,aux!$AL$1)))-1,"n.d.") -> 0.5324974288 | AE79: =IF(INDEX($K79:$O79,1,aux!$AL$1)>0,(O79-INDEX($K79:$O79,1,aux!$AL$1))/INDEX($K79:$O79,1,aux!$AL$1),"n.d.") -> 4.515679443 | AX79: 09
A80: 0904 | B80: Pimenta | C80: 0 | D80: 0.886 | E80: 0.185 | F80: 10.895 | G80: 1.379 | H80: 2.669 | I80: 1.231199493e-05 | J80: 9.482300479e-06 | K80: 21.498 | L80: 16.097 | M80: 30.811 | N80: 15.07 | O80: 49.204 | P80: 26.536 | Q80: 0.000144518231 | R80: 4.788968019e-05 | S80: 23.867 | U80: =G80-INDEX($C80:$G80,1,aux!$AL$1) -> 1.379 | V80: -1.775461789e-05 | W80: -1.790950515e-05 | X80: =+IF(INDEX($C80:$G80,1,aux!$AL$1)>0,(G80/INDEX($C80:$G80,1,aux!$AL$1))^(1/($G$3-INDEX($C$3:$G$3,1,aux!$AL$1)))-1,"n.d.") -> n.d. | Y80: =IF(INDEX($C80:$G80,1,aux!$AL$1)>0,(G80-INDEX($C80:$G80,1,aux!$AL$1))/INDEX($C80:$G80,1,aux!$AL$1),"n.d.") -> n.d. | AA80: =O80-INDEX($K80:$O80,1,aux!$AL$1) -> 27.706 | AB80: 0.0003225563545 | AC80: 0.0001421227567 | AD80: =+IF(INDEX($K80:$O80,1,aux!$AL$1)>0,(O80/INDEX($K80:$O80,1,aux!$AL$1))^(1/($O$3-INDEX($K$3:$O$3,1,aux!$AL$1)))-1,"n.d.") -> 0.2299871884 | AE80: =IF(INDEX($K80:$O80,1,aux!$AL$1)>0,(O80-INDEX($K80:$O80,1,aux!$AL$1))/INDEX($K80:$O80,1,aux!$AL$1),"n.d.") -> 1.288771048 | AX80: 09
A81: 0905 | B81: Baunilha | C81: 0 | D81: 0 | E81: 0 | F81: 0 | G81: 0 | H81: 0 | I81: 0 | J81: 0 | K81: 0 | L81: 0 | M81: 0 | N81: 0 | O81: 0 | P81: 0 | Q81: 0 | R81: 0 | S81: 0 | U81: =G81-INDEX($C81:$G81,1,aux!$AL$1) -> 0 | V81: 0 | W81: 0 | X81: =+IF(INDEX($C81:$G81,1,aux!$AL$1)>0,(G81/INDEX($C81:$G81,1,aux!$AL$1))^(1/($G$3-INDEX($C$3:$G$3,1,aux!$AL$1)))-1,"n.d.") -> n.d. | Y81: =IF(INDEX($C81:$G81,1,aux!$AL$1)>0,(G81-INDEX($C81:$G81,1,aux!$AL$1))/INDEX($C81:$G81,1,aux!$AL$1),"n.d.") -> n.d. | AA81: =O81-INDEX($K81:$O81,1,aux!$AL$1) -> 0 | AB81: 0 | AC81: 0 | AD81: =+IF(INDEX($K81:$O81,1,aux!$AL$1)>0,(O81/INDEX($K81:$O81,1,aux!$AL$1))^(1/($O$3-INDEX($K$3:$O$3,1,aux!$AL$1)))-1,"n.d.") -> n.d. | AE81: =IF(INDEX($K81:$O81,1,aux!$AL$1)>0,(O81-INDEX($K81:$O81,1,aux!$AL$1))/INDEX($K81:$O81,1,aux!$AL$1),"n.d.") -> n.d. | AX81: 09
A82: 0906 | B82: Canela | C82: 0 | D82: 0.321 | E82: 0 | F82: 0 | G82: 0 | H82: 0.0642 | I82: 2.961521447e-07 | J82: 2.280868081e-07 | K82: 0.241 | L82: 1.281 | M82: 1.585 | N82: 2.142 | O82: 1.385 | P82: 1.3268 | Q82: 7.225911549e-06 | R82: 2.394484009e-06 | S82: 1.2626 | U82: =G82-INDEX($C82:$G82,1,aux!$AL$1) -> 0 | V82: 0 | W82: 0 | X82: =+IF(INDEX($C82:$G82,1,aux!$AL$1)>0,(G82/INDEX($C82:$G82,1,aux!$AL$1))^(1/($G$3-INDEX($C$3:$G$3,1,aux!$AL$1)))-1,"n.d.") -> n.d. | Y82: =IF(INDEX($C82:$G82,1,aux!$AL$1)>0,(G82-INDEX($C82:$G82,1,aux!$AL$1))/INDEX($C82:$G82,1,aux!$AL$1),"n.d.") -> n.d. | AA82: =O82-INDEX($K82:$O82,1,aux!$AL$1) -> 1.144 | AB82: 1.33185761e-05 | AC82: 5.868347422e-06 | AD82: =+IF(INDEX($K82:$O82,1,aux!$AL$1)>0,(O82/INDEX($K82:$O82,1,aux!$AL$1))^(1/($O$3-INDEX($K$3:$O$3,1,aux!$AL$1)))-1,"n.d.") -> 0.548310941 | AE82: =IF(INDEX($K82:$O82,1,aux!$AL$1)>0,(O82-INDEX($K82:$O82,1,aux!$AL$1))/INDEX($K82:$O82,1,aux!$AL$1),"n.d.") -> 4.746887967 | AX82: 09
A83: 0907 | B83: Cravo-da-índia | C83: 0 | D83: 0.27 | E83: 0.064 | F83: 0 | G83: 0 | H83: 0.0668 | I83: 3.081458453e-07 | J83: 2.373239685e-07 | K83: 0 | L83: 0 | M83: 0 | N83: 0 | O83: 0.305 | P83: 0.061 | Q83: 3.322132985e-07 | R83: 1.100870701e-07 | S83: -0.0058 | U83: =G83-INDEX($C83:$G83,1,aux!$AL$1) -> 0 | V83: 0 | W83: 0 | X83: =+IF(INDEX($C83:$G83,1,aux!$AL$1)>0,(G83/INDEX($C83:$G83,1,aux!$AL$1))^(1/($G$3-INDEX($C$3:$G$3,1,aux!$AL$1)))-1,"n.d.") -> n.d. | Y83: =IF(INDEX($C83:$G83,1,aux!$AL$1)>0,(G83-INDEX($C83:$G83,1,aux!$AL$1))/INDEX($C83:$G83,1,aux!$AL$1),"n.d.") -> n.d. | AA83: =O83-INDEX($K83:$O83,1,aux!$AL$1) -> 0.305 | AB83: 3.550844153e-06 | AC83: 1.564550667e-06 | AD83: =+IF(INDEX($K83:$O83,1,aux!$AL$1)>0,(O83/INDEX($K83:$O83,1,aux!$AL$1))^(1/($O$3-INDEX($K$3:$O$3,1,aux!$AL$1)))-1,"n.d.") -> n.d. | AE83: =IF(INDEX($K83:$O83,1,aux!$AL$1)>0,(O83-INDEX($K83:$O83,1,aux!$AL$1))/INDEX($K83:$O83,1,aux!$AL$1),"n.d.") -> n.d. | AX83: 09
A84: 0908 | B84: Noz-moscada, etc. | C84: 0 | D84: 0.293 | E84: 0 | F84: 2.111 | G84: 0 | H84: 0.4808 | I84: 2.217912012e-06 | J84: 1.708164133e-06 | K84: 0 | L84: 0 | M84: 0.057 | N84: 0 | O84: 0 | P84: 0.0114 | Q84: 6.208576399e-08 | R84: 2.057364916e-08 | S84: -0.4694 | U84: =G84-INDEX($C84:$G84,1,aux!$AL$1) -> 0 | V84: 0 | W84: 0 | X84: =+IF(INDEX($C84:$G84,1,aux!$AL$1)>0,(G84/INDEX($C84:$G84,1,aux!$AL$1))^(1/($G$3-INDEX($C$3:$G$3,1,aux!$AL$1)))-1,"n.d.") -> n.d. | Y84: =IF(INDEX($C84:$G84,1,aux!$AL$1)>0,(G84-INDEX($C84:$G84,1,aux!$AL$1))/INDEX($C84:$G84,1,aux!$AL$1),"n.d.") -> n.d. | AA84: =O84-INDEX($K84:$O84,1,aux!$AL$1) -> 0 | AB84: 0 | AC84: 0 | AD84: =+IF(INDEX($K84:$O84,1,aux!$AL$1)>0,(O84/INDEX($K84:$O84,1,aux!$AL$1))^(1/($O$3-INDEX($K$3:$O$3,1,aux!$AL$1)))-1,"n.d.") -> n.d. | AE84: =IF(INDEX($K84:$O84,1,aux!$AL$1)>0,(O84-INDEX($K84:$O84,1,aux!$AL$1))/INDEX($K84:$O84,1,aux!$AL$1),"n.d.") -> n.d. | AX84: 09
A85: 0909 | B85: Sementes de anis, funcho, etc. | C85: 0 | D85: 0.471 | E85: 0.05 | F85: 1.729 | G85: 0 | H85: 0.45 | I85: 2.07583279e-06 | J85: 1.598739309e-06 | K85: 0.037 | L85: 0.98 | M85: 1.215 | N85: 0.36 | O85: 3.329 | P85: 1.1842 | Q85: 6.449294887e-06 | R85: 2.137132924e-06 | S85: 0.7342 | U85: =G85-INDEX($C85:$G85,1,aux!$AL$1) -> 0 | V85: 0 | W85: 0 | X85: =+IF(INDEX($C85:$G85,1,aux!$AL$1)>0,(G85/INDEX($C85:$G85,1,aux!$AL$1))^(1/($G$3-INDEX($C$3:$G$3,1,aux!$AL$1)))-1,"n.d.") -> n.d. | Y85: =IF(INDEX($C85:$G85,1,aux!$AL$1)>0,(G85-INDEX($C85:$G85,1,aux!$AL$1))/INDEX($C85:$G85,1,aux!$AL$1),"n.d.") -> n.d. | AA85: =O85-INDEX($K85:$O85,1,aux!$AL$1) -> 3.292 | AB85: 3.832583263e-05 | AC85: 1.688688786e-05 | AD85: =+IF(INDEX($K85:$O85,1,aux!$AL$1)>0,(O85/INDEX($K85:$O85,1,aux!$AL$1))^(1/($O$3-INDEX($K$3:$O$3,1,aux!$AL$1)))-1,"n.d.") -> 2.079839026 | AE85: =IF(INDEX($K85:$O85,1,aux!$AL$1)>0,(O85-INDEX($K85:$O85,1,aux!$AL$1))/INDEX($K85:$O85,1,aux!$AL$1),"n.d.") -> 88.97297297 | AX85: 09
A86: 0910 | B86: Gengibre, açafrão, tomilho, louro, etc. | C86: 34.22 | D86: 66.883 | E86: 23.304 | F86: 78.971 | G86: 51.399 | H86: 50.9554 | I86: 0.0002350553115 | J86: 0.0001810320022 | K86: 427.46 | L86: 327.078 | M86: 218.757 | N86: 372.814 | O86: 186.632 | P86: 306.5482 | Q86: 0.001669498175 | R86: 0.0005532293963 | S86: 255.5928 | U86: =G86-INDEX($C86:$G86,1,aux!$AL$1) -> 17.179 | V86: -0.0002211795365 | W86: -0.0002231090566 | X86: =+IF(INDEX($C86:$G86,1,aux!$AL$1)>0,(G86/INDEX($C86:$G86,1,aux!$AL$1))^(1/($G$3-INDEX($C$3:$G$3,1,aux!$AL$1)))-1,"n.d.") -> 0.1070536448 | Y86: =IF(INDEX($C86:$G86,1,aux!$AL$1)>0,(G86-INDEX($C86:$G86,1,aux!$AL$1))/INDEX($C86:$G86,1,aux!$AL$1),"n.d.") -> 0.5020163647 | AA86: =O86-INDEX($K86:$O86,1,aux!$AL$1) -> -240.828 | AB86: -0.002803746543 | AC86: -0.001235369207 | AD86: =+IF(INDEX($K86:$O86,1,aux!$AL$1)>0,(O86/INDEX($K86:$O86,1,aux!$AL$1))^(1/($O$3-INDEX($K$3:$O$3,1,aux!$AL$1)))-1,"n.d.") -> -0.1871270773 | AE86: =IF(INDEX($K86:$O86,1,aux!$AL$1)>0,(O86-INDEX($K86:$O86,1,aux!$AL$1))/INDEX($K86:$O86,1,aux!$AL$1),"n.d.") -> -0.563393066 | AX86: 09
A87: 09SS | B87: Café, chá, mate e especiarias | C87: 0 | D87: 0 | E87: 0 | F87: 0 | G87: 0 | H87: 0 | I87: 0 | J87: 0 | K87: 0 | L87: 0 | M87: 0 | N87: 0 | O87: 0 | P87: 0 | Q87: 0 | R87: 0 | S87: 0 | U87: =G87-INDEX($C87:$G87,1,aux!$AL$1) -> 0 | V87: 0 | W87: 0 | X87: =+IF(INDEX($C87:$G87,1,aux!$AL$1)>0,(G87/INDEX($C87:$G87,1,aux!$AL$1))^(1/($G$3-INDEX($C$3:$G$3,1,aux!$AL$1)))-1,"n.d.") -> n.d. | Y87: =IF(INDEX($C87:$G87,1,aux!$AL$1)>0,(G87-INDEX($C87:$G87,1,aux!$AL$1))/INDEX($C87:$G87,1,aux!$AL$1),"n.d.") -> n.d. | AA87: =O87-INDEX($K87:$O87,1,aux!$AL$1) -> 0 | AB87: 0 | AC87: 0 | AD87: =+IF(INDEX($K87:$O87,1,aux!$AL$1)>0,(O87/INDEX($K87:$O87,1,aux!$AL$1))^(1/($O$3-INDEX($K$3:$O$3,1,aux!$AL$1)))-1,"n.d.") -> n.d. | AE87: =IF(INDEX($K87:$O87,1,aux!$AL$1)>0,(O87-INDEX($K87:$O87,1,aux!$AL$1))/INDEX($K87:$O87,1,aux!$AL$1),"n.d.") -> n.d. | AX87: 09
A88: 1001 | B88: Trigo e mistura trigo/centeio | C88: 2136.613 | D88: 5863.033 | E88: 11529.093 | F88: 4803.613 | G88: 9060.613 | H88: 6678.593 | I88: 0.03080809409 | J88: 0.02372739813 | K88: 0 | L88: 0 | M88: 0 | N88: 0 | O88: 0 | P88: 0 | Q88: 0 | R88: 0 | S88: -6678.593 | U88: =G88-INDEX($C88:$G88,1,aux!$AL$1) -> 6924 | V88: -0.08914646432 | W88: -0.08992415786 | X88: =+IF(INDEX($C88:$G88,1,aux!$AL$1)>0,(G88/INDEX($C88:$G88,1,aux!$AL$1))^(1/($G$3-INDEX($C$3:$G$3,1,aux!$AL$1)))-1,"n.d.") -> 0.4350199165 | Y88: =IF(INDEX($C88:$G88,1,aux!$AL$1)>0,(G88-INDEX($C88:$G88,1,aux!$AL$1))/INDEX($C88:$G88,1,aux!$AL$1),"n.d.") -> 3.240643018 | AA88: =O88-INDEX($K88:$O88,1,aux!$AL$1) -> 0 | AB88: 0 | AC88: 0 | AD88: =+IF(INDEX($K88:$O88,1,aux!$AL$1)>0,(O88/INDEX($K88:$O88,1,aux!$AL$1))^(1/($O$3-INDEX($K$3:$O$3,1,aux!$AL$1)))-1,"n.d.") -> n.d. | AE88: =IF(INDEX($K88:$O88,1,aux!$AL$1)>0,(O88-INDEX($K88:$O88,1,aux!$AL$1))/INDEX($K88:$O88,1,aux!$AL$1),"n.d.") -> n.d. | AX88: 10
A89: 1002 | B89: Centeio | C89: 0 | D89: 0 | E89: 0 | F89: 0 | G89: 0 | H89: 0 | I89: 0 | J89: 0 | K89: 0 | L89: 0 | M89: 0 | N89: 0 | O89: 0 | P89: 0 | Q89: 0 | R89: 0 | S89: 0 | U89: =G89-INDEX($C89:$G89,1,aux!$AL$1) -> 0 | V89: 0 | W89: 0 | X89: =+IF(INDEX($C89:$G89,1,aux!$AL$1)>0,(G89/INDEX($C89:$G89,1,aux!$AL$1))^(1/($G$3-INDEX($C$3:$G$3,1,aux!$AL$1)))-1,"n.d.") -> n.d. | Y89: =IF(INDEX($C89:$G89,1,aux!$AL$1)>0,(G89-INDEX($C89:$G89,1,aux!$AL$1))/INDEX($C89:$G89,1,aux!$AL$1),"n.d.") -> n.d. | AA89: =O89-INDEX($K89:$O89,1,aux!$AL$1) -> 0 | AB89: 0 | AC89: 0 | AD89: =+IF(INDEX($K89:$O89,1,aux!$AL$1)>0,(O89/INDEX($K89:$O89,1,aux!$AL$1))^(1/($O$3-INDEX($K$3:$O$3,1,aux!$AL$1)))-1,"n.d.") -> n.d. | AE89: =IF(INDEX($K89:$O89,1,aux!$AL$1)>0,(O89-INDEX($K89:$O89,1,aux!$AL$1))/INDEX($K89:$O89,1,aux!$AL$1),"n.d.") -> n.d. | AX89: 10
A90: 1003 | B90: Cevada | C90: 0 | D90: 0 | E90: 0 | F90: 0 | G90: 0 | H90: 0 | I90: 0 | J90: 0 | K90: 0.616 | L90: 2.153 | M90: 1.942 | N90: 2.56 | O90: 0 | P90: 1.4542 | Q90: 7.919747192e-06 | R90: 2.624403562e-06 | S90: 1.4542 | U90: =G90-INDEX($C90:$G90,1,aux!$AL$1) -> 0 | V90: 0 | W90: 0 | X90: =+IF(INDEX($C90:$G90,1,aux!$AL$1)>0,(G90/INDEX($C90:$G90,1,aux!$AL$1))^(1/($G$3-INDEX($C$3:$G$3,1,aux!$AL$1)))-1,"n.d.") -> n.d. | Y90: =IF(INDEX($C90:$G90,1,aux!$AL$1)>0,(G90-INDEX($C90:$G90,1,aux!$AL$1))/INDEX($C90:$G90,1,aux!$AL$1),"n.d.") -> n.d. | AA90: =O90-INDEX($K90:$O90,1,aux!$AL$1) -> -0.616 | AB90: -7.171540978e-06 | AC90: -3.159879381e-06 | AD90: =+IF(INDEX($K90:$O90,1,aux!$AL$1)>0,(O90/INDEX($K90:$O90,1,aux!$AL$1))^(1/($O$3-INDEX($K$3:$O$3,1,aux!$AL$1)))-1,"n.d.") -> -1 | AE90: =IF(INDEX($K90:$O90,1,aux!$AL$1)>0,(O90-INDEX($K90:$O90,1,aux!$AL$1))/INDEX($K90:$O90,1,aux!$AL$1),"n.d.") -> -1 | AX90: 10
A91: 1004 | B91: Aveia | C91: 0 | D91: 0 | E91: 0 | F91: 0 | G91: 0 | H91: 0 | I91: 0 | J91: 0 | K91: 0 | L91: 0 | M91: 0 | N91: 0 | O91: 0 | P91: 0 | Q91: 0 | R91: 0 | S91: 0 | U91: =G91-INDEX($C91:$G91,1,aux!$AL$1) -> 0 | V91: 0 | W91: 0 | X91: =+IF(INDEX($C91:$G91,1,aux!$AL$1)>0,(G91/INDEX($C91:$G91,1,aux!$AL$1))^(1/($G$3-INDEX($C$3:$G$3,1,aux!$AL$1)))-1,"n.d.") -> n.d. | Y91: =IF(INDEX($C91:$G91,1,aux!$AL$1)>0,(G91-INDEX($C91:$G91,1,aux!$AL$1))/INDEX($C91:$G91,1,aux!$AL$1),"n.d.") -> n.d. | AA91: =O91-INDEX($K91:$O91,1,aux!$AL$1) -> 0 | AB91: 0 | AC91: 0 | AD91: =+IF(INDEX($K91:$O91,1,aux!$AL$1)>0,(O91/INDEX($K91:$O91,1,aux!$AL$1))^(1/($O$3-INDEX($K$3:$O$3,1,aux!$AL$1)))-1,"n.d.") -> n.d. | AE91: =IF(INDEX($K91:$O91,1,aux!$AL$1)>0,(O91-INDEX($K91:$O91,1,aux!$AL$1))/INDEX($K91:$O91,1,aux!$AL$1),"n.d.") -> n.d. | AX91: 10
A92: 1005 | B92: Milho | C92: 36385.264 | D92: 88.027 | E92: 20.034 | F92: 21.069 | G92: 8764.035 | H92: 9055.6858 | I92: 0.04177353227 | J92: 0.03217262413 | K92: 0 | L92: 0 | M92: 0 | N92: 0 | O92: 0.786 | P92: 0.1572 | Q92: 8.561300087e-07 | R92: 2.836997937e-07 | S92: -9055.5286 | U92: =G92-INDEX($C92:$G92,1,aux!$AL$1) -> -27621.229 | V92: 0.355623181 | W92: 0.358725557 | X92: =+IF(INDEX($C92:$G92,1,aux!$AL$1)>0,(G92/INDEX($C92:$G92,1,aux!$AL$1))^(1/($G$3-INDEX($C$3:$G$3,1,aux!$AL$1)))-1,"n.d.") -> -0.2994411186 | Y92: =IF(INDEX($C92:$G92,1,aux!$AL$1)>0,(G92-INDEX($C92:$G92,1,aux!$AL$1))/INDEX($C92:$G92,1,aux!$AL$1),"n.d.") -> -0.759132296 | AA92: =O92-INDEX($K92:$O92,1,aux!$AL$1) -> 0.786 | AB92: 9.150700015e-06 | AC92: 4.031924015e-06 | AD92: =+IF(INDEX($K92:$O92,1,aux!$AL$1)>0,(O92/INDEX($K92:$O92,1,aux!$AL$1))^(1/($O$3-INDEX($K$3:$O$3,1,aux!$AL$1)))-1,"n.d.") -> n.d. | AE92: =IF(INDEX($K92:$O92,1,aux!$AL$1)>0,(O92-INDEX($K92:$O92,1,aux!$AL$1))/INDEX($K92:$O92,1,aux!$AL$1),"n.d.") -> n.d. | AX92: 10
A93: 1006 | B93: Arroz | C93: 219.078 | D93: 2984.538 | E93: 2351.13 | F93: 99.255 | G93: 114.317 | H93: 1153.6636 | I93: 0.005321806066 | J93: 0.004098682992 | K93: 10.862 | L93: 37.999 | M93: 176.61 | N93: 147.16 | O93: 399.825 | P93: 154.4912 | Q93: 0.0008413775598 | R93: 0.0002788112059 | S93: -999.1724 | U93: =G93-INDEX($C93:$G93,1,aux!$AL$1) -> -104.761 | V93: 0.001348797335 | W93: 0.001360563937 | X93: =+IF(INDEX($C93:$G93,1,aux!$AL$1)>0,(G93/INDEX($C93:$G93,1,aux!$AL$1))^(1/($G$3-INDEX($C$3:$G$3,1,aux!$AL$1)))-1,"n.d.") -> -0.1500800708 | Y93: =IF(INDEX($C93:$G93,1,aux!$AL$1)>0,(G93-INDEX($C93:$G93,1,aux!$AL$1))/INDEX($C93:$G93,1,aux!$AL$1),"n.d.") -> -0.4781904162 | AA93: =O93-INDEX($K93:$O93,1,aux!$AL$1) -> 388.963 | AB93: 0.004528350801 | AC93: 0.001995253512 | AD93: =+IF(INDEX($K93:$O93,1,aux!$AL$1)>0,(O93/INDEX($K93:$O93,1,aux!$AL$1))^(1/($O$3-INDEX($K$3:$O$3,1,aux!$AL$1)))-1,"n.d.") -> 1.463145331 | AE93: =IF(INDEX($K93:$O93,1,aux!$AL$1)>0,(O93-INDEX($K93:$O93,1,aux!$AL$1))/INDEX($K93:$O93,1,aux!$AL$1),"n.d.") -> 35.80951943 | AX93: 10
A94: 1007 | B94: Sorgo de grão | C94: 0 | D94: 271.322 | E94: 0 | F94: 0 | G94: 0 | H94: 54.2644 | I94: 0.0002503196019 | J94: 0.0001927880652 | K94: 0 | L94: 0 | M94: 0 | N94: 0 | O94: 0 | P94: 0 | Q94: 0 | R94: 0 | S94: -54.2644 | U94: =G94-INDEX($C94:$G94,1,aux!$AL$1) -> 0 | V94: 0 | W94: 0 | X94: =+IF(INDEX($C94:$G94,1,aux!$AL$1)>0,(G94/INDEX($C94:$G94,1,aux!$AL$1))^(1/($G$3-INDEX($C$3:$G$3,1,aux!$AL$1)))-1,"n.d.") -> n.d. | Y94: =IF(INDEX($C94:$G94,1,aux!$AL$1)>0,(G94-INDEX($C94:$G94,1,aux!$AL$1))/INDEX($C94:$G94,1,aux!$AL$1),"n.d.") -> n.d. | AA94: =O94-INDEX($K94:$O94,1,aux!$AL$1) -> 0 | AB94: 0 | AC94: 0 | AD94: =+IF(INDEX($K94:$O94,1,aux!$AL$1)>0,(O94/INDEX($K94:$O94,1,aux!$AL$1))^(1/($O$3-INDEX($K$3:$O$3,1,aux!$AL$1)))-1,"n.d.") -> n.d. | AE94: =IF(INDEX($K94:$O94,1,aux!$AL$1)>0,(O94-INDEX($K94:$O94,1,aux!$AL$1))/INDEX($K94:$O94,1,aux!$AL$1),"n.d.") -> n.d. | AX94: 10
A95: 1008 | B95: Trigo mourisco, painço e outros cereais | C95: 106.825 | D95: 114.237 | E95: 18.899 | F95: 44.374 | G95: 67.376 | H95: 70.3422 | I95: 0.0003244858784 | J95: 0.0002499085338 | K95: 0 | L95: 0 | M95: 0.195 | N95: 20.369 | O95: 0.371 | P95: 4.187 | Q95: 2.280290297e-05 | R95: 7.556304302e-06 | S95: -66.1552 | U95: =G95-INDEX($C95:$G95,1,aux!$AL$1) -> -39.449 | V95: 0.0005079056717 | W95: 0.0005123365256 | X95: =+IF(INDEX($C95:$G95,1,aux!$AL$1)>0,(G95/INDEX($C95:$G95,1,aux!$AL$1))^(1/($G$3-INDEX($C$3:$G$3,1,aux!$AL$1)))-1,"n.d.") -> -0.1088350838 | Y95: =IF(INDEX($C95:$G95,1,aux!$AL$1)>0,(G95-INDEX($C95:$G95,1,aux!$AL$1))/INDEX($C95:$G95,1,aux!$AL$1),"n.d.") -> -0.3692862158 | AA95: =O95-INDEX($K95:$O95,1,aux!$AL$1) -> 0.371 | AB95: 4.319223544e-06 | AC95: 1.903109173e-06 | AD95: =+IF(INDEX($K95:$O95,1,aux!$AL$1)>0,(O95/INDEX($K95:$O95,1,aux!$AL$1))^(1/($O$3-INDEX($K$3:$O$3,1,aux!$AL$1)))-1,"n.d.") -> n.d. | AE95: =IF(INDEX($K95:$O95,1,aux!$AL$1)>0,(O95-INDEX($K95:$O95,1,aux!$AL$1))/INDEX($K95:$O95,1,aux!$AL$1),"n.d.") -> n.d. | AX95: 10
A96: 10SS | B96: Cereais | C96: 0 | D96: 0 | E96: 0 | F96: 0 | G96: 0 | H96: 0 | I96: 0 | J96: 0 | K96: 0 | L96: 0 | M96: 0 | N96: 0 | O96: 0 | P96: 0 | Q96: 0 | R96: 0 | S96: 0 | U96: =G96-INDEX($C96:$G96,1,aux!$AL$1) -> 0 | V96: 0 | W96: 0 | X96: =+IF(INDEX($C96:$G96,1,aux!$AL$1)>0,(G96/INDEX($C96:$G96,1,aux!$AL$1))^(1/($G$3-INDEX($C$3:$G$3,1,aux!$AL$1)))-1,"n.d.") -> n.d. | Y96: =IF(INDEX($C96:$G96,1,aux!$AL$1)>0,(G96-INDEX($C96:$G96,1,aux!$AL$1))/INDEX($C96:$G96,1,aux!$AL$1),"n.d.") -> n.d. | AA96: =O96-INDEX($K96:$O96,1,aux!$AL$1) -> 0 | AB96: 0 | AC96: 0 | AD96: =+IF(INDEX($K96:$O96,1,aux!$AL$1)>0,(O96/INDEX($K96:$O96,1,aux!$AL$1))^(1/($O$3-INDEX($K$3:$O$3,1,aux!$AL$1)))-1,"n.d.") -> n.d. | AE96: =IF(INDEX($K96:$O96,1,aux!$AL$1)>0,(O96-INDEX($K96:$O96,1,aux!$AL$1))/INDEX($K96:$O96,1,aux!$AL$1),"n.d.") -> n.d. | AX96: 10
A97: 1101 | B97: Farinhas de trigo ou trigo/centeio | C97: 8.831 | D97: 55.759 | E97: 50.067 | F97: 51.76 | G97: 17.381 | H97: 36.7596 | I97: 0.000169570629 | J97: 0.0001305978167 | K97: 38.748 | L97: 36.739 | M97: 47.659 | N97: 45.992 | O97: 46.881 | P97: 43.2038 | Q97: 0.000235293064 | R97: 7.797015997e-05 | S97: 6.4442 | U97: =G97-INDEX($C97:$G97,1,aux!$AL$1) -> 8.55 | V97: -0.0001100812059 | W97: -0.0001110415294 | X97: =+IF(INDEX($C97:$G97,1,aux!$AL$1)>0,(G97/INDEX($C97:$G97,1,aux!$AL$1))^(1/($G$3-INDEX($C$3:$G$3,1,aux!$AL$1)))-1,"n.d.") -> 0.1844485993 | Y97: =IF(INDEX($C97:$G97,1,aux!$AL$1)>0,(G97-INDEX($C97:$G97,1,aux!$AL$1))/INDEX($C97:$G97,1,aux!$AL$1),"n.d.") -> 0.968180274 | AA97: =O97-INDEX($K97:$O97,1,aux!$AL$1) -> 8.133 | AB97: 9.468529672e-05 | AC97: 4.171964124e-05 | AD97: =+IF(INDEX($K97:$O97,1,aux!$AL$1)>0,(O97/INDEX($K97:$O97,1,aux!$AL$1))^(1/($O$3-INDEX($K$3:$O$3,1,aux!$AL$1)))-1,"n.d.") -> 0.04878603025 | AE97: =IF(INDEX($K97:$O97,1,aux!$AL$1)>0,(O97-INDEX($K97:$O97,1,aux!$AL$1))/INDEX($K97:$O97,1,aux!$AL$1),"n.d.") -> 0.2098947042 | AX97: 11
A98: 1102 | B98: Outras farinhas de cereais | C98: 557.887 | D98: 168.739 | E98: 87.665 | F98: 1.323 | G98: 0.62 | H98: 163.2468 | I98: 0.0007530512452 | J98: 0.0005799757249 | K98: 27.422 | L98: 16.166 | M98: 17.075 | N98: 9.693 | O98: 11.604 | P98: 16.392 | Q98: 8.927279327e-05 | R98: 2.958274185e-05 | S98: -146.8548 | U98: =G98-INDEX($C98:$G98,1,aux!$AL$1) -> -557.267 | V98: 0.007174809753 | W98: 0.007237401166 | X98: =+IF(INDEX($C98:$G98,1,aux!$AL$1)>0,(G98/INDEX($C98:$G98,1,aux!$AL$1))^(1/($G$3-INDEX($C$3:$G$3,1,aux!$AL$1)))-1,"n.d.") -> -0.8174165698 | Y98: =IF(INDEX($C98:$G98,1,aux!$AL$1)>0,(G98-INDEX($C98:$G98,1,aux!$AL$1))/INDEX($C98:$G98,1,aux!$AL$1),"n.d.") -> -0.9988886638 | AA98: =O98-INDEX($K98:$O98,1,aux!$AL$1) -> -15.818 | AB98: -0.0001841549273 | AC98: -8.114118839e-05 | AD98: =+IF(INDEX($K98:$O98,1,aux!$AL$1)>0,(O98/INDEX($K98:$O98,1,aux!$AL$1))^(1/($O$3-INDEX($K$3:$O$3,1,aux!$AL$1)))-1,"n.d.") -> -0.1934577018 | AE98: =IF(INDEX($K98:$O98,1,aux!$AL$1)>0,(O98-INDEX($K98:$O98,1,aux!$AL$1))/INDEX($K98:$O98,1,aux!$AL$1),"n.d.") -> -0.576836117 | AX98: 11
A99: 1103 | B99: Grumos, sêmolas, etc. de cereais | C99: 0 | D99: 0 | E99: 0 | F99: 0 | G99: 0 | H99: 0 | I99: 0 | J99: 0 | K99: 0 | L99: 0 | M99: 0 | N99: 0 | O99: 0 | P99: 0 | Q99: 0 | R99: 0 | S99: 0 | U99: =G99-INDEX($C99:$G99,1,aux!$AL$1) -> 0 | V99: 0 | W99: 0 | X99: =+IF(INDEX($C99:$G99,1,aux!$AL$1)>0,(G99/INDEX($C99:$G99,1,aux!$AL$1))^(1/($G$3-INDEX($C$3:$G$3,1,aux!$AL$1)))-1,"n.d.") -> n.d. | Y99: =IF(INDEX($C99:$G99,1,aux!$AL$1)>0,(G99-INDEX($C99:$G99,1,aux!$AL$1))/INDEX($C99:$G99,1,aux!$AL$1),"n.d.") -> n.d. | AA99: =O99-INDEX($K99:$O99,1,aux!$AL$1) -> 0 | AB99: 0 | AC99: 0 | AD99: =+IF(INDEX($K99:$O99,1,aux!$AL$1)>0,(O99/INDEX($K99:$O99,1,aux!$AL$1))^(1/($O$3-INDEX($K$3:$O$3,1,aux!$AL$1)))-1,"n.d.") -> n.d. | AE99: =IF(INDEX($K99:$O99,1,aux!$AL$1)>0,(O99-INDEX($K99:$O99,1,aux!$AL$1))/INDEX($K99:$O99,1,aux!$AL$1),"n.d.") -> n.d. | AX99: 11
A100: 1104 | B100: Grãos de cereais processados | C100: 0.264 | D100: 0 | E100: 0.503 | F100: 0 | G100: 0.012 | H100: 0.1558 | I100: 7.186994416e-07 | J100: 5.535190763e-07 | K100: 0 | L100: 0.134 | M100: 4.749 | N100: 0.518 | O100: 0.507 | P100: 1.1816 | Q100: 6.435134976e-06 | R100: 2.132440689e-06 | S100: 1.0258 | U100: =G100-INDEX($C100:$G100,1,aux!$AL$1) -> -0.252 | V100: 3.244498701e-06 | W100: 3.272802972e-06 | X100: =+IF(INDEX($C100:$G100,1,aux!$AL$1)>0,(G100/INDEX($C100:$G100,1,aux!$AL$1))^(1/($G$3-INDEX($C$3:$G$3,1,aux!$AL$1)))-1,"n.d.") -> -0.5382633691 | Y100: =IF(INDEX($C100:$G100,1,aux!$AL$1)>0,(G100-INDEX($C100:$G100,1,aux!$AL$1))/INDEX($C100:$G100,1,aux!$AL$1),"n.d.") -> -0.9545454545 | AA100: =O100-INDEX($K100:$O100,1,aux!$AL$1) -> 0.507 | AB100: 5.902550773e-06 | AC100: 2.60074488e-06 | AD100: =+IF(INDEX($K100:$O100,1,aux!$AL$1)>0,(O100/INDEX($K100:$O100,1,aux!$AL$1))^(1/($O$3-INDEX($K$3:$O$3,1,aux!$AL$1)))-1,"n.d.") -> n.d. | AE100: =IF(INDEX($K100:$O100,1,aux!$AL$1)>0,(O100-INDEX($K100:$O100,1,aux!$AL$1))/INDEX($K100:$O100,1,aux!$AL$1),"n.d.") -> n.d. | AX100: 11
A101: 1105 | B101: Farinha, sêmola, etc. de batata | C101: 0 | D101: 0 | E101: 0 | F101: 0.142 | G101: 0 | H101: 0.0284 | I101: 1.310081139e-07 | J101: 1.008982142e-07 | K101: 0.21 | L101: 0.975 | M101: 3.08 | N101: 0.695 | O101: 1.055 | P101: 1.203 | Q101: 6.551681937e-06 | R101: 2.171061398e-06 | S101: 1.1746 | U101: =G101-INDEX($C101:$G101,1,aux!$AL$1) -> 0 | V101: 0 | W101: 0 | X101: =+IF(INDEX($C101:$G101,1,aux!$AL$1)>0,(G101/INDEX($C101:$G101,1,aux!$AL$1))^(1/($G$3-INDEX($C$3:$G$3,1,aux!$AL$1)))-1,"n.d.") -> n.d. | Y101: =IF(INDEX($C101:$G101,1,aux!$AL$1)>0,(G101-INDEX($C101:$G101,1,aux!$AL$1))/INDEX($C101:$G101,1,aux!$AL$1),"n.d.") -> n.d. | AA101: =O101-INDEX($K101:$O101,1,aux!$AL$1) -> 0.845 | AB101: 9.837584621e-06 | AC101: 4.3345748e-06 | AD101: =+IF(INDEX($K101:$O101,1,aux!$AL$1)>0,(O101/INDEX($K101:$O101,1,aux!$AL$1))^(1/($O$3-INDEX($K$3:$O$3,1,aux!$AL$1)))-1,"n.d.") -> 0.4971257883 | AE101: =IF(INDEX($K101:$O101,1,aux!$AL$1)>0,(O101-INDEX($K101:$O101,1,aux!$AL$1))/INDEX($K101:$O101,1,aux!$AL$1),"n.d.") -> 4.023809524 | AX101: 11
A102: 1106 | B102: Farinhas, etc. de leguminosas e outros tubérculos | C102: 0 | D102: 5.692 | E102: 50.756 | F102: 51.205 | G102: 0.07 | H102: 21.5446 | I102: 9.938441585e-05 | J102: 7.654266426e-05 | K102: 0 | L102: 0.02 | M102: 0.094 | N102: 0.163 | O102: 0.639 | P102: 0.1832 | Q102: 9.977291195e-07 | R102: 3.306221514e-07 | S102: -21.3614 | U102: =G102-INDEX($C102:$G102,1,aux!$AL$1) -> 0.07 | V102: -9.012496393e-07 | W102: -9.091119367e-07 | X102: =+IF(INDEX($C102:$G102,1,aux!$AL$1)>0,(G102/INDEX($C102:$G102,1,aux!$AL$1))^(1/($G$3-INDEX($C$3:$G$3,1,aux!$AL$1)))-1,"n.d.") -> n.d. | Y102: =IF(INDEX($C102:$G102,1,aux!$AL$1)>0,(G102-INDEX($C102:$G102,1,aux!$AL$1))/INDEX($C102:$G102,1,aux!$AL$1),"n.d.") -> n.d. | AA102: =O102-INDEX($K102:$O102,1,aux!$AL$1) -> 0.639 | AB102: 7.439309554e-06 | AC102: 3.27786189e-06 | AD102: =+IF(INDEX($K102:$O102,1,aux!$AL$1)>0,(O102/INDEX($K102:$O102,1,aux!$AL$1))^(1/($O$3-INDEX($K$3:$O$3,1,aux!$AL$1)))-1,"n.d.") -> n.d. | AE102: =IF(INDEX($K102:$O102,1,aux!$AL$1)>0,(O102-INDEX($K102:$O102,1,aux!$AL$1))/INDEX($K102:$O102,1,aux!$AL$1),"n.d.") -> n.d. | AX102: 11
A103: 1107 | B103: Malte, mesmo torrado | C103: 0 | D103: 0 | E103: 0 | F103: 0 | G103: 0 | H103: 0 | I103: 0 | J103: 0 | K103: 0 | L103: 0 | M103: 0 | N103: 0 | O103: 0 | P103: 0 | Q103: 0 | R103: 0 | S103: 0 | U103: =G103-INDEX($C103:$G103,1,aux!$AL$1) -> 0 | V103: 0 | W103: 0 | X103: =+IF(INDEX($C103:$G103,1,aux!$AL$1)>0,(G103/INDEX($C103:$G103,1,aux!$AL$1))^(1/($G$3-INDEX($C$3:$G$3,1,aux!$AL$1)))-1,"n.d.") -> n.d. | Y103: =IF(INDEX($C103:$G103,1,aux!$AL$1)>0,(G103-INDEX($C103:$G103,1,aux!$AL$1))/INDEX($C103:$G103,1,aux!$AL$1),"n.d.") -> n.d. | AA103: =O103-INDEX($K103:$O103,1,aux!$AL$1) -> 0 | AB103: 0 | AC103: 0 | AD103: =+IF(INDEX($K103:$O103,1,aux!$AL$1)>0,(O103/INDEX($K103:$O103,1,aux!$AL$1))^(1/($O$3-INDEX($K$3:$O$3,1,aux!$AL$1)))-1,"n.d.") -> n.d. | AE103: =IF(INDEX($K103:$O103,1,aux!$AL$1)>0,(O103-INDEX($K103:$O103,1,aux!$AL$1))/INDEX($K103:$O103,1,aux!$AL$1),"n.d.") -> n.d. | AX103: 11
A104: 1108 | B104: Amidos e féculas; inulina | C104: 0.001 | D104: 0 | E104: 0.538 | F104: 0.019 | G104: 118.039 | H104: 23.7194 | I104: 0.0001094166851 | J104: 8.42691937e-05 | K104: 4.877 | L104: 7.515 | M104: 6.639 | N104: 15.901 | O104: 20.375 | P104: 11.0614 | Q104: 6.024170787e-05 | R104: 1.996257569e-05 | S104: -12.658 | U104: =G104-INDEX($C104:$G104,1,aux!$AL$1) -> 118.038 | V104: -0.001519738642 | W104: -0.001532996497 | X104: =+IF(INDEX($C104:$G104,1,aux!$AL$1)>0,(G104/INDEX($C104:$G104,1,aux!$AL$1))^(1/($G$3-INDEX($C$3:$G$3,1,aux!$AL$1)))-1,"n.d.") -> 17.53558855 | Y104: =IF(INDEX($C104:$G104,1,aux!$AL$1)>0,(G104-INDEX($C104:$G104,1,aux!$AL$1))/INDEX($C104:$G104,1,aux!$AL$1),"n.d.") -> 118038 | AA104: =O104-INDEX($K104:$O104,1,aux!$AL$1) -> 15.498 | AB104: 0.0001804294514 | AC104: 7.94996926e-05 | AD104: =+IF(INDEX($K104:$O104,1,aux!$AL$1)>0,(O104/INDEX($K104:$O104,1,aux!$AL$1))^(1/($O$3-INDEX($K$3:$O$3,1,aux!$AL$1)))-1,"n.d.") -> 0.4296713542 | AE104: =IF(INDEX($K104:$O104,1,aux!$AL$1)>0,(O104-INDEX($K104:$O104,1,aux!$AL$1))/INDEX($K104:$O104,1,aux!$AL$1),"n.d.") -> 3.177773221 | AX104: 11
A105: 1109 | B105: Glúten de trigo, mesmo seco | C105: 0 | D105: 0 | E105: 0 | F105: 0 | G105: 0 | H105: 0 | I105: 0 | J105: 0 | K105: 0 | L105: 0 | M105: 0 | N105: 0 | O105: 0 | P105: 0 | Q105: 0 | R105: 0 | S105: 0 | U105: =G105-INDEX($C105:$G105,1,aux!$AL$1) -> 0 | V105: 0 | W105: 0 | X105: =+IF(INDEX($C105:$G105,1,aux!$AL$1)>0,(G105/INDEX($C105:$G105,1,aux!$AL$1))^(1/($G$3-INDEX($C$3:$G$3,1,aux!$AL$1)))-1,"n.d.") -> n.d. | Y105: =IF(INDEX($C105:$G105,1,aux!$AL$1)>0,(G105-INDEX($C105:$G105,1,aux!$AL$1))/INDEX($C105:$G105,1,aux!$AL$1),"n.d.") -> n.d. | AA105: =O105-INDEX($K105:$O105,1,aux!$AL$1) -> 0 | AB105: 0 | AC105: 0 | AD105: =+IF(INDEX($K105:$O105,1,aux!$AL$1)>0,(O105/INDEX($K105:$O105,1,aux!$AL$1))^(1/($O$3-INDEX($K$3:$O$3,1,aux!$AL$1)))-1,"n.d.") -> n.d. | AE105: =IF(INDEX($K105:$O105,1,aux!$AL$1)>0,(O105-INDEX($K105:$O105,1,aux!$AL$1))/INDEX($K105:$O105,1,aux!$AL$1),"n.d.") -> n.d. | AX105: 11
A106: 11SS | B106: Produtos da indústria de moagem e outros | C106: 0 | D106: 0 | E106: 0 | F106: 0 | G106: 0 | H106: 0 | I106: 0 | J106: 0 | K106: 0 | L106: 0 | M106: 0 | N106: 0 | O106: 0 | P106: 0 | Q106: 0 | R106: 0 | S106: 0 | U106: =G106-INDEX($C106:$G106,1,aux!$AL$1) -> 0 | V106: 0 | W106: 0 | X106: =+IF(INDEX($C106:$G106,1,aux!$AL$1)>0,(G106/INDEX($C106:$G106,1,aux!$AL$1))^(1/($G$3-INDEX($C$3:$G$3,1,aux!$AL$1)))-1,"n.d.") -> n.d. | Y106: =IF(INDEX($C106:$G106,1,aux!$AL$1)>0,(G106-INDEX($C106:$G106,1,aux!$AL$1))/INDEX($C106:$G106,1,aux!$AL$1),"n.d.") -> n.d. | AA106: =O106-INDEX($K106:$O106,1,aux!$AL$1) -> 0 | AB106: 0 | AC106: 0 | AD106: =+IF(INDEX($K106:$O106,1,aux!$AL$1)>0,(O106/INDEX($K106:$O106,1,aux!$AL$1))^(1/($O$3-INDEX($K$3:$O$3,1,aux!$AL$1)))-1,"n.d.") -> n.d. | AE106: =IF(INDEX($K106:$O106,1,aux!$AL$1)>0,(O106-INDEX($K106:$O106,1,aux!$AL$1))/INDEX($K106:$O106,1,aux!$AL$1),"n.d.") -> n.d. | AX106: 11
A107: 1201 | B107: Soja, mesmo triturada | C107: 189021.186 | D107: 164043.805 | E107: 103490.08 | F107: 118328.024 | G107: 148326.078 | H107: 144641.8346 | I107: 0.6672272513 | J107: 0.5138768593 | K107: 0 | L107: 0 | M107: 0 | N107: 0 | O107: 0.041 | P107: 0.0082 | Q107: 4.465818111e-08 | R107: 1.479858975e-08 | S107: -144641.8264 | U107: =G107-INDEX($C107:$G107,1,aux!$AL$1) -> -40695.108 | V107: 0.5239493058 | W107: 0.5285201207 | X107: =+IF(INDEX($C107:$G107,1,aux!$AL$1)>0,(G107/INDEX($C107:$G107,1,aux!$AL$1))^(1/($G$3-INDEX($C$3:$G$3,1,aux!$AL$1)))-1,"n.d.") -> -0.05881118505 | Y107: =IF(INDEX($C107:$G107,1,aux!$AL$1)>0,(G107-INDEX($C107:$G107,1,aux!$AL$1))/INDEX($C107:$G107,1,aux!$AL$1),"n.d.") -> -0.2152938983 | AA107: =O107-INDEX($K107:$O107,1,aux!$AL$1) -> 0.041 | AB107: 4.773265911e-07 | AC107: 2.103166471e-07 | AD107: =+IF(INDEX($K107:$O107,1,aux!$AL$1)>0,(O107/INDEX($K107:$O107,1,aux!$AL$1))^(1/($O$3-INDEX($K$3:$O$3,1,aux!$AL$1)))-1,"n.d.") -> n.d. | AE107: =IF(INDEX($K107:$O107,1,aux!$AL$1)>0,(O107-INDEX($K107:$O107,1,aux!$AL$1))/INDEX($K107:$O107,1,aux!$AL$1),"n.d.") -> n.d. | AX107: 12
A108: 1202 | B108: Amendoins não torrados | C108: 3511.573 | D108: 2649.256 | E108: 3207.062 | F108: 2024.604 | G108: 4138.145 | H108: 3106.128 | I108: 0.01432844967 | J108: 0.01103530874 | K108: 0 | L108: 0 | M108: 0 | N108: 0 | O108: 0 | P108: 0 | Q108: 0 | R108: 0 | S108: -3106.128 | U108: =G108-INDEX($C108:$G108,1,aux!$AL$1) -> 626.572 | V108: -0.008067111271 | W108: -0.00813748692 | X108: =+IF(INDEX($C108:$G108,1,aux!$AL$1)>0,(G108/INDEX($C108:$G108,1,aux!$AL$1))^(1/($G$3-INDEX($C$3:$G$3,1,aux!$AL$1)))-1,"n.d.") -> 0.04189991061 | Y108: =IF(INDEX($C108:$G108,1,aux!$AL$1)>0,(G108-INDEX($C108:$G108,1,aux!$AL$1))/INDEX($C108:$G108,1,aux!$AL$1),"n.d.") -> 0.178430578 | AA108: =O108-INDEX($K108:$O108,1,aux!$AL$1) -> 0 | AB108: 0 | AC108: 0 | AD108: =+IF(INDEX($K108:$O108,1,aux!$AL$1)>0,(O108/INDEX($K108:$O108,1,aux!$AL$1))^(1/($O$3-INDEX($K$3:$O$3,1,aux!$AL$1)))-1,"n.d.") -> n.d. | AE108: =IF(INDEX($K108:$O108,1,aux!$AL$1)>0,(O108-INDEX($K108:$O108,1,aux!$AL$1))/INDEX($K108:$O108,1,aux!$AL$1),"n.d.") -> n.d. | AX108: 12
A109: 1203 | B109: Copra | C109: 0 | D109: 0 | E109: 0 | F109: 0 | G109: 0 | H109: 0 | I109: 0 | J109: 0 | K109: 0 | L109: 0 | M109: 0 | N109: 0 | O109: 0 | P109: 0 | Q109: 0 | R109: 0 | S109: 0 | U109: =G109-INDEX($C109:$G109,1,aux!$AL$1) -> 0 | V109: 0 | W109: 0 | X109: =+IF(INDEX($C109:$G109,1,aux!$AL$1)>0,(G109/INDEX($C109:$G109,1,aux!$AL$1))^(1/($G$3-INDEX($C$3:$G$3,1,aux!$AL$1)))-1,"n.d.") -> n.d. | Y109: =IF(INDEX($C109:$G109,1,aux!$AL$1)>0,(G109-INDEX($C109:$G109,1,aux!$AL$1))/INDEX($C109:$G109,1,aux!$AL$1),"n.d.") -> n.d. | AA109: =O109-INDEX($K109:$O109,1,aux!$AL$1) -> 0 | AB109: 0 | AC109: 0 | AD109: =+IF(INDEX($K109:$O109,1,aux!$AL$1)>0,(O109/INDEX($K109:$O109,1,aux!$AL$1))^(1/($O$3-INDEX($K$3:$O$3,1,aux!$AL$1)))-1,"n.d.") -> n.d. | AE109: =IF(INDEX($K109:$O109,1,aux!$AL$1)>0,(O109-INDEX($K109:$O109,1,aux!$AL$1))/INDEX($K109:$O109,1,aux!$AL$1),"n.d.") -> n.d. | AX109: 12
A110: 1204 | B110: Sementes de linho (linhaça) | C110: 0 | D110: 0 | E110: 0 | F110: 0 | G110: 0 | H110: 0 | I110: 0 | J110: 0 | K110: 0 | L110: 0 | M110: 0.054 | N110: 0.062 | O110: 0.205 | P110: 0.0642 | Q110: 3.496408814e-07 | R110: 1.158621295e-07 | S110: 0.0642 | U110: =G110-INDEX($C110:$G110,1,aux!$AL$1) -> 0 | V110: 0 | W110: 0 | X110: =+IF(INDEX($C110:$G110,1,aux!$AL$1)>0,(G110/INDEX($C110:$G110,1,aux!$AL$1))^(1/($G$3-INDEX($C$3:$G$3,1,aux!$AL$1)))-1,"n.d.") -> n.d. | Y110: =IF(INDEX($C110:$G110,1,aux!$AL$1)>0,(G110-INDEX($C110:$G110,1,aux!$AL$1))/INDEX($C110:$G110,1,aux!$AL$1),"n.d.") -> n.d. | AA110: =O110-INDEX($K110:$O110,1,aux!$AL$1) -> 0.205 | AB110: 2.386632955e-06 | AC110: 1.051583236e-06 | AD110: =+IF(INDEX($K110:$O110,1,aux!$AL$1)>0,(O110/INDEX($K110:$O110,1,aux!$AL$1))^(1/($O$3-INDEX($K$3:$O$3,1,aux!$AL$1)))-1,"n.d.") -> n.d. | AE110: =IF(INDEX($K110:$O110,1,aux!$AL$1)>0,(O110-INDEX($K110:$O110,1,aux!$AL$1))/INDEX($K110:$O110,1,aux!$AL$1),"n.d.") -> n.d. | AX110: 12
A111: 1205 | B111: Sementes de nabo silvestre ou de colza | C111: 0 | D111: 0.403 | E111: 0 | F111: 0 | G111: 0 | H111: 0.0806 | I111: 3.718047175e-07 | J111: 2.86351974e-07 | K111: 0 | L111: 0 | M111: 0 | N111: 0 | O111: 0 | P111: 0 | Q111: 0 | R111: 0 | S111: -0.0806 | U111: =G111-INDEX($C111:$G111,1,aux!$AL$1) -> 0 | V111: 0 | W111: 0 | X111: =+IF(INDEX($C111:$G111,1,aux!$AL$1)>0,(G111/INDEX($C111:$G111,1,aux!$AL$1))^(1/($G$3-INDEX($C$3:$G$3,1,aux!$AL$1)))-1,"n.d.") -> n.d. | Y111: =IF(INDEX($C111:$G111,1,aux!$AL$1)>0,(G111-INDEX($C111:$G111,1,aux!$AL$1))/INDEX($C111:$G111,1,aux!$AL$1),"n.d.") -> n.d. | AA111: =O111-INDEX($K111:$O111,1,aux!$AL$1) -> 0 | AB111: 0 | AC111: 0 | AD111: =+IF(INDEX($K111:$O111,1,aux!$AL$1)>0,(O111/INDEX($K111:$O111,1,aux!$AL$1))^(1/($O$3-INDEX($K$3:$O$3,1,aux!$AL$1)))-1,"n.d.") -> n.d. | AE111: =IF(INDEX($K111:$O111,1,aux!$AL$1)>0,(O111-INDEX($K111:$O111,1,aux!$AL$1))/INDEX($K111:$O111,1,aux!$AL$1),"n.d.") -> n.d. | AX111: 12
A112: 1206 | B112: Sementes de girassol | C112: 0 | D112: 0.133 | E112: 0 | F112: 0.071 | G112: 0.06 | H112: 0.0528 | I112: 2.435643807e-07 | J112: 1.875854122e-07 | K112: 0 | L112: 0 | M112: 0 | N112: 0 | O112: 0 | P112: 0 | Q112: 0 | R112: 0 | S112: -0.0528 | U112: =G112-INDEX($C112:$G112,1,aux!$AL$1) -> 0.06 | V112: -7.724996908e-07 | W112: -7.792388029e-07 | X112: =+IF(INDEX($C112:$G112,1,aux!$AL$1)>0,(G112/INDEX($C112:$G112,1,aux!$AL$1))^(1/($G$3-INDEX($C$3:$G$3,1,aux!$AL$1)))-1,"n.d.") -> n.d. | Y112: =IF(INDEX($C112:$G112,1,aux!$AL$1)>0,(G112-INDEX($C112:$G112,1,aux!$AL$1))/INDEX($C112:$G112,1,aux!$AL$1),"n.d.") -> n.d. | AA112: =O112-INDEX($K112:$O112,1,aux!$AL$1) -> 0 | AB112: 0 | AC112: 0 | AD112: =+IF(INDEX($K112:$O112,1,aux!$AL$1)>0,(O112/INDEX($K112:$O112,1,aux!$AL$1))^(1/($O$3-INDEX($K$3:$O$3,1,aux!$AL$1)))-1,"n.d.") -> n.d. | AE112: =IF(INDEX($K112:$O112,1,aux!$AL$1)>0,(O112-INDEX($K112:$O112,1,aux!$AL$1))/INDEX($K112:$O112,1,aux!$AL$1),"n.d.") -> n.d. | AX112: 12
A113: 1207 | B113: Sementes e frutos oleaginosos | C113: 10.249 | D113: 17.83 | E113: 0 | F113: 11.714 | G113: 0.04 | H113: 7.9666 | I113: 3.674962112e-05 | J113: 2.830337017e-05 | K113: 1.132 | L113: 2.2 | M113: 0.148 | N113: 350.752 | O113: 242.661 | P113: 119.3786 | Q113: 0.000650150139 | R113: 0.0002154432837 | S113: 111.412 | U113: =G113-INDEX($C113:$G113,1,aux!$AL$1) -> -10.209 | V113: 0.0001314408224 | W113: 0.0001325874823 | X113: =+IF(INDEX($C113:$G113,1,aux!$AL$1)>0,(G113/INDEX($C113:$G113,1,aux!$AL$1))^(1/($G$3-INDEX($C$3:$G$3,1,aux!$AL$1)))-1,"n.d.") -> -0.7500549015 | Y113: =IF(INDEX($C113:$G113,1,aux!$AL$1)>0,(G113-INDEX($C113:$G113,1,aux!$AL$1))/INDEX($C113:$G113,1,aux!$AL$1),"n.d.") -> -0.9960971802 | AA113: =O113-INDEX($K113:$O113,1,aux!$AL$1) -> 241.529 | AB113: 0.002811907664 | AC113: 0.001238965109 | AD113: =+IF(INDEX($K113:$O113,1,aux!$AL$1)>0,(O113/INDEX($K113:$O113,1,aux!$AL$1))^(1/($O$3-INDEX($K$3:$O$3,1,aux!$AL$1)))-1,"n.d.") -> 2.826382565 | AE113: =IF(INDEX($K113:$O113,1,aux!$AL$1)>0,(O113-INDEX($K113:$O113,1,aux!$AL$1))/INDEX($K113:$O113,1,aux!$AL$1),"n.d.") -> 213.364841 | AX113: 12
